Workbook

Sheet Read me
B2: S&P Global's Risk Adjusted Capital Framework Model Version 3.0
B4: DATA Input / Input sheet:
B6: Please fill in the cells highlighted in yellow in the sheet "Input" of this workbook.
B7: Most cells contain a help tool tip to complement the instructions below.
B9: Exposure At Default (EAD):
B10: Enter the Exposure At Default Before Credit Risk Mitigation.
B11: For banks under Basel, please enter both the on-balance sheet and off-balance sheet exposures, after application of regulatory Credit Conversion Factors.
B12: For banks not under Basel, the EAD is the sum of a bank's (1) outstanding loans, plus (2) 50% of off balance sheet commitments, plus (3) securities holdings and other types of exposures.
B14: Please use the Basel definition of asset classes to allocate assets whenever possible.
B15: Residual value exposure should contain the residual value of leases.
B16: Other non-credit-obligation assets are property, plant, and equipment, other real estate, etc. Any exposure that would not have been included in the other asset classes.
B19: Split of Exposure by Geography:
B20: Columns G:EX of the spreadsheet shown all possible countries and regions in which to place the credit exposures as well as the equity exposure breakdown. The worksheet requires that the sum of the countries/regions equals the total EAD. If this sum does not match, please assign residual exposure to the region “World”.
B21: The check in column EX ensures the sum of countries & regions EADs matches the total EADs provided in column C.
B24: Central Counterparty Risk (CCP):
B25: When CCP Trade Exposures / Initial margin exposures and regulatory RWAs are not disclosed, please assume that CCP Trade Exposures / Initial margin exposures (EAD) are: - 25% of derivatives receivables (asset side of the balance sheet) for entities under IFRS (and local GAAP equivalent) and - 150% of derivatives receivables for entities under U.S. GAAP.
B26: When guarantee fund contributions are not disclosed separetely, please assume that they represent 6.5% of CCP Trade Exposures / Initial margin exposures (EAD).
B29: Split of Corporate Exposure by Industry sectors:
B30: For the book of corporate loans only, please allocate them the best you can to one of the 10 categories. The total must equal total corporate exposure.
B33: EAD Covered and Financial Collateral Under the AIRB Approach:
B34: For banks under Basel:
B35: Please enter the exposure amount covered by eligible financial collateral only, after regulatory haircuts.
B36: Use this column EAD only for collateral after regulatory haircuts (Standardized and Foundation IRB approaches).
B37: For collateral under the Advanced IRB approach, please fill instead the specific table at the end of the credit risk section.
B38: For banks not under Basel, please fill in financial collateral amounts in the table "Financial Collateral Under the AIRB Approach" at the end of the credit risk section.
B40: Retail exposures:
B41: Whenever the split between prime and non-prime mortgages is not available, assume 10% of the U.S. mortgage exposure to be non-prime mortgages and 90% to be prime mortgages.
B43: Securitization exposures:
B44: Input any securitization exposures in the banking book, including exposures deducted from capital for banks under Basel in the Credit risk section. As for the "Split of EAD by external rating (or regulatory risk-weight bands)", use rating agencies' ratings or regulatory risk-weight bands and input the non rated securitization exposure in the column "NR".
B45: For banks under Basel 2.5/3, please input any securitization exposures in the trading book (including the exposures deducted from regulatory capital) and capital requirements in the Market risk section. As for the "Split of EAD by external rating (or regulatory risk-weight bands)", use rating agencies' ratings or regulatory risk-weight bands and input the non rated securitization exposure in the column "NR".
B47: Counterparty Risk in the Trading Book:
B48: Input OTC derivatives exposure amounts in the specific line within "Other items" if and only if the exposures are not already incorporated in relevant asset classes (financial institutions, corporates, or sovereign).
B49: For banks under Basel, the derivatives exposure amount is the Exposure At Default.
B50: For banks not under Basel, please compute the exposure amount as the sum of the Mark-to-Market value plus an add-on calculated on the basis of the total notional principal amount of the derivatives book, split by residual maturity and type of contract, as follows:.
B52: For entities that do not report counterparty risk exposures according to Basel standards, please determine the exposures to derivatives as a percentage of derivative receivables (asset side of the balance sheet).
B53: When a firm reports derivatives under U.S. GAAP rules (or equivalent), please compute counterparty risk exposure on derivatives as four times derivatives receivables. Exposures are assumed to be split 50/50 between financial institutions and corporate entities, unless the majority of derivative activity is in exhange settled products, in which case one assumes that 100% of the derivative exposure is vis-a-vis clearinghouses.
B54: When a firm reports derivatives under IFRS (or local GAAP equivalent for the accounting treatment of derivatives), please compute counterparty risk on derivatives as 33% of derivatives receivables. Exposures are assumed to be split 50/50 between financial institutions and corporate entities, unless the majority is in exchange-settled products, in which case one assumes that 100% of derivatives are vis-a-vis clearinghouses.
B56: Credit Valuation Adjustment (CVA)
B57: When OTC derivatives exposures represent a substantial part of the balance sheet and when the RAC CVA charge is expected to represent a significant part of total RAC RWAs, a RAC CVA charge is applied. The input in cell B100 will be used to determine whether the materiality treshold is met.
B58: The RAC CVA charge will be applied when derivatives receivables represent more than 3% of total assets for entities reporting under IFRS (or under local GAAP similar to IFRS for the accounting of derivatives) and are domiciled in countries for which the BICRA group is '1' to '4'.
B59: For entities reporting under IFRS (or under local GAAP similar to IFRS for the accounting of derivatives) that are domiciled in countries for which the BICRA group is '5' and above, the RAC CVA charge is applied when derivatives receivables represent more than 5% of total assets.
B60: For entities reporting under U.S. GAAP, the RAC CVA charge is applied when derivatives receivables represent more than 0.5% of total assets.
B61: When an entity meets the threshold, but the regulatory CVA charge is not available, please calculate the RAC CVA using the following parameters:
B62: 11% of derivatives receivables (asset side of the balance sheet) for entities reporting under U.S. GAAP (ot local GAAP similar to U.S. GAAP for the accounting treatment of derivatives). This number can be found in cell B101 in Calculus sheet.
B63: 2% of derivatives receivables for entities reporting under IFRS (or local GAAP similar to IFRS for the accounting treatment of derivatives). This number can be found in cell B101 in Calculus sheet.
B65: Market Risk in the Trading Book
B66: For banks under Basel with a trading book, please enter the regulatory capital requirement split by approach, i.e. Internal Model Approach (VaR) and Standardized approach.
B68: Sov Rating, BICRA, Eco Risk sheet:
B69: The calculation engine contains regularly updated scores for sovereign ratings, BICRA groups and Economic Risk assessments. The user has the possibility to manually adjust these parameters by populating one or more parameter cells in this sheet. Possible reasons for manual adjustment include incorporating the most recent parameters as well a scenario analysis to estimate what would happen in case one of the scores would be changed into a certain direction in the future. When a value is entered in this sheet, this parameter's value will overwrite the parameter's value embedded in the calculation engine. When a field is left blank, the calculation engine will automatically use the parameter value that is embedded in the engine.
B71: Parameters sheet:
B73: These are all the public parameters used to compute a RAC ratio. Some cells contain a help tool tip referring to the criteria.
B76: Calculus sheet:
B78: In this sheet one will find all the intermediate calculation results.
B80: Result sheet:
B82: Press "F9" to refesh and get the RAC ratio.
B84: RAC Sensitivity sheet:
B86: Sensitiviy tests for capital and earning score and RAC ratio can be found here. The impacts on capital and earning score from TAC and RWA are given as a percentage. The sensitivity of RAC ratio under ±1 notch adjustment of domestic BICRA/economic risk is plotted.

Sheet Disclaimer

Sheet Input
A1: Input Data for the Risk Adjusted Capital Model
A3: As Of Date
A4: Bank Name
A5: Currency
A6: Unit of Scale
A7: Confidential
A8: Country Regulatory Capital Ratio
A9: Total Tier 1 Capital
A10: Total Adjusted Capital | C10: Mandatory: Please refer to our capital criteria, Section "Total Adjusted Capital (TAC)"
A11: Country
A12: Type of derivatives accounting
A14: Credit Risk
G15: Split of Exposure By Geography
A16: Government Sector exposures | B16: Regulatory Capital Requirement | C16: EAD | D16: Guaranteed by Banks | E16: Guaranteed by Sovereigns | F16: EAD Covered | G16: Africa | H16: Albania | I16: Andorra | J16: Angola | K16: Antigua and Barbuda | L16: Argentina | M16: Asia Pacific | N16: Australia | O16: Austria | P16: Azerbaijan | Q16: Bahamas | R16: Bahrain | S16: Bangladesh | T16: Barbados | U16: Belarus | V16: Belgium | W16: Belize | X16: Bermuda | Y16: Bolivia | Z16: Bosnia and Herzegovina | AA16: Botswana | AB16: Brazil | AC16: Brunei Darussalam | AD16: Bulgaria | AE16: Burkina Faso | AF16: Cambodia | AG16: Cameroon | AH16: Canada | AI16: Cape Verde | AJ16: Central America and Caribbean | AK16: Chile | AL16: China | AM16: Colombia | AN16: Congo | AO16: Costa Rica | AP16: Cote dIvoire | AQ16: Croatia | AR16: Cyprus | AS16: Czech Republic | AT16: Denmark | AU16: Dominican Republic | AV16: Ecuador | AW16: Egypt | AX16: El Salvador | AY16: Estonia | AZ16: Ethiopia | BA16: Eu & Middle East & Africa | BB16: Europe | BC16: European Union | BD16: Fiji | BE16: Finland | BF16: France | BG16: Gabon | BH16: GCC | BI16: Georgia | BJ16: Germany | BK16: Ghana | BL16: Greece | BM16: Guatemala | BN16: Guyana | BO16: Honduras | BP16: Hong Kong | BQ16: Hungary | BR16: Iceland | BS16: India | BT16: Indonesia | BU16: Iran | BV16: Iraq | BW16: Ireland | BX16: Israel | BY16: Italy | BZ16: Jamaica | CA16: Japan | CB16: Jordan | CC16: Kazakhstan | CD16: Kenya | CE16: Korea | CF16: Kuwait | CG16: Latin America | CH16: Latvia | CI16: Lebanon | CJ16: Liberia | CK16: Liechtenstein | CL16: Lithuania | CM16: Luxembourg | CN16: Macedonia | CO16: Malaysia | CP16: Malta | CQ16: Mauritius | CR16: Mexico | CS16: Mongolia | CT16: Montenegro | CU16: Morocco | CV16: Mozambique | CW16: Netherlands | CX16: New Zealand | CY16: Nicaragua | CZ16: Nigeria | DA16: Northern America | DB16: Norway | DC16: Oman | DD16: Pakistan | DE16: Panama | DF16: Papua New Guinea | DG16: Paraguay | DH16: Peru | DI16: Philippines | DJ16: Poland | DK16: Portugal | DL16: Qatar | DM16: Romania | DN16: Russia | DO16: Rwanda | DP16: Saint Kitts and Nevis | DQ16: SaintLucia | DR16: Saint Vincent and the Grenadines | DS16: Saudi Arabia | DT16: Senegal | DU16: Serbia | DV16: Singapore | DW16: Slovak Republic | DX16: Slovenia | DY16: South Africa | DZ16: Spain | EA16: Sri Lanka | EB16: Suriname | EC16: Sweden | ED16: Switzerland | EE16: Taiwan | EF16: Tanzania | EG16: Thailand | EH16: Trinidad and Tobago | EI16: Tunisia | EJ16: Turkey | EK16: Turkmenistan | EL16: Uganda | EM16: Ukraine | EN16: United Arab Emirates | EO16: United Kingdom | EP16: United States | EQ16: Uruguay | ER16: Uzbekistan | ES16: Venezuela | ET16: Vietnam | EU16: World | EV16: Zambia | EW16: Zimbabwe | EX16: Check
A17: Central Government & Central banks | EX17: =IF(C17=0,"",IF(ABS(SUM(G17:EW17)/C17-1)<1%,"OK","Error")) -> 
A18: Regional Governments And Local Authorities
A19: Domestic Government Bonds in Local Currency
A20: Administrative Bodies and Non-Commercial Undertakings
A21: Multilateral Development Banks
A22: International Organisations
A23: Cash-in Hands and Central Banks Deposits
G25: Split of Exposure By Geography
A26: Financial Institutions Sector exposures | B26: Regulatory Capital Requirement | C26: EAD | D26: Guaranteed by Banks | E26: Guaranteed by Sovereigns | F26: EAD Covered | G26: Africa | H26: Albania | I26: Andorra | J26: Angola | K26: Antigua and Barbuda | L26: Argentina | M26: Asia Pacific | N26: Australia | O26: Austria | P26: Azerbaijan | Q26: Bahamas | R26: Bahrain | S26: Bangladesh | T26: Barbados | U26: Belarus | V26: Belgium | W26: Belize | X26: Bermuda | Y26: Bolivia | Z26: Bosnia and Herzegovina | AA26: Botswana | AB26: Brazil | AC26: Brunei Darussalam | AD26: Bulgaria | AE26: Burkina Faso | AF26: Cambodia | AG26: Cameroon | AH26: Canada | AI26: Cape Verde | AJ26: Central America and Caribbean | AK26: Chile | AL26: China | AM26: Colombia | AN26: Congo | AO26: Costa Rica | AP26: Cote dIvoire | AQ26: Croatia | AR26: Cyprus | AS26: Czech Republic | AT26: Denmark | AU26: Dominican Republic | AV26: Ecuador | AW26: Egypt | AX26: El Salvador | AY26: Estonia | AZ26: Ethiopia | BA26: Eu & Middle East & Africa | BB26: Europe | BC26: European Union | BD26: Fiji | BE26: Finland | BF26: France | BG26: Gabon | BH26: GCC | BI26: Georgia | BJ26: Germany | BK26: Ghana | BL26: Greece | BM26: Guatemala | BN26: Guyana | BO26: Honduras | BP26: Hong Kong | BQ26: Hungary | BR26: Iceland | BS26: India | BT26: Indonesia | BU26: Iran | BV26: Iraq | BW26: Ireland | BX26: Israel | BY26: Italy | BZ26: Jamaica | CA26: Japan | CB26: Jordan | CC26: Kazakhstan | CD26: Kenya | CE26: Korea | CF26: Kuwait | CG26: Latin America | CH26: Latvia | CI26: Lebanon | CJ26: Liberia | CK26: Liechtenstein | CL26: Lithuania | CM26: Luxembourg | CN26: Macedonia | CO26: Malaysia | CP26: Malta | CQ26: Mauritius | CR26: Mexico | CS26: Mongolia | CT26: Montenegro | CU26: Morocco | CV26: Mozambique | CW26: Netherlands | CX26: New Zealand | CY26: Nicaragua | CZ26: Nigeria | DA26: Northern America | DB26: Norway | DC26: Oman | DD26: Pakistan | DE26: Panama | DF26: Papua New Guinea | DG26: Paraguay | DH26: Peru | DI26: Philippines | DJ26: Poland | DK26: Portugal | DL26: Qatar | DM26: Romania | DN26: Russia | DO26: Rwanda | DP26: Saint Kitts and Nevis | DQ26: SaintLucia | DR26: Saint Vincent and the Grenadines | DS26: Saudi Arabia | DT26: Senegal | DU26: Serbia | DV26: Singapore | DW26: Slovak Republic | DX26: Slovenia | DY26: South Africa | DZ26: Spain | EA26: Sri Lanka | EB26: Suriname | EC26: Sweden | ED26: Switzerland | EE26: Taiwan | EF26: Tanzania | EG26: Thailand | EH26: Trinidad and Tobago | EI26: Tunisia | EJ26: Turkey | EK26: Turkmenistan | EL26: Uganda | EM26: Ukraine | EN26: United Arab Emirates | EO26: United Kingdom | EP26: United States | EQ26: Uruguay | ER26: Uzbekistan | ES26: Venezuela | ET26: Vietnam | EU26: World | EV26: Zambia | EW26: Zimbabwe | EX26: Check
A27: Credit Institutions & Investment Firms | EX27: =IF(C27=0,"",IF(ABS(SUM(G27:EW27)/C27-1)<1%,"OK","Error")) -> 
A28: Covered Bonds | EX28: =IF(C28=0,"",IF(ABS(SUM(G28:EW28)/C28-1)<1%,"OK","Error")) -> 
A29: Other Institutions | EX29: =IF(C29=0,"",IF(ABS(SUM(G29:EW29)/C29-1)<1%,"OK","Error")) -> 
A30: CCP - Trade Exposures / Initial Margins | EX30: =IF(C30=0,"",IF(ABS(SUM(G30:EW30)/C30-1)<1%,"OK","Error")) -> 
A31: CCP - Guarantee Fund Contribution Amount (Funded and Unfunded) | G31: =IF($C$30=0,0,(G30/$C$30)*$C$31) -> 0 | H31: =IF($C$30=0,0,(H30/$C$30)*$C$31) -> 0 | I31: 0 | J31: 0 | K31: 0 | L31: 0 | M31: 0 | N31: 0 | O31: 0 | P31: 0 | Q31: 0 | R31: 0 | S31: 0 | T31: 0 | U31: 0 | V31: 0 | W31: 0 | X31: 0 | Y31: 0 | Z31: 0 | AA31: 0 | AB31: 0 | AC31: 0 | AD31: 0 | AE31: 0 | AF31: 0 | AG31: 0 | AH31: 0 | AI31: 0 | AJ31: 0 | AK31: 0 | AL31: 0 | AM31: 0 | AN31: 0 | AO31: 0 | AP31: 0 | AQ31: 0 | AR31: 0 | AS31: 0 | AT31: 0 | AU31: 0 | AV31: 0 | AW31: 0 | AX31: 0 | AY31: 0 | AZ31: 0 | BA31: 0 | BB31: 0 | BC31: 0 | BD31: 0 | BE31: 0 | BF31: 0 | BG31: =IF($C$30=0,0,(BG30/$C$30)*$C$31) -> 0 | BH31: 0 | BI31: 0 | BJ31: 0 | BK31: 0 | BL31: 0 | BM31: 0 | BN31: 0 | BO31: 0 | BP31: 0 | BQ31: 0 | BR31: 0 | BS31: 0 | BT31: 0 | BU31: 0 | BV31: 0 | BW31: 0 | BX31: 0 | BY31: 0 | BZ31: 0 | CA31: 0 | CB31: 0 | CC31: 0 | CD31: 0 | CE31: 0 | CF31: 0 | CG31: 0 | CH31: 0 | CI31: 0 | CJ31: 0 | CK31: 0 | CL31: 0 | CM31: 0 | CN31: 0 | CO31: 0 | CP31: 0 | CQ31: 0 | CR31: 0 | CS31: 0 | CT31: 0 | CU31: 0 | CV31: 0 | CW31: =IF($C$30=0,0,(CW30/$C$30)*$C$31) -> 0 | CX31: 0 | CY31: 0 | CZ31: 0 | DA31: 0 | DB31: 0 | DC31: 0 | DD31: 0 | DE31: 0 | DF31: 0 | DG31: 0 | DH31: 0 | DI31: 0 | DJ31: 0 | DK31: 0 | DL31: 0 | DM31: 0 | DN31: 0 | DO31: 0 | DP31: 0 | DQ31: 0 | DR31: 0 | DS31: 0 | DT31: 0 | DU31: 0 | DV31: 0 | DW31: 0 | DX31: 0 | DY31: 0 | DZ31: 0 | EA31: 0 | EB31: 0 | EC31: 0 | ED31: 0 | EE31: 0 | EF31: 0 | EG31: 0 | EH31: 0 | EI31: 0 | EJ31: 0 | EK31: 0 | EL31: 0 | EM31: 0 | EN31: 0 | EO31: 0 | EP31: 0 | EQ31: 0 | ER31: =IF($C$30=0,0,(ER30/$C$30)*$C$31) -> 0 | ES31: 0 | ET31: 0 | EU31: 0 | EV31: 0 | EW31: 0
G33: Split of Exposure By Geography
A34: Corporate Sector exposures | B34: Capital Requirement | C34: EAD | D34: Guaranteed by Banks | E34: Guaranteed by Sovereigns | F34: EAD Covered | G34: Africa | H34: Albania | I34: Andorra | J34: Angola | K34: Antigua and Barbuda | L34: Argentina | M34: Asia Pacific | N34: Australia | O34: Austria | P34: Azerbaijan | Q34: Bahamas | R34: Bahrain | S34: Bangladesh | T34: Barbados | U34: Belarus | V34: Belgium | W34: Belize | X34: Bermuda | Y34: Bolivia | Z34: Bosnia and Herzegovina | AA34: Botswana | AB34: Brazil | AC34: Brunei Darussalam | AD34: Bulgaria | AE34: Burkina Faso | AF34: Cambodia | AG34: Cameroon | AH34: Canada | AI34: Cape Verde | AJ34: Central America and Caribbean | AK34: Chile | AL34: China | AM34: Colombia | AN34: Congo | AO34: Costa Rica | AP34: Cote dIvoire | AQ34: Croatia | AR34: Cyprus | AS34: Czech Republic | AT34: Denmark | AU34: Dominican Republic | AV34: Ecuador | AW34: Egypt | AX34: El Salvador | AY34: Estonia | AZ34: Ethiopia | BA34: Eu & Middle East & Africa | BB34: Europe | BC34: European Union | BD34: Fiji | BE34: Finland | BF34: France | BG34: Gabon | BH34: GCC | BI34: Georgia | BJ34: Germany | BK34: Ghana | BL34: Greece | BM34: Guatemala | BN34: Guyana | BO34: Honduras | BP34: Hong Kong | BQ34: Hungary | BR34: Iceland | BS34: India | BT34: Indonesia | BU34: Iran | BV34: Iraq | BW34: Ireland | BX34: Israel | BY34: Italy | BZ34: Jamaica | CA34: Japan | CB34: Jordan | CC34: Kazakhstan | CD34: Kenya | CE34: Korea | CF34: Kuwait | CG34: Latin America | CH34: Latvia | CI34: Lebanon | CJ34: Liberia | CK34: Liechtenstein | CL34: Lithuania | CM34: Luxembourg | CN34: Macedonia | CO34: Malaysia | CP34: Malta | CQ34: Mauritius | CR34: Mexico | CS34: Mongolia | CT34: Montenegro | CU34: Morocco | CV34: Mozambique | CW34: Netherlands | CX34: New Zealand | CY34: Nicaragua | CZ34: Nigeria | DA34: Northern America | DB34: Norway | DC34: Oman | DD34: Pakistan | DE34: Panama | DF34: Papua New Guinea | DG34: Paraguay | DH34: Peru | DI34: Philippines | DJ34: Poland | DK34: Portugal | DL34: Qatar | DM34: Romania | DN34: Russia | DO34: Rwanda | DP34: Saint Kitts and Nevis | DQ34: SaintLucia | DR34: Saint Vincent and the Grenadines | DS34: Saudi Arabia | DT34: Senegal | DU34: Serbia | DV34: Singapore | DW34: Slovak Republic | DX34: Slovenia | DY34: South Africa | DZ34: Spain | EA34: Sri Lanka | EB34: Suriname | EC34: Sweden | ED34: Switzerland | EE34: Taiwan | EF34: Tanzania | EG34: Thailand | EH34: Trinidad and Tobago | EI34: Tunisia | EJ34: Turkey | EK34: Turkmenistan | EL34: Uganda | EM34: Ukraine | EN34: United Arab Emirates | EO34: United Kingdom | EP34: United States | EQ34: Uruguay | ER34: Uzbekistan | ES34: Venezuela | ET34: Vietnam | EU34: World | EV34: Zambia | EW34: Zimbabwe | EX34: Check
A35: Corporate | EX35: =IF(C35=0,"",IF(ABS(SUM(G35:EW35)/C35-1)<1%,"OK","Error")) -> 
A36: Purchased Receivables
A37: Project Finance
A38: Object Finance
A39: Commodities Finance
A40: Income Producing Commercial Real Estate
A41: Construction and Real Estate Development
A42: Small and Medium Enterprises (SME)
A44: Corporate Exposures Hedged with Credit Derivatives
G46: Split of Exposure By Geography
A47: Retail Sector exposures | B47: Regulatory Capital Requirement | C47: EAD | D47: Guaranteed by Banks | E47: Guaranteed by Sovereigns | F47: EAD Covered | G47: Africa | H47: Albania | I47: Andorra | J47: Angola | K47: Antigua and Barbuda | L47: Argentina | M47: Asia Pacific | N47: Australia | O47: Austria | P47: Azerbaijan | Q47: Bahamas | R47: Bahrain | S47: Bangladesh | T47: Barbados | U47: Belarus | V47: Belgium | W47: Belize | X47: Bermuda | Y47: Bolivia | Z47: Bosnia and Herzegovina | AA47: Botswana | AB47: Brazil | AC47: Brunei Darussalam | AD47: Bulgaria | AE47: Burkina Faso | AF47: Cambodia | AG47: Cameroon | AH47: Canada | AI47: Cape Verde | AJ47: Central America and Caribbean | AK47: Chile | AL47: China | AM47: Colombia | AN47: Congo | AO47: Costa Rica | AP47: Cote dIvoire | AQ47: Croatia | AR47: Cyprus | AS47: Czech Republic | AT47: Denmark | AU47: Dominican Republic | AV47: Ecuador | AW47: Egypt | AX47: El Salvador | AY47: Estonia | AZ47: Ethiopia | BA47: Eu & Middle East & Africa | BB47: Europe | BC47: European Union | BD47: Fiji | BE47: Finland | BF47: France | BG47: Gabon | BH47: GCC | BI47: Georgia | BJ47: Germany | BK47: Ghana | BL47: Greece | BM47: Guatemala | BN47: Guyana | BO47: Honduras | BP47: Hong Kong | BQ47: Hungary | BR47: Iceland | BS47: India | BT47: Indonesia | BU47: Iran | BV47: Iraq | BW47: Ireland | BX47: Israel | BY47: Italy | BZ47: Jamaica | CA47: Japan | CB47: Jordan | CC47: Kazakhstan | CD47: Kenya | CE47: Korea | CF47: Kuwait | CG47: Latin America | CH47: Latvia | CI47: Lebanon | CJ47: Liberia | CK47: Liechtenstein | CL47: Lithuania | CM47: Luxembourg | CN47: Macedonia | CO47: Malaysia | CP47: Malta | CQ47: Mauritius | CR47: Mexico | CS47: Mongolia | CT47: Montenegro | CU47: Morocco | CV47: Mozambique | CW47: Netherlands | CX47: New Zealand | CY47: Nicaragua | CZ47: Nigeria | DA47: Northern America | DB47: Norway | DC47: Oman | DD47: Pakistan | DE47: Panama | DF47: Papua New Guinea | DG47: Paraguay | DH47: Peru | DI47: Philippines | DJ47: Poland | DK47: Portugal | DL47: Qatar | DM47: Romania | DN47: Russia | DO47: Rwanda | DP47: Saint Kitts and Nevis | DQ47: SaintLucia | DR47: Saint Vincent and the Grenadines | DS47: Saudi Arabia | DT47: Senegal | DU47: Serbia | DV47: Singapore | DW47: Slovak Republic | DX47: Slovenia | DY47: South Africa | DZ47: Spain | EA47: Sri Lanka | EB47: Suriname | EC47: Sweden | ED47: Switzerland | EE47: Taiwan | EF47: Tanzania | EG47: Thailand | EH47: Trinidad and Tobago | EI47: Tunisia | EJ47: Turkey | EK47: Turkmenistan | EL47: Uganda | EM47: Ukraine | EN47: United Arab Emirates | EO47: United Kingdom | EP47: United States | EQ47: Uruguay | ER47: Uzbekistan | ES47: Venezuela | ET47: Vietnam | EU47: World | EV47: Zambia | EW47: Zimbabwe | EX47: Check
A48: Home Equity Line of Credit (HELOC) | EX48: =IF(C48=0,"",IF(ABS(SUM(G48:EW48)/C48-1)<1%,"OK","Error")) -> 
A49: Subprime Mortgages (non-prime)
A50: Owner-Occupied Residential Mortgages (prime)
A51: Investment Mortgages
A52: Self-Certified (low-doc) Mortgages
A53: Credit Cards (Qualifying Revolving Exposures)
A54: Auto Loans
A55: SME retail
A56: Lombard / Margin Loans
A57: Other retail
G59: Split of Exposure By Geography
A60: Securitisation Sector exposures | B60: Regulatory Capital Requirement | C60: EAD including deducted exposures | D60: Guaranteed by Banks | E60: Guaranteed by Sovereigns | F60: EAD Covered | G60: Africa | H60: Albania | I60: Andorra | J60: Angola | K60: Antigua and Barbuda | L60: Argentina | M60: Asia Pacific | N60: Australia | O60: Austria | P60: Azerbaijan | Q60: Bahamas | R60: Bahrain | S60: Bangladesh | T60: Barbados | U60: Belarus | V60: Belgium | W60: Belize | X60: Bermuda | Y60: Bolivia | Z60: Bosnia and Herzegovina | AA60: Botswana | AB60: Brazil | AC60: Brunei Darussalam | AD60: Bulgaria | AE60: Burkina Faso | AF60: Cambodia | AG60: Cameroon | AH60: Canada | AI60: Cape Verde | AJ60: Central America and Caribbean | AK60: Chile | AL60: China | AM60: Colombia | AN60: Congo | AO60: Costa Rica | AP60: Cote dIvoire | AQ60: Croatia | AR60: Cyprus | AS60: Czech Republic | AT60: Denmark | AU60: Dominican Republic | AV60: Ecuador | AW60: Egypt | AX60: El Salvador | AY60: Estonia | AZ60: Ethiopia | BA60: Eu & Middle East & Africa | BB60: Europe | BC60: European Union | BD60: Fiji | BE60: Finland | BF60: France | BG60: Gabon | BH60: GCC | BI60: Georgia | BJ60: Germany | BK60: Ghana | BL60: Greece | BM60: Guatemala | BN60: Guyana | BO60: Honduras | BP60: Hong Kong | BQ60: Hungary | BR60: Iceland | BS60: India | BT60: Indonesia | BU60: Iran | BV60: Iraq | BW60: Ireland | BX60: Israel | BY60: Italy | BZ60: Jamaica | CA60: Japan | CB60: Jordan | CC60: Kazakhstan | CD60: Kenya | CE60: Korea | CF60: Kuwait | CG60: Latin America | CH60: Latvia | CI60: Lebanon | CJ60: Liberia | CK60: Liechtenstein | CL60: Lithuania | CM60: Luxembourg | CN60: Macedonia | CO60: Malaysia | CP60: Malta | CQ60: Mauritius | CR60: Mexico | CS60: Mongolia | CT60: Montenegro | CU60: Morocco | CV60: Mozambique | CW60: Netherlands | CX60: New Zealand | CY60: Nicaragua | CZ60: Nigeria | DA60: Northern America | DB60: Norway | DC60: Oman | DD60: Pakistan | DE60: Panama | DF60: Papua New Guinea | DG60: Paraguay | DH60: Peru | DI60: Philippines | DJ60: Poland | DK60: Portugal | DL60: Qatar | DM60: Romania | DN60: Russia | DO60: Rwanda | DP60: Saint Kitts and Nevis | DQ60: SaintLucia | DR60: Saint Vincent and the Grenadines | DS60: Saudi Arabia | DT60: Senegal | DU60: Serbia | DV60: Singapore | DW60: Slovak Republic | DX60: Slovenia | DY60: South Africa | DZ60: Spain | EA60: Sri Lanka | EB60: Suriname | EC60: Sweden | ED60: Switzerland | EE60: Taiwan | EF60: Tanzania | EG60: Thailand | EH60: Trinidad and Tobago | EI60: Tunisia | EJ60: Turkey | EK60: Turkmenistan | EL60: Uganda | EM60: Ukraine | EN60: United Arab Emirates | EO60: United Kingdom | EP60: United States | EQ60: Uruguay | ER60: Uzbekistan | ES60: Venezuela | ET60: Vietnam | EU60: World | EV60: Zambia | EW60: Zimbabwe | EX60: Check
A61: Asset-Backed Commercial Paper | EX61: =IF(C61=0,"",IF(ABS(SUM(G61:EW61)/C61-1)<1%,"OK","Error")) -> 
A62: Asset-Backed Securities - Credit Card
A63: Asset-Backed Securities - Receivables
A64: Asset-Backed Securities - Auto loans
A65: Asset-Backed Securities - Other
A66: Collateralised Debt Obligations
A67: Commercial Mortgage-Backed Securities
A68: Residential Mortgage-Backed Securities
B70: Split of EAD By External Rating (e.g. Standard & Poor's Rating)
B71: AAA | C71: AA | D71: A | E71: BBB | F71: BB | G71: B | H71: CCC/C | I71: Not Rated | J71: Deducted from Capital | K71: Check
A72: Asset-Backed Commercial Paper | K72: =IF(C61=0,"",IF(ABS(SUM(B72:J72)/C61-1)<1%,"OK","Error")) -> 
A73: Asset-Backed Securities - Credit Card
A74: Asset-Backed Securities - Receivables
A75: Asset-Backed Securities - Auto loans
A76: Asset-Backed Securities - Other
A77: Collateralised Debt Obligations
A78: Commercial Mortgage-Backed Securities
A79: Residential Mortgage-Backed Securities
A82: Exposures under IRB approach | B82: Off-balance sheet exposures (undrawn amounts) | C82: EAD equivalent of Off-balance exposures inputed in column B
A83: Credit Cards
G86: Split of Exposure By Geography
A87: Other items Sector exposures | B87: Regulatory Capital Requirement | C87: EAD | D87: Guaranteed by Banks | E87: Guaranteed by Sovereigns | F87: EAD Covered | G87: Africa | H87: Albania | I87: Andorra | J87: Angola | K87: Antigua and Barbuda | L87: Argentina | M87: Asia Pacific | N87: Australia | O87: Austria | P87: Azerbaijan | Q87: Bahamas | R87: Bahrain | S87: Bangladesh | T87: Barbados | U87: Belarus | V87: Belgium | W87: Belize | X87: Bermuda | Y87: Bolivia | Z87: Bosnia and Herzegovina | AA87: Botswana | AB87: Brazil | AC87: Brunei Darussalam | AD87: Bulgaria | AE87: Burkina Faso | AF87: Cambodia | AG87: Cameroon | AH87: Canada | AI87: Cape Verde | AJ87: Central America and Caribbean | AK87: Chile | AL87: China | AM87: Colombia | AN87: Congo | AO87: Costa Rica | AP87: Cote dIvoire | AQ87: Croatia | AR87: Cyprus | AS87: Czech Republic | AT87: Denmark | AU87: Dominican Republic | AV87: Ecuador | AW87: Egypt | AX87: El Salvador | AY87: Estonia | AZ87: Ethiopia | BA87: Eu & Middle East & Africa | BB87: Europe | BC87: European Union | BD87: Fiji | BE87: Finland | BF87: France | BG87: Gabon | BH87: GCC | BI87: Georgia | BJ87: Germany | BK87: Ghana | BL87: Greece | BM87: Guatemala | BN87: Guyana | BO87: Honduras | BP87: Hong Kong | BQ87: Hungary | BR87: Iceland | BS87: India | BT87: Indonesia | BU87: Iran | BV87: Iraq | BW87: Ireland | BX87: Israel | BY87: Italy | BZ87: Jamaica | CA87: Japan | CB87: Jordan | CC87: Kazakhstan | CD87: Kenya | CE87: Korea | CF87: Kuwait | CG87: Latin America | CH87: Latvia | CI87: Lebanon | CJ87: Liberia | CK87: Liechtenstein | CL87: Lithuania | CM87: Luxembourg | CN87: Macedonia | CO87: Malaysia | CP87: Malta | CQ87: Mauritius | CR87: Mexico | CS87: Mongolia | CT87: Montenegro | CU87: Morocco | CV87: Mozambique | CW87: Netherlands | CX87: New Zealand | CY87: Nicaragua | CZ87: Nigeria | DA87: Northern America | DB87: Norway | DC87: Oman | DD87: Pakistan | DE87: Panama | DF87: Papua New Guinea | DG87: Paraguay | DH87: Peru | DI87: Philippines | DJ87: Poland | DK87: Portugal | DL87: Qatar | DM87: Romania | DN87: Russia | DO87: Rwanda | DP87: Saint Kitts and Nevis | DQ87: SaintLucia | DR87: Saint Vincent and the Grenadines | DS87: Saudi Arabia | DT87: Senegal | DU87: Serbia | DV87: Singapore | DW87: Slovak Republic | DX87: Slovenia | DY87: South Africa | DZ87: Spain | EA87: Sri Lanka | EB87: Suriname | EC87: Sweden | ED87: Switzerland | EE87: Taiwan | EF87: Tanzania | EG87: Thailand | EH87: Trinidad and Tobago | EI87: Tunisia | EJ87: Turkey | EK87: Turkmenistan | EL87: Uganda | EM87: Ukraine | EN87: United Arab Emirates | EO87: United Kingdom | EP87: United States | EQ87: Uruguay | ER87: Uzbekistan | ES87: Venezuela | ET87: Vietnam | EU87: World | EV87: Zambia | EW87: Zimbabwe | EX87: Check
A88: Residual Value Exposure | EX88: =IF(C88=0,"",IF(ABS(SUM(G88:EW88)/C88-1)<1%,"OK","Error")) -> 
A89: Past Due Exposure | EX89: =IF(C89=0,"",IF(ABS(SUM(G89:EW89)/C89-1)<1%,"OK","Error")) -> 
A90: Other non credit-obligation assets | EX90: =IF(C90=0,"",IF(ABS(SUM(G90:EW90)/C90-1)<1%,"OK","Error")) -> 
A91: Counterparty Risk in The Trading Book | EX91: =IF(C91=0,"",IF(ABS(SUM(G91:EW91)/C91-1)<1%,"OK","Error")) -> 
A92: Deferred Tax Assets (Readily convertible into cash or sovereign bonds) not deducted from ACE
A93: Deferred Tax Assets ( NOT readily convertible into cash or sovereign bonds) not deducted from ACE
A95: Credit Valuation Adjustment (CVA)
A97: Is the bank exempts sovereign and corporate exposures from the regulatory CVA charge?
A98: Proportion of FI Counterparties (% of Total OTC Counterparties)
A99: Regulatory Capital Requirement (Revised Basel III Standardized and Basic approach only)
A100: Regulatory Capital Requirement (Basel III all approaches)
A101: Derivatives Receivables (On Balance Sheet Amount)
A102: Derivatives Receivables (% of Total Assets)
A104: Financial Collateral Under the AIRB Approach
B106: Government & Central banks | C106: Institutions | D106: Corporate | E106: Residential Mortgages | F106: Qualifying Revolving Exposures | G106: Lombard / Margin Loans | H106: Other Retail | I106: Other Assets
A107: Cash or cash equivalent
A108: Sovereign Bonds, maturity < 1 year rated AA- or above
A109: Other Sovereign Bonds
A110: Other Securities
A111: Equity
A112: Unspecified Financial Collateral / Gold
A115: Market Risk
A119: Banks in basel 2.5 juridictions | B119: Regulatory Capital Requirement
A120: Market risk under the internal model approach
A121: Of which regulatory VaR
A122: Of which stressed VaR
A123: Of which incremental risk capital charge
A124: Of which comprehensive risk measure
A125: Of which other capital charge
A126: Check | B126: =IF(B120=0,"",IF(ABS(SUM(B121:B125)/B120-1)<1%,"OK","Error")) -> 
A127: Standardized approach | C127: EAD
A128: Of which securitization/re-securitization in the trading book (Excluding the deducted from capital)
B130: EAD
A131: Securitization from trading book deducted from capital
A134: Banks in revised basel 3 juridictions | B134: Regulatory Capital Requirement
A135: Market risk under standardized approach
A136: of which sensitivities-based method
A137: of which default risk charge
A138: of which residual risk add-on
A139: Check | B139: =IF(B135=0,"",IF(ABS(SUM(B136:B138)/B135-1)<1%,"OK","Error")) -> 
A140: Simplified standardized approach
B144: Split of EAD By External Rating (e.g. Standard & Poor's Rating)
A145: Securitization/re-securitization in the trading book | B145: AAA | C145: AA | D145: A | E145: BBB | F145: BB | G145: B | H145: CCC/C | I145: Not Rated | J145: Deducted from Capital | K145: Total
A146: Asset-Backed Commercial Paper | K146: =SUM(B146:I146) -> 0
A147: Asset-Backed Securities - Credit Card | K147: 0
A148: Asset-Backed Securities - Receivables | K148: 0
A149: Asset-Backed Securities - Auto loans | K149: 0
A150: Asset-Backed Securities - Other | K150: =SUM(B150:I150) -> 0
A151: Collateralised Debt Obligations | K151: 0
A152: Commercial Mortgage-Backed Securities | K152: 0
A153: Residential Mortgage-Backed Securities | K153: 0
J154: Check | K154: =IF((C128)=0,"",IF(ABS(SUM(K146:K153)/(C128)-1)<1%,"OK","Error")) -> 
G157: Split of Exposure By Geography
A158: Equity in the Banking Book | B158: Regulatory Capital Requirement | C158: Fair Value | E158: Guaranteed by Sovereigns | F158: Fair Value Covered | G158: Africa | H158: Albania | I158: Andorra | J158: Angola | K158: Antigua and Barbuda | L158: Argentina | M158: Asia Pacific | N158: Australia | O158: Austria | P158: Azerbaijan | Q158: Bahamas | R158: Bahrain | S158: Bangladesh | T158: Barbados | U158: Belarus | V158: Belgium | W158: Belize | X158: Bermuda | Y158: Bolivia | Z158: Bosnia and Herzegovina | AA158: Botswana | AB158: Brazil | AC158: Brunei Darussalam | AD158: Bulgaria | AE158: Burkina Faso | AF158: Cambodia | AG158: Cameroon | AH158: Canada | AI158: Cape Verde | AJ158: Central America and Caribbean | AK158: Chile | AL158: China | AM158: Colombia | AN158: Congo | AO158: Costa Rica | AP158: Cote dIvoire | AQ158: Croatia | AR158: Cyprus | AS158: Czech Republic | AT158: Denmark | AU158: Dominican Republic | AV158: Ecuador | AW158: Egypt | AX158: El Salvador | AY158: Estonia | AZ158: Ethiopia | BA158: Eu & Middle East & Africa | BB158: Europe | BC158: European Union | BD158: Fiji | BE158: Finland | BF158: France | BG158: Gabon | BH158: GCC | BI158: Georgia | BJ158: Germany | BK158: Ghana | BL158: Greece | BM158: Guatemala | BN158: Guyana | BO158: Honduras | BP158: Hong Kong | BQ158: Hungary | BR158: Iceland | BS158: India | BT158: Indonesia | BU158: Iran | BV158: Iraq | BW158: Ireland | BX158: Israel | BY158: Italy | BZ158: Jamaica | CA158: Japan | CB158: Jordan | CC158: Kazakhstan | CD158: Kenya | CE158: Korea | CF158: Kuwait | CG158: Latin America | CH158: Latvia | CI158: Lebanon | CJ158: Liberia | CK158: Liechtenstein | CL158: Lithuania | CM158: Luxembourg | CN158: Macedonia | CO158: Malaysia | CP158: Malta | CQ158: Mauritius | CR158: Mexico | CS158: Mongolia | CT158: Montenegro | CU158: Morocco | CV158: Mozambique | CW158: Netherlands | CX158: New Zealand | CY158: Nicaragua | CZ158: Nigeria | DA158: Northern America | DB158: Norway | DC158: Oman | DD158: Pakistan | DE158: Panama | DF158: Papua New Guinea | DG158: Paraguay | DH158: Peru | DI158: Philippines | DJ158: Poland | DK158: Portugal | DL158: Qatar | DM158: Romania | DN158: Russia | DO158: Rwanda | DP158: Saint Kitts and Nevis | DQ158: SaintLucia | DR158: Saint Vincent and the Grenadines | DS158: Saudi Arabia | DT158: Senegal | DU158: Serbia | DV158: Singapore | DW158: Slovak Republic | DX158: Slovenia | DY158: South Africa | DZ158: Spain | EA158: Sri Lanka | EB158: Suriname | EC158: Sweden | ED158: Switzerland | EE158: Taiwan | EF158: Tanzania | EG158: Thailand | EH158: Trinidad and Tobago | EI158: Tunisia | EJ158: Turkey | EK158: Turkmenistan | EL158: Uganda | EM158: Ukraine | EN158: United Arab Emirates | EO158: United Kingdom | EP158: United States | EQ158: Uruguay | ER158: Uzbekistan | ES158: Venezuela | ET158: Vietnam | EU158: World | EV158: Zambia | EW158: Zimbabwe | EX158: Check
A159: Public Equity | EX159: =IF(C159=0,"",IF(ABS(SUM(G159:EW159)/C159-1)<1%,"OK","Error")) -> 
A160: Private Equity | EX160: =IF(C160=0,"",IF(ABS(SUM(G160:EW160)/C160-1)<1%,"OK","Error")) -> 
A161: Collective Investment Undertakings (CIU) | EX161: =IF(C161=0,"",IF(ABS(SUM(G161:EW161)/C161-1)<1%,"OK","Error")) -> 
A162: Rated funds | EX162: =IF(C162=0,"",IF(ABS(SUM(G162:EW162)/C162-1)<1%,"OK","Error")) -> 
E164: Breakdown of Exposures to Funds (CIU)
E165: Government Bonds | F165: FI Bonds | G165: Corporate Bonds | H165: Public Equity | I165: Private Equity | J165: Hedge Funds | K165: Other
A171: Public Equity Hedged with Derivatives
A173: Operational Risk
C175: Gross Operating Revenues
B176: Regulatory Capital Requirement | C176: Maximum over Last Three Years | D176: =YEAR(TODAY())-1 -> 2025 | E176: =D176-1 -> 2024 | F176: =E176-1 -> 2023
A177: Corporate finance | C177: =(MAX(D177,E177,F177)) -> 0
A178: Trading and Sales | C178: =(MAX(D178,E178,F178)) -> 0
A179: Commercial banking | C179: =(MAX(D179,E179,F179)) -> 0
A180: Payment and settlement | C180: 0
A181: Agency services | C181: 0
A182: Asset management | C182: =(MAX(D182,E182,F182)) -> 0
A183: Retail Banking | C183: 0
A184: Retail brokerage | C184: =(MAX(D184,E184,F184)) -> 0
A185: Total | D185: =SUM(D177:D184) -> 0 | E185: =SUM(E177:E184) -> 0 | F185: =SUM(F177:F184) -> 0
A187: Assets Under Custody And Administration
A188: Assets Under Management - Monetary funds
A189: Assets Under Management - Other
A190: 1 million USD equivalent in input currency and unit
A192: Insurance Risk
B194: Value
A195: Amount of Over (+) / Under (-) Capitalization of (the main) insurance subsidiaries to sustain an 'A' or 'substantial' stress level according to RBC model

Sheet Validation (hidden)

Sheet Sov Rating, BICRA, Eco Risk
B1: Risk Adjusted Capital Model | C1: Risk Adjusted Capital Model | K1: Parameters
B3: This model includes embedded Ratings and BICRA Scores effective 31st December 2025. You can override these inputs by entering alternative values in the table below, to simulate different model results based on your preferred Sovereign Rating, BICRA and Economic Risk scenarios. Our most recent Sovereign Ratings can be found on http://www.spglobal.com and our current BICRA and Economic Risk scores are available in our BICRA Monthly report, which is accessible from Capital IQ (https://www.capitaliq.com).
B5: Countries | C5: Sovereign Rating, Foreign Currency | D5: Sovereign Rating, Local Currency | E5: BICRA Score | F5: Economic Risk Score
B6: Africa
B7: Albania
B8: Andorra
B9: Angola
B10: Antigua and Barbuda
B11: Argentina
B12: Asia Pacific
B13: Australia
B14: Austria
B15: Azerbaijan
B16: Bahamas
B17: Bahrain
B18: Bangladesh
B19: Barbados
B20: Belarus
B21: Belgium
B22: Belize
B23: Bermuda
B24: Bolivia
B25: Bosnia and Herzegovina
B26: Botswana
B27: Brazil
B28: Brunei Darussalam
B29: Bulgaria
B30: Burkina Faso
B31: Cambodia
B32: Cameroon
B33: Canada
B34: Cape Verde
B35: Central America and Caribbean
B36: Chile
B37: China
B38: Colombia
B39: Congo
B40: Costa Rica
B41: Cote dIvoire
B42: Croatia
B43: Cyprus
B44: Czech Republic
B45: Denmark
B46: Dominican Republic
B47: Ecuador
B48: Egypt
B49: El Salvador
B50: Estonia
B51: Ethiopia
B52: European Union
B53: Europe
B54: Eu & Middle East & Africa
B55: Fiji
B56: Finland
B57: France
B58: Gabon
B59: Georgia
B60: Germany
B61: Ghana
B62: Greece
B63: Guatemala
B64: GCC
B65: Guyana
B66: Honduras
B67: Hong Kong
B68: Hungary
B69: Iceland
B70: India
B71: Indonesia
B72: Iran
B73: Iraq
B74: Ireland
B75: Israel
B76: Italy
B77: Jamaica
B78: Japan
B79: Jordan
B80: Kazakhstan
B81: Kenya
B82: Korea
B83: Kuwait
B84: Latin America
B85: Latvia
B86: Lebanon
B87: Liberia
B88: Liechtenstein
B89: Lithuania
B90: Luxembourg
B91: Macedonia
B92: Malaysia
B93: Malta
B94: Mauritius
B95: Mexico
B96: Mongolia
B97: Montenegro
B98: Morocco
B99: Mozambique
B100: Netherlands
B101: New Zealand
B102: Nicaragua
B103: Nigeria
B104: Northern America
B105: Norway
B106: Oman
B107: Pakistan
B108: Panama
B109: Papua New Guinea
B110: Paraguay
B111: Peru
B112: Philippines
B113: Poland
B114: Portugal
B115: Qatar
B116: Romania
B117: Russia
B118: Rwanda
B119: Saint Kitts and Nevis
B120: SaintLucia
B121: Saint Vincent and the Grenadines
B122: Saudi Arabia
B123: Senegal
B124: Serbia
B125: Singapore
B126: Slovak Republic
B127: Slovenia
B128: South Africa
B129: Spain
B130: Sri Lanka
B131: Suriname
B132: Sweden
B133: Switzerland
B134: Taiwan
B135: Tanzania
B136: Thailand
B137: Trinidad and Tobago
B138: Tunisia
B139: Turkey
B140: Turkmenistan
B141: United Kingdom
B142: United States
B143: Uganda
B144: Ukraine
B145: United Arab Emirates
B146: Uruguay
B147: Uzbekistan
B148: Venezuela
B149: Vietnam
B150: World
B151: Zambia
B152: Zimbabwe

Sheet Parameters
D1: Parameters used in the Risk Adjusted Capital Model | L1: Parameters
D4: Credit Risk
D6: Risk Weights
D8: Based on BICRA scores and Economic Risk scores
D9: Column lookup (5 = Economic Risk score, 4 = BICRA) | E9: 5 | F9: 4 | G9: 5 | H9: 5 | I9: 5 | J9: 5 | K9: 5 | L9: 5 | M9: 5 | N9: 5 | O9: 5 | P9: 5 | Q9: 5 | R9: 5 | S9: 5 | T9: 4 | U9: 5 | V9: 5 | W9: 5 | X9: 5
D10: BICRA / Economic Risk Score | E10: Owner-Occupied Residential Mortgages (prime mortgages) | F10: Institutions | G10: Corporate | H10: Purchased Receivables | I10: Project Finance | J10: Object Finance | K10: Commodities Finance | L10: Income Producing Commercial Real Estate | M10: Construction and Real Estate Development (High Volatility Commercial Real Estate - HVCRE) | N10: Small and Medium Enterprises (SME) | O10: Credit cards (Qualifying Revolving Exposures) | P10: SME Retail | Q10: Other Retail | R10: Subprime Mortgages (non-prime mortgages) | S10: Home Equity Loans (HELOC) | T10: Covered Bonds | U10: Auto Loans | V10: Investment Mortgages | W10: Self-Certified Mortgages | X10: Other Items
D11: 1 | E11: 0.2018 | F11: 0.15 | G11: 0.6 | H11: 0.6 | I11: 0.6 | J11: 0.6 | K11: 0.6 | L11: 0.6 | M11: 1.8 | N11: 0.6 | O11: 0.8925 | P11: 0.6 | Q11: 0.6 | R11: 1.3 | S11: 0.6 | T11: 0.1 | U11: 0.48 | V11: 0.2018 | W11: 0.8072 | X11: 0.9
D12: 2 | E12: 0.2319 | F12: 0.1716666667 | G12: 0.6595238095 | H12: 0.6595238095 | I12: 0.6595238095 | J12: 0.6595238095 | K12: 0.6595238095 | L12: 0.6595238095 | M12: 1.978571429 | N12: 0.6595238095 | O12: 0.955 | P12: 0.6595238095 | Q12: 0.6595238095 | R12: 1.5 | S12: 0.6595238095 | T12: 0.1144444444 | U12: 0.51 | V12: 0.2319 | W12: 0.9276 | X12: 0.9892857143
D13: 3 | E13: 0.2864 | F13: 0.2330555556 | G13: 0.75 | H13: 0.75 | I13: 0.75 | J13: 0.75 | K13: 0.75 | L13: 0.75 | M13: 2.25 | N13: 0.75 | O13: 1.05 | P13: 0.75 | Q13: 0.75 | R13: 1.89 | S13: 0.75 | T13: 0.1553703704 | U13: 0.56 | V13: 0.2864 | W13: 1.1456 | X13: 1.125
D14: 4 | E14: 0.3653 | F14: 0.3341666667 | G14: 0.8714285714 | H14: 0.8714285714 | I14: 0.8714285714 | J14: 0.8714285714 | K14: 0.8714285714 | L14: 0.8714285714 | M14: 2.614285714 | N14: 0.8714285714 | O14: 1.1775 | P14: 0.8714285714 | Q14: 0.8714285714 | R14: 2.41 | S14: 0.8714285714 | T14: 0.2227777778 | U14: 0.63 | V14: 0.3653 | W14: 1.4612 | X14: 1.307142857
D15: 5 | E15: 0.4686 | F15: 0.475 | G15: 1.023809524 | H15: 1.023809524 | I15: 1.023809524 | J15: 1.023809524 | K15: 1.023809524 | L15: 1.023809524 | M15: 3.071428571 | N15: 1.023809524 | O15: 1.3375 | P15: 1.023809524 | Q15: 1.023809524 | R15: 3.06 | S15: 1.023809524 | T15: 0.3166666667 | U15: 0.71 | V15: 0.4686 | W15: 1.8744 | X15: 1.535714286
D16: 6 | E16: 0.5963 | F16: 0.6809 | G16: 1.207142857 | H16: 1.207142857 | I16: 1.207142857 | J16: 1.207142857 | K16: 1.207142857 | L16: 1.207142857 | M16: 3.63 | N16: 1.207142857 | O16: 1.53 | P16: 1.207142857 | Q16: 1.207142857 | R16: 3.9 | S16: 1.207142857 | T16: 0.4539335603 | U16: 0.81 | V16: 0.5963 | W16: 2.3852 | X16: 1.810714286
D17: 7 | E17: 0.7484 | F17: 1.0251 | G17: 1.421428571 | H17: 1.421428571 | I17: 1.421428571 | J17: 1.421428571 | K17: 1.421428571 | L17: 1.421428571 | M17: 4.264285714 | N17: 1.421428571 | O17: 1.755 | P17: 1.421428571 | Q17: 1.421428571 | R17: 4.88 | S17: 1.421428571 | T17: 0.6834003417 | U17: 0.93 | V17: 0.7484 | W17: 2.9936 | X17: 2.132142857
D18: 8 | E18: 0.9249 | F18: 1.4389 | G18: 1.666666667 | H18: 1.666666667 | I18: 1.666666667 | J18: 1.666666667 | K18: 1.666666667 | L18: 1.666666667 | M18: 5.01 | N18: 1.666666667 | O18: 2.0125 | P18: 1.666666667 | Q18: 1.666666667 | R18: 5.98 | S18: 1.666666667 | T18: 0.9592671463 | U18: 1.07 | V18: 0.9249 | W18: 3.6996 | X18: 2.5
D19: 9 | E19: 1.1258 | F19: 1.9223 | G19: 1.942857143 | H19: 1.942857143 | I19: 1.942857143 | J19: 1.942857143 | K19: 1.942857143 | L19: 1.942857143 | M19: 5.82 | N19: 1.942857143 | O19: 2.3025 | P19: 1.942857143 | Q19: 1.942857143 | R19: 7.35 | S19: 1.942857143 | T19: 1.281533974 | U19: 1.22 | V19: 1.1258 | W19: 4.5032 | X19: 2.914285714
D20: 10 | E20: 1.3511 | F20: 2.4753 | G20: 2.25 | H20: 2.25 | I20: 2.25 | J20: 2.25 | K20: 2.25 | L20: 2.25 | M20: 6.75 | N20: 2.25 | O20: 2.625 | P20: 2.25 | Q20: 2.25 | R20: 8.78 | S20: 2.25 | T20: 1.650200825 | U20: 1.39 | V20: 1.3511 | W20: 5.4044 | X20: 3.375
D21: Africa | E21: =VLOOKUP(VLOOKUP($D21,Parameters!$D$316:$H$462,E$9,FALSE),Parameters!$D$11:$W$20,2,FALSE) -> 1.1258 | F21: =VLOOKUP(VLOOKUP($D21,Parameters!$D$316:$H$462,F$9,FALSE),Parameters!$D$11:$W$20,3,FALSE) -> 1.9223 | G21: =VLOOKUP(VLOOKUP($D21,Parameters!$D$316:$H$462,G$9,FALSE),Parameters!$D$11:$W$20,4,FALSE) -> 1.942857143 | H21: =VLOOKUP(VLOOKUP($D21,Parameters!$D$316:$H$462,H$9,FALSE),Parameters!$D$11:$W$20,5,FALSE) -> 1.942857143 | I21: =VLOOKUP(VLOOKUP($D21,Parameters!$D$316:$H$462,I$9,FALSE),Parameters!$D$11:$W$20,6,FALSE) -> 1.942857143 | J21: =VLOOKUP(VLOOKUP($D21,Parameters!$D$316:$H$462,J$9,FALSE),Parameters!$D$11:$W$20,7,FALSE) -> 1.942857143 | K21: =VLOOKUP(VLOOKUP($D21,Parameters!$D$316:$H$462,K$9,FALSE),Parameters!$D$11:$W$20,8,FALSE) -> 1.942857143 | L21: =VLOOKUP(VLOOKUP($D21,Parameters!$D$316:$H$462,L$9,FALSE),Parameters!$D$11:$W$20,9,FALSE) -> 1.942857143 | M21: =VLOOKUP(VLOOKUP($D21,Parameters!$D$316:$H$462,M$9,FALSE),Parameters!$D$11:$W$20,10,FALSE) -> 5.82 | N21: =VLOOKUP(VLOOKUP($D21,Parameters!$D$316:$H$462,N$9,FALSE),Parameters!$D$11:$W$20,11,FALSE) -> 1.942857143 | O21: =VLOOKUP(VLOOKUP($D21,Parameters!$D$316:$H$462,O$9,FALSE),Parameters!$D$11:$W$20,12,FALSE) -> 2.3025 | P21: =VLOOKUP(VLOOKUP($D21,Parameters!$D$316:$H$462,P$9,FALSE),Parameters!$D$11:$W$20,13,FALSE) -> 1.942857143 | Q21: =VLOOKUP(VLOOKUP($D21,Parameters!$D$316:$H$462,Q$9,FALSE),Parameters!$D$11:$W$20,14,FALSE) -> 1.942857143 | R21: =VLOOKUP(VLOOKUP($D21,Parameters!$D$316:$H$462,R$9,FALSE),Parameters!$D$11:$W$20,15,FALSE) -> 7.35 | S21: =VLOOKUP(VLOOKUP($D21,Parameters!$D$316:$H$462,S$9,FALSE),Parameters!$D$11:$W$20,16,FALSE) -> 1.942857143 | T21: =VLOOKUP(VLOOKUP($D21,Parameters!$D$316:$H$462,T$9,FALSE),Parameters!$D$11:$W$20,17,FALSE) -> 1.281533974 | U21: =VLOOKUP(VLOOKUP($D21,Parameters!$D$316:$H$462,U$9,FALSE),Parameters!$D$11:$W$20,18,FALSE) -> 1.22 | V21: =VLOOKUP(VLOOKUP($D21,Parameters!$D$316:$H$462,V$9,FALSE),Parameters!$D$11:$W$20,19,FALSE) -> 1.1258 | W21: =VLOOKUP(VLOOKUP($D21,Parameters!$D$316:$H$462,W$9,FALSE),Parameters!$D$11:$W$20,20,FALSE) -> 4.5032 | X21: =VLOOKUP(VLOOKUP($D21,Parameters!$D$316:$H$462,X$9,FALSE),Parameters!$D$11:$X$20,21,FALSE) -> 2.914285714
D22: Albania | E22: =VLOOKUP(VLOOKUP($D22,Parameters!$D$316:$H$462,E$9,FALSE),Parameters!$D$11:$W$20,2,FALSE) -> 0.9249 | F22: =VLOOKUP(VLOOKUP($D22,Parameters!$D$316:$H$462,F$9,FALSE),Parameters!$D$11:$W$20,3,FALSE) -> 1.4389 | G22: =VLOOKUP(VLOOKUP($D22,Parameters!$D$316:$H$462,G$9,FALSE),Parameters!$D$11:$W$20,4,FALSE) -> 1.666666667 | H22: =VLOOKUP(VLOOKUP($D22,Parameters!$D$316:$H$462,H$9,FALSE),Parameters!$D$11:$W$20,5,FALSE) -> 1.666666667 | I22: =VLOOKUP(VLOOKUP($D22,Parameters!$D$316:$H$462,I$9,FALSE),Parameters!$D$11:$W$20,6,FALSE) -> 1.666666667 | J22: =VLOOKUP(VLOOKUP($D22,Parameters!$D$316:$H$462,J$9,FALSE),Parameters!$D$11:$W$20,7,FALSE) -> 1.666666667 | K22: =VLOOKUP(VLOOKUP($D22,Parameters!$D$316:$H$462,K$9,FALSE),Parameters!$D$11:$W$20,8,FALSE) -> 1.666666667 | L22: =VLOOKUP(VLOOKUP($D22,Parameters!$D$316:$H$462,L$9,FALSE),Parameters!$D$11:$W$20,9,FALSE) -> 1.666666667 | M22: =VLOOKUP(VLOOKUP($D22,Parameters!$D$316:$H$462,M$9,FALSE),Parameters!$D$11:$W$20,10,FALSE) -> 5.01 | N22: =VLOOKUP(VLOOKUP($D22,Parameters!$D$316:$H$462,N$9,FALSE),Parameters!$D$11:$W$20,11,FALSE) -> 1.666666667 | O22: =VLOOKUP(VLOOKUP($D22,Parameters!$D$316:$H$462,O$9,FALSE),Parameters!$D$11:$W$20,12,FALSE) -> 2.0125 | P22: =VLOOKUP(VLOOKUP($D22,Parameters!$D$316:$H$462,P$9,FALSE),Parameters!$D$11:$W$20,13,FALSE) -> 1.666666667 | Q22: =VLOOKUP(VLOOKUP($D22,Parameters!$D$316:$H$462,Q$9,FALSE),Parameters!$D$11:$W$20,14,FALSE) -> 1.666666667 | R22: =VLOOKUP(VLOOKUP($D22,Parameters!$D$316:$H$462,R$9,FALSE),Parameters!$D$11:$W$20,15,FALSE) -> 5.98 | S22: =VLOOKUP(VLOOKUP($D22,Parameters!$D$316:$H$462,S$9,FALSE),Parameters!$D$11:$W$20,16,FALSE) -> 1.666666667 | T22: =VLOOKUP(VLOOKUP($D22,Parameters!$D$316:$H$462,T$9,FALSE),Parameters!$D$11:$W$20,17,FALSE) -> 0.9592671463 | U22: =VLOOKUP(VLOOKUP($D22,Parameters!$D$316:$H$462,U$9,FALSE),Parameters!$D$11:$W$20,18,FALSE) -> 1.07 | V22: =VLOOKUP(VLOOKUP($D22,Parameters!$D$316:$H$462,V$9,FALSE),Parameters!$D$11:$W$20,19,FALSE) -> 0.9249 | W22: =VLOOKUP(VLOOKUP($D22,Parameters!$D$316:$H$462,W$9,FALSE),Parameters!$D$11:$W$20,20,FALSE) -> 3.6996 | X22: =VLOOKUP(VLOOKUP($D22,Parameters!$D$316:$H$462,X$9,FALSE),Parameters!$D$11:$X$20,21,FALSE) -> 2.5
D23: Andorra | E23: =VLOOKUP(VLOOKUP($D23,Parameters!$D$316:$H$462,E$9,FALSE),Parameters!$D$11:$W$20,2,FALSE) -> 0.4686 | F23: =VLOOKUP(VLOOKUP($D23,Parameters!$D$316:$H$462,F$9,FALSE),Parameters!$D$11:$W$20,3,FALSE) -> 0.6809 | G23: =VLOOKUP(VLOOKUP($D23,Parameters!$D$316:$H$462,G$9,FALSE),Parameters!$D$11:$W$20,4,FALSE) -> 1.023809524 | H23: =VLOOKUP(VLOOKUP($D23,Parameters!$D$316:$H$462,H$9,FALSE),Parameters!$D$11:$W$20,5,FALSE) -> 1.023809524 | I23: =VLOOKUP(VLOOKUP($D23,Parameters!$D$316:$H$462,I$9,FALSE),Parameters!$D$11:$W$20,6,FALSE) -> 1.023809524 | J23: =VLOOKUP(VLOOKUP($D23,Parameters!$D$316:$H$462,J$9,FALSE),Parameters!$D$11:$W$20,7,FALSE) -> 1.023809524 | K23: =VLOOKUP(VLOOKUP($D23,Parameters!$D$316:$H$462,K$9,FALSE),Parameters!$D$11:$W$20,8,FALSE) -> 1.023809524 | L23: =VLOOKUP(VLOOKUP($D23,Parameters!$D$316:$H$462,L$9,FALSE),Parameters!$D$11:$W$20,9,FALSE) -> 1.023809524 | M23: =VLOOKUP(VLOOKUP($D23,Parameters!$D$316:$H$462,M$9,FALSE),Parameters!$D$11:$W$20,10,FALSE) -> 3.071428571 | N23: =VLOOKUP(VLOOKUP($D23,Parameters!$D$316:$H$462,N$9,FALSE),Parameters!$D$11:$W$20,11,FALSE) -> 1.023809524 | O23: =VLOOKUP(VLOOKUP($D23,Parameters!$D$316:$H$462,O$9,FALSE),Parameters!$D$11:$W$20,12,FALSE) -> 1.3375 | P23: =VLOOKUP(VLOOKUP($D23,Parameters!$D$316:$H$462,P$9,FALSE),Parameters!$D$11:$W$20,13,FALSE) -> 1.023809524 | Q23: =VLOOKUP(VLOOKUP($D23,Parameters!$D$316:$H$462,Q$9,FALSE),Parameters!$D$11:$W$20,14,FALSE) -> 1.023809524 | R23: =VLOOKUP(VLOOKUP($D23,Parameters!$D$316:$H$462,R$9,FALSE),Parameters!$D$11:$W$20,15,FALSE) -> 3.06 | S23: =VLOOKUP(VLOOKUP($D23,Parameters!$D$316:$H$462,S$9,FALSE),Parameters!$D$11:$W$20,16,FALSE) -> 1.023809524 | T23: =VLOOKUP(VLOOKUP($D23,Parameters!$D$316:$H$462,T$9,FALSE),Parameters!$D$11:$W$20,17,FALSE) -> 0.4539335603 | U23: =VLOOKUP(VLOOKUP($D23,Parameters!$D$316:$H$462,U$9,FALSE),Parameters!$D$11:$W$20,18,FALSE) -> 0.71 | V23: =VLOOKUP(VLOOKUP($D23,Parameters!$D$316:$H$462,V$9,FALSE),Parameters!$D$11:$W$20,19,FALSE) -> 0.4686 | W23: =VLOOKUP(VLOOKUP($D23,Parameters!$D$316:$H$462,W$9,FALSE),Parameters!$D$11:$W$20,20,FALSE) -> 1.8744 | X23: =VLOOKUP(VLOOKUP($D23,Parameters!$D$316:$H$462,X$9,FALSE),Parameters!$D$11:$X$20,21,FALSE) -> 1.535714286
D24: Angola | E24: =VLOOKUP(VLOOKUP($D24,Parameters!$D$316:$H$462,E$9,FALSE),Parameters!$D$11:$W$20,2,FALSE) -> 1.3511 | F24: =VLOOKUP(VLOOKUP($D24,Parameters!$D$316:$H$462,F$9,FALSE),Parameters!$D$11:$W$20,3,FALSE) -> 2.4753 | G24: =VLOOKUP(VLOOKUP($D24,Parameters!$D$316:$H$462,G$9,FALSE),Parameters!$D$11:$W$20,4,FALSE) -> 2.25 | H24: =VLOOKUP(VLOOKUP($D24,Parameters!$D$316:$H$462,H$9,FALSE),Parameters!$D$11:$W$20,5,FALSE) -> 2.25 | I24: =VLOOKUP(VLOOKUP($D24,Parameters!$D$316:$H$462,I$9,FALSE),Parameters!$D$11:$W$20,6,FALSE) -> 2.25 | J24: =VLOOKUP(VLOOKUP($D24,Parameters!$D$316:$H$462,J$9,FALSE),Parameters!$D$11:$W$20,7,FALSE) -> 2.25 | K24: =VLOOKUP(VLOOKUP($D24,Parameters!$D$316:$H$462,K$9,FALSE),Parameters!$D$11:$W$20,8,FALSE) -> 2.25 | L24: =VLOOKUP(VLOOKUP($D24,Parameters!$D$316:$H$462,L$9,FALSE),Parameters!$D$11:$W$20,9,FALSE) -> 2.25 | M24: =VLOOKUP(VLOOKUP($D24,Parameters!$D$316:$H$462,M$9,FALSE),Parameters!$D$11:$W$20,10,FALSE) -> 6.75 | N24: =VLOOKUP(VLOOKUP($D24,Parameters!$D$316:$H$462,N$9,FALSE),Parameters!$D$11:$W$20,11,FALSE) -> 2.25 | O24: =VLOOKUP(VLOOKUP($D24,Parameters!$D$316:$H$462,O$9,FALSE),Parameters!$D$11:$W$20,12,FALSE) -> 2.625 | P24: =VLOOKUP(VLOOKUP($D24,Parameters!$D$316:$H$462,P$9,FALSE),Parameters!$D$11:$W$20,13,FALSE) -> 2.25 | Q24: =VLOOKUP(VLOOKUP($D24,Parameters!$D$316:$H$462,Q$9,FALSE),Parameters!$D$11:$W$20,14,FALSE) -> 2.25 | R24: =VLOOKUP(VLOOKUP($D24,Parameters!$D$316:$H$462,R$9,FALSE),Parameters!$D$11:$W$20,15,FALSE) -> 8.78 | S24: =VLOOKUP(VLOOKUP($D24,Parameters!$D$316:$H$462,S$9,FALSE),Parameters!$D$11:$W$20,16,FALSE) -> 2.25 | T24: =VLOOKUP(VLOOKUP($D24,Parameters!$D$316:$H$462,T$9,FALSE),Parameters!$D$11:$W$20,17,FALSE) -> 1.650200825 | U24: =VLOOKUP(VLOOKUP($D24,Parameters!$D$316:$H$462,U$9,FALSE),Parameters!$D$11:$W$20,18,FALSE) -> 1.39 | V24: =VLOOKUP(VLOOKUP($D24,Parameters!$D$316:$H$462,V$9,FALSE),Parameters!$D$11:$W$20,19,FALSE) -> 1.3511 | W24: =VLOOKUP(VLOOKUP($D24,Parameters!$D$316:$H$462,W$9,FALSE),Parameters!$D$11:$W$20,20,FALSE) -> 5.4044 | X24: =VLOOKUP(VLOOKUP($D24,Parameters!$D$316:$H$462,X$9,FALSE),Parameters!$D$11:$X$20,21,FALSE) -> 3.375
D25: Antigua and Barbuda | E25: =VLOOKUP(VLOOKUP($D25,Parameters!$D$316:$H$462,E$9,FALSE),Parameters!$D$11:$W$20,2,FALSE) -> 1.1258 | F25: =VLOOKUP(VLOOKUP($D25,Parameters!$D$316:$H$462,F$9,FALSE),Parameters!$D$11:$W$20,3,FALSE) -> 1.9223 | G25: =VLOOKUP(VLOOKUP($D25,Parameters!$D$316:$H$462,G$9,FALSE),Parameters!$D$11:$W$20,4,FALSE) -> 1.942857143 | H25: =VLOOKUP(VLOOKUP($D25,Parameters!$D$316:$H$462,H$9,FALSE),Parameters!$D$11:$W$20,5,FALSE) -> 1.942857143 | I25: =VLOOKUP(VLOOKUP($D25,Parameters!$D$316:$H$462,I$9,FALSE),Parameters!$D$11:$W$20,6,FALSE) -> 1.942857143 | J25: =VLOOKUP(VLOOKUP($D25,Parameters!$D$316:$H$462,J$9,FALSE),Parameters!$D$11:$W$20,7,FALSE) -> 1.942857143 | K25: =VLOOKUP(VLOOKUP($D25,Parameters!$D$316:$H$462,K$9,FALSE),Parameters!$D$11:$W$20,8,FALSE) -> 1.942857143 | L25: =VLOOKUP(VLOOKUP($D25,Parameters!$D$316:$H$462,L$9,FALSE),Parameters!$D$11:$W$20,9,FALSE) -> 1.942857143 | M25: =VLOOKUP(VLOOKUP($D25,Parameters!$D$316:$H$462,M$9,FALSE),Parameters!$D$11:$W$20,10,FALSE) -> 5.82 | N25: =VLOOKUP(VLOOKUP($D25,Parameters!$D$316:$H$462,N$9,FALSE),Parameters!$D$11:$W$20,11,FALSE) -> 1.942857143 | O25: =VLOOKUP(VLOOKUP($D25,Parameters!$D$316:$H$462,O$9,FALSE),Parameters!$D$11:$W$20,12,FALSE) -> 2.3025 | P25: =VLOOKUP(VLOOKUP($D25,Parameters!$D$316:$H$462,P$9,FALSE),Parameters!$D$11:$W$20,13,FALSE) -> 1.942857143 | Q25: =VLOOKUP(VLOOKUP($D25,Parameters!$D$316:$H$462,Q$9,FALSE),Parameters!$D$11:$W$20,14,FALSE) -> 1.942857143 | R25: =VLOOKUP(VLOOKUP($D25,Parameters!$D$316:$H$462,R$9,FALSE),Parameters!$D$11:$W$20,15,FALSE) -> 7.35 | S25: =VLOOKUP(VLOOKUP($D25,Parameters!$D$316:$H$462,S$9,FALSE),Parameters!$D$11:$W$20,16,FALSE) -> 1.942857143 | T25: =VLOOKUP(VLOOKUP($D25,Parameters!$D$316:$H$462,T$9,FALSE),Parameters!$D$11:$W$20,17,FALSE) -> 1.281533974 | U25: =VLOOKUP(VLOOKUP($D25,Parameters!$D$316:$H$462,U$9,FALSE),Parameters!$D$11:$W$20,18,FALSE) -> 1.22 | V25: =VLOOKUP(VLOOKUP($D25,Parameters!$D$316:$H$462,V$9,FALSE),Parameters!$D$11:$W$20,19,FALSE) -> 1.1258 | W25: =VLOOKUP(VLOOKUP($D25,Parameters!$D$316:$H$462,W$9,FALSE),Parameters!$D$11:$W$20,20,FALSE) -> 4.5032 | X25: =VLOOKUP(VLOOKUP($D25,Parameters!$D$316:$H$462,X$9,FALSE),Parameters!$D$11:$X$20,21,FALSE) -> 2.914285714
D26: Argentina | E26: =VLOOKUP(VLOOKUP($D26,Parameters!$D$316:$H$462,E$9,FALSE),Parameters!$D$11:$W$20,2,FALSE) -> 1.3511 | F26: =VLOOKUP(VLOOKUP($D26,Parameters!$D$316:$H$462,F$9,FALSE),Parameters!$D$11:$W$20,3,FALSE) -> 1.9223 | G26: =VLOOKUP(VLOOKUP($D26,Parameters!$D$316:$H$462,G$9,FALSE),Parameters!$D$11:$W$20,4,FALSE) -> 2.25 | H26: =VLOOKUP(VLOOKUP($D26,Parameters!$D$316:$H$462,H$9,FALSE),Parameters!$D$11:$W$20,5,FALSE) -> 2.25 | I26: =VLOOKUP(VLOOKUP($D26,Parameters!$D$316:$H$462,I$9,FALSE),Parameters!$D$11:$W$20,6,FALSE) -> 2.25 | J26: =VLOOKUP(VLOOKUP($D26,Parameters!$D$316:$H$462,J$9,FALSE),Parameters!$D$11:$W$20,7,FALSE) -> 2.25 | K26: =VLOOKUP(VLOOKUP($D26,Parameters!$D$316:$H$462,K$9,FALSE),Parameters!$D$11:$W$20,8,FALSE) -> 2.25 | L26: =VLOOKUP(VLOOKUP($D26,Parameters!$D$316:$H$462,L$9,FALSE),Parameters!$D$11:$W$20,9,FALSE) -> 2.25 | M26: =VLOOKUP(VLOOKUP($D26,Parameters!$D$316:$H$462,M$9,FALSE),Parameters!$D$11:$W$20,10,FALSE) -> 6.75 | N26: =VLOOKUP(VLOOKUP($D26,Parameters!$D$316:$H$462,N$9,FALSE),Parameters!$D$11:$W$20,11,FALSE) -> 2.25 | O26: =VLOOKUP(VLOOKUP($D26,Parameters!$D$316:$H$462,O$9,FALSE),Parameters!$D$11:$W$20,12,FALSE) -> 2.625 | P26: =VLOOKUP(VLOOKUP($D26,Parameters!$D$316:$H$462,P$9,FALSE),Parameters!$D$11:$W$20,13,FALSE) -> 2.25 | Q26: =VLOOKUP(VLOOKUP($D26,Parameters!$D$316:$H$462,Q$9,FALSE),Parameters!$D$11:$W$20,14,FALSE) -> 2.25 | R26: =VLOOKUP(VLOOKUP($D26,Parameters!$D$316:$H$462,R$9,FALSE),Parameters!$D$11:$W$20,15,FALSE) -> 8.78 | S26: =VLOOKUP(VLOOKUP($D26,Parameters!$D$316:$H$462,S$9,FALSE),Parameters!$D$11:$W$20,16,FALSE) -> 2.25 | T26: =VLOOKUP(VLOOKUP($D26,Parameters!$D$316:$H$462,T$9,FALSE),Parameters!$D$11:$W$20,17,FALSE) -> 1.281533974 | U26: =VLOOKUP(VLOOKUP($D26,Parameters!$D$316:$H$462,U$9,FALSE),Parameters!$D$11:$W$20,18,FALSE) -> 1.39 | V26: =VLOOKUP(VLOOKUP($D26,Parameters!$D$316:$H$462,V$9,FALSE),Parameters!$D$11:$W$20,19,FALSE) -> 1.3511 | W26: =VLOOKUP(VLOOKUP($D26,Parameters!$D$316:$H$462,W$9,FALSE),Parameters!$D$11:$W$20,20,FALSE) -> 5.4044 | X26: =VLOOKUP(VLOOKUP($D26,Parameters!$D$316:$H$462,X$9,FALSE),Parameters!$D$11:$X$20,21,FALSE) -> 3.375
D27: Asia Pacific | E27: =VLOOKUP(VLOOKUP($D27,Parameters!$D$316:$H$462,E$9,FALSE),Parameters!$D$11:$W$20,2,FALSE) -> 0.4686 | F27: =VLOOKUP(VLOOKUP($D27,Parameters!$D$316:$H$462,F$9,FALSE),Parameters!$D$11:$W$20,3,FALSE) -> 0.475 | G27: =VLOOKUP(VLOOKUP($D27,Parameters!$D$316:$H$462,G$9,FALSE),Parameters!$D$11:$W$20,4,FALSE) -> 1.023809524 | H27: =VLOOKUP(VLOOKUP($D27,Parameters!$D$316:$H$462,H$9,FALSE),Parameters!$D$11:$W$20,5,FALSE) -> 1.023809524 | I27: =VLOOKUP(VLOOKUP($D27,Parameters!$D$316:$H$462,I$9,FALSE),Parameters!$D$11:$W$20,6,FALSE) -> 1.023809524 | J27: =VLOOKUP(VLOOKUP($D27,Parameters!$D$316:$H$462,J$9,FALSE),Parameters!$D$11:$W$20,7,FALSE) -> 1.023809524 | K27: =VLOOKUP(VLOOKUP($D27,Parameters!$D$316:$H$462,K$9,FALSE),Parameters!$D$11:$W$20,8,FALSE) -> 1.023809524 | L27: =VLOOKUP(VLOOKUP($D27,Parameters!$D$316:$H$462,L$9,FALSE),Parameters!$D$11:$W$20,9,FALSE) -> 1.023809524 | M27: =VLOOKUP(VLOOKUP($D27,Parameters!$D$316:$H$462,M$9,FALSE),Parameters!$D$11:$W$20,10,FALSE) -> 3.071428571 | N27: =VLOOKUP(VLOOKUP($D27,Parameters!$D$316:$H$462,N$9,FALSE),Parameters!$D$11:$W$20,11,FALSE) -> 1.023809524 | O27: =VLOOKUP(VLOOKUP($D27,Parameters!$D$316:$H$462,O$9,FALSE),Parameters!$D$11:$W$20,12,FALSE) -> 1.3375 | P27: =VLOOKUP(VLOOKUP($D27,Parameters!$D$316:$H$462,P$9,FALSE),Parameters!$D$11:$W$20,13,FALSE) -> 1.023809524 | Q27: =VLOOKUP(VLOOKUP($D27,Parameters!$D$316:$H$462,Q$9,FALSE),Parameters!$D$11:$W$20,14,FALSE) -> 1.023809524 | R27: =VLOOKUP(VLOOKUP($D27,Parameters!$D$316:$H$462,R$9,FALSE),Parameters!$D$11:$W$20,15,FALSE) -> 3.06 | S27: =VLOOKUP(VLOOKUP($D27,Parameters!$D$316:$H$462,S$9,FALSE),Parameters!$D$11:$W$20,16,FALSE) -> 1.023809524 | T27: =VLOOKUP(VLOOKUP($D27,Parameters!$D$316:$H$462,T$9,FALSE),Parameters!$D$11:$W$20,17,FALSE) -> 0.3166666667 | U27: =VLOOKUP(VLOOKUP($D27,Parameters!$D$316:$H$462,U$9,FALSE),Parameters!$D$11:$W$20,18,FALSE) -> 0.71 | V27: =VLOOKUP(VLOOKUP($D27,Parameters!$D$316:$H$462,V$9,FALSE),Parameters!$D$11:$W$20,19,FALSE) -> 0.4686 | W27: =VLOOKUP(VLOOKUP($D27,Parameters!$D$316:$H$462,W$9,FALSE),Parameters!$D$11:$W$20,20,FALSE) -> 1.8744 | X27: =VLOOKUP(VLOOKUP($D27,Parameters!$D$316:$H$462,X$9,FALSE),Parameters!$D$11:$X$20,21,FALSE) -> 1.535714286
D28: Australia | E28: =VLOOKUP(VLOOKUP($D28,Parameters!$D$316:$H$462,E$9,FALSE),Parameters!$D$11:$W$20,2,FALSE) -> 0.2864 | F28: =VLOOKUP(VLOOKUP($D28,Parameters!$D$316:$H$462,F$9,FALSE),Parameters!$D$11:$W$20,3,FALSE) -> 0.1716666667 | G28: =VLOOKUP(VLOOKUP($D28,Parameters!$D$316:$H$462,G$9,FALSE),Parameters!$D$11:$W$20,4,FALSE) -> 0.75 | H28: =VLOOKUP(VLOOKUP($D28,Parameters!$D$316:$H$462,H$9,FALSE),Parameters!$D$11:$W$20,5,FALSE) -> 0.75 | I28: =VLOOKUP(VLOOKUP($D28,Parameters!$D$316:$H$462,I$9,FALSE),Parameters!$D$11:$W$20,6,FALSE) -> 0.75 | J28: =VLOOKUP(VLOOKUP($D28,Parameters!$D$316:$H$462,J$9,FALSE),Parameters!$D$11:$W$20,7,FALSE) -> 0.75 | K28: =VLOOKUP(VLOOKUP($D28,Parameters!$D$316:$H$462,K$9,FALSE),Parameters!$D$11:$W$20,8,FALSE) -> 0.75 | L28: =VLOOKUP(VLOOKUP($D28,Parameters!$D$316:$H$462,L$9,FALSE),Parameters!$D$11:$W$20,9,FALSE) -> 0.75 | M28: =VLOOKUP(VLOOKUP($D28,Parameters!$D$316:$H$462,M$9,FALSE),Parameters!$D$11:$W$20,10,FALSE) -> 2.25 | N28: =VLOOKUP(VLOOKUP($D28,Parameters!$D$316:$H$462,N$9,FALSE),Parameters!$D$11:$W$20,11,FALSE) -> 0.75 | O28: =VLOOKUP(VLOOKUP($D28,Parameters!$D$316:$H$462,O$9,FALSE),Parameters!$D$11:$W$20,12,FALSE) -> 1.05 | P28: =VLOOKUP(VLOOKUP($D28,Parameters!$D$316:$H$462,P$9,FALSE),Parameters!$D$11:$W$20,13,FALSE) -> 0.75 | Q28: =VLOOKUP(VLOOKUP($D28,Parameters!$D$316:$H$462,Q$9,FALSE),Parameters!$D$11:$W$20,14,FALSE) -> 0.75 | R28: =VLOOKUP(VLOOKUP($D28,Parameters!$D$316:$H$462,R$9,FALSE),Parameters!$D$11:$W$20,15,FALSE) -> 1.89 | S28: =VLOOKUP(VLOOKUP($D28,Parameters!$D$316:$H$462,S$9,FALSE),Parameters!$D$11:$W$20,16,FALSE) -> 0.75 | T28: =VLOOKUP(VLOOKUP($D28,Parameters!$D$316:$H$462,T$9,FALSE),Parameters!$D$11:$W$20,17,FALSE) -> 0.1144444444 | U28: =VLOOKUP(VLOOKUP($D28,Parameters!$D$316:$H$462,U$9,FALSE),Parameters!$D$11:$W$20,18,FALSE) -> 0.56 | V28: =VLOOKUP(VLOOKUP($D28,Parameters!$D$316:$H$462,V$9,FALSE),Parameters!$D$11:$W$20,19,FALSE) -> 0.2864 | W28: =VLOOKUP(VLOOKUP($D28,Parameters!$D$316:$H$462,W$9,FALSE),Parameters!$D$11:$W$20,20,FALSE) -> 1.1456 | X28: =VLOOKUP(VLOOKUP($D28,Parameters!$D$316:$H$462,X$9,FALSE),Parameters!$D$11:$X$20,21,FALSE) -> 1.125
D29: Austria | E29: =VLOOKUP(VLOOKUP($D29,Parameters!$D$316:$H$462,E$9,FALSE),Parameters!$D$11:$W$20,2,FALSE) -> 0.2319 | F29: =VLOOKUP(VLOOKUP($D29,Parameters!$D$316:$H$462,F$9,FALSE),Parameters!$D$11:$W$20,3,FALSE) -> 0.1716666667 | G29: =VLOOKUP(VLOOKUP($D29,Parameters!$D$316:$H$462,G$9,FALSE),Parameters!$D$11:$W$20,4,FALSE) -> 0.6595238095 | H29: =VLOOKUP(VLOOKUP($D29,Parameters!$D$316:$H$462,H$9,FALSE),Parameters!$D$11:$W$20,5,FALSE) -> 0.6595238095 | I29: =VLOOKUP(VLOOKUP($D29,Parameters!$D$316:$H$462,I$9,FALSE),Parameters!$D$11:$W$20,6,FALSE) -> 0.6595238095 | J29: =VLOOKUP(VLOOKUP($D29,Parameters!$D$316:$H$462,J$9,FALSE),Parameters!$D$11:$W$20,7,FALSE) -> 0.6595238095 | K29: =VLOOKUP(VLOOKUP($D29,Parameters!$D$316:$H$462,K$9,FALSE),Parameters!$D$11:$W$20,8,FALSE) -> 0.6595238095 | L29: =VLOOKUP(VLOOKUP($D29,Parameters!$D$316:$H$462,L$9,FALSE),Parameters!$D$11:$W$20,9,FALSE) -> 0.6595238095 | M29: =VLOOKUP(VLOOKUP($D29,Parameters!$D$316:$H$462,M$9,FALSE),Parameters!$D$11:$W$20,10,FALSE) -> 1.978571429 | N29: =VLOOKUP(VLOOKUP($D29,Parameters!$D$316:$H$462,N$9,FALSE),Parameters!$D$11:$W$20,11,FALSE) -> 0.6595238095 | O29: =VLOOKUP(VLOOKUP($D29,Parameters!$D$316:$H$462,O$9,FALSE),Parameters!$D$11:$W$20,12,FALSE) -> 0.955 | P29: =VLOOKUP(VLOOKUP($D29,Parameters!$D$316:$H$462,P$9,FALSE),Parameters!$D$11:$W$20,13,FALSE) -> 0.6595238095 | Q29: =VLOOKUP(VLOOKUP($D29,Parameters!$D$316:$H$462,Q$9,FALSE),Parameters!$D$11:$W$20,14,FALSE) -> 0.6595238095 | R29: =VLOOKUP(VLOOKUP($D29,Parameters!$D$316:$H$462,R$9,FALSE),Parameters!$D$11:$W$20,15,FALSE) -> 1.5 | S29: =VLOOKUP(VLOOKUP($D29,Parameters!$D$316:$H$462,S$9,FALSE),Parameters!$D$11:$W$20,16,FALSE) -> 0.6595238095 | T29: =VLOOKUP(VLOOKUP($D29,Parameters!$D$316:$H$462,T$9,FALSE),Parameters!$D$11:$W$20,17,FALSE) -> 0.1144444444 | U29: =VLOOKUP(VLOOKUP($D29,Parameters!$D$316:$H$462,U$9,FALSE),Parameters!$D$11:$W$20,18,FALSE) -> 0.51 | V29: =VLOOKUP(VLOOKUP($D29,Parameters!$D$316:$H$462,V$9,FALSE),Parameters!$D$11:$W$20,19,FALSE) -> 0.2319 | W29: =VLOOKUP(VLOOKUP($D29,Parameters!$D$316:$H$462,W$9,FALSE),Parameters!$D$11:$W$20,20,FALSE) -> 0.9276 | X29: =VLOOKUP(VLOOKUP($D29,Parameters!$D$316:$H$462,X$9,FALSE),Parameters!$D$11:$X$20,21,FALSE) -> 0.9892857143
D30: Azerbaijan | E30: =VLOOKUP(VLOOKUP($D30,Parameters!$D$316:$H$462,E$9,FALSE),Parameters!$D$11:$W$20,2,FALSE) -> 0.9249 | F30: =VLOOKUP(VLOOKUP($D30,Parameters!$D$316:$H$462,F$9,FALSE),Parameters!$D$11:$W$20,3,FALSE) -> 1.4389 | G30: =VLOOKUP(VLOOKUP($D30,Parameters!$D$316:$H$462,G$9,FALSE),Parameters!$D$11:$W$20,4,FALSE) -> 1.666666667 | H30: =VLOOKUP(VLOOKUP($D30,Parameters!$D$316:$H$462,H$9,FALSE),Parameters!$D$11:$W$20,5,FALSE) -> 1.666666667 | I30: =VLOOKUP(VLOOKUP($D30,Parameters!$D$316:$H$462,I$9,FALSE),Parameters!$D$11:$W$20,6,FALSE) -> 1.666666667 | J30: =VLOOKUP(VLOOKUP($D30,Parameters!$D$316:$H$462,J$9,FALSE),Parameters!$D$11:$W$20,7,FALSE) -> 1.666666667 | K30: =VLOOKUP(VLOOKUP($D30,Parameters!$D$316:$H$462,K$9,FALSE),Parameters!$D$11:$W$20,8,FALSE) -> 1.666666667 | L30: =VLOOKUP(VLOOKUP($D30,Parameters!$D$316:$H$462,L$9,FALSE),Parameters!$D$11:$W$20,9,FALSE) -> 1.666666667 | M30: =VLOOKUP(VLOOKUP($D30,Parameters!$D$316:$H$462,M$9,FALSE),Parameters!$D$11:$W$20,10,FALSE) -> 5.01 | N30: =VLOOKUP(VLOOKUP($D30,Parameters!$D$316:$H$462,N$9,FALSE),Parameters!$D$11:$W$20,11,FALSE) -> 1.666666667 | O30: =VLOOKUP(VLOOKUP($D30,Parameters!$D$316:$H$462,O$9,FALSE),Parameters!$D$11:$W$20,12,FALSE) -> 2.0125 | P30: =VLOOKUP(VLOOKUP($D30,Parameters!$D$316:$H$462,P$9,FALSE),Parameters!$D$11:$W$20,13,FALSE) -> 1.666666667 | Q30: =VLOOKUP(VLOOKUP($D30,Parameters!$D$316:$H$462,Q$9,FALSE),Parameters!$D$11:$W$20,14,FALSE) -> 1.666666667 | R30: =VLOOKUP(VLOOKUP($D30,Parameters!$D$316:$H$462,R$9,FALSE),Parameters!$D$11:$W$20,15,FALSE) -> 5.98 | S30: =VLOOKUP(VLOOKUP($D30,Parameters!$D$316:$H$462,S$9,FALSE),Parameters!$D$11:$W$20,16,FALSE) -> 1.666666667 | T30: =VLOOKUP(VLOOKUP($D30,Parameters!$D$316:$H$462,T$9,FALSE),Parameters!$D$11:$W$20,17,FALSE) -> 0.9592671463 | U30: =VLOOKUP(VLOOKUP($D30,Parameters!$D$316:$H$462,U$9,FALSE),Parameters!$D$11:$W$20,18,FALSE) -> 1.07 | V30: =VLOOKUP(VLOOKUP($D30,Parameters!$D$316:$H$462,V$9,FALSE),Parameters!$D$11:$W$20,19,FALSE) -> 0.9249 | W30: =VLOOKUP(VLOOKUP($D30,Parameters!$D$316:$H$462,W$9,FALSE),Parameters!$D$11:$W$20,20,FALSE) -> 3.6996 | X30: =VLOOKUP(VLOOKUP($D30,Parameters!$D$316:$H$462,X$9,FALSE),Parameters!$D$11:$X$20,21,FALSE) -> 2.5
D31: Bahamas | E31: =VLOOKUP(VLOOKUP($D31,Parameters!$D$316:$H$462,E$9,FALSE),Parameters!$D$11:$W$20,2,FALSE) -> 0.7484 | F31: =VLOOKUP(VLOOKUP($D31,Parameters!$D$316:$H$462,F$9,FALSE),Parameters!$D$11:$W$20,3,FALSE) -> 1.0251 | G31: =VLOOKUP(VLOOKUP($D31,Parameters!$D$316:$H$462,G$9,FALSE),Parameters!$D$11:$W$20,4,FALSE) -> 1.421428571 | H31: =VLOOKUP(VLOOKUP($D31,Parameters!$D$316:$H$462,H$9,FALSE),Parameters!$D$11:$W$20,5,FALSE) -> 1.421428571 | I31: =VLOOKUP(VLOOKUP($D31,Parameters!$D$316:$H$462,I$9,FALSE),Parameters!$D$11:$W$20,6,FALSE) -> 1.421428571 | J31: =VLOOKUP(VLOOKUP($D31,Parameters!$D$316:$H$462,J$9,FALSE),Parameters!$D$11:$W$20,7,FALSE) -> 1.421428571 | K31: =VLOOKUP(VLOOKUP($D31,Parameters!$D$316:$H$462,K$9,FALSE),Parameters!$D$11:$W$20,8,FALSE) -> 1.421428571 | L31: =VLOOKUP(VLOOKUP($D31,Parameters!$D$316:$H$462,L$9,FALSE),Parameters!$D$11:$W$20,9,FALSE) -> 1.421428571 | M31: =VLOOKUP(VLOOKUP($D31,Parameters!$D$316:$H$462,M$9,FALSE),Parameters!$D$11:$W$20,10,FALSE) -> 4.264285714 | N31: =VLOOKUP(VLOOKUP($D31,Parameters!$D$316:$H$462,N$9,FALSE),Parameters!$D$11:$W$20,11,FALSE) -> 1.421428571 | O31: =VLOOKUP(VLOOKUP($D31,Parameters!$D$316:$H$462,O$9,FALSE),Parameters!$D$11:$W$20,12,FALSE) -> 1.755 | P31: =VLOOKUP(VLOOKUP($D31,Parameters!$D$316:$H$462,P$9,FALSE),Parameters!$D$11:$W$20,13,FALSE) -> 1.421428571 | Q31: =VLOOKUP(VLOOKUP($D31,Parameters!$D$316:$H$462,Q$9,FALSE),Parameters!$D$11:$W$20,14,FALSE) -> 1.421428571 | R31: =VLOOKUP(VLOOKUP($D31,Parameters!$D$316:$H$462,R$9,FALSE),Parameters!$D$11:$W$20,15,FALSE) -> 4.88 | S31: =VLOOKUP(VLOOKUP($D31,Parameters!$D$316:$H$462,S$9,FALSE),Parameters!$D$11:$W$20,16,FALSE) -> 1.421428571 | T31: =VLOOKUP(VLOOKUP($D31,Parameters!$D$316:$H$462,T$9,FALSE),Parameters!$D$11:$W$20,17,FALSE) -> 0.6834003417 | U31: =VLOOKUP(VLOOKUP($D31,Parameters!$D$316:$H$462,U$9,FALSE),Parameters!$D$11:$W$20,18,FALSE) -> 0.93 | V31: =VLOOKUP(VLOOKUP($D31,Parameters!$D$316:$H$462,V$9,FALSE),Parameters!$D$11:$W$20,19,FALSE) -> 0.7484 | W31: =VLOOKUP(VLOOKUP($D31,Parameters!$D$316:$H$462,W$9,FALSE),Parameters!$D$11:$W$20,20,FALSE) -> 2.9936 | X31: =VLOOKUP(VLOOKUP($D31,Parameters!$D$316:$H$462,X$9,FALSE),Parameters!$D$11:$X$20,21,FALSE) -> 2.132142857
D32: Bahrain | E32: =VLOOKUP(VLOOKUP($D32,Parameters!$D$316:$H$462,E$9,FALSE),Parameters!$D$11:$W$20,2,FALSE) -> 0.7484 | F32: =VLOOKUP(VLOOKUP($D32,Parameters!$D$316:$H$462,F$9,FALSE),Parameters!$D$11:$W$20,3,FALSE) -> 1.0251 | G32: =VLOOKUP(VLOOKUP($D32,Parameters!$D$316:$H$462,G$9,FALSE),Parameters!$D$11:$W$20,4,FALSE) -> 1.421428571 | H32: =VLOOKUP(VLOOKUP($D32,Parameters!$D$316:$H$462,H$9,FALSE),Parameters!$D$11:$W$20,5,FALSE) -> 1.421428571 | I32: =VLOOKUP(VLOOKUP($D32,Parameters!$D$316:$H$462,I$9,FALSE),Parameters!$D$11:$W$20,6,FALSE) -> 1.421428571 | J32: =VLOOKUP(VLOOKUP($D32,Parameters!$D$316:$H$462,J$9,FALSE),Parameters!$D$11:$W$20,7,FALSE) -> 1.421428571 | K32: =VLOOKUP(VLOOKUP($D32,Parameters!$D$316:$H$462,K$9,FALSE),Parameters!$D$11:$W$20,8,FALSE) -> 1.421428571 | L32: =VLOOKUP(VLOOKUP($D32,Parameters!$D$316:$H$462,L$9,FALSE),Parameters!$D$11:$W$20,9,FALSE) -> 1.421428571 | M32: =VLOOKUP(VLOOKUP($D32,Parameters!$D$316:$H$462,M$9,FALSE),Parameters!$D$11:$W$20,10,FALSE) -> 4.264285714 | N32: =VLOOKUP(VLOOKUP($D32,Parameters!$D$316:$H$462,N$9,FALSE),Parameters!$D$11:$W$20,11,FALSE) -> 1.421428571 | O32: =VLOOKUP(VLOOKUP($D32,Parameters!$D$316:$H$462,O$9,FALSE),Parameters!$D$11:$W$20,12,FALSE) -> 1.755 | P32: =VLOOKUP(VLOOKUP($D32,Parameters!$D$316:$H$462,P$9,FALSE),Parameters!$D$11:$W$20,13,FALSE) -> 1.421428571 | Q32: =VLOOKUP(VLOOKUP($D32,Parameters!$D$316:$H$462,Q$9,FALSE),Parameters!$D$11:$W$20,14,FALSE) -> 1.421428571 | R32: =VLOOKUP(VLOOKUP($D32,Parameters!$D$316:$H$462,R$9,FALSE),Parameters!$D$11:$W$20,15,FALSE) -> 4.88 | S32: =VLOOKUP(VLOOKUP($D32,Parameters!$D$316:$H$462,S$9,FALSE),Parameters!$D$11:$W$20,16,FALSE) -> 1.421428571 | T32: =VLOOKUP(VLOOKUP($D32,Parameters!$D$316:$H$462,T$9,FALSE),Parameters!$D$11:$W$20,17,FALSE) -> 0.6834003417 | U32: =VLOOKUP(VLOOKUP($D32,Parameters!$D$316:$H$462,U$9,FALSE),Parameters!$D$11:$W$20,18,FALSE) -> 0.93 | V32: =VLOOKUP(VLOOKUP($D32,Parameters!$D$316:$H$462,V$9,FALSE),Parameters!$D$11:$W$20,19,FALSE) -> 0.7484 | W32: =VLOOKUP(VLOOKUP($D32,Parameters!$D$316:$H$462,W$9,FALSE),Parameters!$D$11:$W$20,20,FALSE) -> 2.9936 | X32: =VLOOKUP(VLOOKUP($D32,Parameters!$D$316:$H$462,X$9,FALSE),Parameters!$D$11:$X$20,21,FALSE) -> 2.132142857
D33: Bangladesh | E33: =VLOOKUP(VLOOKUP($D33,Parameters!$D$316:$H$462,E$9,FALSE),Parameters!$D$11:$W$20,2,FALSE) -> 1.1258 | F33: =VLOOKUP(VLOOKUP($D33,Parameters!$D$316:$H$462,F$9,FALSE),Parameters!$D$11:$W$20,3,FALSE) -> 1.9223 | G33: =VLOOKUP(VLOOKUP($D33,Parameters!$D$316:$H$462,G$9,FALSE),Parameters!$D$11:$W$20,4,FALSE) -> 1.942857143 | H33: =VLOOKUP(VLOOKUP($D33,Parameters!$D$316:$H$462,H$9,FALSE),Parameters!$D$11:$W$20,5,FALSE) -> 1.942857143 | I33: =VLOOKUP(VLOOKUP($D33,Parameters!$D$316:$H$462,I$9,FALSE),Parameters!$D$11:$W$20,6,FALSE) -> 1.942857143 | J33: =VLOOKUP(VLOOKUP($D33,Parameters!$D$316:$H$462,J$9,FALSE),Parameters!$D$11:$W$20,7,FALSE) -> 1.942857143 | K33: =VLOOKUP(VLOOKUP($D33,Parameters!$D$316:$H$462,K$9,FALSE),Parameters!$D$11:$W$20,8,FALSE) -> 1.942857143 | L33: =VLOOKUP(VLOOKUP($D33,Parameters!$D$316:$H$462,L$9,FALSE),Parameters!$D$11:$W$20,9,FALSE) -> 1.942857143 | M33: =VLOOKUP(VLOOKUP($D33,Parameters!$D$316:$H$462,M$9,FALSE),Parameters!$D$11:$W$20,10,FALSE) -> 5.82 | N33: =VLOOKUP(VLOOKUP($D33,Parameters!$D$316:$H$462,N$9,FALSE),Parameters!$D$11:$W$20,11,FALSE) -> 1.942857143 | O33: =VLOOKUP(VLOOKUP($D33,Parameters!$D$316:$H$462,O$9,FALSE),Parameters!$D$11:$W$20,12,FALSE) -> 2.3025 | P33: =VLOOKUP(VLOOKUP($D33,Parameters!$D$316:$H$462,P$9,FALSE),Parameters!$D$11:$W$20,13,FALSE) -> 1.942857143 | Q33: =VLOOKUP(VLOOKUP($D33,Parameters!$D$316:$H$462,Q$9,FALSE),Parameters!$D$11:$W$20,14,FALSE) -> 1.942857143 | R33: =VLOOKUP(VLOOKUP($D33,Parameters!$D$316:$H$462,R$9,FALSE),Parameters!$D$11:$W$20,15,FALSE) -> 7.35 | S33: =VLOOKUP(VLOOKUP($D33,Parameters!$D$316:$H$462,S$9,FALSE),Parameters!$D$11:$W$20,16,FALSE) -> 1.942857143 | T33: =VLOOKUP(VLOOKUP($D33,Parameters!$D$316:$H$462,T$9,FALSE),Parameters!$D$11:$W$20,17,FALSE) -> 1.281533974 | U33: =VLOOKUP(VLOOKUP($D33,Parameters!$D$316:$H$462,U$9,FALSE),Parameters!$D$11:$W$20,18,FALSE) -> 1.22 | V33: =VLOOKUP(VLOOKUP($D33,Parameters!$D$316:$H$462,V$9,FALSE),Parameters!$D$11:$W$20,19,FALSE) -> 1.1258 | W33: =VLOOKUP(VLOOKUP($D33,Parameters!$D$316:$H$462,W$9,FALSE),Parameters!$D$11:$W$20,20,FALSE) -> 4.5032 | X33: =VLOOKUP(VLOOKUP($D33,Parameters!$D$316:$H$462,X$9,FALSE),Parameters!$D$11:$X$20,21,FALSE) -> 2.914285714
D34: Barbados | E34: =VLOOKUP(VLOOKUP($D34,Parameters!$D$316:$H$462,E$9,FALSE),Parameters!$D$11:$W$20,2,FALSE) -> 1.3511 | F34: =VLOOKUP(VLOOKUP($D34,Parameters!$D$316:$H$462,F$9,FALSE),Parameters!$D$11:$W$20,3,FALSE) -> 2.4753 | G34: =VLOOKUP(VLOOKUP($D34,Parameters!$D$316:$H$462,G$9,FALSE),Parameters!$D$11:$W$20,4,FALSE) -> 2.25 | H34: =VLOOKUP(VLOOKUP($D34,Parameters!$D$316:$H$462,H$9,FALSE),Parameters!$D$11:$W$20,5,FALSE) -> 2.25 | I34: =VLOOKUP(VLOOKUP($D34,Parameters!$D$316:$H$462,I$9,FALSE),Parameters!$D$11:$W$20,6,FALSE) -> 2.25 | J34: =VLOOKUP(VLOOKUP($D34,Parameters!$D$316:$H$462,J$9,FALSE),Parameters!$D$11:$W$20,7,FALSE) -> 2.25 | K34: =VLOOKUP(VLOOKUP($D34,Parameters!$D$316:$H$462,K$9,FALSE),Parameters!$D$11:$W$20,8,FALSE) -> 2.25 | L34: =VLOOKUP(VLOOKUP($D34,Parameters!$D$316:$H$462,L$9,FALSE),Parameters!$D$11:$W$20,9,FALSE) -> 2.25 | M34: =VLOOKUP(VLOOKUP($D34,Parameters!$D$316:$H$462,M$9,FALSE),Parameters!$D$11:$W$20,10,FALSE) -> 6.75 | N34: =VLOOKUP(VLOOKUP($D34,Parameters!$D$316:$H$462,N$9,FALSE),Parameters!$D$11:$W$20,11,FALSE) -> 2.25 | O34: =VLOOKUP(VLOOKUP($D34,Parameters!$D$316:$H$462,O$9,FALSE),Parameters!$D$11:$W$20,12,FALSE) -> 2.625 | P34: =VLOOKUP(VLOOKUP($D34,Parameters!$D$316:$H$462,P$9,FALSE),Parameters!$D$11:$W$20,13,FALSE) -> 2.25 | Q34: =VLOOKUP(VLOOKUP($D34,Parameters!$D$316:$H$462,Q$9,FALSE),Parameters!$D$11:$W$20,14,FALSE) -> 2.25 | R34: =VLOOKUP(VLOOKUP($D34,Parameters!$D$316:$H$462,R$9,FALSE),Parameters!$D$11:$W$20,15,FALSE) -> 8.78 | S34: =VLOOKUP(VLOOKUP($D34,Parameters!$D$316:$H$462,S$9,FALSE),Parameters!$D$11:$W$20,16,FALSE) -> 2.25 | T34: =VLOOKUP(VLOOKUP($D34,Parameters!$D$316:$H$462,T$9,FALSE),Parameters!$D$11:$W$20,17,FALSE) -> 1.650200825 | U34: =VLOOKUP(VLOOKUP($D34,Parameters!$D$316:$H$462,U$9,FALSE),Parameters!$D$11:$W$20,18,FALSE) -> 1.39 | V34: =VLOOKUP(VLOOKUP($D34,Parameters!$D$316:$H$462,V$9,FALSE),Parameters!$D$11:$W$20,19,FALSE) -> 1.3511 | W34: =VLOOKUP(VLOOKUP($D34,Parameters!$D$316:$H$462,W$9,FALSE),Parameters!$D$11:$W$20,20,FALSE) -> 5.4044 | X34: =VLOOKUP(VLOOKUP($D34,Parameters!$D$316:$H$462,X$9,FALSE),Parameters!$D$11:$X$20,21,FALSE) -> 3.375
D35: Belarus | E35: =VLOOKUP(VLOOKUP($D35,Parameters!$D$316:$H$462,E$9,FALSE),Parameters!$D$11:$W$20,2,FALSE) -> 1.1258 | F35: =VLOOKUP(VLOOKUP($D35,Parameters!$D$316:$H$462,F$9,FALSE),Parameters!$D$11:$W$20,3,FALSE) -> 2.4753 | G35: =VLOOKUP(VLOOKUP($D35,Parameters!$D$316:$H$462,G$9,FALSE),Parameters!$D$11:$W$20,4,FALSE) -> 1.942857143 | H35: =VLOOKUP(VLOOKUP($D35,Parameters!$D$316:$H$462,H$9,FALSE),Parameters!$D$11:$W$20,5,FALSE) -> 1.942857143 | I35: =VLOOKUP(VLOOKUP($D35,Parameters!$D$316:$H$462,I$9,FALSE),Parameters!$D$11:$W$20,6,FALSE) -> 1.942857143 | J35: =VLOOKUP(VLOOKUP($D35,Parameters!$D$316:$H$462,J$9,FALSE),Parameters!$D$11:$W$20,7,FALSE) -> 1.942857143 | K35: =VLOOKUP(VLOOKUP($D35,Parameters!$D$316:$H$462,K$9,FALSE),Parameters!$D$11:$W$20,8,FALSE) -> 1.942857143 | L35: =VLOOKUP(VLOOKUP($D35,Parameters!$D$316:$H$462,L$9,FALSE),Parameters!$D$11:$W$20,9,FALSE) -> 1.942857143 | M35: =VLOOKUP(VLOOKUP($D35,Parameters!$D$316:$H$462,M$9,FALSE),Parameters!$D$11:$W$20,10,FALSE) -> 5.82 | N35: =VLOOKUP(VLOOKUP($D35,Parameters!$D$316:$H$462,N$9,FALSE),Parameters!$D$11:$W$20,11,FALSE) -> 1.942857143 | O35: =VLOOKUP(VLOOKUP($D35,Parameters!$D$316:$H$462,O$9,FALSE),Parameters!$D$11:$W$20,12,FALSE) -> 2.3025 | P35: =VLOOKUP(VLOOKUP($D35,Parameters!$D$316:$H$462,P$9,FALSE),Parameters!$D$11:$W$20,13,FALSE) -> 1.942857143 | Q35: =VLOOKUP(VLOOKUP($D35,Parameters!$D$316:$H$462,Q$9,FALSE),Parameters!$D$11:$W$20,14,FALSE) -> 1.942857143 | R35: =VLOOKUP(VLOOKUP($D35,Parameters!$D$316:$H$462,R$9,FALSE),Parameters!$D$11:$W$20,15,FALSE) -> 7.35 | S35: =VLOOKUP(VLOOKUP($D35,Parameters!$D$316:$H$462,S$9,FALSE),Parameters!$D$11:$W$20,16,FALSE) -> 1.942857143 | T35: =VLOOKUP(VLOOKUP($D35,Parameters!$D$316:$H$462,T$9,FALSE),Parameters!$D$11:$W$20,17,FALSE) -> 1.650200825 | U35: =VLOOKUP(VLOOKUP($D35,Parameters!$D$316:$H$462,U$9,FALSE),Parameters!$D$11:$W$20,18,FALSE) -> 1.22 | V35: =VLOOKUP(VLOOKUP($D35,Parameters!$D$316:$H$462,V$9,FALSE),Parameters!$D$11:$W$20,19,FALSE) -> 1.1258 | W35: =VLOOKUP(VLOOKUP($D35,Parameters!$D$316:$H$462,W$9,FALSE),Parameters!$D$11:$W$20,20,FALSE) -> 4.5032 | X35: =VLOOKUP(VLOOKUP($D35,Parameters!$D$316:$H$462,X$9,FALSE),Parameters!$D$11:$X$20,21,FALSE) -> 2.914285714
D36: Belgium | E36: =VLOOKUP(VLOOKUP($D36,Parameters!$D$316:$H$462,E$9,FALSE),Parameters!$D$11:$W$20,2,FALSE) -> 0.2319 | F36: =VLOOKUP(VLOOKUP($D36,Parameters!$D$316:$H$462,F$9,FALSE),Parameters!$D$11:$W$20,3,FALSE) -> 0.1716666667 | G36: =VLOOKUP(VLOOKUP($D36,Parameters!$D$316:$H$462,G$9,FALSE),Parameters!$D$11:$W$20,4,FALSE) -> 0.6595238095 | H36: =VLOOKUP(VLOOKUP($D36,Parameters!$D$316:$H$462,H$9,FALSE),Parameters!$D$11:$W$20,5,FALSE) -> 0.6595238095 | I36: =VLOOKUP(VLOOKUP($D36,Parameters!$D$316:$H$462,I$9,FALSE),Parameters!$D$11:$W$20,6,FALSE) -> 0.6595238095 | J36: =VLOOKUP(VLOOKUP($D36,Parameters!$D$316:$H$462,J$9,FALSE),Parameters!$D$11:$W$20,7,FALSE) -> 0.6595238095 | K36: =VLOOKUP(VLOOKUP($D36,Parameters!$D$316:$H$462,K$9,FALSE),Parameters!$D$11:$W$20,8,FALSE) -> 0.6595238095 | L36: =VLOOKUP(VLOOKUP($D36,Parameters!$D$316:$H$462,L$9,FALSE),Parameters!$D$11:$W$20,9,FALSE) -> 0.6595238095 | M36: =VLOOKUP(VLOOKUP($D36,Parameters!$D$316:$H$462,M$9,FALSE),Parameters!$D$11:$W$20,10,FALSE) -> 1.978571429 | N36: =VLOOKUP(VLOOKUP($D36,Parameters!$D$316:$H$462,N$9,FALSE),Parameters!$D$11:$W$20,11,FALSE) -> 0.6595238095 | O36: =VLOOKUP(VLOOKUP($D36,Parameters!$D$316:$H$462,O$9,FALSE),Parameters!$D$11:$W$20,12,FALSE) -> 0.955 | P36: =VLOOKUP(VLOOKUP($D36,Parameters!$D$316:$H$462,P$9,FALSE),Parameters!$D$11:$W$20,13,FALSE) -> 0.6595238095 | Q36: =VLOOKUP(VLOOKUP($D36,Parameters!$D$316:$H$462,Q$9,FALSE),Parameters!$D$11:$W$20,14,FALSE) -> 0.6595238095 | R36: =VLOOKUP(VLOOKUP($D36,Parameters!$D$316:$H$462,R$9,FALSE),Parameters!$D$11:$W$20,15,FALSE) -> 1.5 | S36: =VLOOKUP(VLOOKUP($D36,Parameters!$D$316:$H$462,S$9,FALSE),Parameters!$D$11:$W$20,16,FALSE) -> 0.6595238095 | T36: =VLOOKUP(VLOOKUP($D36,Parameters!$D$316:$H$462,T$9,FALSE),Parameters!$D$11:$W$20,17,FALSE) -> 0.1144444444 | U36: =VLOOKUP(VLOOKUP($D36,Parameters!$D$316:$H$462,U$9,FALSE),Parameters!$D$11:$W$20,18,FALSE) -> 0.51 | V36: =VLOOKUP(VLOOKUP($D36,Parameters!$D$316:$H$462,V$9,FALSE),Parameters!$D$11:$W$20,19,FALSE) -> 0.2319 | W36: =VLOOKUP(VLOOKUP($D36,Parameters!$D$316:$H$462,W$9,FALSE),Parameters!$D$11:$W$20,20,FALSE) -> 0.9276 | X36: =VLOOKUP(VLOOKUP($D36,Parameters!$D$316:$H$462,X$9,FALSE),Parameters!$D$11:$X$20,21,FALSE) -> 0.9892857143
D37: Belize | E37: =VLOOKUP(VLOOKUP($D37,Parameters!$D$316:$H$462,E$9,FALSE),Parameters!$D$11:$W$20,2,FALSE) -> 1.3511 | F37: =VLOOKUP(VLOOKUP($D37,Parameters!$D$316:$H$462,F$9,FALSE),Parameters!$D$11:$W$20,3,FALSE) -> 2.4753 | G37: =VLOOKUP(VLOOKUP($D37,Parameters!$D$316:$H$462,G$9,FALSE),Parameters!$D$11:$W$20,4,FALSE) -> 2.25 | H37: =VLOOKUP(VLOOKUP($D37,Parameters!$D$316:$H$462,H$9,FALSE),Parameters!$D$11:$W$20,5,FALSE) -> 2.25 | I37: =VLOOKUP(VLOOKUP($D37,Parameters!$D$316:$H$462,I$9,FALSE),Parameters!$D$11:$W$20,6,FALSE) -> 2.25 | J37: =VLOOKUP(VLOOKUP($D37,Parameters!$D$316:$H$462,J$9,FALSE),Parameters!$D$11:$W$20,7,FALSE) -> 2.25 | K37: =VLOOKUP(VLOOKUP($D37,Parameters!$D$316:$H$462,K$9,FALSE),Parameters!$D$11:$W$20,8,FALSE) -> 2.25 | L37: =VLOOKUP(VLOOKUP($D37,Parameters!$D$316:$H$462,L$9,FALSE),Parameters!$D$11:$W$20,9,FALSE) -> 2.25 | M37: =VLOOKUP(VLOOKUP($D37,Parameters!$D$316:$H$462,M$9,FALSE),Parameters!$D$11:$W$20,10,FALSE) -> 6.75 | N37: =VLOOKUP(VLOOKUP($D37,Parameters!$D$316:$H$462,N$9,FALSE),Parameters!$D$11:$W$20,11,FALSE) -> 2.25 | O37: =VLOOKUP(VLOOKUP($D37,Parameters!$D$316:$H$462,O$9,FALSE),Parameters!$D$11:$W$20,12,FALSE) -> 2.625 | P37: =VLOOKUP(VLOOKUP($D37,Parameters!$D$316:$H$462,P$9,FALSE),Parameters!$D$11:$W$20,13,FALSE) -> 2.25 | Q37: =VLOOKUP(VLOOKUP($D37,Parameters!$D$316:$H$462,Q$9,FALSE),Parameters!$D$11:$W$20,14,FALSE) -> 2.25 | R37: =VLOOKUP(VLOOKUP($D37,Parameters!$D$316:$H$462,R$9,FALSE),Parameters!$D$11:$W$20,15,FALSE) -> 8.78 | S37: =VLOOKUP(VLOOKUP($D37,Parameters!$D$316:$H$462,S$9,FALSE),Parameters!$D$11:$W$20,16,FALSE) -> 2.25 | T37: =VLOOKUP(VLOOKUP($D37,Parameters!$D$316:$H$462,T$9,FALSE),Parameters!$D$11:$W$20,17,FALSE) -> 1.650200825 | U37: =VLOOKUP(VLOOKUP($D37,Parameters!$D$316:$H$462,U$9,FALSE),Parameters!$D$11:$W$20,18,FALSE) -> 1.39 | V37: =VLOOKUP(VLOOKUP($D37,Parameters!$D$316:$H$462,V$9,FALSE),Parameters!$D$11:$W$20,19,FALSE) -> 1.3511 | W37: =VLOOKUP(VLOOKUP($D37,Parameters!$D$316:$H$462,W$9,FALSE),Parameters!$D$11:$W$20,20,FALSE) -> 5.4044 | X37: =VLOOKUP(VLOOKUP($D37,Parameters!$D$316:$H$462,X$9,FALSE),Parameters!$D$11:$X$20,21,FALSE) -> 3.375
D38: Bermuda | E38: =VLOOKUP(VLOOKUP($D38,Parameters!$D$316:$H$462,E$9,FALSE),Parameters!$D$11:$W$20,2,FALSE) -> 0.5963 | F38: =VLOOKUP(VLOOKUP($D38,Parameters!$D$316:$H$462,F$9,FALSE),Parameters!$D$11:$W$20,3,FALSE) -> 0.475 | G38: =VLOOKUP(VLOOKUP($D38,Parameters!$D$316:$H$462,G$9,FALSE),Parameters!$D$11:$W$20,4,FALSE) -> 1.207142857 | H38: =VLOOKUP(VLOOKUP($D38,Parameters!$D$316:$H$462,H$9,FALSE),Parameters!$D$11:$W$20,5,FALSE) -> 1.207142857 | I38: =VLOOKUP(VLOOKUP($D38,Parameters!$D$316:$H$462,I$9,FALSE),Parameters!$D$11:$W$20,6,FALSE) -> 1.207142857 | J38: =VLOOKUP(VLOOKUP($D38,Parameters!$D$316:$H$462,J$9,FALSE),Parameters!$D$11:$W$20,7,FALSE) -> 1.207142857 | K38: =VLOOKUP(VLOOKUP($D38,Parameters!$D$316:$H$462,K$9,FALSE),Parameters!$D$11:$W$20,8,FALSE) -> 1.207142857 | L38: =VLOOKUP(VLOOKUP($D38,Parameters!$D$316:$H$462,L$9,FALSE),Parameters!$D$11:$W$20,9,FALSE) -> 1.207142857 | M38: =VLOOKUP(VLOOKUP($D38,Parameters!$D$316:$H$462,M$9,FALSE),Parameters!$D$11:$W$20,10,FALSE) -> 3.63 | N38: =VLOOKUP(VLOOKUP($D38,Parameters!$D$316:$H$462,N$9,FALSE),Parameters!$D$11:$W$20,11,FALSE) -> 1.207142857 | O38: =VLOOKUP(VLOOKUP($D38,Parameters!$D$316:$H$462,O$9,FALSE),Parameters!$D$11:$W$20,12,FALSE) -> 1.53 | P38: =VLOOKUP(VLOOKUP($D38,Parameters!$D$316:$H$462,P$9,FALSE),Parameters!$D$11:$W$20,13,FALSE) -> 1.207142857 | Q38: =VLOOKUP(VLOOKUP($D38,Parameters!$D$316:$H$462,Q$9,FALSE),Parameters!$D$11:$W$20,14,FALSE) -> 1.207142857 | R38: =VLOOKUP(VLOOKUP($D38,Parameters!$D$316:$H$462,R$9,FALSE),Parameters!$D$11:$W$20,15,FALSE) -> 3.9 | S38: =VLOOKUP(VLOOKUP($D38,Parameters!$D$316:$H$462,S$9,FALSE),Parameters!$D$11:$W$20,16,FALSE) -> 1.207142857 | T38: =VLOOKUP(VLOOKUP($D38,Parameters!$D$316:$H$462,T$9,FALSE),Parameters!$D$11:$W$20,17,FALSE) -> 0.3166666667 | U38: =VLOOKUP(VLOOKUP($D38,Parameters!$D$316:$H$462,U$9,FALSE),Parameters!$D$11:$W$20,18,FALSE) -> 0.81 | V38: =VLOOKUP(VLOOKUP($D38,Parameters!$D$316:$H$462,V$9,FALSE),Parameters!$D$11:$W$20,19,FALSE) -> 0.5963 | W38: =VLOOKUP(VLOOKUP($D38,Parameters!$D$316:$H$462,W$9,FALSE),Parameters!$D$11:$W$20,20,FALSE) -> 2.3852 | X38: =VLOOKUP(VLOOKUP($D38,Parameters!$D$316:$H$462,X$9,FALSE),Parameters!$D$11:$X$20,21,FALSE) -> 1.810714286
D39: Bolivia | E39: =VLOOKUP(VLOOKUP($D39,Parameters!$D$316:$H$462,E$9,FALSE),Parameters!$D$11:$W$20,2,FALSE) -> 1.3511 | F39: =VLOOKUP(VLOOKUP($D39,Parameters!$D$316:$H$462,F$9,FALSE),Parameters!$D$11:$W$20,3,FALSE) -> 2.4753 | G39: =VLOOKUP(VLOOKUP($D39,Parameters!$D$316:$H$462,G$9,FALSE),Parameters!$D$11:$W$20,4,FALSE) -> 2.25 | H39: =VLOOKUP(VLOOKUP($D39,Parameters!$D$316:$H$462,H$9,FALSE),Parameters!$D$11:$W$20,5,FALSE) -> 2.25 | I39: =VLOOKUP(VLOOKUP($D39,Parameters!$D$316:$H$462,I$9,FALSE),Parameters!$D$11:$W$20,6,FALSE) -> 2.25 | J39: =VLOOKUP(VLOOKUP($D39,Parameters!$D$316:$H$462,J$9,FALSE),Parameters!$D$11:$W$20,7,FALSE) -> 2.25 | K39: =VLOOKUP(VLOOKUP($D39,Parameters!$D$316:$H$462,K$9,FALSE),Parameters!$D$11:$W$20,8,FALSE) -> 2.25 | L39: =VLOOKUP(VLOOKUP($D39,Parameters!$D$316:$H$462,L$9,FALSE),Parameters!$D$11:$W$20,9,FALSE) -> 2.25 | M39: =VLOOKUP(VLOOKUP($D39,Parameters!$D$316:$H$462,M$9,FALSE),Parameters!$D$11:$W$20,10,FALSE) -> 6.75 | N39: =VLOOKUP(VLOOKUP($D39,Parameters!$D$316:$H$462,N$9,FALSE),Parameters!$D$11:$W$20,11,FALSE) -> 2.25 | O39: =VLOOKUP(VLOOKUP($D39,Parameters!$D$316:$H$462,O$9,FALSE),Parameters!$D$11:$W$20,12,FALSE) -> 2.625 | P39: =VLOOKUP(VLOOKUP($D39,Parameters!$D$316:$H$462,P$9,FALSE),Parameters!$D$11:$W$20,13,FALSE) -> 2.25 | Q39: =VLOOKUP(VLOOKUP($D39,Parameters!$D$316:$H$462,Q$9,FALSE),Parameters!$D$11:$W$20,14,FALSE) -> 2.25 | R39: =VLOOKUP(VLOOKUP($D39,Parameters!$D$316:$H$462,R$9,FALSE),Parameters!$D$11:$W$20,15,FALSE) -> 8.78 | S39: =VLOOKUP(VLOOKUP($D39,Parameters!$D$316:$H$462,S$9,FALSE),Parameters!$D$11:$W$20,16,FALSE) -> 2.25 | T39: =VLOOKUP(VLOOKUP($D39,Parameters!$D$316:$H$462,T$9,FALSE),Parameters!$D$11:$W$20,17,FALSE) -> 1.650200825 | U39: =VLOOKUP(VLOOKUP($D39,Parameters!$D$316:$H$462,U$9,FALSE),Parameters!$D$11:$W$20,18,FALSE) -> 1.39 | V39: =VLOOKUP(VLOOKUP($D39,Parameters!$D$316:$H$462,V$9,FALSE),Parameters!$D$11:$W$20,19,FALSE) -> 1.3511 | W39: =VLOOKUP(VLOOKUP($D39,Parameters!$D$316:$H$462,W$9,FALSE),Parameters!$D$11:$W$20,20,FALSE) -> 5.4044 | X39: =VLOOKUP(VLOOKUP($D39,Parameters!$D$316:$H$462,X$9,FALSE),Parameters!$D$11:$X$20,21,FALSE) -> 3.375
D40: Bosnia and Herzegovina | E40: =VLOOKUP(VLOOKUP($D40,Parameters!$D$316:$H$462,E$9,FALSE),Parameters!$D$11:$W$20,2,FALSE) -> 0.9249 | F40: =VLOOKUP(VLOOKUP($D40,Parameters!$D$316:$H$462,F$9,FALSE),Parameters!$D$11:$W$20,3,FALSE) -> 1.4389 | G40: =VLOOKUP(VLOOKUP($D40,Parameters!$D$316:$H$462,G$9,FALSE),Parameters!$D$11:$W$20,4,FALSE) -> 1.666666667 | H40: =VLOOKUP(VLOOKUP($D40,Parameters!$D$316:$H$462,H$9,FALSE),Parameters!$D$11:$W$20,5,FALSE) -> 1.666666667 | I40: =VLOOKUP(VLOOKUP($D40,Parameters!$D$316:$H$462,I$9,FALSE),Parameters!$D$11:$W$20,6,FALSE) -> 1.666666667 | J40: =VLOOKUP(VLOOKUP($D40,Parameters!$D$316:$H$462,J$9,FALSE),Parameters!$D$11:$W$20,7,FALSE) -> 1.666666667 | K40: =VLOOKUP(VLOOKUP($D40,Parameters!$D$316:$H$462,K$9,FALSE),Parameters!$D$11:$W$20,8,FALSE) -> 1.666666667 | L40: =VLOOKUP(VLOOKUP($D40,Parameters!$D$316:$H$462,L$9,FALSE),Parameters!$D$11:$W$20,9,FALSE) -> 1.666666667 | M40: =VLOOKUP(VLOOKUP($D40,Parameters!$D$316:$H$462,M$9,FALSE),Parameters!$D$11:$W$20,10,FALSE) -> 5.01 | N40: =VLOOKUP(VLOOKUP($D40,Parameters!$D$316:$H$462,N$9,FALSE),Parameters!$D$11:$W$20,11,FALSE) -> 1.666666667 | O40: =VLOOKUP(VLOOKUP($D40,Parameters!$D$316:$H$462,O$9,FALSE),Parameters!$D$11:$W$20,12,FALSE) -> 2.0125 | P40: =VLOOKUP(VLOOKUP($D40,Parameters!$D$316:$H$462,P$9,FALSE),Parameters!$D$11:$W$20,13,FALSE) -> 1.666666667 | Q40: =VLOOKUP(VLOOKUP($D40,Parameters!$D$316:$H$462,Q$9,FALSE),Parameters!$D$11:$W$20,14,FALSE) -> 1.666666667 | R40: =VLOOKUP(VLOOKUP($D40,Parameters!$D$316:$H$462,R$9,FALSE),Parameters!$D$11:$W$20,15,FALSE) -> 5.98 | S40: =VLOOKUP(VLOOKUP($D40,Parameters!$D$316:$H$462,S$9,FALSE),Parameters!$D$11:$W$20,16,FALSE) -> 1.666666667 | T40: =VLOOKUP(VLOOKUP($D40,Parameters!$D$316:$H$462,T$9,FALSE),Parameters!$D$11:$W$20,17,FALSE) -> 0.9592671463 | U40: =VLOOKUP(VLOOKUP($D40,Parameters!$D$316:$H$462,U$9,FALSE),Parameters!$D$11:$W$20,18,FALSE) -> 1.07 | V40: =VLOOKUP(VLOOKUP($D40,Parameters!$D$316:$H$462,V$9,FALSE),Parameters!$D$11:$W$20,19,FALSE) -> 0.9249 | W40: =VLOOKUP(VLOOKUP($D40,Parameters!$D$316:$H$462,W$9,FALSE),Parameters!$D$11:$W$20,20,FALSE) -> 3.6996 | X40: =VLOOKUP(VLOOKUP($D40,Parameters!$D$316:$H$462,X$9,FALSE),Parameters!$D$11:$X$20,21,FALSE) -> 2.5
D41: Botswana | E41: =VLOOKUP(VLOOKUP($D41,Parameters!$D$316:$H$462,E$9,FALSE),Parameters!$D$11:$W$20,2,FALSE) -> 0.4686 | F41: =VLOOKUP(VLOOKUP($D41,Parameters!$D$316:$H$462,F$9,FALSE),Parameters!$D$11:$W$20,3,FALSE) -> 0.475 | G41: =VLOOKUP(VLOOKUP($D41,Parameters!$D$316:$H$462,G$9,FALSE),Parameters!$D$11:$W$20,4,FALSE) -> 1.023809524 | H41: =VLOOKUP(VLOOKUP($D41,Parameters!$D$316:$H$462,H$9,FALSE),Parameters!$D$11:$W$20,5,FALSE) -> 1.023809524 | I41: =VLOOKUP(VLOOKUP($D41,Parameters!$D$316:$H$462,I$9,FALSE),Parameters!$D$11:$W$20,6,FALSE) -> 1.023809524 | J41: =VLOOKUP(VLOOKUP($D41,Parameters!$D$316:$H$462,J$9,FALSE),Parameters!$D$11:$W$20,7,FALSE) -> 1.023809524 | K41: =VLOOKUP(VLOOKUP($D41,Parameters!$D$316:$H$462,K$9,FALSE),Parameters!$D$11:$W$20,8,FALSE) -> 1.023809524 | L41: =VLOOKUP(VLOOKUP($D41,Parameters!$D$316:$H$462,L$9,FALSE),Parameters!$D$11:$W$20,9,FALSE) -> 1.023809524 | M41: =VLOOKUP(VLOOKUP($D41,Parameters!$D$316:$H$462,M$9,FALSE),Parameters!$D$11:$W$20,10,FALSE) -> 3.071428571 | N41: =VLOOKUP(VLOOKUP($D41,Parameters!$D$316:$H$462,N$9,FALSE),Parameters!$D$11:$W$20,11,FALSE) -> 1.023809524 | O41: =VLOOKUP(VLOOKUP($D41,Parameters!$D$316:$H$462,O$9,FALSE),Parameters!$D$11:$W$20,12,FALSE) -> 1.3375 | P41: =VLOOKUP(VLOOKUP($D41,Parameters!$D$316:$H$462,P$9,FALSE),Parameters!$D$11:$W$20,13,FALSE) -> 1.023809524 | Q41: =VLOOKUP(VLOOKUP($D41,Parameters!$D$316:$H$462,Q$9,FALSE),Parameters!$D$11:$W$20,14,FALSE) -> 1.023809524 | R41: =VLOOKUP(VLOOKUP($D41,Parameters!$D$316:$H$462,R$9,FALSE),Parameters!$D$11:$W$20,15,FALSE) -> 3.06 | S41: =VLOOKUP(VLOOKUP($D41,Parameters!$D$316:$H$462,S$9,FALSE),Parameters!$D$11:$W$20,16,FALSE) -> 1.023809524 | T41: =VLOOKUP(VLOOKUP($D41,Parameters!$D$316:$H$462,T$9,FALSE),Parameters!$D$11:$W$20,17,FALSE) -> 0.3166666667 | U41: =VLOOKUP(VLOOKUP($D41,Parameters!$D$316:$H$462,U$9,FALSE),Parameters!$D$11:$W$20,18,FALSE) -> 0.71 | V41: =VLOOKUP(VLOOKUP($D41,Parameters!$D$316:$H$462,V$9,FALSE),Parameters!$D$11:$W$20,19,FALSE) -> 0.4686 | W41: =VLOOKUP(VLOOKUP($D41,Parameters!$D$316:$H$462,W$9,FALSE),Parameters!$D$11:$W$20,20,FALSE) -> 1.8744 | X41: =VLOOKUP(VLOOKUP($D41,Parameters!$D$316:$H$462,X$9,FALSE),Parameters!$D$11:$X$20,21,FALSE) -> 1.535714286
D42: Brazil | E42: =VLOOKUP(VLOOKUP($D42,Parameters!$D$316:$H$462,E$9,FALSE),Parameters!$D$11:$W$20,2,FALSE) -> 0.7484 | F42: =VLOOKUP(VLOOKUP($D42,Parameters!$D$316:$H$462,F$9,FALSE),Parameters!$D$11:$W$20,3,FALSE) -> 0.6809 | G42: =VLOOKUP(VLOOKUP($D42,Parameters!$D$316:$H$462,G$9,FALSE),Parameters!$D$11:$W$20,4,FALSE) -> 1.421428571 | H42: =VLOOKUP(VLOOKUP($D42,Parameters!$D$316:$H$462,H$9,FALSE),Parameters!$D$11:$W$20,5,FALSE) -> 1.421428571 | I42: =VLOOKUP(VLOOKUP($D42,Parameters!$D$316:$H$462,I$9,FALSE),Parameters!$D$11:$W$20,6,FALSE) -> 1.421428571 | J42: =VLOOKUP(VLOOKUP($D42,Parameters!$D$316:$H$462,J$9,FALSE),Parameters!$D$11:$W$20,7,FALSE) -> 1.421428571 | K42: =VLOOKUP(VLOOKUP($D42,Parameters!$D$316:$H$462,K$9,FALSE),Parameters!$D$11:$W$20,8,FALSE) -> 1.421428571 | L42: =VLOOKUP(VLOOKUP($D42,Parameters!$D$316:$H$462,L$9,FALSE),Parameters!$D$11:$W$20,9,FALSE) -> 1.421428571 | M42: =VLOOKUP(VLOOKUP($D42,Parameters!$D$316:$H$462,M$9,FALSE),Parameters!$D$11:$W$20,10,FALSE) -> 4.264285714 | N42: =VLOOKUP(VLOOKUP($D42,Parameters!$D$316:$H$462,N$9,FALSE),Parameters!$D$11:$W$20,11,FALSE) -> 1.421428571 | O42: =VLOOKUP(VLOOKUP($D42,Parameters!$D$316:$H$462,O$9,FALSE),Parameters!$D$11:$W$20,12,FALSE) -> 1.755 | P42: =VLOOKUP(VLOOKUP($D42,Parameters!$D$316:$H$462,P$9,FALSE),Parameters!$D$11:$W$20,13,FALSE) -> 1.421428571 | Q42: =VLOOKUP(VLOOKUP($D42,Parameters!$D$316:$H$462,Q$9,FALSE),Parameters!$D$11:$W$20,14,FALSE) -> 1.421428571 | R42: =VLOOKUP(VLOOKUP($D42,Parameters!$D$316:$H$462,R$9,FALSE),Parameters!$D$11:$W$20,15,FALSE) -> 4.88 | S42: =VLOOKUP(VLOOKUP($D42,Parameters!$D$316:$H$462,S$9,FALSE),Parameters!$D$11:$W$20,16,FALSE) -> 1.421428571 | T42: =VLOOKUP(VLOOKUP($D42,Parameters!$D$316:$H$462,T$9,FALSE),Parameters!$D$11:$W$20,17,FALSE) -> 0.4539335603 | U42: =VLOOKUP(VLOOKUP($D42,Parameters!$D$316:$H$462,U$9,FALSE),Parameters!$D$11:$W$20,18,FALSE) -> 0.93 | V42: =VLOOKUP(VLOOKUP($D42,Parameters!$D$316:$H$462,V$9,FALSE),Parameters!$D$11:$W$20,19,FALSE) -> 0.7484 | W42: =VLOOKUP(VLOOKUP($D42,Parameters!$D$316:$H$462,W$9,FALSE),Parameters!$D$11:$W$20,20,FALSE) -> 2.9936 | X42: =VLOOKUP(VLOOKUP($D42,Parameters!$D$316:$H$462,X$9,FALSE),Parameters!$D$11:$X$20,21,FALSE) -> 2.132142857
D43: Brunei Darussalam | E43: =VLOOKUP(VLOOKUP($D43,Parameters!$D$316:$H$462,E$9,FALSE),Parameters!$D$11:$W$20,2,FALSE) -> 0.3653 | F43: =VLOOKUP(VLOOKUP($D43,Parameters!$D$316:$H$462,F$9,FALSE),Parameters!$D$11:$W$20,3,FALSE) -> 0.6809 | G43: =VLOOKUP(VLOOKUP($D43,Parameters!$D$316:$H$462,G$9,FALSE),Parameters!$D$11:$W$20,4,FALSE) -> 0.8714285714 | H43: =VLOOKUP(VLOOKUP($D43,Parameters!$D$316:$H$462,H$9,FALSE),Parameters!$D$11:$W$20,5,FALSE) -> 0.8714285714 | I43: =VLOOKUP(VLOOKUP($D43,Parameters!$D$316:$H$462,I$9,FALSE),Parameters!$D$11:$W$20,6,FALSE) -> 0.8714285714 | J43: =VLOOKUP(VLOOKUP($D43,Parameters!$D$316:$H$462,J$9,FALSE),Parameters!$D$11:$W$20,7,FALSE) -> 0.8714285714 | K43: =VLOOKUP(VLOOKUP($D43,Parameters!$D$316:$H$462,K$9,FALSE),Parameters!$D$11:$W$20,8,FALSE) -> 0.8714285714 | L43: =VLOOKUP(VLOOKUP($D43,Parameters!$D$316:$H$462,L$9,FALSE),Parameters!$D$11:$W$20,9,FALSE) -> 0.8714285714 | M43: =VLOOKUP(VLOOKUP($D43,Parameters!$D$316:$H$462,M$9,FALSE),Parameters!$D$11:$W$20,10,FALSE) -> 2.614285714 | N43: =VLOOKUP(VLOOKUP($D43,Parameters!$D$316:$H$462,N$9,FALSE),Parameters!$D$11:$W$20,11,FALSE) -> 0.8714285714 | O43: =VLOOKUP(VLOOKUP($D43,Parameters!$D$316:$H$462,O$9,FALSE),Parameters!$D$11:$W$20,12,FALSE) -> 1.1775 | P43: =VLOOKUP(VLOOKUP($D43,Parameters!$D$316:$H$462,P$9,FALSE),Parameters!$D$11:$W$20,13,FALSE) -> 0.8714285714 | Q43: =VLOOKUP(VLOOKUP($D43,Parameters!$D$316:$H$462,Q$9,FALSE),Parameters!$D$11:$W$20,14,FALSE) -> 0.8714285714 | R43: =VLOOKUP(VLOOKUP($D43,Parameters!$D$316:$H$462,R$9,FALSE),Parameters!$D$11:$W$20,15,FALSE) -> 2.41 | S43: =VLOOKUP(VLOOKUP($D43,Parameters!$D$316:$H$462,S$9,FALSE),Parameters!$D$11:$W$20,16,FALSE) -> 0.8714285714 | T43: =VLOOKUP(VLOOKUP($D43,Parameters!$D$316:$H$462,T$9,FALSE),Parameters!$D$11:$W$20,17,FALSE) -> 0.4539335603 | U43: =VLOOKUP(VLOOKUP($D43,Parameters!$D$316:$H$462,U$9,FALSE),Parameters!$D$11:$W$20,18,FALSE) -> 0.63 | V43: =VLOOKUP(VLOOKUP($D43,Parameters!$D$316:$H$462,V$9,FALSE),Parameters!$D$11:$W$20,19,FALSE) -> 0.3653 | W43: =VLOOKUP(VLOOKUP($D43,Parameters!$D$316:$H$462,W$9,FALSE),Parameters!$D$11:$W$20,20,FALSE) -> 1.4612 | X43: =VLOOKUP(VLOOKUP($D43,Parameters!$D$316:$H$462,X$9,FALSE),Parameters!$D$11:$X$20,21,FALSE) -> 1.307142857
D44: Bulgaria | E44: =VLOOKUP(VLOOKUP($D44,Parameters!$D$316:$H$462,E$9,FALSE),Parameters!$D$11:$W$20,2,FALSE) -> 0.7484 | F44: =VLOOKUP(VLOOKUP($D44,Parameters!$D$316:$H$462,F$9,FALSE),Parameters!$D$11:$W$20,3,FALSE) -> 1.0251 | G44: =VLOOKUP(VLOOKUP($D44,Parameters!$D$316:$H$462,G$9,FALSE),Parameters!$D$11:$W$20,4,FALSE) -> 1.421428571 | H44: =VLOOKUP(VLOOKUP($D44,Parameters!$D$316:$H$462,H$9,FALSE),Parameters!$D$11:$W$20,5,FALSE) -> 1.421428571 | I44: =VLOOKUP(VLOOKUP($D44,Parameters!$D$316:$H$462,I$9,FALSE),Parameters!$D$11:$W$20,6,FALSE) -> 1.421428571 | J44: =VLOOKUP(VLOOKUP($D44,Parameters!$D$316:$H$462,J$9,FALSE),Parameters!$D$11:$W$20,7,FALSE) -> 1.421428571 | K44: =VLOOKUP(VLOOKUP($D44,Parameters!$D$316:$H$462,K$9,FALSE),Parameters!$D$11:$W$20,8,FALSE) -> 1.421428571 | L44: =VLOOKUP(VLOOKUP($D44,Parameters!$D$316:$H$462,L$9,FALSE),Parameters!$D$11:$W$20,9,FALSE) -> 1.421428571 | M44: =VLOOKUP(VLOOKUP($D44,Parameters!$D$316:$H$462,M$9,FALSE),Parameters!$D$11:$W$20,10,FALSE) -> 4.264285714 | N44: =VLOOKUP(VLOOKUP($D44,Parameters!$D$316:$H$462,N$9,FALSE),Parameters!$D$11:$W$20,11,FALSE) -> 1.421428571 | O44: =VLOOKUP(VLOOKUP($D44,Parameters!$D$316:$H$462,O$9,FALSE),Parameters!$D$11:$W$20,12,FALSE) -> 1.755 | P44: =VLOOKUP(VLOOKUP($D44,Parameters!$D$316:$H$462,P$9,FALSE),Parameters!$D$11:$W$20,13,FALSE) -> 1.421428571 | Q44: =VLOOKUP(VLOOKUP($D44,Parameters!$D$316:$H$462,Q$9,FALSE),Parameters!$D$11:$W$20,14,FALSE) -> 1.421428571 | R44: =VLOOKUP(VLOOKUP($D44,Parameters!$D$316:$H$462,R$9,FALSE),Parameters!$D$11:$W$20,15,FALSE) -> 4.88 | S44: =VLOOKUP(VLOOKUP($D44,Parameters!$D$316:$H$462,S$9,FALSE),Parameters!$D$11:$W$20,16,FALSE) -> 1.421428571 | T44: =VLOOKUP(VLOOKUP($D44,Parameters!$D$316:$H$462,T$9,FALSE),Parameters!$D$11:$W$20,17,FALSE) -> 0.6834003417 | U44: =VLOOKUP(VLOOKUP($D44,Parameters!$D$316:$H$462,U$9,FALSE),Parameters!$D$11:$W$20,18,FALSE) -> 0.93 | V44: =VLOOKUP(VLOOKUP($D44,Parameters!$D$316:$H$462,V$9,FALSE),Parameters!$D$11:$W$20,19,FALSE) -> 0.7484 | W44: =VLOOKUP(VLOOKUP($D44,Parameters!$D$316:$H$462,W$9,FALSE),Parameters!$D$11:$W$20,20,FALSE) -> 2.9936 | X44: =VLOOKUP(VLOOKUP($D44,Parameters!$D$316:$H$462,X$9,FALSE),Parameters!$D$11:$X$20,21,FALSE) -> 2.132142857
D45: Burkina Faso | E45: =VLOOKUP(VLOOKUP($D45,Parameters!$D$316:$H$462,E$9,FALSE),Parameters!$D$11:$W$20,2,FALSE) -> 1.3511 | F45: =VLOOKUP(VLOOKUP($D45,Parameters!$D$316:$H$462,F$9,FALSE),Parameters!$D$11:$W$20,3,FALSE) -> 2.4753 | G45: =VLOOKUP(VLOOKUP($D45,Parameters!$D$316:$H$462,G$9,FALSE),Parameters!$D$11:$W$20,4,FALSE) -> 2.25 | H45: =VLOOKUP(VLOOKUP($D45,Parameters!$D$316:$H$462,H$9,FALSE),Parameters!$D$11:$W$20,5,FALSE) -> 2.25 | I45: =VLOOKUP(VLOOKUP($D45,Parameters!$D$316:$H$462,I$9,FALSE),Parameters!$D$11:$W$20,6,FALSE) -> 2.25 | J45: =VLOOKUP(VLOOKUP($D45,Parameters!$D$316:$H$462,J$9,FALSE),Parameters!$D$11:$W$20,7,FALSE) -> 2.25 | K45: =VLOOKUP(VLOOKUP($D45,Parameters!$D$316:$H$462,K$9,FALSE),Parameters!$D$11:$W$20,8,FALSE) -> 2.25 | L45: =VLOOKUP(VLOOKUP($D45,Parameters!$D$316:$H$462,L$9,FALSE),Parameters!$D$11:$W$20,9,FALSE) -> 2.25 | M45: =VLOOKUP(VLOOKUP($D45,Parameters!$D$316:$H$462,M$9,FALSE),Parameters!$D$11:$W$20,10,FALSE) -> 6.75 | N45: =VLOOKUP(VLOOKUP($D45,Parameters!$D$316:$H$462,N$9,FALSE),Parameters!$D$11:$W$20,11,FALSE) -> 2.25 | O45: =VLOOKUP(VLOOKUP($D45,Parameters!$D$316:$H$462,O$9,FALSE),Parameters!$D$11:$W$20,12,FALSE) -> 2.625 | P45: =VLOOKUP(VLOOKUP($D45,Parameters!$D$316:$H$462,P$9,FALSE),Parameters!$D$11:$W$20,13,FALSE) -> 2.25 | Q45: =VLOOKUP(VLOOKUP($D45,Parameters!$D$316:$H$462,Q$9,FALSE),Parameters!$D$11:$W$20,14,FALSE) -> 2.25 | R45: =VLOOKUP(VLOOKUP($D45,Parameters!$D$316:$H$462,R$9,FALSE),Parameters!$D$11:$W$20,15,FALSE) -> 8.78 | S45: =VLOOKUP(VLOOKUP($D45,Parameters!$D$316:$H$462,S$9,FALSE),Parameters!$D$11:$W$20,16,FALSE) -> 2.25 | T45: =VLOOKUP(VLOOKUP($D45,Parameters!$D$316:$H$462,T$9,FALSE),Parameters!$D$11:$W$20,17,FALSE) -> 1.650200825 | U45: =VLOOKUP(VLOOKUP($D45,Parameters!$D$316:$H$462,U$9,FALSE),Parameters!$D$11:$W$20,18,FALSE) -> 1.39 | V45: =VLOOKUP(VLOOKUP($D45,Parameters!$D$316:$H$462,V$9,FALSE),Parameters!$D$11:$W$20,19,FALSE) -> 1.3511 | W45: =VLOOKUP(VLOOKUP($D45,Parameters!$D$316:$H$462,W$9,FALSE),Parameters!$D$11:$W$20,20,FALSE) -> 5.4044 | X45: =VLOOKUP(VLOOKUP($D45,Parameters!$D$316:$H$462,X$9,FALSE),Parameters!$D$11:$X$20,21,FALSE) -> 3.375
D46: Cambodia | E46: =VLOOKUP(VLOOKUP($D46,Parameters!$D$316:$H$462,E$9,FALSE),Parameters!$D$11:$W$20,2,FALSE) -> 1.1258 | F46: =VLOOKUP(VLOOKUP($D46,Parameters!$D$316:$H$462,F$9,FALSE),Parameters!$D$11:$W$20,3,FALSE) -> 1.9223 | G46: =VLOOKUP(VLOOKUP($D46,Parameters!$D$316:$H$462,G$9,FALSE),Parameters!$D$11:$W$20,4,FALSE) -> 1.942857143 | H46: =VLOOKUP(VLOOKUP($D46,Parameters!$D$316:$H$462,H$9,FALSE),Parameters!$D$11:$W$20,5,FALSE) -> 1.942857143 | I46: =VLOOKUP(VLOOKUP($D46,Parameters!$D$316:$H$462,I$9,FALSE),Parameters!$D$11:$W$20,6,FALSE) -> 1.942857143 | J46: =VLOOKUP(VLOOKUP($D46,Parameters!$D$316:$H$462,J$9,FALSE),Parameters!$D$11:$W$20,7,FALSE) -> 1.942857143 | K46: =VLOOKUP(VLOOKUP($D46,Parameters!$D$316:$H$462,K$9,FALSE),Parameters!$D$11:$W$20,8,FALSE) -> 1.942857143 | L46: =VLOOKUP(VLOOKUP($D46,Parameters!$D$316:$H$462,L$9,FALSE),Parameters!$D$11:$W$20,9,FALSE) -> 1.942857143 | M46: =VLOOKUP(VLOOKUP($D46,Parameters!$D$316:$H$462,M$9,FALSE),Parameters!$D$11:$W$20,10,FALSE) -> 5.82 | N46: =VLOOKUP(VLOOKUP($D46,Parameters!$D$316:$H$462,N$9,FALSE),Parameters!$D$11:$W$20,11,FALSE) -> 1.942857143 | O46: =VLOOKUP(VLOOKUP($D46,Parameters!$D$316:$H$462,O$9,FALSE),Parameters!$D$11:$W$20,12,FALSE) -> 2.3025 | P46: =VLOOKUP(VLOOKUP($D46,Parameters!$D$316:$H$462,P$9,FALSE),Parameters!$D$11:$W$20,13,FALSE) -> 1.942857143 | Q46: =VLOOKUP(VLOOKUP($D46,Parameters!$D$316:$H$462,Q$9,FALSE),Parameters!$D$11:$W$20,14,FALSE) -> 1.942857143 | R46: =VLOOKUP(VLOOKUP($D46,Parameters!$D$316:$H$462,R$9,FALSE),Parameters!$D$11:$W$20,15,FALSE) -> 7.35 | S46: =VLOOKUP(VLOOKUP($D46,Parameters!$D$316:$H$462,S$9,FALSE),Parameters!$D$11:$W$20,16,FALSE) -> 1.942857143 | T46: =VLOOKUP(VLOOKUP($D46,Parameters!$D$316:$H$462,T$9,FALSE),Parameters!$D$11:$W$20,17,FALSE) -> 1.281533974 | U46: =VLOOKUP(VLOOKUP($D46,Parameters!$D$316:$H$462,U$9,FALSE),Parameters!$D$11:$W$20,18,FALSE) -> 1.22 | V46: =VLOOKUP(VLOOKUP($D46,Parameters!$D$316:$H$462,V$9,FALSE),Parameters!$D$11:$W$20,19,FALSE) -> 1.1258 | W46: =VLOOKUP(VLOOKUP($D46,Parameters!$D$316:$H$462,W$9,FALSE),Parameters!$D$11:$W$20,20,FALSE) -> 4.5032 | X46: =VLOOKUP(VLOOKUP($D46,Parameters!$D$316:$H$462,X$9,FALSE),Parameters!$D$11:$X$20,21,FALSE) -> 2.914285714
D47: Cameroon | E47: =VLOOKUP(VLOOKUP($D47,Parameters!$D$316:$H$462,E$9,FALSE),Parameters!$D$11:$W$20,2,FALSE) -> 1.3511 | F47: =VLOOKUP(VLOOKUP($D47,Parameters!$D$316:$H$462,F$9,FALSE),Parameters!$D$11:$W$20,3,FALSE) -> 2.4753 | G47: =VLOOKUP(VLOOKUP($D47,Parameters!$D$316:$H$462,G$9,FALSE),Parameters!$D$11:$W$20,4,FALSE) -> 2.25 | H47: =VLOOKUP(VLOOKUP($D47,Parameters!$D$316:$H$462,H$9,FALSE),Parameters!$D$11:$W$20,5,FALSE) -> 2.25 | I47: =VLOOKUP(VLOOKUP($D47,Parameters!$D$316:$H$462,I$9,FALSE),Parameters!$D$11:$W$20,6,FALSE) -> 2.25 | J47: =VLOOKUP(VLOOKUP($D47,Parameters!$D$316:$H$462,J$9,FALSE),Parameters!$D$11:$W$20,7,FALSE) -> 2.25 | K47: =VLOOKUP(VLOOKUP($D47,Parameters!$D$316:$H$462,K$9,FALSE),Parameters!$D$11:$W$20,8,FALSE) -> 2.25 | L47: =VLOOKUP(VLOOKUP($D47,Parameters!$D$316:$H$462,L$9,FALSE),Parameters!$D$11:$W$20,9,FALSE) -> 2.25 | M47: =VLOOKUP(VLOOKUP($D47,Parameters!$D$316:$H$462,M$9,FALSE),Parameters!$D$11:$W$20,10,FALSE) -> 6.75 | N47: =VLOOKUP(VLOOKUP($D47,Parameters!$D$316:$H$462,N$9,FALSE),Parameters!$D$11:$W$20,11,FALSE) -> 2.25 | O47: =VLOOKUP(VLOOKUP($D47,Parameters!$D$316:$H$462,O$9,FALSE),Parameters!$D$11:$W$20,12,FALSE) -> 2.625 | P47: =VLOOKUP(VLOOKUP($D47,Parameters!$D$316:$H$462,P$9,FALSE),Parameters!$D$11:$W$20,13,FALSE) -> 2.25 | Q47: =VLOOKUP(VLOOKUP($D47,Parameters!$D$316:$H$462,Q$9,FALSE),Parameters!$D$11:$W$20,14,FALSE) -> 2.25 | R47: =VLOOKUP(VLOOKUP($D47,Parameters!$D$316:$H$462,R$9,FALSE),Parameters!$D$11:$W$20,15,FALSE) -> 8.78 | S47: =VLOOKUP(VLOOKUP($D47,Parameters!$D$316:$H$462,S$9,FALSE),Parameters!$D$11:$W$20,16,FALSE) -> 2.25 | T47: =VLOOKUP(VLOOKUP($D47,Parameters!$D$316:$H$462,T$9,FALSE),Parameters!$D$11:$W$20,17,FALSE) -> 1.650200825 | U47: =VLOOKUP(VLOOKUP($D47,Parameters!$D$316:$H$462,U$9,FALSE),Parameters!$D$11:$W$20,18,FALSE) -> 1.39 | V47: =VLOOKUP(VLOOKUP($D47,Parameters!$D$316:$H$462,V$9,FALSE),Parameters!$D$11:$W$20,19,FALSE) -> 1.3511 | W47: =VLOOKUP(VLOOKUP($D47,Parameters!$D$316:$H$462,W$9,FALSE),Parameters!$D$11:$W$20,20,FALSE) -> 5.4044 | X47: =VLOOKUP(VLOOKUP($D47,Parameters!$D$316:$H$462,X$9,FALSE),Parameters!$D$11:$X$20,21,FALSE) -> 3.375
D48: Canada | E48: =VLOOKUP(VLOOKUP($D48,Parameters!$D$316:$H$462,E$9,FALSE),Parameters!$D$11:$W$20,2,FALSE) -> 0.2864 | F48: =VLOOKUP(VLOOKUP($D48,Parameters!$D$316:$H$462,F$9,FALSE),Parameters!$D$11:$W$20,3,FALSE) -> 0.1716666667 | G48: =VLOOKUP(VLOOKUP($D48,Parameters!$D$316:$H$462,G$9,FALSE),Parameters!$D$11:$W$20,4,FALSE) -> 0.75 | H48: =VLOOKUP(VLOOKUP($D48,Parameters!$D$316:$H$462,H$9,FALSE),Parameters!$D$11:$W$20,5,FALSE) -> 0.75 | I48: =VLOOKUP(VLOOKUP($D48,Parameters!$D$316:$H$462,I$9,FALSE),Parameters!$D$11:$W$20,6,FALSE) -> 0.75 | J48: =VLOOKUP(VLOOKUP($D48,Parameters!$D$316:$H$462,J$9,FALSE),Parameters!$D$11:$W$20,7,FALSE) -> 0.75 | K48: =VLOOKUP(VLOOKUP($D48,Parameters!$D$316:$H$462,K$9,FALSE),Parameters!$D$11:$W$20,8,FALSE) -> 0.75 | L48: =VLOOKUP(VLOOKUP($D48,Parameters!$D$316:$H$462,L$9,FALSE),Parameters!$D$11:$W$20,9,FALSE) -> 0.75 | M48: =VLOOKUP(VLOOKUP($D48,Parameters!$D$316:$H$462,M$9,FALSE),Parameters!$D$11:$W$20,10,FALSE) -> 2.25 | N48: =VLOOKUP(VLOOKUP($D48,Parameters!$D$316:$H$462,N$9,FALSE),Parameters!$D$11:$W$20,11,FALSE) -> 0.75 | O48: =VLOOKUP(VLOOKUP($D48,Parameters!$D$316:$H$462,O$9,FALSE),Parameters!$D$11:$W$20,12,FALSE) -> 1.05 | P48: =VLOOKUP(VLOOKUP($D48,Parameters!$D$316:$H$462,P$9,FALSE),Parameters!$D$11:$W$20,13,FALSE) -> 0.75 | Q48: =VLOOKUP(VLOOKUP($D48,Parameters!$D$316:$H$462,Q$9,FALSE),Parameters!$D$11:$W$20,14,FALSE) -> 0.75 | R48: =VLOOKUP(VLOOKUP($D48,Parameters!$D$316:$H$462,R$9,FALSE),Parameters!$D$11:$W$20,15,FALSE) -> 1.89 | S48: =VLOOKUP(VLOOKUP($D48,Parameters!$D$316:$H$462,S$9,FALSE),Parameters!$D$11:$W$20,16,FALSE) -> 0.75 | T48: =VLOOKUP(VLOOKUP($D48,Parameters!$D$316:$H$462,T$9,FALSE),Parameters!$D$11:$W$20,17,FALSE) -> 0.1144444444 | U48: =VLOOKUP(VLOOKUP($D48,Parameters!$D$316:$H$462,U$9,FALSE),Parameters!$D$11:$W$20,18,FALSE) -> 0.56 | V48: =VLOOKUP(VLOOKUP($D48,Parameters!$D$316:$H$462,V$9,FALSE),Parameters!$D$11:$W$20,19,FALSE) -> 0.2864 | W48: =VLOOKUP(VLOOKUP($D48,Parameters!$D$316:$H$462,W$9,FALSE),Parameters!$D$11:$W$20,20,FALSE) -> 1.1456 | X48: =VLOOKUP(VLOOKUP($D48,Parameters!$D$316:$H$462,X$9,FALSE),Parameters!$D$11:$X$20,21,FALSE) -> 1.125
D49: Cape Verde | E49: =VLOOKUP(VLOOKUP($D49,Parameters!$D$316:$H$462,E$9,FALSE),Parameters!$D$11:$W$20,2,FALSE) -> 1.3511 | F49: =VLOOKUP(VLOOKUP($D49,Parameters!$D$316:$H$462,F$9,FALSE),Parameters!$D$11:$W$20,3,FALSE) -> 2.4753 | G49: =VLOOKUP(VLOOKUP($D49,Parameters!$D$316:$H$462,G$9,FALSE),Parameters!$D$11:$W$20,4,FALSE) -> 2.25 | H49: =VLOOKUP(VLOOKUP($D49,Parameters!$D$316:$H$462,H$9,FALSE),Parameters!$D$11:$W$20,5,FALSE) -> 2.25 | I49: =VLOOKUP(VLOOKUP($D49,Parameters!$D$316:$H$462,I$9,FALSE),Parameters!$D$11:$W$20,6,FALSE) -> 2.25 | J49: =VLOOKUP(VLOOKUP($D49,Parameters!$D$316:$H$462,J$9,FALSE),Parameters!$D$11:$W$20,7,FALSE) -> 2.25 | K49: =VLOOKUP(VLOOKUP($D49,Parameters!$D$316:$H$462,K$9,FALSE),Parameters!$D$11:$W$20,8,FALSE) -> 2.25 | L49: =VLOOKUP(VLOOKUP($D49,Parameters!$D$316:$H$462,L$9,FALSE),Parameters!$D$11:$W$20,9,FALSE) -> 2.25 | M49: =VLOOKUP(VLOOKUP($D49,Parameters!$D$316:$H$462,M$9,FALSE),Parameters!$D$11:$W$20,10,FALSE) -> 6.75 | N49: =VLOOKUP(VLOOKUP($D49,Parameters!$D$316:$H$462,N$9,FALSE),Parameters!$D$11:$W$20,11,FALSE) -> 2.25 | O49: =VLOOKUP(VLOOKUP($D49,Parameters!$D$316:$H$462,O$9,FALSE),Parameters!$D$11:$W$20,12,FALSE) -> 2.625 | P49: =VLOOKUP(VLOOKUP($D49,Parameters!$D$316:$H$462,P$9,FALSE),Parameters!$D$11:$W$20,13,FALSE) -> 2.25 | Q49: =VLOOKUP(VLOOKUP($D49,Parameters!$D$316:$H$462,Q$9,FALSE),Parameters!$D$11:$W$20,14,FALSE) -> 2.25 | R49: =VLOOKUP(VLOOKUP($D49,Parameters!$D$316:$H$462,R$9,FALSE),Parameters!$D$11:$W$20,15,FALSE) -> 8.78 | S49: =VLOOKUP(VLOOKUP($D49,Parameters!$D$316:$H$462,S$9,FALSE),Parameters!$D$11:$W$20,16,FALSE) -> 2.25 | T49: =VLOOKUP(VLOOKUP($D49,Parameters!$D$316:$H$462,T$9,FALSE),Parameters!$D$11:$W$20,17,FALSE) -> 1.650200825 | U49: =VLOOKUP(VLOOKUP($D49,Parameters!$D$316:$H$462,U$9,FALSE),Parameters!$D$11:$W$20,18,FALSE) -> 1.39 | V49: =VLOOKUP(VLOOKUP($D49,Parameters!$D$316:$H$462,V$9,FALSE),Parameters!$D$11:$W$20,19,FALSE) -> 1.3511 | W49: =VLOOKUP(VLOOKUP($D49,Parameters!$D$316:$H$462,W$9,FALSE),Parameters!$D$11:$W$20,20,FALSE) -> 5.4044 | X49: =VLOOKUP(VLOOKUP($D49,Parameters!$D$316:$H$462,X$9,FALSE),Parameters!$D$11:$X$20,21,FALSE) -> 3.375
D50: Central America and Caribbean | E50: =VLOOKUP(VLOOKUP($D50,Parameters!$D$316:$H$462,E$9,FALSE),Parameters!$D$11:$W$20,2,FALSE) -> 0.9249 | F50: =VLOOKUP(VLOOKUP($D50,Parameters!$D$316:$H$462,F$9,FALSE),Parameters!$D$11:$W$20,3,FALSE) -> 1.4389 | G50: =VLOOKUP(VLOOKUP($D50,Parameters!$D$316:$H$462,G$9,FALSE),Parameters!$D$11:$W$20,4,FALSE) -> 1.666666667 | H50: =VLOOKUP(VLOOKUP($D50,Parameters!$D$316:$H$462,H$9,FALSE),Parameters!$D$11:$W$20,5,FALSE) -> 1.666666667 | I50: =VLOOKUP(VLOOKUP($D50,Parameters!$D$316:$H$462,I$9,FALSE),Parameters!$D$11:$W$20,6,FALSE) -> 1.666666667 | J50: =VLOOKUP(VLOOKUP($D50,Parameters!$D$316:$H$462,J$9,FALSE),Parameters!$D$11:$W$20,7,FALSE) -> 1.666666667 | K50: =VLOOKUP(VLOOKUP($D50,Parameters!$D$316:$H$462,K$9,FALSE),Parameters!$D$11:$W$20,8,FALSE) -> 1.666666667 | L50: =VLOOKUP(VLOOKUP($D50,Parameters!$D$316:$H$462,L$9,FALSE),Parameters!$D$11:$W$20,9,FALSE) -> 1.666666667 | M50: =VLOOKUP(VLOOKUP($D50,Parameters!$D$316:$H$462,M$9,FALSE),Parameters!$D$11:$W$20,10,FALSE) -> 5.01 | N50: =VLOOKUP(VLOOKUP($D50,Parameters!$D$316:$H$462,N$9,FALSE),Parameters!$D$11:$W$20,11,FALSE) -> 1.666666667 | O50: =VLOOKUP(VLOOKUP($D50,Parameters!$D$316:$H$462,O$9,FALSE),Parameters!$D$11:$W$20,12,FALSE) -> 2.0125 | P50: =VLOOKUP(VLOOKUP($D50,Parameters!$D$316:$H$462,P$9,FALSE),Parameters!$D$11:$W$20,13,FALSE) -> 1.666666667 | Q50: =VLOOKUP(VLOOKUP($D50,Parameters!$D$316:$H$462,Q$9,FALSE),Parameters!$D$11:$W$20,14,FALSE) -> 1.666666667 | R50: =VLOOKUP(VLOOKUP($D50,Parameters!$D$316:$H$462,R$9,FALSE),Parameters!$D$11:$W$20,15,FALSE) -> 5.98 | S50: =VLOOKUP(VLOOKUP($D50,Parameters!$D$316:$H$462,S$9,FALSE),Parameters!$D$11:$W$20,16,FALSE) -> 1.666666667 | T50: =VLOOKUP(VLOOKUP($D50,Parameters!$D$316:$H$462,T$9,FALSE),Parameters!$D$11:$W$20,17,FALSE) -> 0.9592671463 | U50: =VLOOKUP(VLOOKUP($D50,Parameters!$D$316:$H$462,U$9,FALSE),Parameters!$D$11:$W$20,18,FALSE) -> 1.07 | V50: =VLOOKUP(VLOOKUP($D50,Parameters!$D$316:$H$462,V$9,FALSE),Parameters!$D$11:$W$20,19,FALSE) -> 0.9249 | W50: =VLOOKUP(VLOOKUP($D50,Parameters!$D$316:$H$462,W$9,FALSE),Parameters!$D$11:$W$20,20,FALSE) -> 3.6996 | X50: =VLOOKUP(VLOOKUP($D50,Parameters!$D$316:$H$462,X$9,FALSE),Parameters!$D$11:$X$20,21,FALSE) -> 2.5
D51: Chile | E51: =VLOOKUP(VLOOKUP($D51,Parameters!$D$316:$H$462,E$9,FALSE),Parameters!$D$11:$W$20,2,FALSE) -> 0.3653 | F51: =VLOOKUP(VLOOKUP($D51,Parameters!$D$316:$H$462,F$9,FALSE),Parameters!$D$11:$W$20,3,FALSE) -> 0.2330555556 | G51: =VLOOKUP(VLOOKUP($D51,Parameters!$D$316:$H$462,G$9,FALSE),Parameters!$D$11:$W$20,4,FALSE) -> 0.8714285714 | H51: =VLOOKUP(VLOOKUP($D51,Parameters!$D$316:$H$462,H$9,FALSE),Parameters!$D$11:$W$20,5,FALSE) -> 0.8714285714 | I51: =VLOOKUP(VLOOKUP($D51,Parameters!$D$316:$H$462,I$9,FALSE),Parameters!$D$11:$W$20,6,FALSE) -> 0.8714285714 | J51: =VLOOKUP(VLOOKUP($D51,Parameters!$D$316:$H$462,J$9,FALSE),Parameters!$D$11:$W$20,7,FALSE) -> 0.8714285714 | K51: =VLOOKUP(VLOOKUP($D51,Parameters!$D$316:$H$462,K$9,FALSE),Parameters!$D$11:$W$20,8,FALSE) -> 0.8714285714 | L51: =VLOOKUP(VLOOKUP($D51,Parameters!$D$316:$H$462,L$9,FALSE),Parameters!$D$11:$W$20,9,FALSE) -> 0.8714285714 | M51: =VLOOKUP(VLOOKUP($D51,Parameters!$D$316:$H$462,M$9,FALSE),Parameters!$D$11:$W$20,10,FALSE) -> 2.614285714 | N51: =VLOOKUP(VLOOKUP($D51,Parameters!$D$316:$H$462,N$9,FALSE),Parameters!$D$11:$W$20,11,FALSE) -> 0.8714285714 | O51: =VLOOKUP(VLOOKUP($D51,Parameters!$D$316:$H$462,O$9,FALSE),Parameters!$D$11:$W$20,12,FALSE) -> 1.1775 | P51: =VLOOKUP(VLOOKUP($D51,Parameters!$D$316:$H$462,P$9,FALSE),Parameters!$D$11:$W$20,13,FALSE) -> 0.8714285714 | Q51: =VLOOKUP(VLOOKUP($D51,Parameters!$D$316:$H$462,Q$9,FALSE),Parameters!$D$11:$W$20,14,FALSE) -> 0.8714285714 | R51: =VLOOKUP(VLOOKUP($D51,Parameters!$D$316:$H$462,R$9,FALSE),Parameters!$D$11:$W$20,15,FALSE) -> 2.41 | S51: =VLOOKUP(VLOOKUP($D51,Parameters!$D$316:$H$462,S$9,FALSE),Parameters!$D$11:$W$20,16,FALSE) -> 0.8714285714 | T51: =VLOOKUP(VLOOKUP($D51,Parameters!$D$316:$H$462,T$9,FALSE),Parameters!$D$11:$W$20,17,FALSE) -> 0.1553703704 | U51: =VLOOKUP(VLOOKUP($D51,Parameters!$D$316:$H$462,U$9,FALSE),Parameters!$D$11:$W$20,18,FALSE) -> 0.63 | V51: =VLOOKUP(VLOOKUP($D51,Parameters!$D$316:$H$462,V$9,FALSE),Parameters!$D$11:$W$20,19,FALSE) -> 0.3653 | W51: =VLOOKUP(VLOOKUP($D51,Parameters!$D$316:$H$462,W$9,FALSE),Parameters!$D$11:$W$20,20,FALSE) -> 1.4612 | X51: =VLOOKUP(VLOOKUP($D51,Parameters!$D$316:$H$462,X$9,FALSE),Parameters!$D$11:$X$20,21,FALSE) -> 1.307142857
D52: China | E52: =VLOOKUP(VLOOKUP($D52,Parameters!$D$316:$H$462,E$9,FALSE),Parameters!$D$11:$W$20,2,FALSE) -> 0.7484 | F52: =VLOOKUP(VLOOKUP($D52,Parameters!$D$316:$H$462,F$9,FALSE),Parameters!$D$11:$W$20,3,FALSE) -> 0.6809 | G52: =VLOOKUP(VLOOKUP($D52,Parameters!$D$316:$H$462,G$9,FALSE),Parameters!$D$11:$W$20,4,FALSE) -> 1.421428571 | H52: =VLOOKUP(VLOOKUP($D52,Parameters!$D$316:$H$462,H$9,FALSE),Parameters!$D$11:$W$20,5,FALSE) -> 1.421428571 | I52: =VLOOKUP(VLOOKUP($D52,Parameters!$D$316:$H$462,I$9,FALSE),Parameters!$D$11:$W$20,6,FALSE) -> 1.421428571 | J52: =VLOOKUP(VLOOKUP($D52,Parameters!$D$316:$H$462,J$9,FALSE),Parameters!$D$11:$W$20,7,FALSE) -> 1.421428571 | K52: =VLOOKUP(VLOOKUP($D52,Parameters!$D$316:$H$462,K$9,FALSE),Parameters!$D$11:$W$20,8,FALSE) -> 1.421428571 | L52: =VLOOKUP(VLOOKUP($D52,Parameters!$D$316:$H$462,L$9,FALSE),Parameters!$D$11:$W$20,9,FALSE) -> 1.421428571 | M52: =VLOOKUP(VLOOKUP($D52,Parameters!$D$316:$H$462,M$9,FALSE),Parameters!$D$11:$W$20,10,FALSE) -> 4.264285714 | N52: =VLOOKUP(VLOOKUP($D52,Parameters!$D$316:$H$462,N$9,FALSE),Parameters!$D$11:$W$20,11,FALSE) -> 1.421428571 | O52: =VLOOKUP(VLOOKUP($D52,Parameters!$D$316:$H$462,O$9,FALSE),Parameters!$D$11:$W$20,12,FALSE) -> 1.755 | P52: =VLOOKUP(VLOOKUP($D52,Parameters!$D$316:$H$462,P$9,FALSE),Parameters!$D$11:$W$20,13,FALSE) -> 1.421428571 | Q52: =VLOOKUP(VLOOKUP($D52,Parameters!$D$316:$H$462,Q$9,FALSE),Parameters!$D$11:$W$20,14,FALSE) -> 1.421428571 | R52: =VLOOKUP(VLOOKUP($D52,Parameters!$D$316:$H$462,R$9,FALSE),Parameters!$D$11:$W$20,15,FALSE) -> 4.88 | S52: =VLOOKUP(VLOOKUP($D52,Parameters!$D$316:$H$462,S$9,FALSE),Parameters!$D$11:$W$20,16,FALSE) -> 1.421428571 | T52: =VLOOKUP(VLOOKUP($D52,Parameters!$D$316:$H$462,T$9,FALSE),Parameters!$D$11:$W$20,17,FALSE) -> 0.4539335603 | U52: =VLOOKUP(VLOOKUP($D52,Parameters!$D$316:$H$462,U$9,FALSE),Parameters!$D$11:$W$20,18,FALSE) -> 0.93 | V52: =VLOOKUP(VLOOKUP($D52,Parameters!$D$316:$H$462,V$9,FALSE),Parameters!$D$11:$W$20,19,FALSE) -> 0.7484 | W52: =VLOOKUP(VLOOKUP($D52,Parameters!$D$316:$H$462,W$9,FALSE),Parameters!$D$11:$W$20,20,FALSE) -> 2.9936 | X52: =VLOOKUP(VLOOKUP($D52,Parameters!$D$316:$H$462,X$9,FALSE),Parameters!$D$11:$X$20,21,FALSE) -> 2.132142857
D53: Colombia | E53: =VLOOKUP(VLOOKUP($D53,Parameters!$D$316:$H$462,E$9,FALSE),Parameters!$D$11:$W$20,2,FALSE) -> 0.7484 | F53: =VLOOKUP(VLOOKUP($D53,Parameters!$D$316:$H$462,F$9,FALSE),Parameters!$D$11:$W$20,3,FALSE) -> 0.6809 | G53: =VLOOKUP(VLOOKUP($D53,Parameters!$D$316:$H$462,G$9,FALSE),Parameters!$D$11:$W$20,4,FALSE) -> 1.421428571 | H53: =VLOOKUP(VLOOKUP($D53,Parameters!$D$316:$H$462,H$9,FALSE),Parameters!$D$11:$W$20,5,FALSE) -> 1.421428571 | I53: =VLOOKUP(VLOOKUP($D53,Parameters!$D$316:$H$462,I$9,FALSE),Parameters!$D$11:$W$20,6,FALSE) -> 1.421428571 | J53: =VLOOKUP(VLOOKUP($D53,Parameters!$D$316:$H$462,J$9,FALSE),Parameters!$D$11:$W$20,7,FALSE) -> 1.421428571 | K53: =VLOOKUP(VLOOKUP($D53,Parameters!$D$316:$H$462,K$9,FALSE),Parameters!$D$11:$W$20,8,FALSE) -> 1.421428571 | L53: =VLOOKUP(VLOOKUP($D53,Parameters!$D$316:$H$462,L$9,FALSE),Parameters!$D$11:$W$20,9,FALSE) -> 1.421428571 | M53: =VLOOKUP(VLOOKUP($D53,Parameters!$D$316:$H$462,M$9,FALSE),Parameters!$D$11:$W$20,10,FALSE) -> 4.264285714 | N53: =VLOOKUP(VLOOKUP($D53,Parameters!$D$316:$H$462,N$9,FALSE),Parameters!$D$11:$W$20,11,FALSE) -> 1.421428571 | O53: =VLOOKUP(VLOOKUP($D53,Parameters!$D$316:$H$462,O$9,FALSE),Parameters!$D$11:$W$20,12,FALSE) -> 1.755 | P53: =VLOOKUP(VLOOKUP($D53,Parameters!$D$316:$H$462,P$9,FALSE),Parameters!$D$11:$W$20,13,FALSE) -> 1.421428571 | Q53: =VLOOKUP(VLOOKUP($D53,Parameters!$D$316:$H$462,Q$9,FALSE),Parameters!$D$11:$W$20,14,FALSE) -> 1.421428571 | R53: =VLOOKUP(VLOOKUP($D53,Parameters!$D$316:$H$462,R$9,FALSE),Parameters!$D$11:$W$20,15,FALSE) -> 4.88 | S53: =VLOOKUP(VLOOKUP($D53,Parameters!$D$316:$H$462,S$9,FALSE),Parameters!$D$11:$W$20,16,FALSE) -> 1.421428571 | T53: =VLOOKUP(VLOOKUP($D53,Parameters!$D$316:$H$462,T$9,FALSE),Parameters!$D$11:$W$20,17,FALSE) -> 0.4539335603 | U53: =VLOOKUP(VLOOKUP($D53,Parameters!$D$316:$H$462,U$9,FALSE),Parameters!$D$11:$W$20,18,FALSE) -> 0.93 | V53: =VLOOKUP(VLOOKUP($D53,Parameters!$D$316:$H$462,V$9,FALSE),Parameters!$D$11:$W$20,19,FALSE) -> 0.7484 | W53: =VLOOKUP(VLOOKUP($D53,Parameters!$D$316:$H$462,W$9,FALSE),Parameters!$D$11:$W$20,20,FALSE) -> 2.9936 | X53: =VLOOKUP(VLOOKUP($D53,Parameters!$D$316:$H$462,X$9,FALSE),Parameters!$D$11:$X$20,21,FALSE) -> 2.132142857
D54: Congo | E54: =VLOOKUP(VLOOKUP($D54,Parameters!$D$316:$H$462,E$9,FALSE),Parameters!$D$11:$W$20,2,FALSE) -> 1.3511 | F54: =VLOOKUP(VLOOKUP($D54,Parameters!$D$316:$H$462,F$9,FALSE),Parameters!$D$11:$W$20,3,FALSE) -> 2.4753 | G54: =VLOOKUP(VLOOKUP($D54,Parameters!$D$316:$H$462,G$9,FALSE),Parameters!$D$11:$W$20,4,FALSE) -> 2.25 | H54: =VLOOKUP(VLOOKUP($D54,Parameters!$D$316:$H$462,H$9,FALSE),Parameters!$D$11:$W$20,5,FALSE) -> 2.25 | I54: =VLOOKUP(VLOOKUP($D54,Parameters!$D$316:$H$462,I$9,FALSE),Parameters!$D$11:$W$20,6,FALSE) -> 2.25 | J54: =VLOOKUP(VLOOKUP($D54,Parameters!$D$316:$H$462,J$9,FALSE),Parameters!$D$11:$W$20,7,FALSE) -> 2.25 | K54: =VLOOKUP(VLOOKUP($D54,Parameters!$D$316:$H$462,K$9,FALSE),Parameters!$D$11:$W$20,8,FALSE) -> 2.25 | L54: =VLOOKUP(VLOOKUP($D54,Parameters!$D$316:$H$462,L$9,FALSE),Parameters!$D$11:$W$20,9,FALSE) -> 2.25 | M54: =VLOOKUP(VLOOKUP($D54,Parameters!$D$316:$H$462,M$9,FALSE),Parameters!$D$11:$W$20,10,FALSE) -> 6.75 | N54: =VLOOKUP(VLOOKUP($D54,Parameters!$D$316:$H$462,N$9,FALSE),Parameters!$D$11:$W$20,11,FALSE) -> 2.25 | O54: =VLOOKUP(VLOOKUP($D54,Parameters!$D$316:$H$462,O$9,FALSE),Parameters!$D$11:$W$20,12,FALSE) -> 2.625 | P54: =VLOOKUP(VLOOKUP($D54,Parameters!$D$316:$H$462,P$9,FALSE),Parameters!$D$11:$W$20,13,FALSE) -> 2.25 | Q54: =VLOOKUP(VLOOKUP($D54,Parameters!$D$316:$H$462,Q$9,FALSE),Parameters!$D$11:$W$20,14,FALSE) -> 2.25 | R54: =VLOOKUP(VLOOKUP($D54,Parameters!$D$316:$H$462,R$9,FALSE),Parameters!$D$11:$W$20,15,FALSE) -> 8.78 | S54: =VLOOKUP(VLOOKUP($D54,Parameters!$D$316:$H$462,S$9,FALSE),Parameters!$D$11:$W$20,16,FALSE) -> 2.25 | T54: =VLOOKUP(VLOOKUP($D54,Parameters!$D$316:$H$462,T$9,FALSE),Parameters!$D$11:$W$20,17,FALSE) -> 1.650200825 | U54: =VLOOKUP(VLOOKUP($D54,Parameters!$D$316:$H$462,U$9,FALSE),Parameters!$D$11:$W$20,18,FALSE) -> 1.39 | V54: =VLOOKUP(VLOOKUP($D54,Parameters!$D$316:$H$462,V$9,FALSE),Parameters!$D$11:$W$20,19,FALSE) -> 1.3511 | W54: =VLOOKUP(VLOOKUP($D54,Parameters!$D$316:$H$462,W$9,FALSE),Parameters!$D$11:$W$20,20,FALSE) -> 5.4044 | X54: =VLOOKUP(VLOOKUP($D54,Parameters!$D$316:$H$462,X$9,FALSE),Parameters!$D$11:$X$20,21,FALSE) -> 3.375
D55: Costa Rica | E55: =VLOOKUP(VLOOKUP($D55,Parameters!$D$316:$H$462,E$9,FALSE),Parameters!$D$11:$W$20,2,FALSE) -> 0.5963 | F55: =VLOOKUP(VLOOKUP($D55,Parameters!$D$316:$H$462,F$9,FALSE),Parameters!$D$11:$W$20,3,FALSE) -> 1.0251 | G55: =VLOOKUP(VLOOKUP($D55,Parameters!$D$316:$H$462,G$9,FALSE),Parameters!$D$11:$W$20,4,FALSE) -> 1.207142857 | H55: =VLOOKUP(VLOOKUP($D55,Parameters!$D$316:$H$462,H$9,FALSE),Parameters!$D$11:$W$20,5,FALSE) -> 1.207142857 | I55: =VLOOKUP(VLOOKUP($D55,Parameters!$D$316:$H$462,I$9,FALSE),Parameters!$D$11:$W$20,6,FALSE) -> 1.207142857 | J55: =VLOOKUP(VLOOKUP($D55,Parameters!$D$316:$H$462,J$9,FALSE),Parameters!$D$11:$W$20,7,FALSE) -> 1.207142857 | K55: =VLOOKUP(VLOOKUP($D55,Parameters!$D$316:$H$462,K$9,FALSE),Parameters!$D$11:$W$20,8,FALSE) -> 1.207142857 | L55: =VLOOKUP(VLOOKUP($D55,Parameters!$D$316:$H$462,L$9,FALSE),Parameters!$D$11:$W$20,9,FALSE) -> 1.207142857 | M55: =VLOOKUP(VLOOKUP($D55,Parameters!$D$316:$H$462,M$9,FALSE),Parameters!$D$11:$W$20,10,FALSE) -> 3.63 | N55: =VLOOKUP(VLOOKUP($D55,Parameters!$D$316:$H$462,N$9,FALSE),Parameters!$D$11:$W$20,11,FALSE) -> 1.207142857 | O55: =VLOOKUP(VLOOKUP($D55,Parameters!$D$316:$H$462,O$9,FALSE),Parameters!$D$11:$W$20,12,FALSE) -> 1.53 | P55: =VLOOKUP(VLOOKUP($D55,Parameters!$D$316:$H$462,P$9,FALSE),Parameters!$D$11:$W$20,13,FALSE) -> 1.207142857 | Q55: =VLOOKUP(VLOOKUP($D55,Parameters!$D$316:$H$462,Q$9,FALSE),Parameters!$D$11:$W$20,14,FALSE) -> 1.207142857 | R55: =VLOOKUP(VLOOKUP($D55,Parameters!$D$316:$H$462,R$9,FALSE),Parameters!$D$11:$W$20,15,FALSE) -> 3.9 | S55: =VLOOKUP(VLOOKUP($D55,Parameters!$D$316:$H$462,S$9,FALSE),Parameters!$D$11:$W$20,16,FALSE) -> 1.207142857 | T55: =VLOOKUP(VLOOKUP($D55,Parameters!$D$316:$H$462,T$9,FALSE),Parameters!$D$11:$W$20,17,FALSE) -> 0.6834003417 | U55: =VLOOKUP(VLOOKUP($D55,Parameters!$D$316:$H$462,U$9,FALSE),Parameters!$D$11:$W$20,18,FALSE) -> 0.81 | V55: =VLOOKUP(VLOOKUP($D55,Parameters!$D$316:$H$462,V$9,FALSE),Parameters!$D$11:$W$20,19,FALSE) -> 0.5963 | W55: =VLOOKUP(VLOOKUP($D55,Parameters!$D$316:$H$462,W$9,FALSE),Parameters!$D$11:$W$20,20,FALSE) -> 2.3852 | X55: =VLOOKUP(VLOOKUP($D55,Parameters!$D$316:$H$462,X$9,FALSE),Parameters!$D$11:$X$20,21,FALSE) -> 1.810714286
D56: Cote dIvoire | E56: =VLOOKUP(VLOOKUP($D56,Parameters!$D$316:$H$462,E$9,FALSE),Parameters!$D$11:$W$20,2,FALSE) -> 1.1258 | F56: =VLOOKUP(VLOOKUP($D56,Parameters!$D$316:$H$462,F$9,FALSE),Parameters!$D$11:$W$20,3,FALSE) -> 1.9223 | G56: =VLOOKUP(VLOOKUP($D56,Parameters!$D$316:$H$462,G$9,FALSE),Parameters!$D$11:$W$20,4,FALSE) -> 1.942857143 | H56: =VLOOKUP(VLOOKUP($D56,Parameters!$D$316:$H$462,H$9,FALSE),Parameters!$D$11:$W$20,5,FALSE) -> 1.942857143 | I56: =VLOOKUP(VLOOKUP($D56,Parameters!$D$316:$H$462,I$9,FALSE),Parameters!$D$11:$W$20,6,FALSE) -> 1.942857143 | J56: =VLOOKUP(VLOOKUP($D56,Parameters!$D$316:$H$462,J$9,FALSE),Parameters!$D$11:$W$20,7,FALSE) -> 1.942857143 | K56: =VLOOKUP(VLOOKUP($D56,Parameters!$D$316:$H$462,K$9,FALSE),Parameters!$D$11:$W$20,8,FALSE) -> 1.942857143 | L56: =VLOOKUP(VLOOKUP($D56,Parameters!$D$316:$H$462,L$9,FALSE),Parameters!$D$11:$W$20,9,FALSE) -> 1.942857143 | M56: =VLOOKUP(VLOOKUP($D56,Parameters!$D$316:$H$462,M$9,FALSE),Parameters!$D$11:$W$20,10,FALSE) -> 5.82 | N56: =VLOOKUP(VLOOKUP($D56,Parameters!$D$316:$H$462,N$9,FALSE),Parameters!$D$11:$W$20,11,FALSE) -> 1.942857143 | O56: =VLOOKUP(VLOOKUP($D56,Parameters!$D$316:$H$462,O$9,FALSE),Parameters!$D$11:$W$20,12,FALSE) -> 2.3025 | P56: =VLOOKUP(VLOOKUP($D56,Parameters!$D$316:$H$462,P$9,FALSE),Parameters!$D$11:$W$20,13,FALSE) -> 1.942857143 | Q56: =VLOOKUP(VLOOKUP($D56,Parameters!$D$316:$H$462,Q$9,FALSE),Parameters!$D$11:$W$20,14,FALSE) -> 1.942857143 | R56: =VLOOKUP(VLOOKUP($D56,Parameters!$D$316:$H$462,R$9,FALSE),Parameters!$D$11:$W$20,15,FALSE) -> 7.35 | S56: =VLOOKUP(VLOOKUP($D56,Parameters!$D$316:$H$462,S$9,FALSE),Parameters!$D$11:$W$20,16,FALSE) -> 1.942857143 | T56: =VLOOKUP(VLOOKUP($D56,Parameters!$D$316:$H$462,T$9,FALSE),Parameters!$D$11:$W$20,17,FALSE) -> 1.281533974 | U56: =VLOOKUP(VLOOKUP($D56,Parameters!$D$316:$H$462,U$9,FALSE),Parameters!$D$11:$W$20,18,FALSE) -> 1.22 | V56: =VLOOKUP(VLOOKUP($D56,Parameters!$D$316:$H$462,V$9,FALSE),Parameters!$D$11:$W$20,19,FALSE) -> 1.1258 | W56: =VLOOKUP(VLOOKUP($D56,Parameters!$D$316:$H$462,W$9,FALSE),Parameters!$D$11:$W$20,20,FALSE) -> 4.5032 | X56: =VLOOKUP(VLOOKUP($D56,Parameters!$D$316:$H$462,X$9,FALSE),Parameters!$D$11:$X$20,21,FALSE) -> 2.914285714
D57: Croatia | E57: =VLOOKUP(VLOOKUP($D57,Parameters!$D$316:$H$462,E$9,FALSE),Parameters!$D$11:$W$20,2,FALSE) -> 0.5963 | F57: =VLOOKUP(VLOOKUP($D57,Parameters!$D$316:$H$462,F$9,FALSE),Parameters!$D$11:$W$20,3,FALSE) -> 0.6809 | G57: =VLOOKUP(VLOOKUP($D57,Parameters!$D$316:$H$462,G$9,FALSE),Parameters!$D$11:$W$20,4,FALSE) -> 1.207142857 | H57: =VLOOKUP(VLOOKUP($D57,Parameters!$D$316:$H$462,H$9,FALSE),Parameters!$D$11:$W$20,5,FALSE) -> 1.207142857 | I57: =VLOOKUP(VLOOKUP($D57,Parameters!$D$316:$H$462,I$9,FALSE),Parameters!$D$11:$W$20,6,FALSE) -> 1.207142857 | J57: =VLOOKUP(VLOOKUP($D57,Parameters!$D$316:$H$462,J$9,FALSE),Parameters!$D$11:$W$20,7,FALSE) -> 1.207142857 | K57: =VLOOKUP(VLOOKUP($D57,Parameters!$D$316:$H$462,K$9,FALSE),Parameters!$D$11:$W$20,8,FALSE) -> 1.207142857 | L57: =VLOOKUP(VLOOKUP($D57,Parameters!$D$316:$H$462,L$9,FALSE),Parameters!$D$11:$W$20,9,FALSE) -> 1.207142857 | M57: =VLOOKUP(VLOOKUP($D57,Parameters!$D$316:$H$462,M$9,FALSE),Parameters!$D$11:$W$20,10,FALSE) -> 3.63 | N57: =VLOOKUP(VLOOKUP($D57,Parameters!$D$316:$H$462,N$9,FALSE),Parameters!$D$11:$W$20,11,FALSE) -> 1.207142857 | O57: =VLOOKUP(VLOOKUP($D57,Parameters!$D$316:$H$462,O$9,FALSE),Parameters!$D$11:$W$20,12,FALSE) -> 1.53 | P57: =VLOOKUP(VLOOKUP($D57,Parameters!$D$316:$H$462,P$9,FALSE),Parameters!$D$11:$W$20,13,FALSE) -> 1.207142857 | Q57: =VLOOKUP(VLOOKUP($D57,Parameters!$D$316:$H$462,Q$9,FALSE),Parameters!$D$11:$W$20,14,FALSE) -> 1.207142857 | R57: =VLOOKUP(VLOOKUP($D57,Parameters!$D$316:$H$462,R$9,FALSE),Parameters!$D$11:$W$20,15,FALSE) -> 3.9 | S57: =VLOOKUP(VLOOKUP($D57,Parameters!$D$316:$H$462,S$9,FALSE),Parameters!$D$11:$W$20,16,FALSE) -> 1.207142857 | T57: =VLOOKUP(VLOOKUP($D57,Parameters!$D$316:$H$462,T$9,FALSE),Parameters!$D$11:$W$20,17,FALSE) -> 0.4539335603 | U57: =VLOOKUP(VLOOKUP($D57,Parameters!$D$316:$H$462,U$9,FALSE),Parameters!$D$11:$W$20,18,FALSE) -> 0.81 | V57: =VLOOKUP(VLOOKUP($D57,Parameters!$D$316:$H$462,V$9,FALSE),Parameters!$D$11:$W$20,19,FALSE) -> 0.5963 | W57: =VLOOKUP(VLOOKUP($D57,Parameters!$D$316:$H$462,W$9,FALSE),Parameters!$D$11:$W$20,20,FALSE) -> 2.3852 | X57: =VLOOKUP(VLOOKUP($D57,Parameters!$D$316:$H$462,X$9,FALSE),Parameters!$D$11:$X$20,21,FALSE) -> 1.810714286
D58: Cyprus | E58: =VLOOKUP(VLOOKUP($D58,Parameters!$D$316:$H$462,E$9,FALSE),Parameters!$D$11:$W$20,2,FALSE) -> 0.5963 | F58: =VLOOKUP(VLOOKUP($D58,Parameters!$D$316:$H$462,F$9,FALSE),Parameters!$D$11:$W$20,3,FALSE) -> 0.6809 | G58: =VLOOKUP(VLOOKUP($D58,Parameters!$D$316:$H$462,G$9,FALSE),Parameters!$D$11:$W$20,4,FALSE) -> 1.207142857 | H58: =VLOOKUP(VLOOKUP($D58,Parameters!$D$316:$H$462,H$9,FALSE),Parameters!$D$11:$W$20,5,FALSE) -> 1.207142857 | I58: =VLOOKUP(VLOOKUP($D58,Parameters!$D$316:$H$462,I$9,FALSE),Parameters!$D$11:$W$20,6,FALSE) -> 1.207142857 | J58: =VLOOKUP(VLOOKUP($D58,Parameters!$D$316:$H$462,J$9,FALSE),Parameters!$D$11:$W$20,7,FALSE) -> 1.207142857 | K58: =VLOOKUP(VLOOKUP($D58,Parameters!$D$316:$H$462,K$9,FALSE),Parameters!$D$11:$W$20,8,FALSE) -> 1.207142857 | L58: =VLOOKUP(VLOOKUP($D58,Parameters!$D$316:$H$462,L$9,FALSE),Parameters!$D$11:$W$20,9,FALSE) -> 1.207142857 | M58: =VLOOKUP(VLOOKUP($D58,Parameters!$D$316:$H$462,M$9,FALSE),Parameters!$D$11:$W$20,10,FALSE) -> 3.63 | N58: =VLOOKUP(VLOOKUP($D58,Parameters!$D$316:$H$462,N$9,FALSE),Parameters!$D$11:$W$20,11,FALSE) -> 1.207142857 | O58: =VLOOKUP(VLOOKUP($D58,Parameters!$D$316:$H$462,O$9,FALSE),Parameters!$D$11:$W$20,12,FALSE) -> 1.53 | P58: =VLOOKUP(VLOOKUP($D58,Parameters!$D$316:$H$462,P$9,FALSE),Parameters!$D$11:$W$20,13,FALSE) -> 1.207142857 | Q58: =VLOOKUP(VLOOKUP($D58,Parameters!$D$316:$H$462,Q$9,FALSE),Parameters!$D$11:$W$20,14,FALSE) -> 1.207142857 | R58: =VLOOKUP(VLOOKUP($D58,Parameters!$D$316:$H$462,R$9,FALSE),Parameters!$D$11:$W$20,15,FALSE) -> 3.9 | S58: =VLOOKUP(VLOOKUP($D58,Parameters!$D$316:$H$462,S$9,FALSE),Parameters!$D$11:$W$20,16,FALSE) -> 1.207142857 | T58: =VLOOKUP(VLOOKUP($D58,Parameters!$D$316:$H$462,T$9,FALSE),Parameters!$D$11:$W$20,17,FALSE) -> 0.4539335603 | U58: =VLOOKUP(VLOOKUP($D58,Parameters!$D$316:$H$462,U$9,FALSE),Parameters!$D$11:$W$20,18,FALSE) -> 0.81 | V58: =VLOOKUP(VLOOKUP($D58,Parameters!$D$316:$H$462,V$9,FALSE),Parameters!$D$11:$W$20,19,FALSE) -> 0.5963 | W58: =VLOOKUP(VLOOKUP($D58,Parameters!$D$316:$H$462,W$9,FALSE),Parameters!$D$11:$W$20,20,FALSE) -> 2.3852 | X58: =VLOOKUP(VLOOKUP($D58,Parameters!$D$316:$H$462,X$9,FALSE),Parameters!$D$11:$X$20,21,FALSE) -> 1.810714286
D59: Czech Republic | E59: =VLOOKUP(VLOOKUP($D59,Parameters!$D$316:$H$462,E$9,FALSE),Parameters!$D$11:$W$20,2,FALSE) -> 0.2864 | F59: =VLOOKUP(VLOOKUP($D59,Parameters!$D$316:$H$462,F$9,FALSE),Parameters!$D$11:$W$20,3,FALSE) -> 0.2330555556 | G59: =VLOOKUP(VLOOKUP($D59,Parameters!$D$316:$H$462,G$9,FALSE),Parameters!$D$11:$W$20,4,FALSE) -> 0.75 | H59: =VLOOKUP(VLOOKUP($D59,Parameters!$D$316:$H$462,H$9,FALSE),Parameters!$D$11:$W$20,5,FALSE) -> 0.75 | I59: =VLOOKUP(VLOOKUP($D59,Parameters!$D$316:$H$462,I$9,FALSE),Parameters!$D$11:$W$20,6,FALSE) -> 0.75 | J59: =VLOOKUP(VLOOKUP($D59,Parameters!$D$316:$H$462,J$9,FALSE),Parameters!$D$11:$W$20,7,FALSE) -> 0.75 | K59: =VLOOKUP(VLOOKUP($D59,Parameters!$D$316:$H$462,K$9,FALSE),Parameters!$D$11:$W$20,8,FALSE) -> 0.75 | L59: =VLOOKUP(VLOOKUP($D59,Parameters!$D$316:$H$462,L$9,FALSE),Parameters!$D$11:$W$20,9,FALSE) -> 0.75 | M59: =VLOOKUP(VLOOKUP($D59,Parameters!$D$316:$H$462,M$9,FALSE),Parameters!$D$11:$W$20,10,FALSE) -> 2.25 | N59: =VLOOKUP(VLOOKUP($D59,Parameters!$D$316:$H$462,N$9,FALSE),Parameters!$D$11:$W$20,11,FALSE) -> 0.75 | O59: =VLOOKUP(VLOOKUP($D59,Parameters!$D$316:$H$462,O$9,FALSE),Parameters!$D$11:$W$20,12,FALSE) -> 1.05 | P59: =VLOOKUP(VLOOKUP($D59,Parameters!$D$316:$H$462,P$9,FALSE),Parameters!$D$11:$W$20,13,FALSE) -> 0.75 | Q59: =VLOOKUP(VLOOKUP($D59,Parameters!$D$316:$H$462,Q$9,FALSE),Parameters!$D$11:$W$20,14,FALSE) -> 0.75 | R59: =VLOOKUP(VLOOKUP($D59,Parameters!$D$316:$H$462,R$9,FALSE),Parameters!$D$11:$W$20,15,FALSE) -> 1.89 | S59: =VLOOKUP(VLOOKUP($D59,Parameters!$D$316:$H$462,S$9,FALSE),Parameters!$D$11:$W$20,16,FALSE) -> 0.75 | T59: =VLOOKUP(VLOOKUP($D59,Parameters!$D$316:$H$462,T$9,FALSE),Parameters!$D$11:$W$20,17,FALSE) -> 0.1553703704 | U59: =VLOOKUP(VLOOKUP($D59,Parameters!$D$316:$H$462,U$9,FALSE),Parameters!$D$11:$W$20,18,FALSE) -> 0.56 | V59: =VLOOKUP(VLOOKUP($D59,Parameters!$D$316:$H$462,V$9,FALSE),Parameters!$D$11:$W$20,19,FALSE) -> 0.2864 | W59: =VLOOKUP(VLOOKUP($D59,Parameters!$D$316:$H$462,W$9,FALSE),Parameters!$D$11:$W$20,20,FALSE) -> 1.1456 | X59: =VLOOKUP(VLOOKUP($D59,Parameters!$D$316:$H$462,X$9,FALSE),Parameters!$D$11:$X$20,21,FALSE) -> 1.125
D60: Denmark | E60: =VLOOKUP(VLOOKUP($D60,Parameters!$D$316:$H$462,E$9,FALSE),Parameters!$D$11:$W$20,2,FALSE) -> 0.2319 | F60: =VLOOKUP(VLOOKUP($D60,Parameters!$D$316:$H$462,F$9,FALSE),Parameters!$D$11:$W$20,3,FALSE) -> 0.2330555556 | G60: =VLOOKUP(VLOOKUP($D60,Parameters!$D$316:$H$462,G$9,FALSE),Parameters!$D$11:$W$20,4,FALSE) -> 0.6595238095 | H60: =VLOOKUP(VLOOKUP($D60,Parameters!$D$316:$H$462,H$9,FALSE),Parameters!$D$11:$W$20,5,FALSE) -> 0.6595238095 | I60: =VLOOKUP(VLOOKUP($D60,Parameters!$D$316:$H$462,I$9,FALSE),Parameters!$D$11:$W$20,6,FALSE) -> 0.6595238095 | J60: =VLOOKUP(VLOOKUP($D60,Parameters!$D$316:$H$462,J$9,FALSE),Parameters!$D$11:$W$20,7,FALSE) -> 0.6595238095 | K60: =VLOOKUP(VLOOKUP($D60,Parameters!$D$316:$H$462,K$9,FALSE),Parameters!$D$11:$W$20,8,FALSE) -> 0.6595238095 | L60: =VLOOKUP(VLOOKUP($D60,Parameters!$D$316:$H$462,L$9,FALSE),Parameters!$D$11:$W$20,9,FALSE) -> 0.6595238095 | M60: =VLOOKUP(VLOOKUP($D60,Parameters!$D$316:$H$462,M$9,FALSE),Parameters!$D$11:$W$20,10,FALSE) -> 1.978571429 | N60: =VLOOKUP(VLOOKUP($D60,Parameters!$D$316:$H$462,N$9,FALSE),Parameters!$D$11:$W$20,11,FALSE) -> 0.6595238095 | O60: =VLOOKUP(VLOOKUP($D60,Parameters!$D$316:$H$462,O$9,FALSE),Parameters!$D$11:$W$20,12,FALSE) -> 0.955 | P60: =VLOOKUP(VLOOKUP($D60,Parameters!$D$316:$H$462,P$9,FALSE),Parameters!$D$11:$W$20,13,FALSE) -> 0.6595238095 | Q60: =VLOOKUP(VLOOKUP($D60,Parameters!$D$316:$H$462,Q$9,FALSE),Parameters!$D$11:$W$20,14,FALSE) -> 0.6595238095 | R60: =VLOOKUP(VLOOKUP($D60,Parameters!$D$316:$H$462,R$9,FALSE),Parameters!$D$11:$W$20,15,FALSE) -> 1.5 | S60: =VLOOKUP(VLOOKUP($D60,Parameters!$D$316:$H$462,S$9,FALSE),Parameters!$D$11:$W$20,16,FALSE) -> 0.6595238095 | T60: =VLOOKUP(VLOOKUP($D60,Parameters!$D$316:$H$462,T$9,FALSE),Parameters!$D$11:$W$20,17,FALSE) -> 0.1553703704 | U60: =VLOOKUP(VLOOKUP($D60,Parameters!$D$316:$H$462,U$9,FALSE),Parameters!$D$11:$W$20,18,FALSE) -> 0.51 | V60: =VLOOKUP(VLOOKUP($D60,Parameters!$D$316:$H$462,V$9,FALSE),Parameters!$D$11:$W$20,19,FALSE) -> 0.2319 | W60: =VLOOKUP(VLOOKUP($D60,Parameters!$D$316:$H$462,W$9,FALSE),Parameters!$D$11:$W$20,20,FALSE) -> 0.9276 | X60: =VLOOKUP(VLOOKUP($D60,Parameters!$D$316:$H$462,X$9,FALSE),Parameters!$D$11:$X$20,21,FALSE) -> 0.9892857143
D61: Dominican Republic | E61: =VLOOKUP(VLOOKUP($D61,Parameters!$D$316:$H$462,E$9,FALSE),Parameters!$D$11:$W$20,2,FALSE) -> 0.9249 | F61: =VLOOKUP(VLOOKUP($D61,Parameters!$D$316:$H$462,F$9,FALSE),Parameters!$D$11:$W$20,3,FALSE) -> 1.4389 | G61: =VLOOKUP(VLOOKUP($D61,Parameters!$D$316:$H$462,G$9,FALSE),Parameters!$D$11:$W$20,4,FALSE) -> 1.666666667 | H61: =VLOOKUP(VLOOKUP($D61,Parameters!$D$316:$H$462,H$9,FALSE),Parameters!$D$11:$W$20,5,FALSE) -> 1.666666667 | I61: =VLOOKUP(VLOOKUP($D61,Parameters!$D$316:$H$462,I$9,FALSE),Parameters!$D$11:$W$20,6,FALSE) -> 1.666666667 | J61: =VLOOKUP(VLOOKUP($D61,Parameters!$D$316:$H$462,J$9,FALSE),Parameters!$D$11:$W$20,7,FALSE) -> 1.666666667 | K61: =VLOOKUP(VLOOKUP($D61,Parameters!$D$316:$H$462,K$9,FALSE),Parameters!$D$11:$W$20,8,FALSE) -> 1.666666667 | L61: =VLOOKUP(VLOOKUP($D61,Parameters!$D$316:$H$462,L$9,FALSE),Parameters!$D$11:$W$20,9,FALSE) -> 1.666666667 | M61: =VLOOKUP(VLOOKUP($D61,Parameters!$D$316:$H$462,M$9,FALSE),Parameters!$D$11:$W$20,10,FALSE) -> 5.01 | N61: =VLOOKUP(VLOOKUP($D61,Parameters!$D$316:$H$462,N$9,FALSE),Parameters!$D$11:$W$20,11,FALSE) -> 1.666666667 | O61: =VLOOKUP(VLOOKUP($D61,Parameters!$D$316:$H$462,O$9,FALSE),Parameters!$D$11:$W$20,12,FALSE) -> 2.0125 | P61: =VLOOKUP(VLOOKUP($D61,Parameters!$D$316:$H$462,P$9,FALSE),Parameters!$D$11:$W$20,13,FALSE) -> 1.666666667 | Q61: =VLOOKUP(VLOOKUP($D61,Parameters!$D$316:$H$462,Q$9,FALSE),Parameters!$D$11:$W$20,14,FALSE) -> 1.666666667 | R61: =VLOOKUP(VLOOKUP($D61,Parameters!$D$316:$H$462,R$9,FALSE),Parameters!$D$11:$W$20,15,FALSE) -> 5.98 | S61: =VLOOKUP(VLOOKUP($D61,Parameters!$D$316:$H$462,S$9,FALSE),Parameters!$D$11:$W$20,16,FALSE) -> 1.666666667 | T61: =VLOOKUP(VLOOKUP($D61,Parameters!$D$316:$H$462,T$9,FALSE),Parameters!$D$11:$W$20,17,FALSE) -> 0.9592671463 | U61: =VLOOKUP(VLOOKUP($D61,Parameters!$D$316:$H$462,U$9,FALSE),Parameters!$D$11:$W$20,18,FALSE) -> 1.07 | V61: =VLOOKUP(VLOOKUP($D61,Parameters!$D$316:$H$462,V$9,FALSE),Parameters!$D$11:$W$20,19,FALSE) -> 0.9249 | W61: =VLOOKUP(VLOOKUP($D61,Parameters!$D$316:$H$462,W$9,FALSE),Parameters!$D$11:$W$20,20,FALSE) -> 3.6996 | X61: =VLOOKUP(VLOOKUP($D61,Parameters!$D$316:$H$462,X$9,FALSE),Parameters!$D$11:$X$20,21,FALSE) -> 2.5
D62: Ecuador | E62: =VLOOKUP(VLOOKUP($D62,Parameters!$D$316:$H$462,E$9,FALSE),Parameters!$D$11:$W$20,2,FALSE) -> 1.3511 | F62: =VLOOKUP(VLOOKUP($D62,Parameters!$D$316:$H$462,F$9,FALSE),Parameters!$D$11:$W$20,3,FALSE) -> 2.4753 | G62: =VLOOKUP(VLOOKUP($D62,Parameters!$D$316:$H$462,G$9,FALSE),Parameters!$D$11:$W$20,4,FALSE) -> 2.25 | H62: =VLOOKUP(VLOOKUP($D62,Parameters!$D$316:$H$462,H$9,FALSE),Parameters!$D$11:$W$20,5,FALSE) -> 2.25 | I62: =VLOOKUP(VLOOKUP($D62,Parameters!$D$316:$H$462,I$9,FALSE),Parameters!$D$11:$W$20,6,FALSE) -> 2.25 | J62: =VLOOKUP(VLOOKUP($D62,Parameters!$D$316:$H$462,J$9,FALSE),Parameters!$D$11:$W$20,7,FALSE) -> 2.25 | K62: =VLOOKUP(VLOOKUP($D62,Parameters!$D$316:$H$462,K$9,FALSE),Parameters!$D$11:$W$20,8,FALSE) -> 2.25 | L62: =VLOOKUP(VLOOKUP($D62,Parameters!$D$316:$H$462,L$9,FALSE),Parameters!$D$11:$W$20,9,FALSE) -> 2.25 | M62: =VLOOKUP(VLOOKUP($D62,Parameters!$D$316:$H$462,M$9,FALSE),Parameters!$D$11:$W$20,10,FALSE) -> 6.75 | N62: =VLOOKUP(VLOOKUP($D62,Parameters!$D$316:$H$462,N$9,FALSE),Parameters!$D$11:$W$20,11,FALSE) -> 2.25 | O62: =VLOOKUP(VLOOKUP($D62,Parameters!$D$316:$H$462,O$9,FALSE),Parameters!$D$11:$W$20,12,FALSE) -> 2.625 | P62: =VLOOKUP(VLOOKUP($D62,Parameters!$D$316:$H$462,P$9,FALSE),Parameters!$D$11:$W$20,13,FALSE) -> 2.25 | Q62: =VLOOKUP(VLOOKUP($D62,Parameters!$D$316:$H$462,Q$9,FALSE),Parameters!$D$11:$W$20,14,FALSE) -> 2.25 | R62: =VLOOKUP(VLOOKUP($D62,Parameters!$D$316:$H$462,R$9,FALSE),Parameters!$D$11:$W$20,15,FALSE) -> 8.78 | S62: =VLOOKUP(VLOOKUP($D62,Parameters!$D$316:$H$462,S$9,FALSE),Parameters!$D$11:$W$20,16,FALSE) -> 2.25 | T62: =VLOOKUP(VLOOKUP($D62,Parameters!$D$316:$H$462,T$9,FALSE),Parameters!$D$11:$W$20,17,FALSE) -> 1.650200825 | U62: =VLOOKUP(VLOOKUP($D62,Parameters!$D$316:$H$462,U$9,FALSE),Parameters!$D$11:$W$20,18,FALSE) -> 1.39 | V62: =VLOOKUP(VLOOKUP($D62,Parameters!$D$316:$H$462,V$9,FALSE),Parameters!$D$11:$W$20,19,FALSE) -> 1.3511 | W62: =VLOOKUP(VLOOKUP($D62,Parameters!$D$316:$H$462,W$9,FALSE),Parameters!$D$11:$W$20,20,FALSE) -> 5.4044 | X62: =VLOOKUP(VLOOKUP($D62,Parameters!$D$316:$H$462,X$9,FALSE),Parameters!$D$11:$X$20,21,FALSE) -> 3.375
D63: Egypt | E63: =VLOOKUP(VLOOKUP($D63,Parameters!$D$316:$H$462,E$9,FALSE),Parameters!$D$11:$W$20,2,FALSE) -> 1.1258 | F63: =VLOOKUP(VLOOKUP($D63,Parameters!$D$316:$H$462,F$9,FALSE),Parameters!$D$11:$W$20,3,FALSE) -> 1.9223 | G63: =VLOOKUP(VLOOKUP($D63,Parameters!$D$316:$H$462,G$9,FALSE),Parameters!$D$11:$W$20,4,FALSE) -> 1.942857143 | H63: =VLOOKUP(VLOOKUP($D63,Parameters!$D$316:$H$462,H$9,FALSE),Parameters!$D$11:$W$20,5,FALSE) -> 1.942857143 | I63: =VLOOKUP(VLOOKUP($D63,Parameters!$D$316:$H$462,I$9,FALSE),Parameters!$D$11:$W$20,6,FALSE) -> 1.942857143 | J63: =VLOOKUP(VLOOKUP($D63,Parameters!$D$316:$H$462,J$9,FALSE),Parameters!$D$11:$W$20,7,FALSE) -> 1.942857143 | K63: =VLOOKUP(VLOOKUP($D63,Parameters!$D$316:$H$462,K$9,FALSE),Parameters!$D$11:$W$20,8,FALSE) -> 1.942857143 | L63: =VLOOKUP(VLOOKUP($D63,Parameters!$D$316:$H$462,L$9,FALSE),Parameters!$D$11:$W$20,9,FALSE) -> 1.942857143 | M63: =VLOOKUP(VLOOKUP($D63,Parameters!$D$316:$H$462,M$9,FALSE),Parameters!$D$11:$W$20,10,FALSE) -> 5.82 | N63: =VLOOKUP(VLOOKUP($D63,Parameters!$D$316:$H$462,N$9,FALSE),Parameters!$D$11:$W$20,11,FALSE) -> 1.942857143 | O63: =VLOOKUP(VLOOKUP($D63,Parameters!$D$316:$H$462,O$9,FALSE),Parameters!$D$11:$W$20,12,FALSE) -> 2.3025 | P63: =VLOOKUP(VLOOKUP($D63,Parameters!$D$316:$H$462,P$9,FALSE),Parameters!$D$11:$W$20,13,FALSE) -> 1.942857143 | Q63: =VLOOKUP(VLOOKUP($D63,Parameters!$D$316:$H$462,Q$9,FALSE),Parameters!$D$11:$W$20,14,FALSE) -> 1.942857143 | R63: =VLOOKUP(VLOOKUP($D63,Parameters!$D$316:$H$462,R$9,FALSE),Parameters!$D$11:$W$20,15,FALSE) -> 7.35 | S63: =VLOOKUP(VLOOKUP($D63,Parameters!$D$316:$H$462,S$9,FALSE),Parameters!$D$11:$W$20,16,FALSE) -> 1.942857143 | T63: =VLOOKUP(VLOOKUP($D63,Parameters!$D$316:$H$462,T$9,FALSE),Parameters!$D$11:$W$20,17,FALSE) -> 1.281533974 | U63: =VLOOKUP(VLOOKUP($D63,Parameters!$D$316:$H$462,U$9,FALSE),Parameters!$D$11:$W$20,18,FALSE) -> 1.22 | V63: =VLOOKUP(VLOOKUP($D63,Parameters!$D$316:$H$462,V$9,FALSE),Parameters!$D$11:$W$20,19,FALSE) -> 1.1258 | W63: =VLOOKUP(VLOOKUP($D63,Parameters!$D$316:$H$462,W$9,FALSE),Parameters!$D$11:$W$20,20,FALSE) -> 4.5032 | X63: =VLOOKUP(VLOOKUP($D63,Parameters!$D$316:$H$462,X$9,FALSE),Parameters!$D$11:$X$20,21,FALSE) -> 2.914285714
D64: El Salvador | E64: =VLOOKUP(VLOOKUP($D64,Parameters!$D$316:$H$462,E$9,FALSE),Parameters!$D$11:$W$20,2,FALSE) -> 1.1258 | F64: =VLOOKUP(VLOOKUP($D64,Parameters!$D$316:$H$462,F$9,FALSE),Parameters!$D$11:$W$20,3,FALSE) -> 1.9223 | G64: =VLOOKUP(VLOOKUP($D64,Parameters!$D$316:$H$462,G$9,FALSE),Parameters!$D$11:$W$20,4,FALSE) -> 1.942857143 | H64: =VLOOKUP(VLOOKUP($D64,Parameters!$D$316:$H$462,H$9,FALSE),Parameters!$D$11:$W$20,5,FALSE) -> 1.942857143 | I64: =VLOOKUP(VLOOKUP($D64,Parameters!$D$316:$H$462,I$9,FALSE),Parameters!$D$11:$W$20,6,FALSE) -> 1.942857143 | J64: =VLOOKUP(VLOOKUP($D64,Parameters!$D$316:$H$462,J$9,FALSE),Parameters!$D$11:$W$20,7,FALSE) -> 1.942857143 | K64: =VLOOKUP(VLOOKUP($D64,Parameters!$D$316:$H$462,K$9,FALSE),Parameters!$D$11:$W$20,8,FALSE) -> 1.942857143 | L64: =VLOOKUP(VLOOKUP($D64,Parameters!$D$316:$H$462,L$9,FALSE),Parameters!$D$11:$W$20,9,FALSE) -> 1.942857143 | M64: =VLOOKUP(VLOOKUP($D64,Parameters!$D$316:$H$462,M$9,FALSE),Parameters!$D$11:$W$20,10,FALSE) -> 5.82 | N64: =VLOOKUP(VLOOKUP($D64,Parameters!$D$316:$H$462,N$9,FALSE),Parameters!$D$11:$W$20,11,FALSE) -> 1.942857143 | O64: =VLOOKUP(VLOOKUP($D64,Parameters!$D$316:$H$462,O$9,FALSE),Parameters!$D$11:$W$20,12,FALSE) -> 2.3025 | P64: =VLOOKUP(VLOOKUP($D64,Parameters!$D$316:$H$462,P$9,FALSE),Parameters!$D$11:$W$20,13,FALSE) -> 1.942857143 | Q64: =VLOOKUP(VLOOKUP($D64,Parameters!$D$316:$H$462,Q$9,FALSE),Parameters!$D$11:$W$20,14,FALSE) -> 1.942857143 | R64: =VLOOKUP(VLOOKUP($D64,Parameters!$D$316:$H$462,R$9,FALSE),Parameters!$D$11:$W$20,15,FALSE) -> 7.35 | S64: =VLOOKUP(VLOOKUP($D64,Parameters!$D$316:$H$462,S$9,FALSE),Parameters!$D$11:$W$20,16,FALSE) -> 1.942857143 | T64: =VLOOKUP(VLOOKUP($D64,Parameters!$D$316:$H$462,T$9,FALSE),Parameters!$D$11:$W$20,17,FALSE) -> 1.281533974 | U64: =VLOOKUP(VLOOKUP($D64,Parameters!$D$316:$H$462,U$9,FALSE),Parameters!$D$11:$W$20,18,FALSE) -> 1.22 | V64: =VLOOKUP(VLOOKUP($D64,Parameters!$D$316:$H$462,V$9,FALSE),Parameters!$D$11:$W$20,19,FALSE) -> 1.1258 | W64: =VLOOKUP(VLOOKUP($D64,Parameters!$D$316:$H$462,W$9,FALSE),Parameters!$D$11:$W$20,20,FALSE) -> 4.5032 | X64: =VLOOKUP(VLOOKUP($D64,Parameters!$D$316:$H$462,X$9,FALSE),Parameters!$D$11:$X$20,21,FALSE) -> 2.914285714
D65: Estonia | E65: =VLOOKUP(VLOOKUP($D65,Parameters!$D$316:$H$462,E$9,FALSE),Parameters!$D$11:$W$20,2,FALSE) -> 0.3653 | F65: =VLOOKUP(VLOOKUP($D65,Parameters!$D$316:$H$462,F$9,FALSE),Parameters!$D$11:$W$20,3,FALSE) -> 0.3341666667 | G65: =VLOOKUP(VLOOKUP($D65,Parameters!$D$316:$H$462,G$9,FALSE),Parameters!$D$11:$W$20,4,FALSE) -> 0.8714285714 | H65: =VLOOKUP(VLOOKUP($D65,Parameters!$D$316:$H$462,H$9,FALSE),Parameters!$D$11:$W$20,5,FALSE) -> 0.8714285714 | I65: =VLOOKUP(VLOOKUP($D65,Parameters!$D$316:$H$462,I$9,FALSE),Parameters!$D$11:$W$20,6,FALSE) -> 0.8714285714 | J65: =VLOOKUP(VLOOKUP($D65,Parameters!$D$316:$H$462,J$9,FALSE),Parameters!$D$11:$W$20,7,FALSE) -> 0.8714285714 | K65: =VLOOKUP(VLOOKUP($D65,Parameters!$D$316:$H$462,K$9,FALSE),Parameters!$D$11:$W$20,8,FALSE) -> 0.8714285714 | L65: =VLOOKUP(VLOOKUP($D65,Parameters!$D$316:$H$462,L$9,FALSE),Parameters!$D$11:$W$20,9,FALSE) -> 0.8714285714 | M65: =VLOOKUP(VLOOKUP($D65,Parameters!$D$316:$H$462,M$9,FALSE),Parameters!$D$11:$W$20,10,FALSE) -> 2.614285714 | N65: =VLOOKUP(VLOOKUP($D65,Parameters!$D$316:$H$462,N$9,FALSE),Parameters!$D$11:$W$20,11,FALSE) -> 0.8714285714 | O65: =VLOOKUP(VLOOKUP($D65,Parameters!$D$316:$H$462,O$9,FALSE),Parameters!$D$11:$W$20,12,FALSE) -> 1.1775 | P65: =VLOOKUP(VLOOKUP($D65,Parameters!$D$316:$H$462,P$9,FALSE),Parameters!$D$11:$W$20,13,FALSE) -> 0.8714285714 | Q65: =VLOOKUP(VLOOKUP($D65,Parameters!$D$316:$H$462,Q$9,FALSE),Parameters!$D$11:$W$20,14,FALSE) -> 0.8714285714 | R65: =VLOOKUP(VLOOKUP($D65,Parameters!$D$316:$H$462,R$9,FALSE),Parameters!$D$11:$W$20,15,FALSE) -> 2.41 | S65: =VLOOKUP(VLOOKUP($D65,Parameters!$D$316:$H$462,S$9,FALSE),Parameters!$D$11:$W$20,16,FALSE) -> 0.8714285714 | T65: =VLOOKUP(VLOOKUP($D65,Parameters!$D$316:$H$462,T$9,FALSE),Parameters!$D$11:$W$20,17,FALSE) -> 0.2227777778 | U65: =VLOOKUP(VLOOKUP($D65,Parameters!$D$316:$H$462,U$9,FALSE),Parameters!$D$11:$W$20,18,FALSE) -> 0.63 | V65: =VLOOKUP(VLOOKUP($D65,Parameters!$D$316:$H$462,V$9,FALSE),Parameters!$D$11:$W$20,19,FALSE) -> 0.3653 | W65: =VLOOKUP(VLOOKUP($D65,Parameters!$D$316:$H$462,W$9,FALSE),Parameters!$D$11:$W$20,20,FALSE) -> 1.4612 | X65: =VLOOKUP(VLOOKUP($D65,Parameters!$D$316:$H$462,X$9,FALSE),Parameters!$D$11:$X$20,21,FALSE) -> 1.307142857
D66: Ethiopia | E66: =VLOOKUP(VLOOKUP($D66,Parameters!$D$316:$H$462,E$9,FALSE),Parameters!$D$11:$W$20,2,FALSE) -> 1.3511 | F66: =VLOOKUP(VLOOKUP($D66,Parameters!$D$316:$H$462,F$9,FALSE),Parameters!$D$11:$W$20,3,FALSE) -> 2.4753 | G66: =VLOOKUP(VLOOKUP($D66,Parameters!$D$316:$H$462,G$9,FALSE),Parameters!$D$11:$W$20,4,FALSE) -> 2.25 | H66: =VLOOKUP(VLOOKUP($D66,Parameters!$D$316:$H$462,H$9,FALSE),Parameters!$D$11:$W$20,5,FALSE) -> 2.25 | I66: =VLOOKUP(VLOOKUP($D66,Parameters!$D$316:$H$462,I$9,FALSE),Parameters!$D$11:$W$20,6,FALSE) -> 2.25 | J66: =VLOOKUP(VLOOKUP($D66,Parameters!$D$316:$H$462,J$9,FALSE),Parameters!$D$11:$W$20,7,FALSE) -> 2.25 | K66: =VLOOKUP(VLOOKUP($D66,Parameters!$D$316:$H$462,K$9,FALSE),Parameters!$D$11:$W$20,8,FALSE) -> 2.25 | L66: =VLOOKUP(VLOOKUP($D66,Parameters!$D$316:$H$462,L$9,FALSE),Parameters!$D$11:$W$20,9,FALSE) -> 2.25 | M66: =VLOOKUP(VLOOKUP($D66,Parameters!$D$316:$H$462,M$9,FALSE),Parameters!$D$11:$W$20,10,FALSE) -> 6.75 | N66: =VLOOKUP(VLOOKUP($D66,Parameters!$D$316:$H$462,N$9,FALSE),Parameters!$D$11:$W$20,11,FALSE) -> 2.25 | O66: =VLOOKUP(VLOOKUP($D66,Parameters!$D$316:$H$462,O$9,FALSE),Parameters!$D$11:$W$20,12,FALSE) -> 2.625 | P66: =VLOOKUP(VLOOKUP($D66,Parameters!$D$316:$H$462,P$9,FALSE),Parameters!$D$11:$W$20,13,FALSE) -> 2.25 | Q66: =VLOOKUP(VLOOKUP($D66,Parameters!$D$316:$H$462,Q$9,FALSE),Parameters!$D$11:$W$20,14,FALSE) -> 2.25 | R66: =VLOOKUP(VLOOKUP($D66,Parameters!$D$316:$H$462,R$9,FALSE),Parameters!$D$11:$W$20,15,FALSE) -> 8.78 | S66: =VLOOKUP(VLOOKUP($D66,Parameters!$D$316:$H$462,S$9,FALSE),Parameters!$D$11:$W$20,16,FALSE) -> 2.25 | T66: =VLOOKUP(VLOOKUP($D66,Parameters!$D$316:$H$462,T$9,FALSE),Parameters!$D$11:$W$20,17,FALSE) -> 1.650200825 | U66: =VLOOKUP(VLOOKUP($D66,Parameters!$D$316:$H$462,U$9,FALSE),Parameters!$D$11:$W$20,18,FALSE) -> 1.39 | V66: =VLOOKUP(VLOOKUP($D66,Parameters!$D$316:$H$462,V$9,FALSE),Parameters!$D$11:$W$20,19,FALSE) -> 1.3511 | W66: =VLOOKUP(VLOOKUP($D66,Parameters!$D$316:$H$462,W$9,FALSE),Parameters!$D$11:$W$20,20,FALSE) -> 5.4044 | X66: =VLOOKUP(VLOOKUP($D66,Parameters!$D$316:$H$462,X$9,FALSE),Parameters!$D$11:$X$20,21,FALSE) -> 3.375
D67: European Union | E67: =VLOOKUP(VLOOKUP($D67,Parameters!$D$316:$H$462,E$9,FALSE),Parameters!$D$11:$W$20,2,FALSE) -> 0.2864 | F67: =VLOOKUP(VLOOKUP($D67,Parameters!$D$316:$H$462,F$9,FALSE),Parameters!$D$11:$W$20,3,FALSE) -> 0.2330555556 | G67: =VLOOKUP(VLOOKUP($D67,Parameters!$D$316:$H$462,G$9,FALSE),Parameters!$D$11:$W$20,4,FALSE) -> 0.75 | H67: =VLOOKUP(VLOOKUP($D67,Parameters!$D$316:$H$462,H$9,FALSE),Parameters!$D$11:$W$20,5,FALSE) -> 0.75 | I67: =VLOOKUP(VLOOKUP($D67,Parameters!$D$316:$H$462,I$9,FALSE),Parameters!$D$11:$W$20,6,FALSE) -> 0.75 | J67: =VLOOKUP(VLOOKUP($D67,Parameters!$D$316:$H$462,J$9,FALSE),Parameters!$D$11:$W$20,7,FALSE) -> 0.75 | K67: =VLOOKUP(VLOOKUP($D67,Parameters!$D$316:$H$462,K$9,FALSE),Parameters!$D$11:$W$20,8,FALSE) -> 0.75 | L67: =VLOOKUP(VLOOKUP($D67,Parameters!$D$316:$H$462,L$9,FALSE),Parameters!$D$11:$W$20,9,FALSE) -> 0.75 | M67: =VLOOKUP(VLOOKUP($D67,Parameters!$D$316:$H$462,M$9,FALSE),Parameters!$D$11:$W$20,10,FALSE) -> 2.25 | N67: =VLOOKUP(VLOOKUP($D67,Parameters!$D$316:$H$462,N$9,FALSE),Parameters!$D$11:$W$20,11,FALSE) -> 0.75 | O67: =VLOOKUP(VLOOKUP($D67,Parameters!$D$316:$H$462,O$9,FALSE),Parameters!$D$11:$W$20,12,FALSE) -> 1.05 | P67: =VLOOKUP(VLOOKUP($D67,Parameters!$D$316:$H$462,P$9,FALSE),Parameters!$D$11:$W$20,13,FALSE) -> 0.75 | Q67: =VLOOKUP(VLOOKUP($D67,Parameters!$D$316:$H$462,Q$9,FALSE),Parameters!$D$11:$W$20,14,FALSE) -> 0.75 | R67: =VLOOKUP(VLOOKUP($D67,Parameters!$D$316:$H$462,R$9,FALSE),Parameters!$D$11:$W$20,15,FALSE) -> 1.89 | S67: =VLOOKUP(VLOOKUP($D67,Parameters!$D$316:$H$462,S$9,FALSE),Parameters!$D$11:$W$20,16,FALSE) -> 0.75 | T67: =VLOOKUP(VLOOKUP($D67,Parameters!$D$316:$H$462,T$9,FALSE),Parameters!$D$11:$W$20,17,FALSE) -> 0.1553703704 | U67: =VLOOKUP(VLOOKUP($D67,Parameters!$D$316:$H$462,U$9,FALSE),Parameters!$D$11:$W$20,18,FALSE) -> 0.56 | V67: =VLOOKUP(VLOOKUP($D67,Parameters!$D$316:$H$462,V$9,FALSE),Parameters!$D$11:$W$20,19,FALSE) -> 0.2864 | W67: =VLOOKUP(VLOOKUP($D67,Parameters!$D$316:$H$462,W$9,FALSE),Parameters!$D$11:$W$20,20,FALSE) -> 1.1456 | X67: =VLOOKUP(VLOOKUP($D67,Parameters!$D$316:$H$462,X$9,FALSE),Parameters!$D$11:$X$20,21,FALSE) -> 1.125
D68: Europe | E68: =VLOOKUP(VLOOKUP($D68,Parameters!$D$316:$H$462,E$9,FALSE),Parameters!$D$11:$W$20,2,FALSE) -> 0.3653 | F68: =VLOOKUP(VLOOKUP($D68,Parameters!$D$316:$H$462,F$9,FALSE),Parameters!$D$11:$W$20,3,FALSE) -> 0.3341666667 | G68: =VLOOKUP(VLOOKUP($D68,Parameters!$D$316:$H$462,G$9,FALSE),Parameters!$D$11:$W$20,4,FALSE) -> 0.8714285714 | H68: =VLOOKUP(VLOOKUP($D68,Parameters!$D$316:$H$462,H$9,FALSE),Parameters!$D$11:$W$20,5,FALSE) -> 0.8714285714 | I68: =VLOOKUP(VLOOKUP($D68,Parameters!$D$316:$H$462,I$9,FALSE),Parameters!$D$11:$W$20,6,FALSE) -> 0.8714285714 | J68: =VLOOKUP(VLOOKUP($D68,Parameters!$D$316:$H$462,J$9,FALSE),Parameters!$D$11:$W$20,7,FALSE) -> 0.8714285714 | K68: =VLOOKUP(VLOOKUP($D68,Parameters!$D$316:$H$462,K$9,FALSE),Parameters!$D$11:$W$20,8,FALSE) -> 0.8714285714 | L68: =VLOOKUP(VLOOKUP($D68,Parameters!$D$316:$H$462,L$9,FALSE),Parameters!$D$11:$W$20,9,FALSE) -> 0.8714285714 | M68: =VLOOKUP(VLOOKUP($D68,Parameters!$D$316:$H$462,M$9,FALSE),Parameters!$D$11:$W$20,10,FALSE) -> 2.614285714 | N68: =VLOOKUP(VLOOKUP($D68,Parameters!$D$316:$H$462,N$9,FALSE),Parameters!$D$11:$W$20,11,FALSE) -> 0.8714285714 | O68: =VLOOKUP(VLOOKUP($D68,Parameters!$D$316:$H$462,O$9,FALSE),Parameters!$D$11:$W$20,12,FALSE) -> 1.1775 | P68: =VLOOKUP(VLOOKUP($D68,Parameters!$D$316:$H$462,P$9,FALSE),Parameters!$D$11:$W$20,13,FALSE) -> 0.8714285714 | Q68: =VLOOKUP(VLOOKUP($D68,Parameters!$D$316:$H$462,Q$9,FALSE),Parameters!$D$11:$W$20,14,FALSE) -> 0.8714285714 | R68: =VLOOKUP(VLOOKUP($D68,Parameters!$D$316:$H$462,R$9,FALSE),Parameters!$D$11:$W$20,15,FALSE) -> 2.41 | S68: =VLOOKUP(VLOOKUP($D68,Parameters!$D$316:$H$462,S$9,FALSE),Parameters!$D$11:$W$20,16,FALSE) -> 0.8714285714 | T68: =VLOOKUP(VLOOKUP($D68,Parameters!$D$316:$H$462,T$9,FALSE),Parameters!$D$11:$W$20,17,FALSE) -> 0.2227777778 | U68: =VLOOKUP(VLOOKUP($D68,Parameters!$D$316:$H$462,U$9,FALSE),Parameters!$D$11:$W$20,18,FALSE) -> 0.63 | V68: =VLOOKUP(VLOOKUP($D68,Parameters!$D$316:$H$462,V$9,FALSE),Parameters!$D$11:$W$20,19,FALSE) -> 0.3653 | W68: =VLOOKUP(VLOOKUP($D68,Parameters!$D$316:$H$462,W$9,FALSE),Parameters!$D$11:$W$20,20,FALSE) -> 1.4612 | X68: =VLOOKUP(VLOOKUP($D68,Parameters!$D$316:$H$462,X$9,FALSE),Parameters!$D$11:$X$20,21,FALSE) -> 1.307142857
D69: Eu & Middle East & Africa | E69: =VLOOKUP(VLOOKUP($D69,Parameters!$D$316:$H$462,E$9,FALSE),Parameters!$D$11:$W$20,2,FALSE) -> 0.4686 | F69: =VLOOKUP(VLOOKUP($D69,Parameters!$D$316:$H$462,F$9,FALSE),Parameters!$D$11:$W$20,3,FALSE) -> 0.475 | G69: =VLOOKUP(VLOOKUP($D69,Parameters!$D$316:$H$462,G$9,FALSE),Parameters!$D$11:$W$20,4,FALSE) -> 1.023809524 | H69: =VLOOKUP(VLOOKUP($D69,Parameters!$D$316:$H$462,H$9,FALSE),Parameters!$D$11:$W$20,5,FALSE) -> 1.023809524 | I69: =VLOOKUP(VLOOKUP($D69,Parameters!$D$316:$H$462,I$9,FALSE),Parameters!$D$11:$W$20,6,FALSE) -> 1.023809524 | J69: =VLOOKUP(VLOOKUP($D69,Parameters!$D$316:$H$462,J$9,FALSE),Parameters!$D$11:$W$20,7,FALSE) -> 1.023809524 | K69: =VLOOKUP(VLOOKUP($D69,Parameters!$D$316:$H$462,K$9,FALSE),Parameters!$D$11:$W$20,8,FALSE) -> 1.023809524 | L69: =VLOOKUP(VLOOKUP($D69,Parameters!$D$316:$H$462,L$9,FALSE),Parameters!$D$11:$W$20,9,FALSE) -> 1.023809524 | M69: =VLOOKUP(VLOOKUP($D69,Parameters!$D$316:$H$462,M$9,FALSE),Parameters!$D$11:$W$20,10,FALSE) -> 3.071428571 | N69: =VLOOKUP(VLOOKUP($D69,Parameters!$D$316:$H$462,N$9,FALSE),Parameters!$D$11:$W$20,11,FALSE) -> 1.023809524 | O69: =VLOOKUP(VLOOKUP($D69,Parameters!$D$316:$H$462,O$9,FALSE),Parameters!$D$11:$W$20,12,FALSE) -> 1.3375 | P69: =VLOOKUP(VLOOKUP($D69,Parameters!$D$316:$H$462,P$9,FALSE),Parameters!$D$11:$W$20,13,FALSE) -> 1.023809524 | Q69: =VLOOKUP(VLOOKUP($D69,Parameters!$D$316:$H$462,Q$9,FALSE),Parameters!$D$11:$W$20,14,FALSE) -> 1.023809524 | R69: =VLOOKUP(VLOOKUP($D69,Parameters!$D$316:$H$462,R$9,FALSE),Parameters!$D$11:$W$20,15,FALSE) -> 3.06 | S69: =VLOOKUP(VLOOKUP($D69,Parameters!$D$316:$H$462,S$9,FALSE),Parameters!$D$11:$W$20,16,FALSE) -> 1.023809524 | T69: =VLOOKUP(VLOOKUP($D69,Parameters!$D$316:$H$462,T$9,FALSE),Parameters!$D$11:$W$20,17,FALSE) -> 0.3166666667 | U69: =VLOOKUP(VLOOKUP($D69,Parameters!$D$316:$H$462,U$9,FALSE),Parameters!$D$11:$W$20,18,FALSE) -> 0.71 | V69: =VLOOKUP(VLOOKUP($D69,Parameters!$D$316:$H$462,V$9,FALSE),Parameters!$D$11:$W$20,19,FALSE) -> 0.4686 | W69: =VLOOKUP(VLOOKUP($D69,Parameters!$D$316:$H$462,W$9,FALSE),Parameters!$D$11:$W$20,20,FALSE) -> 1.8744 | X69: =VLOOKUP(VLOOKUP($D69,Parameters!$D$316:$H$462,X$9,FALSE),Parameters!$D$11:$X$20,21,FALSE) -> 1.535714286
D70: Fiji | E70: =VLOOKUP(VLOOKUP($D70,Parameters!$D$316:$H$462,E$9,FALSE),Parameters!$D$11:$W$20,2,FALSE) -> 1.3511 | F70: =VLOOKUP(VLOOKUP($D70,Parameters!$D$316:$H$462,F$9,FALSE),Parameters!$D$11:$W$20,3,FALSE) -> 2.4753 | G70: =VLOOKUP(VLOOKUP($D70,Parameters!$D$316:$H$462,G$9,FALSE),Parameters!$D$11:$W$20,4,FALSE) -> 2.25 | H70: =VLOOKUP(VLOOKUP($D70,Parameters!$D$316:$H$462,H$9,FALSE),Parameters!$D$11:$W$20,5,FALSE) -> 2.25 | I70: =VLOOKUP(VLOOKUP($D70,Parameters!$D$316:$H$462,I$9,FALSE),Parameters!$D$11:$W$20,6,FALSE) -> 2.25 | J70: =VLOOKUP(VLOOKUP($D70,Parameters!$D$316:$H$462,J$9,FALSE),Parameters!$D$11:$W$20,7,FALSE) -> 2.25 | K70: =VLOOKUP(VLOOKUP($D70,Parameters!$D$316:$H$462,K$9,FALSE),Parameters!$D$11:$W$20,8,FALSE) -> 2.25 | L70: =VLOOKUP(VLOOKUP($D70,Parameters!$D$316:$H$462,L$9,FALSE),Parameters!$D$11:$W$20,9,FALSE) -> 2.25 | M70: =VLOOKUP(VLOOKUP($D70,Parameters!$D$316:$H$462,M$9,FALSE),Parameters!$D$11:$W$20,10,FALSE) -> 6.75 | N70: =VLOOKUP(VLOOKUP($D70,Parameters!$D$316:$H$462,N$9,FALSE),Parameters!$D$11:$W$20,11,FALSE) -> 2.25 | O70: =VLOOKUP(VLOOKUP($D70,Parameters!$D$316:$H$462,O$9,FALSE),Parameters!$D$11:$W$20,12,FALSE) -> 2.625 | P70: =VLOOKUP(VLOOKUP($D70,Parameters!$D$316:$H$462,P$9,FALSE),Parameters!$D$11:$W$20,13,FALSE) -> 2.25 | Q70: =VLOOKUP(VLOOKUP($D70,Parameters!$D$316:$H$462,Q$9,FALSE),Parameters!$D$11:$W$20,14,FALSE) -> 2.25 | R70: =VLOOKUP(VLOOKUP($D70,Parameters!$D$316:$H$462,R$9,FALSE),Parameters!$D$11:$W$20,15,FALSE) -> 8.78 | S70: =VLOOKUP(VLOOKUP($D70,Parameters!$D$316:$H$462,S$9,FALSE),Parameters!$D$11:$W$20,16,FALSE) -> 2.25 | T70: =VLOOKUP(VLOOKUP($D70,Parameters!$D$316:$H$462,T$9,FALSE),Parameters!$D$11:$W$20,17,FALSE) -> 1.650200825 | U70: =VLOOKUP(VLOOKUP($D70,Parameters!$D$316:$H$462,U$9,FALSE),Parameters!$D$11:$W$20,18,FALSE) -> 1.39 | V70: =VLOOKUP(VLOOKUP($D70,Parameters!$D$316:$H$462,V$9,FALSE),Parameters!$D$11:$W$20,19,FALSE) -> 1.3511 | W70: =VLOOKUP(VLOOKUP($D70,Parameters!$D$316:$H$462,W$9,FALSE),Parameters!$D$11:$W$20,20,FALSE) -> 5.4044 | X70: =VLOOKUP(VLOOKUP($D70,Parameters!$D$316:$H$462,X$9,FALSE),Parameters!$D$11:$X$20,21,FALSE) -> 3.375
D71: Finland | E71: =VLOOKUP(VLOOKUP($D71,Parameters!$D$316:$H$462,E$9,FALSE),Parameters!$D$11:$W$20,2,FALSE) -> 0.2319 | F71: =VLOOKUP(VLOOKUP($D71,Parameters!$D$316:$H$462,F$9,FALSE),Parameters!$D$11:$W$20,3,FALSE) -> 0.1716666667 | G71: =VLOOKUP(VLOOKUP($D71,Parameters!$D$316:$H$462,G$9,FALSE),Parameters!$D$11:$W$20,4,FALSE) -> 0.6595238095 | H71: =VLOOKUP(VLOOKUP($D71,Parameters!$D$316:$H$462,H$9,FALSE),Parameters!$D$11:$W$20,5,FALSE) -> 0.6595238095 | I71: =VLOOKUP(VLOOKUP($D71,Parameters!$D$316:$H$462,I$9,FALSE),Parameters!$D$11:$W$20,6,FALSE) -> 0.6595238095 | J71: =VLOOKUP(VLOOKUP($D71,Parameters!$D$316:$H$462,J$9,FALSE),Parameters!$D$11:$W$20,7,FALSE) -> 0.6595238095 | K71: =VLOOKUP(VLOOKUP($D71,Parameters!$D$316:$H$462,K$9,FALSE),Parameters!$D$11:$W$20,8,FALSE) -> 0.6595238095 | L71: =VLOOKUP(VLOOKUP($D71,Parameters!$D$316:$H$462,L$9,FALSE),Parameters!$D$11:$W$20,9,FALSE) -> 0.6595238095 | M71: =VLOOKUP(VLOOKUP($D71,Parameters!$D$316:$H$462,M$9,FALSE),Parameters!$D$11:$W$20,10,FALSE) -> 1.978571429 | N71: =VLOOKUP(VLOOKUP($D71,Parameters!$D$316:$H$462,N$9,FALSE),Parameters!$D$11:$W$20,11,FALSE) -> 0.6595238095 | O71: =VLOOKUP(VLOOKUP($D71,Parameters!$D$316:$H$462,O$9,FALSE),Parameters!$D$11:$W$20,12,FALSE) -> 0.955 | P71: =VLOOKUP(VLOOKUP($D71,Parameters!$D$316:$H$462,P$9,FALSE),Parameters!$D$11:$W$20,13,FALSE) -> 0.6595238095 | Q71: =VLOOKUP(VLOOKUP($D71,Parameters!$D$316:$H$462,Q$9,FALSE),Parameters!$D$11:$W$20,14,FALSE) -> 0.6595238095 | R71: =VLOOKUP(VLOOKUP($D71,Parameters!$D$316:$H$462,R$9,FALSE),Parameters!$D$11:$W$20,15,FALSE) -> 1.5 | S71: =VLOOKUP(VLOOKUP($D71,Parameters!$D$316:$H$462,S$9,FALSE),Parameters!$D$11:$W$20,16,FALSE) -> 0.6595238095 | T71: =VLOOKUP(VLOOKUP($D71,Parameters!$D$316:$H$462,T$9,FALSE),Parameters!$D$11:$W$20,17,FALSE) -> 0.1144444444 | U71: =VLOOKUP(VLOOKUP($D71,Parameters!$D$316:$H$462,U$9,FALSE),Parameters!$D$11:$W$20,18,FALSE) -> 0.51 | V71: =VLOOKUP(VLOOKUP($D71,Parameters!$D$316:$H$462,V$9,FALSE),Parameters!$D$11:$W$20,19,FALSE) -> 0.2319 | W71: =VLOOKUP(VLOOKUP($D71,Parameters!$D$316:$H$462,W$9,FALSE),Parameters!$D$11:$W$20,20,FALSE) -> 0.9276 | X71: =VLOOKUP(VLOOKUP($D71,Parameters!$D$316:$H$462,X$9,FALSE),Parameters!$D$11:$X$20,21,FALSE) -> 0.9892857143
D72: France | E72: =VLOOKUP(VLOOKUP($D72,Parameters!$D$316:$H$462,E$9,FALSE),Parameters!$D$11:$W$20,2,FALSE) -> 0.2864 | F72: =VLOOKUP(VLOOKUP($D72,Parameters!$D$316:$H$462,F$9,FALSE),Parameters!$D$11:$W$20,3,FALSE) -> 0.2330555556 | G72: =VLOOKUP(VLOOKUP($D72,Parameters!$D$316:$H$462,G$9,FALSE),Parameters!$D$11:$W$20,4,FALSE) -> 0.75 | H72: =VLOOKUP(VLOOKUP($D72,Parameters!$D$316:$H$462,H$9,FALSE),Parameters!$D$11:$W$20,5,FALSE) -> 0.75 | I72: =VLOOKUP(VLOOKUP($D72,Parameters!$D$316:$H$462,I$9,FALSE),Parameters!$D$11:$W$20,6,FALSE) -> 0.75 | J72: =VLOOKUP(VLOOKUP($D72,Parameters!$D$316:$H$462,J$9,FALSE),Parameters!$D$11:$W$20,7,FALSE) -> 0.75 | K72: =VLOOKUP(VLOOKUP($D72,Parameters!$D$316:$H$462,K$9,FALSE),Parameters!$D$11:$W$20,8,FALSE) -> 0.75 | L72: =VLOOKUP(VLOOKUP($D72,Parameters!$D$316:$H$462,L$9,FALSE),Parameters!$D$11:$W$20,9,FALSE) -> 0.75 | M72: =VLOOKUP(VLOOKUP($D72,Parameters!$D$316:$H$462,M$9,FALSE),Parameters!$D$11:$W$20,10,FALSE) -> 2.25 | N72: =VLOOKUP(VLOOKUP($D72,Parameters!$D$316:$H$462,N$9,FALSE),Parameters!$D$11:$W$20,11,FALSE) -> 0.75 | O72: =VLOOKUP(VLOOKUP($D72,Parameters!$D$316:$H$462,O$9,FALSE),Parameters!$D$11:$W$20,12,FALSE) -> 1.05 | P72: =VLOOKUP(VLOOKUP($D72,Parameters!$D$316:$H$462,P$9,FALSE),Parameters!$D$11:$W$20,13,FALSE) -> 0.75 | Q72: =VLOOKUP(VLOOKUP($D72,Parameters!$D$316:$H$462,Q$9,FALSE),Parameters!$D$11:$W$20,14,FALSE) -> 0.75 | R72: =VLOOKUP(VLOOKUP($D72,Parameters!$D$316:$H$462,R$9,FALSE),Parameters!$D$11:$W$20,15,FALSE) -> 1.89 | S72: =VLOOKUP(VLOOKUP($D72,Parameters!$D$316:$H$462,S$9,FALSE),Parameters!$D$11:$W$20,16,FALSE) -> 0.75 | T72: =VLOOKUP(VLOOKUP($D72,Parameters!$D$316:$H$462,T$9,FALSE),Parameters!$D$11:$W$20,17,FALSE) -> 0.1553703704 | U72: =VLOOKUP(VLOOKUP($D72,Parameters!$D$316:$H$462,U$9,FALSE),Parameters!$D$11:$W$20,18,FALSE) -> 0.56 | V72: =VLOOKUP(VLOOKUP($D72,Parameters!$D$316:$H$462,V$9,FALSE),Parameters!$D$11:$W$20,19,FALSE) -> 0.2864 | W72: =VLOOKUP(VLOOKUP($D72,Parameters!$D$316:$H$462,W$9,FALSE),Parameters!$D$11:$W$20,20,FALSE) -> 1.1456 | X72: =VLOOKUP(VLOOKUP($D72,Parameters!$D$316:$H$462,X$9,FALSE),Parameters!$D$11:$X$20,21,FALSE) -> 1.125
D73: Gabon | E73: =VLOOKUP(VLOOKUP($D73,Parameters!$D$316:$H$462,E$9,FALSE),Parameters!$D$11:$W$20,2,FALSE) -> 1.3511 | F73: =VLOOKUP(VLOOKUP($D73,Parameters!$D$316:$H$462,F$9,FALSE),Parameters!$D$11:$W$20,3,FALSE) -> 2.4753 | G73: =VLOOKUP(VLOOKUP($D73,Parameters!$D$316:$H$462,G$9,FALSE),Parameters!$D$11:$W$20,4,FALSE) -> 2.25 | H73: =VLOOKUP(VLOOKUP($D73,Parameters!$D$316:$H$462,H$9,FALSE),Parameters!$D$11:$W$20,5,FALSE) -> 2.25 | I73: =VLOOKUP(VLOOKUP($D73,Parameters!$D$316:$H$462,I$9,FALSE),Parameters!$D$11:$W$20,6,FALSE) -> 2.25 | J73: =VLOOKUP(VLOOKUP($D73,Parameters!$D$316:$H$462,J$9,FALSE),Parameters!$D$11:$W$20,7,FALSE) -> 2.25 | K73: =VLOOKUP(VLOOKUP($D73,Parameters!$D$316:$H$462,K$9,FALSE),Parameters!$D$11:$W$20,8,FALSE) -> 2.25 | L73: =VLOOKUP(VLOOKUP($D73,Parameters!$D$316:$H$462,L$9,FALSE),Parameters!$D$11:$W$20,9,FALSE) -> 2.25 | M73: =VLOOKUP(VLOOKUP($D73,Parameters!$D$316:$H$462,M$9,FALSE),Parameters!$D$11:$W$20,10,FALSE) -> 6.75 | N73: =VLOOKUP(VLOOKUP($D73,Parameters!$D$316:$H$462,N$9,FALSE),Parameters!$D$11:$W$20,11,FALSE) -> 2.25 | O73: =VLOOKUP(VLOOKUP($D73,Parameters!$D$316:$H$462,O$9,FALSE),Parameters!$D$11:$W$20,12,FALSE) -> 2.625 | P73: =VLOOKUP(VLOOKUP($D73,Parameters!$D$316:$H$462,P$9,FALSE),Parameters!$D$11:$W$20,13,FALSE) -> 2.25 | Q73: =VLOOKUP(VLOOKUP($D73,Parameters!$D$316:$H$462,Q$9,FALSE),Parameters!$D$11:$W$20,14,FALSE) -> 2.25 | R73: =VLOOKUP(VLOOKUP($D73,Parameters!$D$316:$H$462,R$9,FALSE),Parameters!$D$11:$W$20,15,FALSE) -> 8.78 | S73: =VLOOKUP(VLOOKUP($D73,Parameters!$D$316:$H$462,S$9,FALSE),Parameters!$D$11:$W$20,16,FALSE) -> 2.25 | T73: =VLOOKUP(VLOOKUP($D73,Parameters!$D$316:$H$462,T$9,FALSE),Parameters!$D$11:$W$20,17,FALSE) -> 1.650200825 | U73: =VLOOKUP(VLOOKUP($D73,Parameters!$D$316:$H$462,U$9,FALSE),Parameters!$D$11:$W$20,18,FALSE) -> 1.39 | V73: =VLOOKUP(VLOOKUP($D73,Parameters!$D$316:$H$462,V$9,FALSE),Parameters!$D$11:$W$20,19,FALSE) -> 1.3511 | W73: =VLOOKUP(VLOOKUP($D73,Parameters!$D$316:$H$462,W$9,FALSE),Parameters!$D$11:$W$20,20,FALSE) -> 5.4044 | X73: =VLOOKUP(VLOOKUP($D73,Parameters!$D$316:$H$462,X$9,FALSE),Parameters!$D$11:$X$20,21,FALSE) -> 3.375
D74: Georgia | E74: =VLOOKUP(VLOOKUP($D74,Parameters!$D$316:$H$462,E$9,FALSE),Parameters!$D$11:$W$20,2,FALSE) -> 0.7484 | F74: =VLOOKUP(VLOOKUP($D74,Parameters!$D$316:$H$462,F$9,FALSE),Parameters!$D$11:$W$20,3,FALSE) -> 1.0251 | G74: =VLOOKUP(VLOOKUP($D74,Parameters!$D$316:$H$462,G$9,FALSE),Parameters!$D$11:$W$20,4,FALSE) -> 1.421428571 | H74: =VLOOKUP(VLOOKUP($D74,Parameters!$D$316:$H$462,H$9,FALSE),Parameters!$D$11:$W$20,5,FALSE) -> 1.421428571 | I74: =VLOOKUP(VLOOKUP($D74,Parameters!$D$316:$H$462,I$9,FALSE),Parameters!$D$11:$W$20,6,FALSE) -> 1.421428571 | J74: =VLOOKUP(VLOOKUP($D74,Parameters!$D$316:$H$462,J$9,FALSE),Parameters!$D$11:$W$20,7,FALSE) -> 1.421428571 | K74: =VLOOKUP(VLOOKUP($D74,Parameters!$D$316:$H$462,K$9,FALSE),Parameters!$D$11:$W$20,8,FALSE) -> 1.421428571 | L74: =VLOOKUP(VLOOKUP($D74,Parameters!$D$316:$H$462,L$9,FALSE),Parameters!$D$11:$W$20,9,FALSE) -> 1.421428571 | M74: =VLOOKUP(VLOOKUP($D74,Parameters!$D$316:$H$462,M$9,FALSE),Parameters!$D$11:$W$20,10,FALSE) -> 4.264285714 | N74: =VLOOKUP(VLOOKUP($D74,Parameters!$D$316:$H$462,N$9,FALSE),Parameters!$D$11:$W$20,11,FALSE) -> 1.421428571 | O74: =VLOOKUP(VLOOKUP($D74,Parameters!$D$316:$H$462,O$9,FALSE),Parameters!$D$11:$W$20,12,FALSE) -> 1.755 | P74: =VLOOKUP(VLOOKUP($D74,Parameters!$D$316:$H$462,P$9,FALSE),Parameters!$D$11:$W$20,13,FALSE) -> 1.421428571 | Q74: =VLOOKUP(VLOOKUP($D74,Parameters!$D$316:$H$462,Q$9,FALSE),Parameters!$D$11:$W$20,14,FALSE) -> 1.421428571 | R74: =VLOOKUP(VLOOKUP($D74,Parameters!$D$316:$H$462,R$9,FALSE),Parameters!$D$11:$W$20,15,FALSE) -> 4.88 | S74: =VLOOKUP(VLOOKUP($D74,Parameters!$D$316:$H$462,S$9,FALSE),Parameters!$D$11:$W$20,16,FALSE) -> 1.421428571 | T74: =VLOOKUP(VLOOKUP($D74,Parameters!$D$316:$H$462,T$9,FALSE),Parameters!$D$11:$W$20,17,FALSE) -> 0.6834003417 | U74: =VLOOKUP(VLOOKUP($D74,Parameters!$D$316:$H$462,U$9,FALSE),Parameters!$D$11:$W$20,18,FALSE) -> 0.93 | V74: =VLOOKUP(VLOOKUP($D74,Parameters!$D$316:$H$462,V$9,FALSE),Parameters!$D$11:$W$20,19,FALSE) -> 0.7484 | W74: =VLOOKUP(VLOOKUP($D74,Parameters!$D$316:$H$462,W$9,FALSE),Parameters!$D$11:$W$20,20,FALSE) -> 2.9936 | X74: =VLOOKUP(VLOOKUP($D74,Parameters!$D$316:$H$462,X$9,FALSE),Parameters!$D$11:$X$20,21,FALSE) -> 2.132142857
D75: Germany | E75: =VLOOKUP(VLOOKUP($D75,Parameters!$D$316:$H$462,E$9,FALSE),Parameters!$D$11:$W$20,2,FALSE) -> 0.2319 | F75: =VLOOKUP(VLOOKUP($D75,Parameters!$D$316:$H$462,F$9,FALSE),Parameters!$D$11:$W$20,3,FALSE) -> 0.2330555556 | G75: =VLOOKUP(VLOOKUP($D75,Parameters!$D$316:$H$462,G$9,FALSE),Parameters!$D$11:$W$20,4,FALSE) -> 0.6595238095 | H75: =VLOOKUP(VLOOKUP($D75,Parameters!$D$316:$H$462,H$9,FALSE),Parameters!$D$11:$W$20,5,FALSE) -> 0.6595238095 | I75: =VLOOKUP(VLOOKUP($D75,Parameters!$D$316:$H$462,I$9,FALSE),Parameters!$D$11:$W$20,6,FALSE) -> 0.6595238095 | J75: =VLOOKUP(VLOOKUP($D75,Parameters!$D$316:$H$462,J$9,FALSE),Parameters!$D$11:$W$20,7,FALSE) -> 0.6595238095 | K75: =VLOOKUP(VLOOKUP($D75,Parameters!$D$316:$H$462,K$9,FALSE),Parameters!$D$11:$W$20,8,FALSE) -> 0.6595238095 | L75: =VLOOKUP(VLOOKUP($D75,Parameters!$D$316:$H$462,L$9,FALSE),Parameters!$D$11:$W$20,9,FALSE) -> 0.6595238095 | M75: =VLOOKUP(VLOOKUP($D75,Parameters!$D$316:$H$462,M$9,FALSE),Parameters!$D$11:$W$20,10,FALSE) -> 1.978571429 | N75: =VLOOKUP(VLOOKUP($D75,Parameters!$D$316:$H$462,N$9,FALSE),Parameters!$D$11:$W$20,11,FALSE) -> 0.6595238095 | O75: =VLOOKUP(VLOOKUP($D75,Parameters!$D$316:$H$462,O$9,FALSE),Parameters!$D$11:$W$20,12,FALSE) -> 0.955 | P75: =VLOOKUP(VLOOKUP($D75,Parameters!$D$316:$H$462,P$9,FALSE),Parameters!$D$11:$W$20,13,FALSE) -> 0.6595238095 | Q75: =VLOOKUP(VLOOKUP($D75,Parameters!$D$316:$H$462,Q$9,FALSE),Parameters!$D$11:$W$20,14,FALSE) -> 0.6595238095 | R75: =VLOOKUP(VLOOKUP($D75,Parameters!$D$316:$H$462,R$9,FALSE),Parameters!$D$11:$W$20,15,FALSE) -> 1.5 | S75: =VLOOKUP(VLOOKUP($D75,Parameters!$D$316:$H$462,S$9,FALSE),Parameters!$D$11:$W$20,16,FALSE) -> 0.6595238095 | T75: =VLOOKUP(VLOOKUP($D75,Parameters!$D$316:$H$462,T$9,FALSE),Parameters!$D$11:$W$20,17,FALSE) -> 0.1553703704 | U75: =VLOOKUP(VLOOKUP($D75,Parameters!$D$316:$H$462,U$9,FALSE),Parameters!$D$11:$W$20,18,FALSE) -> 0.51 | V75: =VLOOKUP(VLOOKUP($D75,Parameters!$D$316:$H$462,V$9,FALSE),Parameters!$D$11:$W$20,19,FALSE) -> 0.2319 | W75: =VLOOKUP(VLOOKUP($D75,Parameters!$D$316:$H$462,W$9,FALSE),Parameters!$D$11:$W$20,20,FALSE) -> 0.9276 | X75: =VLOOKUP(VLOOKUP($D75,Parameters!$D$316:$H$462,X$9,FALSE),Parameters!$D$11:$X$20,21,FALSE) -> 0.9892857143
D76: Ghana | E76: =VLOOKUP(VLOOKUP($D76,Parameters!$D$316:$H$462,E$9,FALSE),Parameters!$D$11:$W$20,2,FALSE) -> 1.1258 | F76: =VLOOKUP(VLOOKUP($D76,Parameters!$D$316:$H$462,F$9,FALSE),Parameters!$D$11:$W$20,3,FALSE) -> 1.9223 | G76: =VLOOKUP(VLOOKUP($D76,Parameters!$D$316:$H$462,G$9,FALSE),Parameters!$D$11:$W$20,4,FALSE) -> 1.942857143 | H76: =VLOOKUP(VLOOKUP($D76,Parameters!$D$316:$H$462,H$9,FALSE),Parameters!$D$11:$W$20,5,FALSE) -> 1.942857143 | I76: =VLOOKUP(VLOOKUP($D76,Parameters!$D$316:$H$462,I$9,FALSE),Parameters!$D$11:$W$20,6,FALSE) -> 1.942857143 | J76: =VLOOKUP(VLOOKUP($D76,Parameters!$D$316:$H$462,J$9,FALSE),Parameters!$D$11:$W$20,7,FALSE) -> 1.942857143 | K76: =VLOOKUP(VLOOKUP($D76,Parameters!$D$316:$H$462,K$9,FALSE),Parameters!$D$11:$W$20,8,FALSE) -> 1.942857143 | L76: =VLOOKUP(VLOOKUP($D76,Parameters!$D$316:$H$462,L$9,FALSE),Parameters!$D$11:$W$20,9,FALSE) -> 1.942857143 | M76: =VLOOKUP(VLOOKUP($D76,Parameters!$D$316:$H$462,M$9,FALSE),Parameters!$D$11:$W$20,10,FALSE) -> 5.82 | N76: =VLOOKUP(VLOOKUP($D76,Parameters!$D$316:$H$462,N$9,FALSE),Parameters!$D$11:$W$20,11,FALSE) -> 1.942857143 | O76: =VLOOKUP(VLOOKUP($D76,Parameters!$D$316:$H$462,O$9,FALSE),Parameters!$D$11:$W$20,12,FALSE) -> 2.3025 | P76: =VLOOKUP(VLOOKUP($D76,Parameters!$D$316:$H$462,P$9,FALSE),Parameters!$D$11:$W$20,13,FALSE) -> 1.942857143 | Q76: =VLOOKUP(VLOOKUP($D76,Parameters!$D$316:$H$462,Q$9,FALSE),Parameters!$D$11:$W$20,14,FALSE) -> 1.942857143 | R76: =VLOOKUP(VLOOKUP($D76,Parameters!$D$316:$H$462,R$9,FALSE),Parameters!$D$11:$W$20,15,FALSE) -> 7.35 | S76: =VLOOKUP(VLOOKUP($D76,Parameters!$D$316:$H$462,S$9,FALSE),Parameters!$D$11:$W$20,16,FALSE) -> 1.942857143 | T76: =VLOOKUP(VLOOKUP($D76,Parameters!$D$316:$H$462,T$9,FALSE),Parameters!$D$11:$W$20,17,FALSE) -> 1.281533974 | U76: =VLOOKUP(VLOOKUP($D76,Parameters!$D$316:$H$462,U$9,FALSE),Parameters!$D$11:$W$20,18,FALSE) -> 1.22 | V76: =VLOOKUP(VLOOKUP($D76,Parameters!$D$316:$H$462,V$9,FALSE),Parameters!$D$11:$W$20,19,FALSE) -> 1.1258 | W76: =VLOOKUP(VLOOKUP($D76,Parameters!$D$316:$H$462,W$9,FALSE),Parameters!$D$11:$W$20,20,FALSE) -> 4.5032 | X76: =VLOOKUP(VLOOKUP($D76,Parameters!$D$316:$H$462,X$9,FALSE),Parameters!$D$11:$X$20,21,FALSE) -> 2.914285714
D77: Greece | E77: =VLOOKUP(VLOOKUP($D77,Parameters!$D$316:$H$462,E$9,FALSE),Parameters!$D$11:$W$20,2,FALSE) -> 0.5963 | F77: =VLOOKUP(VLOOKUP($D77,Parameters!$D$316:$H$462,F$9,FALSE),Parameters!$D$11:$W$20,3,FALSE) -> 0.475 | G77: =VLOOKUP(VLOOKUP($D77,Parameters!$D$316:$H$462,G$9,FALSE),Parameters!$D$11:$W$20,4,FALSE) -> 1.207142857 | H77: =VLOOKUP(VLOOKUP($D77,Parameters!$D$316:$H$462,H$9,FALSE),Parameters!$D$11:$W$20,5,FALSE) -> 1.207142857 | I77: =VLOOKUP(VLOOKUP($D77,Parameters!$D$316:$H$462,I$9,FALSE),Parameters!$D$11:$W$20,6,FALSE) -> 1.207142857 | J77: =VLOOKUP(VLOOKUP($D77,Parameters!$D$316:$H$462,J$9,FALSE),Parameters!$D$11:$W$20,7,FALSE) -> 1.207142857 | K77: =VLOOKUP(VLOOKUP($D77,Parameters!$D$316:$H$462,K$9,FALSE),Parameters!$D$11:$W$20,8,FALSE) -> 1.207142857 | L77: =VLOOKUP(VLOOKUP($D77,Parameters!$D$316:$H$462,L$9,FALSE),Parameters!$D$11:$W$20,9,FALSE) -> 1.207142857 | M77: =VLOOKUP(VLOOKUP($D77,Parameters!$D$316:$H$462,M$9,FALSE),Parameters!$D$11:$W$20,10,FALSE) -> 3.63 | N77: =VLOOKUP(VLOOKUP($D77,Parameters!$D$316:$H$462,N$9,FALSE),Parameters!$D$11:$W$20,11,FALSE) -> 1.207142857 | O77: =VLOOKUP(VLOOKUP($D77,Parameters!$D$316:$H$462,O$9,FALSE),Parameters!$D$11:$W$20,12,FALSE) -> 1.53 | P77: =VLOOKUP(VLOOKUP($D77,Parameters!$D$316:$H$462,P$9,FALSE),Parameters!$D$11:$W$20,13,FALSE) -> 1.207142857 | Q77: =VLOOKUP(VLOOKUP($D77,Parameters!$D$316:$H$462,Q$9,FALSE),Parameters!$D$11:$W$20,14,FALSE) -> 1.207142857 | R77: =VLOOKUP(VLOOKUP($D77,Parameters!$D$316:$H$462,R$9,FALSE),Parameters!$D$11:$W$20,15,FALSE) -> 3.9 | S77: =VLOOKUP(VLOOKUP($D77,Parameters!$D$316:$H$462,S$9,FALSE),Parameters!$D$11:$W$20,16,FALSE) -> 1.207142857 | T77: =VLOOKUP(VLOOKUP($D77,Parameters!$D$316:$H$462,T$9,FALSE),Parameters!$D$11:$W$20,17,FALSE) -> 0.3166666667 | U77: =VLOOKUP(VLOOKUP($D77,Parameters!$D$316:$H$462,U$9,FALSE),Parameters!$D$11:$W$20,18,FALSE) -> 0.81 | V77: =VLOOKUP(VLOOKUP($D77,Parameters!$D$316:$H$462,V$9,FALSE),Parameters!$D$11:$W$20,19,FALSE) -> 0.5963 | W77: =VLOOKUP(VLOOKUP($D77,Parameters!$D$316:$H$462,W$9,FALSE),Parameters!$D$11:$W$20,20,FALSE) -> 2.3852 | X77: =VLOOKUP(VLOOKUP($D77,Parameters!$D$316:$H$462,X$9,FALSE),Parameters!$D$11:$X$20,21,FALSE) -> 1.810714286
D78: Guatemala | E78: =VLOOKUP(VLOOKUP($D78,Parameters!$D$316:$H$462,E$9,FALSE),Parameters!$D$11:$W$20,2,FALSE) -> 0.7484 | F78: =VLOOKUP(VLOOKUP($D78,Parameters!$D$316:$H$462,F$9,FALSE),Parameters!$D$11:$W$20,3,FALSE) -> 0.6809 | G78: =VLOOKUP(VLOOKUP($D78,Parameters!$D$316:$H$462,G$9,FALSE),Parameters!$D$11:$W$20,4,FALSE) -> 1.421428571 | H78: =VLOOKUP(VLOOKUP($D78,Parameters!$D$316:$H$462,H$9,FALSE),Parameters!$D$11:$W$20,5,FALSE) -> 1.421428571 | I78: =VLOOKUP(VLOOKUP($D78,Parameters!$D$316:$H$462,I$9,FALSE),Parameters!$D$11:$W$20,6,FALSE) -> 1.421428571 | J78: =VLOOKUP(VLOOKUP($D78,Parameters!$D$316:$H$462,J$9,FALSE),Parameters!$D$11:$W$20,7,FALSE) -> 1.421428571 | K78: =VLOOKUP(VLOOKUP($D78,Parameters!$D$316:$H$462,K$9,FALSE),Parameters!$D$11:$W$20,8,FALSE) -> 1.421428571 | L78: =VLOOKUP(VLOOKUP($D78,Parameters!$D$316:$H$462,L$9,FALSE),Parameters!$D$11:$W$20,9,FALSE) -> 1.421428571 | M78: =VLOOKUP(VLOOKUP($D78,Parameters!$D$316:$H$462,M$9,FALSE),Parameters!$D$11:$W$20,10,FALSE) -> 4.264285714 | N78: =VLOOKUP(VLOOKUP($D78,Parameters!$D$316:$H$462,N$9,FALSE),Parameters!$D$11:$W$20,11,FALSE) -> 1.421428571 | O78: =VLOOKUP(VLOOKUP($D78,Parameters!$D$316:$H$462,O$9,FALSE),Parameters!$D$11:$W$20,12,FALSE) -> 1.755 | P78: =VLOOKUP(VLOOKUP($D78,Parameters!$D$316:$H$462,P$9,FALSE),Parameters!$D$11:$W$20,13,FALSE) -> 1.421428571 | Q78: =VLOOKUP(VLOOKUP($D78,Parameters!$D$316:$H$462,Q$9,FALSE),Parameters!$D$11:$W$20,14,FALSE) -> 1.421428571 | R78: =VLOOKUP(VLOOKUP($D78,Parameters!$D$316:$H$462,R$9,FALSE),Parameters!$D$11:$W$20,15,FALSE) -> 4.88 | S78: =VLOOKUP(VLOOKUP($D78,Parameters!$D$316:$H$462,S$9,FALSE),Parameters!$D$11:$W$20,16,FALSE) -> 1.421428571 | T78: =VLOOKUP(VLOOKUP($D78,Parameters!$D$316:$H$462,T$9,FALSE),Parameters!$D$11:$W$20,17,FALSE) -> 0.4539335603 | U78: =VLOOKUP(VLOOKUP($D78,Parameters!$D$316:$H$462,U$9,FALSE),Parameters!$D$11:$W$20,18,FALSE) -> 0.93 | V78: =VLOOKUP(VLOOKUP($D78,Parameters!$D$316:$H$462,V$9,FALSE),Parameters!$D$11:$W$20,19,FALSE) -> 0.7484 | W78: =VLOOKUP(VLOOKUP($D78,Parameters!$D$316:$H$462,W$9,FALSE),Parameters!$D$11:$W$20,20,FALSE) -> 2.9936 | X78: =VLOOKUP(VLOOKUP($D78,Parameters!$D$316:$H$462,X$9,FALSE),Parameters!$D$11:$X$20,21,FALSE) -> 2.132142857
D79: GCC | E79: =VLOOKUP(VLOOKUP($D79,Parameters!$D$316:$H$462,E$9,FALSE),Parameters!$D$11:$W$20,2,FALSE) -> 0.4686 | F79: =VLOOKUP(VLOOKUP($D79,Parameters!$D$316:$H$462,F$9,FALSE),Parameters!$D$11:$W$20,3,FALSE) -> 0.475 | G79: =VLOOKUP(VLOOKUP($D79,Parameters!$D$316:$H$462,G$9,FALSE),Parameters!$D$11:$W$20,4,FALSE) -> 1.023809524 | H79: =VLOOKUP(VLOOKUP($D79,Parameters!$D$316:$H$462,H$9,FALSE),Parameters!$D$11:$W$20,5,FALSE) -> 1.023809524 | I79: =VLOOKUP(VLOOKUP($D79,Parameters!$D$316:$H$462,I$9,FALSE),Parameters!$D$11:$W$20,6,FALSE) -> 1.023809524 | J79: =VLOOKUP(VLOOKUP($D79,Parameters!$D$316:$H$462,J$9,FALSE),Parameters!$D$11:$W$20,7,FALSE) -> 1.023809524 | K79: =VLOOKUP(VLOOKUP($D79,Parameters!$D$316:$H$462,K$9,FALSE),Parameters!$D$11:$W$20,8,FALSE) -> 1.023809524 | L79: =VLOOKUP(VLOOKUP($D79,Parameters!$D$316:$H$462,L$9,FALSE),Parameters!$D$11:$W$20,9,FALSE) -> 1.023809524 | M79: =VLOOKUP(VLOOKUP($D79,Parameters!$D$316:$H$462,M$9,FALSE),Parameters!$D$11:$W$20,10,FALSE) -> 3.071428571 | N79: =VLOOKUP(VLOOKUP($D79,Parameters!$D$316:$H$462,N$9,FALSE),Parameters!$D$11:$W$20,11,FALSE) -> 1.023809524 | O79: =VLOOKUP(VLOOKUP($D79,Parameters!$D$316:$H$462,O$9,FALSE),Parameters!$D$11:$W$20,12,FALSE) -> 1.3375 | P79: =VLOOKUP(VLOOKUP($D79,Parameters!$D$316:$H$462,P$9,FALSE),Parameters!$D$11:$W$20,13,FALSE) -> 1.023809524 | Q79: =VLOOKUP(VLOOKUP($D79,Parameters!$D$316:$H$462,Q$9,FALSE),Parameters!$D$11:$W$20,14,FALSE) -> 1.023809524 | R79: =VLOOKUP(VLOOKUP($D79,Parameters!$D$316:$H$462,R$9,FALSE),Parameters!$D$11:$W$20,15,FALSE) -> 3.06 | S79: =VLOOKUP(VLOOKUP($D79,Parameters!$D$316:$H$462,S$9,FALSE),Parameters!$D$11:$W$20,16,FALSE) -> 1.023809524 | T79: =VLOOKUP(VLOOKUP($D79,Parameters!$D$316:$H$462,T$9,FALSE),Parameters!$D$11:$W$20,17,FALSE) -> 0.3166666667 | U79: =VLOOKUP(VLOOKUP($D79,Parameters!$D$316:$H$462,U$9,FALSE),Parameters!$D$11:$W$20,18,FALSE) -> 0.71 | V79: =VLOOKUP(VLOOKUP($D79,Parameters!$D$316:$H$462,V$9,FALSE),Parameters!$D$11:$W$20,19,FALSE) -> 0.4686 | W79: =VLOOKUP(VLOOKUP($D79,Parameters!$D$316:$H$462,W$9,FALSE),Parameters!$D$11:$W$20,20,FALSE) -> 1.8744 | X79: =VLOOKUP(VLOOKUP($D79,Parameters!$D$316:$H$462,X$9,FALSE),Parameters!$D$11:$X$20,21,FALSE) -> 1.535714286
D80: Guyana | E80: =VLOOKUP(VLOOKUP($D80,Parameters!$D$316:$H$462,E$9,FALSE),Parameters!$D$11:$W$20,2,FALSE) -> 1.3511 | F80: =VLOOKUP(VLOOKUP($D80,Parameters!$D$316:$H$462,F$9,FALSE),Parameters!$D$11:$W$20,3,FALSE) -> 2.4753 | G80: =VLOOKUP(VLOOKUP($D80,Parameters!$D$316:$H$462,G$9,FALSE),Parameters!$D$11:$W$20,4,FALSE) -> 2.25 | H80: =VLOOKUP(VLOOKUP($D80,Parameters!$D$316:$H$462,H$9,FALSE),Parameters!$D$11:$W$20,5,FALSE) -> 2.25 | I80: =VLOOKUP(VLOOKUP($D80,Parameters!$D$316:$H$462,I$9,FALSE),Parameters!$D$11:$W$20,6,FALSE) -> 2.25 | J80: =VLOOKUP(VLOOKUP($D80,Parameters!$D$316:$H$462,J$9,FALSE),Parameters!$D$11:$W$20,7,FALSE) -> 2.25 | K80: =VLOOKUP(VLOOKUP($D80,Parameters!$D$316:$H$462,K$9,FALSE),Parameters!$D$11:$W$20,8,FALSE) -> 2.25 | L80: =VLOOKUP(VLOOKUP($D80,Parameters!$D$316:$H$462,L$9,FALSE),Parameters!$D$11:$W$20,9,FALSE) -> 2.25 | M80: =VLOOKUP(VLOOKUP($D80,Parameters!$D$316:$H$462,M$9,FALSE),Parameters!$D$11:$W$20,10,FALSE) -> 6.75 | N80: =VLOOKUP(VLOOKUP($D80,Parameters!$D$316:$H$462,N$9,FALSE),Parameters!$D$11:$W$20,11,FALSE) -> 2.25 | O80: =VLOOKUP(VLOOKUP($D80,Parameters!$D$316:$H$462,O$9,FALSE),Parameters!$D$11:$W$20,12,FALSE) -> 2.625 | P80: =VLOOKUP(VLOOKUP($D80,Parameters!$D$316:$H$462,P$9,FALSE),Parameters!$D$11:$W$20,13,FALSE) -> 2.25 | Q80: =VLOOKUP(VLOOKUP($D80,Parameters!$D$316:$H$462,Q$9,FALSE),Parameters!$D$11:$W$20,14,FALSE) -> 2.25 | R80: =VLOOKUP(VLOOKUP($D80,Parameters!$D$316:$H$462,R$9,FALSE),Parameters!$D$11:$W$20,15,FALSE) -> 8.78 | S80: =VLOOKUP(VLOOKUP($D80,Parameters!$D$316:$H$462,S$9,FALSE),Parameters!$D$11:$W$20,16,FALSE) -> 2.25 | T80: =VLOOKUP(VLOOKUP($D80,Parameters!$D$316:$H$462,T$9,FALSE),Parameters!$D$11:$W$20,17,FALSE) -> 1.650200825 | U80: =VLOOKUP(VLOOKUP($D80,Parameters!$D$316:$H$462,U$9,FALSE),Parameters!$D$11:$W$20,18,FALSE) -> 1.39 | V80: =VLOOKUP(VLOOKUP($D80,Parameters!$D$316:$H$462,V$9,FALSE),Parameters!$D$11:$W$20,19,FALSE) -> 1.3511 | W80: =VLOOKUP(VLOOKUP($D80,Parameters!$D$316:$H$462,W$9,FALSE),Parameters!$D$11:$W$20,20,FALSE) -> 5.4044 | X80: =VLOOKUP(VLOOKUP($D80,Parameters!$D$316:$H$462,X$9,FALSE),Parameters!$D$11:$X$20,21,FALSE) -> 3.375
D81: Honduras | E81: =VLOOKUP(VLOOKUP($D81,Parameters!$D$316:$H$462,E$9,FALSE),Parameters!$D$11:$W$20,2,FALSE) -> 0.9249 | F81: =VLOOKUP(VLOOKUP($D81,Parameters!$D$316:$H$462,F$9,FALSE),Parameters!$D$11:$W$20,3,FALSE) -> 1.4389 | G81: =VLOOKUP(VLOOKUP($D81,Parameters!$D$316:$H$462,G$9,FALSE),Parameters!$D$11:$W$20,4,FALSE) -> 1.666666667 | H81: =VLOOKUP(VLOOKUP($D81,Parameters!$D$316:$H$462,H$9,FALSE),Parameters!$D$11:$W$20,5,FALSE) -> 1.666666667 | I81: =VLOOKUP(VLOOKUP($D81,Parameters!$D$316:$H$462,I$9,FALSE),Parameters!$D$11:$W$20,6,FALSE) -> 1.666666667 | J81: =VLOOKUP(VLOOKUP($D81,Parameters!$D$316:$H$462,J$9,FALSE),Parameters!$D$11:$W$20,7,FALSE) -> 1.666666667 | K81: =VLOOKUP(VLOOKUP($D81,Parameters!$D$316:$H$462,K$9,FALSE),Parameters!$D$11:$W$20,8,FALSE) -> 1.666666667 | L81: =VLOOKUP(VLOOKUP($D81,Parameters!$D$316:$H$462,L$9,FALSE),Parameters!$D$11:$W$20,9,FALSE) -> 1.666666667 | M81: =VLOOKUP(VLOOKUP($D81,Parameters!$D$316:$H$462,M$9,FALSE),Parameters!$D$11:$W$20,10,FALSE) -> 5.01 | N81: =VLOOKUP(VLOOKUP($D81,Parameters!$D$316:$H$462,N$9,FALSE),Parameters!$D$11:$W$20,11,FALSE) -> 1.666666667 | O81: =VLOOKUP(VLOOKUP($D81,Parameters!$D$316:$H$462,O$9,FALSE),Parameters!$D$11:$W$20,12,FALSE) -> 2.0125 | P81: =VLOOKUP(VLOOKUP($D81,Parameters!$D$316:$H$462,P$9,FALSE),Parameters!$D$11:$W$20,13,FALSE) -> 1.666666667 | Q81: =VLOOKUP(VLOOKUP($D81,Parameters!$D$316:$H$462,Q$9,FALSE),Parameters!$D$11:$W$20,14,FALSE) -> 1.666666667 | R81: =VLOOKUP(VLOOKUP($D81,Parameters!$D$316:$H$462,R$9,FALSE),Parameters!$D$11:$W$20,15,FALSE) -> 5.98 | S81: =VLOOKUP(VLOOKUP($D81,Parameters!$D$316:$H$462,S$9,FALSE),Parameters!$D$11:$W$20,16,FALSE) -> 1.666666667 | T81: =VLOOKUP(VLOOKUP($D81,Parameters!$D$316:$H$462,T$9,FALSE),Parameters!$D$11:$W$20,17,FALSE) -> 0.9592671463 | U81: =VLOOKUP(VLOOKUP($D81,Parameters!$D$316:$H$462,U$9,FALSE),Parameters!$D$11:$W$20,18,FALSE) -> 1.07 | V81: =VLOOKUP(VLOOKUP($D81,Parameters!$D$316:$H$462,V$9,FALSE),Parameters!$D$11:$W$20,19,FALSE) -> 0.9249 | W81: =VLOOKUP(VLOOKUP($D81,Parameters!$D$316:$H$462,W$9,FALSE),Parameters!$D$11:$W$20,20,FALSE) -> 3.6996 | X81: =VLOOKUP(VLOOKUP($D81,Parameters!$D$316:$H$462,X$9,FALSE),Parameters!$D$11:$X$20,21,FALSE) -> 2.5
D82: Hong Kong | E82: =VLOOKUP(VLOOKUP($D82,Parameters!$D$316:$H$462,E$9,FALSE),Parameters!$D$11:$W$20,2,FALSE) -> 0.2864 | F82: =VLOOKUP(VLOOKUP($D82,Parameters!$D$316:$H$462,F$9,FALSE),Parameters!$D$11:$W$20,3,FALSE) -> 0.1716666667 | G82: =VLOOKUP(VLOOKUP($D82,Parameters!$D$316:$H$462,G$9,FALSE),Parameters!$D$11:$W$20,4,FALSE) -> 0.75 | H82: =VLOOKUP(VLOOKUP($D82,Parameters!$D$316:$H$462,H$9,FALSE),Parameters!$D$11:$W$20,5,FALSE) -> 0.75 | I82: =VLOOKUP(VLOOKUP($D82,Parameters!$D$316:$H$462,I$9,FALSE),Parameters!$D$11:$W$20,6,FALSE) -> 0.75 | J82: =VLOOKUP(VLOOKUP($D82,Parameters!$D$316:$H$462,J$9,FALSE),Parameters!$D$11:$W$20,7,FALSE) -> 0.75 | K82: =VLOOKUP(VLOOKUP($D82,Parameters!$D$316:$H$462,K$9,FALSE),Parameters!$D$11:$W$20,8,FALSE) -> 0.75 | L82: =VLOOKUP(VLOOKUP($D82,Parameters!$D$316:$H$462,L$9,FALSE),Parameters!$D$11:$W$20,9,FALSE) -> 0.75 | M82: =VLOOKUP(VLOOKUP($D82,Parameters!$D$316:$H$462,M$9,FALSE),Parameters!$D$11:$W$20,10,FALSE) -> 2.25 | N82: =VLOOKUP(VLOOKUP($D82,Parameters!$D$316:$H$462,N$9,FALSE),Parameters!$D$11:$W$20,11,FALSE) -> 0.75 | O82: =VLOOKUP(VLOOKUP($D82,Parameters!$D$316:$H$462,O$9,FALSE),Parameters!$D$11:$W$20,12,FALSE) -> 1.05 | P82: =VLOOKUP(VLOOKUP($D82,Parameters!$D$316:$H$462,P$9,FALSE),Parameters!$D$11:$W$20,13,FALSE) -> 0.75 | Q82: =VLOOKUP(VLOOKUP($D82,Parameters!$D$316:$H$462,Q$9,FALSE),Parameters!$D$11:$W$20,14,FALSE) -> 0.75 | R82: =VLOOKUP(VLOOKUP($D82,Parameters!$D$316:$H$462,R$9,FALSE),Parameters!$D$11:$W$20,15,FALSE) -> 1.89 | S82: =VLOOKUP(VLOOKUP($D82,Parameters!$D$316:$H$462,S$9,FALSE),Parameters!$D$11:$W$20,16,FALSE) -> 0.75 | T82: =VLOOKUP(VLOOKUP($D82,Parameters!$D$316:$H$462,T$9,FALSE),Parameters!$D$11:$W$20,17,FALSE) -> 0.1144444444 | U82: =VLOOKUP(VLOOKUP($D82,Parameters!$D$316:$H$462,U$9,FALSE),Parameters!$D$11:$W$20,18,FALSE) -> 0.56 | V82: =VLOOKUP(VLOOKUP($D82,Parameters!$D$316:$H$462,V$9,FALSE),Parameters!$D$11:$W$20,19,FALSE) -> 0.2864 | W82: =VLOOKUP(VLOOKUP($D82,Parameters!$D$316:$H$462,W$9,FALSE),Parameters!$D$11:$W$20,20,FALSE) -> 1.1456 | X82: =VLOOKUP(VLOOKUP($D82,Parameters!$D$316:$H$462,X$9,FALSE),Parameters!$D$11:$X$20,21,FALSE) -> 1.125
D83: Hungary | E83: =VLOOKUP(VLOOKUP($D83,Parameters!$D$316:$H$462,E$9,FALSE),Parameters!$D$11:$W$20,2,FALSE) -> 0.4686 | F83: =VLOOKUP(VLOOKUP($D83,Parameters!$D$316:$H$462,F$9,FALSE),Parameters!$D$11:$W$20,3,FALSE) -> 0.475 | G83: =VLOOKUP(VLOOKUP($D83,Parameters!$D$316:$H$462,G$9,FALSE),Parameters!$D$11:$W$20,4,FALSE) -> 1.023809524 | H83: =VLOOKUP(VLOOKUP($D83,Parameters!$D$316:$H$462,H$9,FALSE),Parameters!$D$11:$W$20,5,FALSE) -> 1.023809524 | I83: =VLOOKUP(VLOOKUP($D83,Parameters!$D$316:$H$462,I$9,FALSE),Parameters!$D$11:$W$20,6,FALSE) -> 1.023809524 | J83: =VLOOKUP(VLOOKUP($D83,Parameters!$D$316:$H$462,J$9,FALSE),Parameters!$D$11:$W$20,7,FALSE) -> 1.023809524 | K83: =VLOOKUP(VLOOKUP($D83,Parameters!$D$316:$H$462,K$9,FALSE),Parameters!$D$11:$W$20,8,FALSE) -> 1.023809524 | L83: =VLOOKUP(VLOOKUP($D83,Parameters!$D$316:$H$462,L$9,FALSE),Parameters!$D$11:$W$20,9,FALSE) -> 1.023809524 | M83: =VLOOKUP(VLOOKUP($D83,Parameters!$D$316:$H$462,M$9,FALSE),Parameters!$D$11:$W$20,10,FALSE) -> 3.071428571 | N83: =VLOOKUP(VLOOKUP($D83,Parameters!$D$316:$H$462,N$9,FALSE),Parameters!$D$11:$W$20,11,FALSE) -> 1.023809524 | O83: =VLOOKUP(VLOOKUP($D83,Parameters!$D$316:$H$462,O$9,FALSE),Parameters!$D$11:$W$20,12,FALSE) -> 1.3375 | P83: =VLOOKUP(VLOOKUP($D83,Parameters!$D$316:$H$462,P$9,FALSE),Parameters!$D$11:$W$20,13,FALSE) -> 1.023809524 | Q83: =VLOOKUP(VLOOKUP($D83,Parameters!$D$316:$H$462,Q$9,FALSE),Parameters!$D$11:$W$20,14,FALSE) -> 1.023809524 | R83: =VLOOKUP(VLOOKUP($D83,Parameters!$D$316:$H$462,R$9,FALSE),Parameters!$D$11:$W$20,15,FALSE) -> 3.06 | S83: =VLOOKUP(VLOOKUP($D83,Parameters!$D$316:$H$462,S$9,FALSE),Parameters!$D$11:$W$20,16,FALSE) -> 1.023809524 | T83: =VLOOKUP(VLOOKUP($D83,Parameters!$D$316:$H$462,T$9,FALSE),Parameters!$D$11:$W$20,17,FALSE) -> 0.3166666667 | U83: =VLOOKUP(VLOOKUP($D83,Parameters!$D$316:$H$462,U$9,FALSE),Parameters!$D$11:$W$20,18,FALSE) -> 0.71 | V83: =VLOOKUP(VLOOKUP($D83,Parameters!$D$316:$H$462,V$9,FALSE),Parameters!$D$11:$W$20,19,FALSE) -> 0.4686 | W83: =VLOOKUP(VLOOKUP($D83,Parameters!$D$316:$H$462,W$9,FALSE),Parameters!$D$11:$W$20,20,FALSE) -> 1.8744 | X83: =VLOOKUP(VLOOKUP($D83,Parameters!$D$316:$H$462,X$9,FALSE),Parameters!$D$11:$X$20,21,FALSE) -> 1.535714286
D84: Iceland | E84: =VLOOKUP(VLOOKUP($D84,Parameters!$D$316:$H$462,E$9,FALSE),Parameters!$D$11:$W$20,2,FALSE) -> 0.3653 | F84: =VLOOKUP(VLOOKUP($D84,Parameters!$D$316:$H$462,F$9,FALSE),Parameters!$D$11:$W$20,3,FALSE) -> 0.3341666667 | G84: =VLOOKUP(VLOOKUP($D84,Parameters!$D$316:$H$462,G$9,FALSE),Parameters!$D$11:$W$20,4,FALSE) -> 0.8714285714 | H84: =VLOOKUP(VLOOKUP($D84,Parameters!$D$316:$H$462,H$9,FALSE),Parameters!$D$11:$W$20,5,FALSE) -> 0.8714285714 | I84: =VLOOKUP(VLOOKUP($D84,Parameters!$D$316:$H$462,I$9,FALSE),Parameters!$D$11:$W$20,6,FALSE) -> 0.8714285714 | J84: =VLOOKUP(VLOOKUP($D84,Parameters!$D$316:$H$462,J$9,FALSE),Parameters!$D$11:$W$20,7,FALSE) -> 0.8714285714 | K84: =VLOOKUP(VLOOKUP($D84,Parameters!$D$316:$H$462,K$9,FALSE),Parameters!$D$11:$W$20,8,FALSE) -> 0.8714285714 | L84: =VLOOKUP(VLOOKUP($D84,Parameters!$D$316:$H$462,L$9,FALSE),Parameters!$D$11:$W$20,9,FALSE) -> 0.8714285714 | M84: =VLOOKUP(VLOOKUP($D84,Parameters!$D$316:$H$462,M$9,FALSE),Parameters!$D$11:$W$20,10,FALSE) -> 2.614285714 | N84: =VLOOKUP(VLOOKUP($D84,Parameters!$D$316:$H$462,N$9,FALSE),Parameters!$D$11:$W$20,11,FALSE) -> 0.8714285714 | O84: =VLOOKUP(VLOOKUP($D84,Parameters!$D$316:$H$462,O$9,FALSE),Parameters!$D$11:$W$20,12,FALSE) -> 1.1775 | P84: =VLOOKUP(VLOOKUP($D84,Parameters!$D$316:$H$462,P$9,FALSE),Parameters!$D$11:$W$20,13,FALSE) -> 0.8714285714 | Q84: =VLOOKUP(VLOOKUP($D84,Parameters!$D$316:$H$462,Q$9,FALSE),Parameters!$D$11:$W$20,14,FALSE) -> 0.8714285714 | R84: =VLOOKUP(VLOOKUP($D84,Parameters!$D$316:$H$462,R$9,FALSE),Parameters!$D$11:$W$20,15,FALSE) -> 2.41 | S84: =VLOOKUP(VLOOKUP($D84,Parameters!$D$316:$H$462,S$9,FALSE),Parameters!$D$11:$W$20,16,FALSE) -> 0.8714285714 | T84: =VLOOKUP(VLOOKUP($D84,Parameters!$D$316:$H$462,T$9,FALSE),Parameters!$D$11:$W$20,17,FALSE) -> 0.2227777778 | U84: =VLOOKUP(VLOOKUP($D84,Parameters!$D$316:$H$462,U$9,FALSE),Parameters!$D$11:$W$20,18,FALSE) -> 0.63 | V84: =VLOOKUP(VLOOKUP($D84,Parameters!$D$316:$H$462,V$9,FALSE),Parameters!$D$11:$W$20,19,FALSE) -> 0.3653 | W84: =VLOOKUP(VLOOKUP($D84,Parameters!$D$316:$H$462,W$9,FALSE),Parameters!$D$11:$W$20,20,FALSE) -> 1.4612 | X84: =VLOOKUP(VLOOKUP($D84,Parameters!$D$316:$H$462,X$9,FALSE),Parameters!$D$11:$X$20,21,FALSE) -> 1.307142857
D85: India | E85: =VLOOKUP(VLOOKUP($D85,Parameters!$D$316:$H$462,E$9,FALSE),Parameters!$D$11:$W$20,2,FALSE) -> 0.4686 | F85: =VLOOKUP(VLOOKUP($D85,Parameters!$D$316:$H$462,F$9,FALSE),Parameters!$D$11:$W$20,3,FALSE) -> 0.475 | G85: =VLOOKUP(VLOOKUP($D85,Parameters!$D$316:$H$462,G$9,FALSE),Parameters!$D$11:$W$20,4,FALSE) -> 1.023809524 | H85: =VLOOKUP(VLOOKUP($D85,Parameters!$D$316:$H$462,H$9,FALSE),Parameters!$D$11:$W$20,5,FALSE) -> 1.023809524 | I85: =VLOOKUP(VLOOKUP($D85,Parameters!$D$316:$H$462,I$9,FALSE),Parameters!$D$11:$W$20,6,FALSE) -> 1.023809524 | J85: =VLOOKUP(VLOOKUP($D85,Parameters!$D$316:$H$462,J$9,FALSE),Parameters!$D$11:$W$20,7,FALSE) -> 1.023809524 | K85: =VLOOKUP(VLOOKUP($D85,Parameters!$D$316:$H$462,K$9,FALSE),Parameters!$D$11:$W$20,8,FALSE) -> 1.023809524 | L85: =VLOOKUP(VLOOKUP($D85,Parameters!$D$316:$H$462,L$9,FALSE),Parameters!$D$11:$W$20,9,FALSE) -> 1.023809524 | M85: =VLOOKUP(VLOOKUP($D85,Parameters!$D$316:$H$462,M$9,FALSE),Parameters!$D$11:$W$20,10,FALSE) -> 3.071428571 | N85: =VLOOKUP(VLOOKUP($D85,Parameters!$D$316:$H$462,N$9,FALSE),Parameters!$D$11:$W$20,11,FALSE) -> 1.023809524 | O85: =VLOOKUP(VLOOKUP($D85,Parameters!$D$316:$H$462,O$9,FALSE),Parameters!$D$11:$W$20,12,FALSE) -> 1.3375 | P85: =VLOOKUP(VLOOKUP($D85,Parameters!$D$316:$H$462,P$9,FALSE),Parameters!$D$11:$W$20,13,FALSE) -> 1.023809524 | Q85: =VLOOKUP(VLOOKUP($D85,Parameters!$D$316:$H$462,Q$9,FALSE),Parameters!$D$11:$W$20,14,FALSE) -> 1.023809524 | R85: =VLOOKUP(VLOOKUP($D85,Parameters!$D$316:$H$462,R$9,FALSE),Parameters!$D$11:$W$20,15,FALSE) -> 3.06 | S85: =VLOOKUP(VLOOKUP($D85,Parameters!$D$316:$H$462,S$9,FALSE),Parameters!$D$11:$W$20,16,FALSE) -> 1.023809524 | T85: =VLOOKUP(VLOOKUP($D85,Parameters!$D$316:$H$462,T$9,FALSE),Parameters!$D$11:$W$20,17,FALSE) -> 0.3166666667 | U85: =VLOOKUP(VLOOKUP($D85,Parameters!$D$316:$H$462,U$9,FALSE),Parameters!$D$11:$W$20,18,FALSE) -> 0.71 | V85: =VLOOKUP(VLOOKUP($D85,Parameters!$D$316:$H$462,V$9,FALSE),Parameters!$D$11:$W$20,19,FALSE) -> 0.4686 | W85: =VLOOKUP(VLOOKUP($D85,Parameters!$D$316:$H$462,W$9,FALSE),Parameters!$D$11:$W$20,20,FALSE) -> 1.8744 | X85: =VLOOKUP(VLOOKUP($D85,Parameters!$D$316:$H$462,X$9,FALSE),Parameters!$D$11:$X$20,21,FALSE) -> 1.535714286
D86: Indonesia | E86: =VLOOKUP(VLOOKUP($D86,Parameters!$D$316:$H$462,E$9,FALSE),Parameters!$D$11:$W$20,2,FALSE) -> 0.4686 | F86: =VLOOKUP(VLOOKUP($D86,Parameters!$D$316:$H$462,F$9,FALSE),Parameters!$D$11:$W$20,3,FALSE) -> 0.475 | G86: =VLOOKUP(VLOOKUP($D86,Parameters!$D$316:$H$462,G$9,FALSE),Parameters!$D$11:$W$20,4,FALSE) -> 1.023809524 | H86: =VLOOKUP(VLOOKUP($D86,Parameters!$D$316:$H$462,H$9,FALSE),Parameters!$D$11:$W$20,5,FALSE) -> 1.023809524 | I86: =VLOOKUP(VLOOKUP($D86,Parameters!$D$316:$H$462,I$9,FALSE),Parameters!$D$11:$W$20,6,FALSE) -> 1.023809524 | J86: =VLOOKUP(VLOOKUP($D86,Parameters!$D$316:$H$462,J$9,FALSE),Parameters!$D$11:$W$20,7,FALSE) -> 1.023809524 | K86: =VLOOKUP(VLOOKUP($D86,Parameters!$D$316:$H$462,K$9,FALSE),Parameters!$D$11:$W$20,8,FALSE) -> 1.023809524 | L86: =VLOOKUP(VLOOKUP($D86,Parameters!$D$316:$H$462,L$9,FALSE),Parameters!$D$11:$W$20,9,FALSE) -> 1.023809524 | M86: =VLOOKUP(VLOOKUP($D86,Parameters!$D$316:$H$462,M$9,FALSE),Parameters!$D$11:$W$20,10,FALSE) -> 3.071428571 | N86: =VLOOKUP(VLOOKUP($D86,Parameters!$D$316:$H$462,N$9,FALSE),Parameters!$D$11:$W$20,11,FALSE) -> 1.023809524 | O86: =VLOOKUP(VLOOKUP($D86,Parameters!$D$316:$H$462,O$9,FALSE),Parameters!$D$11:$W$20,12,FALSE) -> 1.3375 | P86: =VLOOKUP(VLOOKUP($D86,Parameters!$D$316:$H$462,P$9,FALSE),Parameters!$D$11:$W$20,13,FALSE) -> 1.023809524 | Q86: =VLOOKUP(VLOOKUP($D86,Parameters!$D$316:$H$462,Q$9,FALSE),Parameters!$D$11:$W$20,14,FALSE) -> 1.023809524 | R86: =VLOOKUP(VLOOKUP($D86,Parameters!$D$316:$H$462,R$9,FALSE),Parameters!$D$11:$W$20,15,FALSE) -> 3.06 | S86: =VLOOKUP(VLOOKUP($D86,Parameters!$D$316:$H$462,S$9,FALSE),Parameters!$D$11:$W$20,16,FALSE) -> 1.023809524 | T86: =VLOOKUP(VLOOKUP($D86,Parameters!$D$316:$H$462,T$9,FALSE),Parameters!$D$11:$W$20,17,FALSE) -> 0.3166666667 | U86: =VLOOKUP(VLOOKUP($D86,Parameters!$D$316:$H$462,U$9,FALSE),Parameters!$D$11:$W$20,18,FALSE) -> 0.71 | V86: =VLOOKUP(VLOOKUP($D86,Parameters!$D$316:$H$462,V$9,FALSE),Parameters!$D$11:$W$20,19,FALSE) -> 0.4686 | W86: =VLOOKUP(VLOOKUP($D86,Parameters!$D$316:$H$462,W$9,FALSE),Parameters!$D$11:$W$20,20,FALSE) -> 1.8744 | X86: =VLOOKUP(VLOOKUP($D86,Parameters!$D$316:$H$462,X$9,FALSE),Parameters!$D$11:$X$20,21,FALSE) -> 1.535714286
D87: Iran | E87: =VLOOKUP(VLOOKUP($D87,Parameters!$D$316:$H$462,E$9,FALSE),Parameters!$D$11:$W$20,2,FALSE) -> 1.3511 | F87: =VLOOKUP(VLOOKUP($D87,Parameters!$D$316:$H$462,F$9,FALSE),Parameters!$D$11:$W$20,3,FALSE) -> 2.4753 | G87: =VLOOKUP(VLOOKUP($D87,Parameters!$D$316:$H$462,G$9,FALSE),Parameters!$D$11:$W$20,4,FALSE) -> 2.25 | H87: =VLOOKUP(VLOOKUP($D87,Parameters!$D$316:$H$462,H$9,FALSE),Parameters!$D$11:$W$20,5,FALSE) -> 2.25 | I87: =VLOOKUP(VLOOKUP($D87,Parameters!$D$316:$H$462,I$9,FALSE),Parameters!$D$11:$W$20,6,FALSE) -> 2.25 | J87: =VLOOKUP(VLOOKUP($D87,Parameters!$D$316:$H$462,J$9,FALSE),Parameters!$D$11:$W$20,7,FALSE) -> 2.25 | K87: =VLOOKUP(VLOOKUP($D87,Parameters!$D$316:$H$462,K$9,FALSE),Parameters!$D$11:$W$20,8,FALSE) -> 2.25 | L87: =VLOOKUP(VLOOKUP($D87,Parameters!$D$316:$H$462,L$9,FALSE),Parameters!$D$11:$W$20,9,FALSE) -> 2.25 | M87: =VLOOKUP(VLOOKUP($D87,Parameters!$D$316:$H$462,M$9,FALSE),Parameters!$D$11:$W$20,10,FALSE) -> 6.75 | N87: =VLOOKUP(VLOOKUP($D87,Parameters!$D$316:$H$462,N$9,FALSE),Parameters!$D$11:$W$20,11,FALSE) -> 2.25 | O87: =VLOOKUP(VLOOKUP($D87,Parameters!$D$316:$H$462,O$9,FALSE),Parameters!$D$11:$W$20,12,FALSE) -> 2.625 | P87: =VLOOKUP(VLOOKUP($D87,Parameters!$D$316:$H$462,P$9,FALSE),Parameters!$D$11:$W$20,13,FALSE) -> 2.25 | Q87: =VLOOKUP(VLOOKUP($D87,Parameters!$D$316:$H$462,Q$9,FALSE),Parameters!$D$11:$W$20,14,FALSE) -> 2.25 | R87: =VLOOKUP(VLOOKUP($D87,Parameters!$D$316:$H$462,R$9,FALSE),Parameters!$D$11:$W$20,15,FALSE) -> 8.78 | S87: =VLOOKUP(VLOOKUP($D87,Parameters!$D$316:$H$462,S$9,FALSE),Parameters!$D$11:$W$20,16,FALSE) -> 2.25 | T87: =VLOOKUP(VLOOKUP($D87,Parameters!$D$316:$H$462,T$9,FALSE),Parameters!$D$11:$W$20,17,FALSE) -> 1.650200825 | U87: =VLOOKUP(VLOOKUP($D87,Parameters!$D$316:$H$462,U$9,FALSE),Parameters!$D$11:$W$20,18,FALSE) -> 1.39 | V87: =VLOOKUP(VLOOKUP($D87,Parameters!$D$316:$H$462,V$9,FALSE),Parameters!$D$11:$W$20,19,FALSE) -> 1.3511 | W87: =VLOOKUP(VLOOKUP($D87,Parameters!$D$316:$H$462,W$9,FALSE),Parameters!$D$11:$W$20,20,FALSE) -> 5.4044 | X87: =VLOOKUP(VLOOKUP($D87,Parameters!$D$316:$H$462,X$9,FALSE),Parameters!$D$11:$X$20,21,FALSE) -> 3.375
D88: Iraq | E88: =VLOOKUP(VLOOKUP($D88,Parameters!$D$316:$H$462,E$9,FALSE),Parameters!$D$11:$W$20,2,FALSE) -> 1.3511 | F88: =VLOOKUP(VLOOKUP($D88,Parameters!$D$316:$H$462,F$9,FALSE),Parameters!$D$11:$W$20,3,FALSE) -> 2.4753 | G88: =VLOOKUP(VLOOKUP($D88,Parameters!$D$316:$H$462,G$9,FALSE),Parameters!$D$11:$W$20,4,FALSE) -> 2.25 | H88: =VLOOKUP(VLOOKUP($D88,Parameters!$D$316:$H$462,H$9,FALSE),Parameters!$D$11:$W$20,5,FALSE) -> 2.25 | I88: =VLOOKUP(VLOOKUP($D88,Parameters!$D$316:$H$462,I$9,FALSE),Parameters!$D$11:$W$20,6,FALSE) -> 2.25 | J88: =VLOOKUP(VLOOKUP($D88,Parameters!$D$316:$H$462,J$9,FALSE),Parameters!$D$11:$W$20,7,FALSE) -> 2.25 | K88: =VLOOKUP(VLOOKUP($D88,Parameters!$D$316:$H$462,K$9,FALSE),Parameters!$D$11:$W$20,8,FALSE) -> 2.25 | L88: =VLOOKUP(VLOOKUP($D88,Parameters!$D$316:$H$462,L$9,FALSE),Parameters!$D$11:$W$20,9,FALSE) -> 2.25 | M88: =VLOOKUP(VLOOKUP($D88,Parameters!$D$316:$H$462,M$9,FALSE),Parameters!$D$11:$W$20,10,FALSE) -> 6.75 | N88: =VLOOKUP(VLOOKUP($D88,Parameters!$D$316:$H$462,N$9,FALSE),Parameters!$D$11:$W$20,11,FALSE) -> 2.25 | O88: =VLOOKUP(VLOOKUP($D88,Parameters!$D$316:$H$462,O$9,FALSE),Parameters!$D$11:$W$20,12,FALSE) -> 2.625 | P88: =VLOOKUP(VLOOKUP($D88,Parameters!$D$316:$H$462,P$9,FALSE),Parameters!$D$11:$W$20,13,FALSE) -> 2.25 | Q88: =VLOOKUP(VLOOKUP($D88,Parameters!$D$316:$H$462,Q$9,FALSE),Parameters!$D$11:$W$20,14,FALSE) -> 2.25 | R88: =VLOOKUP(VLOOKUP($D88,Parameters!$D$316:$H$462,R$9,FALSE),Parameters!$D$11:$W$20,15,FALSE) -> 8.78 | S88: =VLOOKUP(VLOOKUP($D88,Parameters!$D$316:$H$462,S$9,FALSE),Parameters!$D$11:$W$20,16,FALSE) -> 2.25 | T88: =VLOOKUP(VLOOKUP($D88,Parameters!$D$316:$H$462,T$9,FALSE),Parameters!$D$11:$W$20,17,FALSE) -> 1.650200825 | U88: =VLOOKUP(VLOOKUP($D88,Parameters!$D$316:$H$462,U$9,FALSE),Parameters!$D$11:$W$20,18,FALSE) -> 1.39 | V88: =VLOOKUP(VLOOKUP($D88,Parameters!$D$316:$H$462,V$9,FALSE),Parameters!$D$11:$W$20,19,FALSE) -> 1.3511 | W88: =VLOOKUP(VLOOKUP($D88,Parameters!$D$316:$H$462,W$9,FALSE),Parameters!$D$11:$W$20,20,FALSE) -> 5.4044 | X88: =VLOOKUP(VLOOKUP($D88,Parameters!$D$316:$H$462,X$9,FALSE),Parameters!$D$11:$X$20,21,FALSE) -> 3.375
D89: Ireland | E89: =VLOOKUP(VLOOKUP($D89,Parameters!$D$316:$H$462,E$9,FALSE),Parameters!$D$11:$W$20,2,FALSE) -> 0.2864 | F89: =VLOOKUP(VLOOKUP($D89,Parameters!$D$316:$H$462,F$9,FALSE),Parameters!$D$11:$W$20,3,FALSE) -> 0.2330555556 | G89: =VLOOKUP(VLOOKUP($D89,Parameters!$D$316:$H$462,G$9,FALSE),Parameters!$D$11:$W$20,4,FALSE) -> 0.75 | H89: =VLOOKUP(VLOOKUP($D89,Parameters!$D$316:$H$462,H$9,FALSE),Parameters!$D$11:$W$20,5,FALSE) -> 0.75 | I89: =VLOOKUP(VLOOKUP($D89,Parameters!$D$316:$H$462,I$9,FALSE),Parameters!$D$11:$W$20,6,FALSE) -> 0.75 | J89: =VLOOKUP(VLOOKUP($D89,Parameters!$D$316:$H$462,J$9,FALSE),Parameters!$D$11:$W$20,7,FALSE) -> 0.75 | K89: =VLOOKUP(VLOOKUP($D89,Parameters!$D$316:$H$462,K$9,FALSE),Parameters!$D$11:$W$20,8,FALSE) -> 0.75 | L89: =VLOOKUP(VLOOKUP($D89,Parameters!$D$316:$H$462,L$9,FALSE),Parameters!$D$11:$W$20,9,FALSE) -> 0.75 | M89: =VLOOKUP(VLOOKUP($D89,Parameters!$D$316:$H$462,M$9,FALSE),Parameters!$D$11:$W$20,10,FALSE) -> 2.25 | N89: =VLOOKUP(VLOOKUP($D89,Parameters!$D$316:$H$462,N$9,FALSE),Parameters!$D$11:$W$20,11,FALSE) -> 0.75 | O89: =VLOOKUP(VLOOKUP($D89,Parameters!$D$316:$H$462,O$9,FALSE),Parameters!$D$11:$W$20,12,FALSE) -> 1.05 | P89: =VLOOKUP(VLOOKUP($D89,Parameters!$D$316:$H$462,P$9,FALSE),Parameters!$D$11:$W$20,13,FALSE) -> 0.75 | Q89: =VLOOKUP(VLOOKUP($D89,Parameters!$D$316:$H$462,Q$9,FALSE),Parameters!$D$11:$W$20,14,FALSE) -> 0.75 | R89: =VLOOKUP(VLOOKUP($D89,Parameters!$D$316:$H$462,R$9,FALSE),Parameters!$D$11:$W$20,15,FALSE) -> 1.89 | S89: =VLOOKUP(VLOOKUP($D89,Parameters!$D$316:$H$462,S$9,FALSE),Parameters!$D$11:$W$20,16,FALSE) -> 0.75 | T89: =VLOOKUP(VLOOKUP($D89,Parameters!$D$316:$H$462,T$9,FALSE),Parameters!$D$11:$W$20,17,FALSE) -> 0.1553703704 | U89: =VLOOKUP(VLOOKUP($D89,Parameters!$D$316:$H$462,U$9,FALSE),Parameters!$D$11:$W$20,18,FALSE) -> 0.56 | V89: =VLOOKUP(VLOOKUP($D89,Parameters!$D$316:$H$462,V$9,FALSE),Parameters!$D$11:$W$20,19,FALSE) -> 0.2864 | W89: =VLOOKUP(VLOOKUP($D89,Parameters!$D$316:$H$462,W$9,FALSE),Parameters!$D$11:$W$20,20,FALSE) -> 1.1456 | X89: =VLOOKUP(VLOOKUP($D89,Parameters!$D$316:$H$462,X$9,FALSE),Parameters!$D$11:$X$20,21,FALSE) -> 1.125
D90: Israel | E90: =VLOOKUP(VLOOKUP($D90,Parameters!$D$316:$H$462,E$9,FALSE),Parameters!$D$11:$W$20,2,FALSE) -> 0.3653 | F90: =VLOOKUP(VLOOKUP($D90,Parameters!$D$316:$H$462,F$9,FALSE),Parameters!$D$11:$W$20,3,FALSE) -> 0.3341666667 | G90: =VLOOKUP(VLOOKUP($D90,Parameters!$D$316:$H$462,G$9,FALSE),Parameters!$D$11:$W$20,4,FALSE) -> 0.8714285714 | H90: =VLOOKUP(VLOOKUP($D90,Parameters!$D$316:$H$462,H$9,FALSE),Parameters!$D$11:$W$20,5,FALSE) -> 0.8714285714 | I90: =VLOOKUP(VLOOKUP($D90,Parameters!$D$316:$H$462,I$9,FALSE),Parameters!$D$11:$W$20,6,FALSE) -> 0.8714285714 | J90: =VLOOKUP(VLOOKUP($D90,Parameters!$D$316:$H$462,J$9,FALSE),Parameters!$D$11:$W$20,7,FALSE) -> 0.8714285714 | K90: =VLOOKUP(VLOOKUP($D90,Parameters!$D$316:$H$462,K$9,FALSE),Parameters!$D$11:$W$20,8,FALSE) -> 0.8714285714 | L90: =VLOOKUP(VLOOKUP($D90,Parameters!$D$316:$H$462,L$9,FALSE),Parameters!$D$11:$W$20,9,FALSE) -> 0.8714285714 | M90: =VLOOKUP(VLOOKUP($D90,Parameters!$D$316:$H$462,M$9,FALSE),Parameters!$D$11:$W$20,10,FALSE) -> 2.614285714 | N90: =VLOOKUP(VLOOKUP($D90,Parameters!$D$316:$H$462,N$9,FALSE),Parameters!$D$11:$W$20,11,FALSE) -> 0.8714285714 | O90: =VLOOKUP(VLOOKUP($D90,Parameters!$D$316:$H$462,O$9,FALSE),Parameters!$D$11:$W$20,12,FALSE) -> 1.1775 | P90: =VLOOKUP(VLOOKUP($D90,Parameters!$D$316:$H$462,P$9,FALSE),Parameters!$D$11:$W$20,13,FALSE) -> 0.8714285714 | Q90: =VLOOKUP(VLOOKUP($D90,Parameters!$D$316:$H$462,Q$9,FALSE),Parameters!$D$11:$W$20,14,FALSE) -> 0.8714285714 | R90: =VLOOKUP(VLOOKUP($D90,Parameters!$D$316:$H$462,R$9,FALSE),Parameters!$D$11:$W$20,15,FALSE) -> 2.41 | S90: =VLOOKUP(VLOOKUP($D90,Parameters!$D$316:$H$462,S$9,FALSE),Parameters!$D$11:$W$20,16,FALSE) -> 0.8714285714 | T90: =VLOOKUP(VLOOKUP($D90,Parameters!$D$316:$H$462,T$9,FALSE),Parameters!$D$11:$W$20,17,FALSE) -> 0.2227777778 | U90: =VLOOKUP(VLOOKUP($D90,Parameters!$D$316:$H$462,U$9,FALSE),Parameters!$D$11:$W$20,18,FALSE) -> 0.63 | V90: =VLOOKUP(VLOOKUP($D90,Parameters!$D$316:$H$462,V$9,FALSE),Parameters!$D$11:$W$20,19,FALSE) -> 0.3653 | W90: =VLOOKUP(VLOOKUP($D90,Parameters!$D$316:$H$462,W$9,FALSE),Parameters!$D$11:$W$20,20,FALSE) -> 1.4612 | X90: =VLOOKUP(VLOOKUP($D90,Parameters!$D$316:$H$462,X$9,FALSE),Parameters!$D$11:$X$20,21,FALSE) -> 1.307142857
D91: Italy | E91: =VLOOKUP(VLOOKUP($D91,Parameters!$D$316:$H$462,E$9,FALSE),Parameters!$D$11:$W$20,2,FALSE) -> 0.3653 | F91: =VLOOKUP(VLOOKUP($D91,Parameters!$D$316:$H$462,F$9,FALSE),Parameters!$D$11:$W$20,3,FALSE) -> 0.3341666667 | G91: =VLOOKUP(VLOOKUP($D91,Parameters!$D$316:$H$462,G$9,FALSE),Parameters!$D$11:$W$20,4,FALSE) -> 0.8714285714 | H91: =VLOOKUP(VLOOKUP($D91,Parameters!$D$316:$H$462,H$9,FALSE),Parameters!$D$11:$W$20,5,FALSE) -> 0.8714285714 | I91: =VLOOKUP(VLOOKUP($D91,Parameters!$D$316:$H$462,I$9,FALSE),Parameters!$D$11:$W$20,6,FALSE) -> 0.8714285714 | J91: =VLOOKUP(VLOOKUP($D91,Parameters!$D$316:$H$462,J$9,FALSE),Parameters!$D$11:$W$20,7,FALSE) -> 0.8714285714 | K91: =VLOOKUP(VLOOKUP($D91,Parameters!$D$316:$H$462,K$9,FALSE),Parameters!$D$11:$W$20,8,FALSE) -> 0.8714285714 | L91: =VLOOKUP(VLOOKUP($D91,Parameters!$D$316:$H$462,L$9,FALSE),Parameters!$D$11:$W$20,9,FALSE) -> 0.8714285714 | M91: =VLOOKUP(VLOOKUP($D91,Parameters!$D$316:$H$462,M$9,FALSE),Parameters!$D$11:$W$20,10,FALSE) -> 2.614285714 | N91: =VLOOKUP(VLOOKUP($D91,Parameters!$D$316:$H$462,N$9,FALSE),Parameters!$D$11:$W$20,11,FALSE) -> 0.8714285714 | O91: =VLOOKUP(VLOOKUP($D91,Parameters!$D$316:$H$462,O$9,FALSE),Parameters!$D$11:$W$20,12,FALSE) -> 1.1775 | P91: =VLOOKUP(VLOOKUP($D91,Parameters!$D$316:$H$462,P$9,FALSE),Parameters!$D$11:$W$20,13,FALSE) -> 0.8714285714 | Q91: =VLOOKUP(VLOOKUP($D91,Parameters!$D$316:$H$462,Q$9,FALSE),Parameters!$D$11:$W$20,14,FALSE) -> 0.8714285714 | R91: =VLOOKUP(VLOOKUP($D91,Parameters!$D$316:$H$462,R$9,FALSE),Parameters!$D$11:$W$20,15,FALSE) -> 2.41 | S91: =VLOOKUP(VLOOKUP($D91,Parameters!$D$316:$H$462,S$9,FALSE),Parameters!$D$11:$W$20,16,FALSE) -> 0.8714285714 | T91: =VLOOKUP(VLOOKUP($D91,Parameters!$D$316:$H$462,T$9,FALSE),Parameters!$D$11:$W$20,17,FALSE) -> 0.2227777778 | U91: =VLOOKUP(VLOOKUP($D91,Parameters!$D$316:$H$462,U$9,FALSE),Parameters!$D$11:$W$20,18,FALSE) -> 0.63 | V91: =VLOOKUP(VLOOKUP($D91,Parameters!$D$316:$H$462,V$9,FALSE),Parameters!$D$11:$W$20,19,FALSE) -> 0.3653 | W91: =VLOOKUP(VLOOKUP($D91,Parameters!$D$316:$H$462,W$9,FALSE),Parameters!$D$11:$W$20,20,FALSE) -> 1.4612 | X91: =VLOOKUP(VLOOKUP($D91,Parameters!$D$316:$H$462,X$9,FALSE),Parameters!$D$11:$X$20,21,FALSE) -> 1.307142857
D92: Jamaica | E92: =VLOOKUP(VLOOKUP($D92,Parameters!$D$316:$H$462,E$9,FALSE),Parameters!$D$11:$W$20,2,FALSE) -> 0.9249 | F92: =VLOOKUP(VLOOKUP($D92,Parameters!$D$316:$H$462,F$9,FALSE),Parameters!$D$11:$W$20,3,FALSE) -> 1.4389 | G92: =VLOOKUP(VLOOKUP($D92,Parameters!$D$316:$H$462,G$9,FALSE),Parameters!$D$11:$W$20,4,FALSE) -> 1.666666667 | H92: =VLOOKUP(VLOOKUP($D92,Parameters!$D$316:$H$462,H$9,FALSE),Parameters!$D$11:$W$20,5,FALSE) -> 1.666666667 | I92: =VLOOKUP(VLOOKUP($D92,Parameters!$D$316:$H$462,I$9,FALSE),Parameters!$D$11:$W$20,6,FALSE) -> 1.666666667 | J92: =VLOOKUP(VLOOKUP($D92,Parameters!$D$316:$H$462,J$9,FALSE),Parameters!$D$11:$W$20,7,FALSE) -> 1.666666667 | K92: =VLOOKUP(VLOOKUP($D92,Parameters!$D$316:$H$462,K$9,FALSE),Parameters!$D$11:$W$20,8,FALSE) -> 1.666666667 | L92: =VLOOKUP(VLOOKUP($D92,Parameters!$D$316:$H$462,L$9,FALSE),Parameters!$D$11:$W$20,9,FALSE) -> 1.666666667 | M92: =VLOOKUP(VLOOKUP($D92,Parameters!$D$316:$H$462,M$9,FALSE),Parameters!$D$11:$W$20,10,FALSE) -> 5.01 | N92: =VLOOKUP(VLOOKUP($D92,Parameters!$D$316:$H$462,N$9,FALSE),Parameters!$D$11:$W$20,11,FALSE) -> 1.666666667 | O92: =VLOOKUP(VLOOKUP($D92,Parameters!$D$316:$H$462,O$9,FALSE),Parameters!$D$11:$W$20,12,FALSE) -> 2.0125 | P92: =VLOOKUP(VLOOKUP($D92,Parameters!$D$316:$H$462,P$9,FALSE),Parameters!$D$11:$W$20,13,FALSE) -> 1.666666667 | Q92: =VLOOKUP(VLOOKUP($D92,Parameters!$D$316:$H$462,Q$9,FALSE),Parameters!$D$11:$W$20,14,FALSE) -> 1.666666667 | R92: =VLOOKUP(VLOOKUP($D92,Parameters!$D$316:$H$462,R$9,FALSE),Parameters!$D$11:$W$20,15,FALSE) -> 5.98 | S92: =VLOOKUP(VLOOKUP($D92,Parameters!$D$316:$H$462,S$9,FALSE),Parameters!$D$11:$W$20,16,FALSE) -> 1.666666667 | T92: =VLOOKUP(VLOOKUP($D92,Parameters!$D$316:$H$462,T$9,FALSE),Parameters!$D$11:$W$20,17,FALSE) -> 0.9592671463 | U92: =VLOOKUP(VLOOKUP($D92,Parameters!$D$316:$H$462,U$9,FALSE),Parameters!$D$11:$W$20,18,FALSE) -> 1.07 | V92: =VLOOKUP(VLOOKUP($D92,Parameters!$D$316:$H$462,V$9,FALSE),Parameters!$D$11:$W$20,19,FALSE) -> 0.9249 | W92: =VLOOKUP(VLOOKUP($D92,Parameters!$D$316:$H$462,W$9,FALSE),Parameters!$D$11:$W$20,20,FALSE) -> 3.6996 | X92: =VLOOKUP(VLOOKUP($D92,Parameters!$D$316:$H$462,X$9,FALSE),Parameters!$D$11:$X$20,21,FALSE) -> 2.5
D93: Japan | E93: =VLOOKUP(VLOOKUP($D93,Parameters!$D$316:$H$462,E$9,FALSE),Parameters!$D$11:$W$20,2,FALSE) -> 0.2319 | F93: =VLOOKUP(VLOOKUP($D93,Parameters!$D$316:$H$462,F$9,FALSE),Parameters!$D$11:$W$20,3,FALSE) -> 0.2330555556 | G93: =VLOOKUP(VLOOKUP($D93,Parameters!$D$316:$H$462,G$9,FALSE),Parameters!$D$11:$W$20,4,FALSE) -> 0.6595238095 | H93: =VLOOKUP(VLOOKUP($D93,Parameters!$D$316:$H$462,H$9,FALSE),Parameters!$D$11:$W$20,5,FALSE) -> 0.6595238095 | I93: =VLOOKUP(VLOOKUP($D93,Parameters!$D$316:$H$462,I$9,FALSE),Parameters!$D$11:$W$20,6,FALSE) -> 0.6595238095 | J93: =VLOOKUP(VLOOKUP($D93,Parameters!$D$316:$H$462,J$9,FALSE),Parameters!$D$11:$W$20,7,FALSE) -> 0.6595238095 | K93: =VLOOKUP(VLOOKUP($D93,Parameters!$D$316:$H$462,K$9,FALSE),Parameters!$D$11:$W$20,8,FALSE) -> 0.6595238095 | L93: =VLOOKUP(VLOOKUP($D93,Parameters!$D$316:$H$462,L$9,FALSE),Parameters!$D$11:$W$20,9,FALSE) -> 0.6595238095 | M93: =VLOOKUP(VLOOKUP($D93,Parameters!$D$316:$H$462,M$9,FALSE),Parameters!$D$11:$W$20,10,FALSE) -> 1.978571429 | N93: =VLOOKUP(VLOOKUP($D93,Parameters!$D$316:$H$462,N$9,FALSE),Parameters!$D$11:$W$20,11,FALSE) -> 0.6595238095 | O93: =VLOOKUP(VLOOKUP($D93,Parameters!$D$316:$H$462,O$9,FALSE),Parameters!$D$11:$W$20,12,FALSE) -> 0.955 | P93: =VLOOKUP(VLOOKUP($D93,Parameters!$D$316:$H$462,P$9,FALSE),Parameters!$D$11:$W$20,13,FALSE) -> 0.6595238095 | Q93: =VLOOKUP(VLOOKUP($D93,Parameters!$D$316:$H$462,Q$9,FALSE),Parameters!$D$11:$W$20,14,FALSE) -> 0.6595238095 | R93: =VLOOKUP(VLOOKUP($D93,Parameters!$D$316:$H$462,R$9,FALSE),Parameters!$D$11:$W$20,15,FALSE) -> 1.5 | S93: =VLOOKUP(VLOOKUP($D93,Parameters!$D$316:$H$462,S$9,FALSE),Parameters!$D$11:$W$20,16,FALSE) -> 0.6595238095 | T93: =VLOOKUP(VLOOKUP($D93,Parameters!$D$316:$H$462,T$9,FALSE),Parameters!$D$11:$W$20,17,FALSE) -> 0.1553703704 | U93: =VLOOKUP(VLOOKUP($D93,Parameters!$D$316:$H$462,U$9,FALSE),Parameters!$D$11:$W$20,18,FALSE) -> 0.51 | V93: =VLOOKUP(VLOOKUP($D93,Parameters!$D$316:$H$462,V$9,FALSE),Parameters!$D$11:$W$20,19,FALSE) -> 0.2319 | W93: =VLOOKUP(VLOOKUP($D93,Parameters!$D$316:$H$462,W$9,FALSE),Parameters!$D$11:$W$20,20,FALSE) -> 0.9276 | X93: =VLOOKUP(VLOOKUP($D93,Parameters!$D$316:$H$462,X$9,FALSE),Parameters!$D$11:$X$20,21,FALSE) -> 0.9892857143
D94: Jordan | E94: =VLOOKUP(VLOOKUP($D94,Parameters!$D$316:$H$462,E$9,FALSE),Parameters!$D$11:$W$20,2,FALSE) -> 0.7484 | F94: =VLOOKUP(VLOOKUP($D94,Parameters!$D$316:$H$462,F$9,FALSE),Parameters!$D$11:$W$20,3,FALSE) -> 1.0251 | G94: =VLOOKUP(VLOOKUP($D94,Parameters!$D$316:$H$462,G$9,FALSE),Parameters!$D$11:$W$20,4,FALSE) -> 1.421428571 | H94: =VLOOKUP(VLOOKUP($D94,Parameters!$D$316:$H$462,H$9,FALSE),Parameters!$D$11:$W$20,5,FALSE) -> 1.421428571 | I94: =VLOOKUP(VLOOKUP($D94,Parameters!$D$316:$H$462,I$9,FALSE),Parameters!$D$11:$W$20,6,FALSE) -> 1.421428571 | J94: =VLOOKUP(VLOOKUP($D94,Parameters!$D$316:$H$462,J$9,FALSE),Parameters!$D$11:$W$20,7,FALSE) -> 1.421428571 | K94: =VLOOKUP(VLOOKUP($D94,Parameters!$D$316:$H$462,K$9,FALSE),Parameters!$D$11:$W$20,8,FALSE) -> 1.421428571 | L94: =VLOOKUP(VLOOKUP($D94,Parameters!$D$316:$H$462,L$9,FALSE),Parameters!$D$11:$W$20,9,FALSE) -> 1.421428571 | M94: =VLOOKUP(VLOOKUP($D94,Parameters!$D$316:$H$462,M$9,FALSE),Parameters!$D$11:$W$20,10,FALSE) -> 4.264285714 | N94: =VLOOKUP(VLOOKUP($D94,Parameters!$D$316:$H$462,N$9,FALSE),Parameters!$D$11:$W$20,11,FALSE) -> 1.421428571 | O94: =VLOOKUP(VLOOKUP($D94,Parameters!$D$316:$H$462,O$9,FALSE),Parameters!$D$11:$W$20,12,FALSE) -> 1.755 | P94: =VLOOKUP(VLOOKUP($D94,Parameters!$D$316:$H$462,P$9,FALSE),Parameters!$D$11:$W$20,13,FALSE) -> 1.421428571 | Q94: =VLOOKUP(VLOOKUP($D94,Parameters!$D$316:$H$462,Q$9,FALSE),Parameters!$D$11:$W$20,14,FALSE) -> 1.421428571 | R94: =VLOOKUP(VLOOKUP($D94,Parameters!$D$316:$H$462,R$9,FALSE),Parameters!$D$11:$W$20,15,FALSE) -> 4.88 | S94: =VLOOKUP(VLOOKUP($D94,Parameters!$D$316:$H$462,S$9,FALSE),Parameters!$D$11:$W$20,16,FALSE) -> 1.421428571 | T94: =VLOOKUP(VLOOKUP($D94,Parameters!$D$316:$H$462,T$9,FALSE),Parameters!$D$11:$W$20,17,FALSE) -> 0.6834003417 | U94: =VLOOKUP(VLOOKUP($D94,Parameters!$D$316:$H$462,U$9,FALSE),Parameters!$D$11:$W$20,18,FALSE) -> 0.93 | V94: =VLOOKUP(VLOOKUP($D94,Parameters!$D$316:$H$462,V$9,FALSE),Parameters!$D$11:$W$20,19,FALSE) -> 0.7484 | W94: =VLOOKUP(VLOOKUP($D94,Parameters!$D$316:$H$462,W$9,FALSE),Parameters!$D$11:$W$20,20,FALSE) -> 2.9936 | X94: =VLOOKUP(VLOOKUP($D94,Parameters!$D$316:$H$462,X$9,FALSE),Parameters!$D$11:$X$20,21,FALSE) -> 2.132142857
D95: Kazakhstan | E95: =VLOOKUP(VLOOKUP($D95,Parameters!$D$316:$H$462,E$9,FALSE),Parameters!$D$11:$W$20,2,FALSE) -> 0.7484 | F95: =VLOOKUP(VLOOKUP($D95,Parameters!$D$316:$H$462,F$9,FALSE),Parameters!$D$11:$W$20,3,FALSE) -> 1.0251 | G95: =VLOOKUP(VLOOKUP($D95,Parameters!$D$316:$H$462,G$9,FALSE),Parameters!$D$11:$W$20,4,FALSE) -> 1.421428571 | H95: =VLOOKUP(VLOOKUP($D95,Parameters!$D$316:$H$462,H$9,FALSE),Parameters!$D$11:$W$20,5,FALSE) -> 1.421428571 | I95: =VLOOKUP(VLOOKUP($D95,Parameters!$D$316:$H$462,I$9,FALSE),Parameters!$D$11:$W$20,6,FALSE) -> 1.421428571 | J95: =VLOOKUP(VLOOKUP($D95,Parameters!$D$316:$H$462,J$9,FALSE),Parameters!$D$11:$W$20,7,FALSE) -> 1.421428571 | K95: =VLOOKUP(VLOOKUP($D95,Parameters!$D$316:$H$462,K$9,FALSE),Parameters!$D$11:$W$20,8,FALSE) -> 1.421428571 | L95: =VLOOKUP(VLOOKUP($D95,Parameters!$D$316:$H$462,L$9,FALSE),Parameters!$D$11:$W$20,9,FALSE) -> 1.421428571 | M95: =VLOOKUP(VLOOKUP($D95,Parameters!$D$316:$H$462,M$9,FALSE),Parameters!$D$11:$W$20,10,FALSE) -> 4.264285714 | N95: =VLOOKUP(VLOOKUP($D95,Parameters!$D$316:$H$462,N$9,FALSE),Parameters!$D$11:$W$20,11,FALSE) -> 1.421428571 | O95: =VLOOKUP(VLOOKUP($D95,Parameters!$D$316:$H$462,O$9,FALSE),Parameters!$D$11:$W$20,12,FALSE) -> 1.755 | P95: =VLOOKUP(VLOOKUP($D95,Parameters!$D$316:$H$462,P$9,FALSE),Parameters!$D$11:$W$20,13,FALSE) -> 1.421428571 | Q95: =VLOOKUP(VLOOKUP($D95,Parameters!$D$316:$H$462,Q$9,FALSE),Parameters!$D$11:$W$20,14,FALSE) -> 1.421428571 | R95: =VLOOKUP(VLOOKUP($D95,Parameters!$D$316:$H$462,R$9,FALSE),Parameters!$D$11:$W$20,15,FALSE) -> 4.88 | S95: =VLOOKUP(VLOOKUP($D95,Parameters!$D$316:$H$462,S$9,FALSE),Parameters!$D$11:$W$20,16,FALSE) -> 1.421428571 | T95: =VLOOKUP(VLOOKUP($D95,Parameters!$D$316:$H$462,T$9,FALSE),Parameters!$D$11:$W$20,17,FALSE) -> 0.6834003417 | U95: =VLOOKUP(VLOOKUP($D95,Parameters!$D$316:$H$462,U$9,FALSE),Parameters!$D$11:$W$20,18,FALSE) -> 0.93 | V95: =VLOOKUP(VLOOKUP($D95,Parameters!$D$316:$H$462,V$9,FALSE),Parameters!$D$11:$W$20,19,FALSE) -> 0.7484 | W95: =VLOOKUP(VLOOKUP($D95,Parameters!$D$316:$H$462,W$9,FALSE),Parameters!$D$11:$W$20,20,FALSE) -> 2.9936 | X95: =VLOOKUP(VLOOKUP($D95,Parameters!$D$316:$H$462,X$9,FALSE),Parameters!$D$11:$X$20,21,FALSE) -> 2.132142857
D96: Kenya | E96: =VLOOKUP(VLOOKUP($D96,Parameters!$D$316:$H$462,E$9,FALSE),Parameters!$D$11:$W$20,2,FALSE) -> 1.1258 | F96: =VLOOKUP(VLOOKUP($D96,Parameters!$D$316:$H$462,F$9,FALSE),Parameters!$D$11:$W$20,3,FALSE) -> 1.9223 | G96: =VLOOKUP(VLOOKUP($D96,Parameters!$D$316:$H$462,G$9,FALSE),Parameters!$D$11:$W$20,4,FALSE) -> 1.942857143 | H96: =VLOOKUP(VLOOKUP($D96,Parameters!$D$316:$H$462,H$9,FALSE),Parameters!$D$11:$W$20,5,FALSE) -> 1.942857143 | I96: =VLOOKUP(VLOOKUP($D96,Parameters!$D$316:$H$462,I$9,FALSE),Parameters!$D$11:$W$20,6,FALSE) -> 1.942857143 | J96: =VLOOKUP(VLOOKUP($D96,Parameters!$D$316:$H$462,J$9,FALSE),Parameters!$D$11:$W$20,7,FALSE) -> 1.942857143 | K96: =VLOOKUP(VLOOKUP($D96,Parameters!$D$316:$H$462,K$9,FALSE),Parameters!$D$11:$W$20,8,FALSE) -> 1.942857143 | L96: =VLOOKUP(VLOOKUP($D96,Parameters!$D$316:$H$462,L$9,FALSE),Parameters!$D$11:$W$20,9,FALSE) -> 1.942857143 | M96: =VLOOKUP(VLOOKUP($D96,Parameters!$D$316:$H$462,M$9,FALSE),Parameters!$D$11:$W$20,10,FALSE) -> 5.82 | N96: =VLOOKUP(VLOOKUP($D96,Parameters!$D$316:$H$462,N$9,FALSE),Parameters!$D$11:$W$20,11,FALSE) -> 1.942857143 | O96: =VLOOKUP(VLOOKUP($D96,Parameters!$D$316:$H$462,O$9,FALSE),Parameters!$D$11:$W$20,12,FALSE) -> 2.3025 | P96: =VLOOKUP(VLOOKUP($D96,Parameters!$D$316:$H$462,P$9,FALSE),Parameters!$D$11:$W$20,13,FALSE) -> 1.942857143 | Q96: =VLOOKUP(VLOOKUP($D96,Parameters!$D$316:$H$462,Q$9,FALSE),Parameters!$D$11:$W$20,14,FALSE) -> 1.942857143 | R96: =VLOOKUP(VLOOKUP($D96,Parameters!$D$316:$H$462,R$9,FALSE),Parameters!$D$11:$W$20,15,FALSE) -> 7.35 | S96: =VLOOKUP(VLOOKUP($D96,Parameters!$D$316:$H$462,S$9,FALSE),Parameters!$D$11:$W$20,16,FALSE) -> 1.942857143 | T96: =VLOOKUP(VLOOKUP($D96,Parameters!$D$316:$H$462,T$9,FALSE),Parameters!$D$11:$W$20,17,FALSE) -> 1.281533974 | U96: =VLOOKUP(VLOOKUP($D96,Parameters!$D$316:$H$462,U$9,FALSE),Parameters!$D$11:$W$20,18,FALSE) -> 1.22 | V96: =VLOOKUP(VLOOKUP($D96,Parameters!$D$316:$H$462,V$9,FALSE),Parameters!$D$11:$W$20,19,FALSE) -> 1.1258 | W96: =VLOOKUP(VLOOKUP($D96,Parameters!$D$316:$H$462,W$9,FALSE),Parameters!$D$11:$W$20,20,FALSE) -> 4.5032 | X96: =VLOOKUP(VLOOKUP($D96,Parameters!$D$316:$H$462,X$9,FALSE),Parameters!$D$11:$X$20,21,FALSE) -> 2.914285714
D97: Korea | E97: =VLOOKUP(VLOOKUP($D97,Parameters!$D$316:$H$462,E$9,FALSE),Parameters!$D$11:$W$20,2,FALSE) -> 0.2864 | F97: =VLOOKUP(VLOOKUP($D97,Parameters!$D$316:$H$462,F$9,FALSE),Parameters!$D$11:$W$20,3,FALSE) -> 0.2330555556 | G97: =VLOOKUP(VLOOKUP($D97,Parameters!$D$316:$H$462,G$9,FALSE),Parameters!$D$11:$W$20,4,FALSE) -> 0.75 | H97: =VLOOKUP(VLOOKUP($D97,Parameters!$D$316:$H$462,H$9,FALSE),Parameters!$D$11:$W$20,5,FALSE) -> 0.75 | I97: =VLOOKUP(VLOOKUP($D97,Parameters!$D$316:$H$462,I$9,FALSE),Parameters!$D$11:$W$20,6,FALSE) -> 0.75 | J97: =VLOOKUP(VLOOKUP($D97,Parameters!$D$316:$H$462,J$9,FALSE),Parameters!$D$11:$W$20,7,FALSE) -> 0.75 | K97: =VLOOKUP(VLOOKUP($D97,Parameters!$D$316:$H$462,K$9,FALSE),Parameters!$D$11:$W$20,8,FALSE) -> 0.75 | L97: =VLOOKUP(VLOOKUP($D97,Parameters!$D$316:$H$462,L$9,FALSE),Parameters!$D$11:$W$20,9,FALSE) -> 0.75 | M97: =VLOOKUP(VLOOKUP($D97,Parameters!$D$316:$H$462,M$9,FALSE),Parameters!$D$11:$W$20,10,FALSE) -> 2.25 | N97: =VLOOKUP(VLOOKUP($D97,Parameters!$D$316:$H$462,N$9,FALSE),Parameters!$D$11:$W$20,11,FALSE) -> 0.75 | O97: =VLOOKUP(VLOOKUP($D97,Parameters!$D$316:$H$462,O$9,FALSE),Parameters!$D$11:$W$20,12,FALSE) -> 1.05 | P97: =VLOOKUP(VLOOKUP($D97,Parameters!$D$316:$H$462,P$9,FALSE),Parameters!$D$11:$W$20,13,FALSE) -> 0.75 | Q97: =VLOOKUP(VLOOKUP($D97,Parameters!$D$316:$H$462,Q$9,FALSE),Parameters!$D$11:$W$20,14,FALSE) -> 0.75 | R97: =VLOOKUP(VLOOKUP($D97,Parameters!$D$316:$H$462,R$9,FALSE),Parameters!$D$11:$W$20,15,FALSE) -> 1.89 | S97: =VLOOKUP(VLOOKUP($D97,Parameters!$D$316:$H$462,S$9,FALSE),Parameters!$D$11:$W$20,16,FALSE) -> 0.75 | T97: =VLOOKUP(VLOOKUP($D97,Parameters!$D$316:$H$462,T$9,FALSE),Parameters!$D$11:$W$20,17,FALSE) -> 0.1553703704 | U97: =VLOOKUP(VLOOKUP($D97,Parameters!$D$316:$H$462,U$9,FALSE),Parameters!$D$11:$W$20,18,FALSE) -> 0.56 | V97: =VLOOKUP(VLOOKUP($D97,Parameters!$D$316:$H$462,V$9,FALSE),Parameters!$D$11:$W$20,19,FALSE) -> 0.2864 | W97: =VLOOKUP(VLOOKUP($D97,Parameters!$D$316:$H$462,W$9,FALSE),Parameters!$D$11:$W$20,20,FALSE) -> 1.1456 | X97: =VLOOKUP(VLOOKUP($D97,Parameters!$D$316:$H$462,X$9,FALSE),Parameters!$D$11:$X$20,21,FALSE) -> 1.125
D98: Kuwait | E98: =VLOOKUP(VLOOKUP($D98,Parameters!$D$316:$H$462,E$9,FALSE),Parameters!$D$11:$W$20,2,FALSE) -> 0.4686 | F98: =VLOOKUP(VLOOKUP($D98,Parameters!$D$316:$H$462,F$9,FALSE),Parameters!$D$11:$W$20,3,FALSE) -> 0.3341666667 | G98: =VLOOKUP(VLOOKUP($D98,Parameters!$D$316:$H$462,G$9,FALSE),Parameters!$D$11:$W$20,4,FALSE) -> 1.023809524 | H98: =VLOOKUP(VLOOKUP($D98,Parameters!$D$316:$H$462,H$9,FALSE),Parameters!$D$11:$W$20,5,FALSE) -> 1.023809524 | I98: =VLOOKUP(VLOOKUP($D98,Parameters!$D$316:$H$462,I$9,FALSE),Parameters!$D$11:$W$20,6,FALSE) -> 1.023809524 | J98: =VLOOKUP(VLOOKUP($D98,Parameters!$D$316:$H$462,J$9,FALSE),Parameters!$D$11:$W$20,7,FALSE) -> 1.023809524 | K98: =VLOOKUP(VLOOKUP($D98,Parameters!$D$316:$H$462,K$9,FALSE),Parameters!$D$11:$W$20,8,FALSE) -> 1.023809524 | L98: =VLOOKUP(VLOOKUP($D98,Parameters!$D$316:$H$462,L$9,FALSE),Parameters!$D$11:$W$20,9,FALSE) -> 1.023809524 | M98: =VLOOKUP(VLOOKUP($D98,Parameters!$D$316:$H$462,M$9,FALSE),Parameters!$D$11:$W$20,10,FALSE) -> 3.071428571 | N98: =VLOOKUP(VLOOKUP($D98,Parameters!$D$316:$H$462,N$9,FALSE),Parameters!$D$11:$W$20,11,FALSE) -> 1.023809524 | O98: =VLOOKUP(VLOOKUP($D98,Parameters!$D$316:$H$462,O$9,FALSE),Parameters!$D$11:$W$20,12,FALSE) -> 1.3375 | P98: =VLOOKUP(VLOOKUP($D98,Parameters!$D$316:$H$462,P$9,FALSE),Parameters!$D$11:$W$20,13,FALSE) -> 1.023809524 | Q98: =VLOOKUP(VLOOKUP($D98,Parameters!$D$316:$H$462,Q$9,FALSE),Parameters!$D$11:$W$20,14,FALSE) -> 1.023809524 | R98: =VLOOKUP(VLOOKUP($D98,Parameters!$D$316:$H$462,R$9,FALSE),Parameters!$D$11:$W$20,15,FALSE) -> 3.06 | S98: =VLOOKUP(VLOOKUP($D98,Parameters!$D$316:$H$462,S$9,FALSE),Parameters!$D$11:$W$20,16,FALSE) -> 1.023809524 | T98: =VLOOKUP(VLOOKUP($D98,Parameters!$D$316:$H$462,T$9,FALSE),Parameters!$D$11:$W$20,17,FALSE) -> 0.2227777778 | U98: =VLOOKUP(VLOOKUP($D98,Parameters!$D$316:$H$462,U$9,FALSE),Parameters!$D$11:$W$20,18,FALSE) -> 0.71 | V98: =VLOOKUP(VLOOKUP($D98,Parameters!$D$316:$H$462,V$9,FALSE),Parameters!$D$11:$W$20,19,FALSE) -> 0.4686 | W98: =VLOOKUP(VLOOKUP($D98,Parameters!$D$316:$H$462,W$9,FALSE),Parameters!$D$11:$W$20,20,FALSE) -> 1.8744 | X98: =VLOOKUP(VLOOKUP($D98,Parameters!$D$316:$H$462,X$9,FALSE),Parameters!$D$11:$X$20,21,FALSE) -> 1.535714286
D99: Latin America | E99: =VLOOKUP(VLOOKUP($D99,Parameters!$D$316:$H$462,E$9,FALSE),Parameters!$D$11:$W$20,2,FALSE) -> 0.7484 | F99: =VLOOKUP(VLOOKUP($D99,Parameters!$D$316:$H$462,F$9,FALSE),Parameters!$D$11:$W$20,3,FALSE) -> 0.6809 | G99: =VLOOKUP(VLOOKUP($D99,Parameters!$D$316:$H$462,G$9,FALSE),Parameters!$D$11:$W$20,4,FALSE) -> 1.421428571 | H99: =VLOOKUP(VLOOKUP($D99,Parameters!$D$316:$H$462,H$9,FALSE),Parameters!$D$11:$W$20,5,FALSE) -> 1.421428571 | I99: =VLOOKUP(VLOOKUP($D99,Parameters!$D$316:$H$462,I$9,FALSE),Parameters!$D$11:$W$20,6,FALSE) -> 1.421428571 | J99: =VLOOKUP(VLOOKUP($D99,Parameters!$D$316:$H$462,J$9,FALSE),Parameters!$D$11:$W$20,7,FALSE) -> 1.421428571 | K99: =VLOOKUP(VLOOKUP($D99,Parameters!$D$316:$H$462,K$9,FALSE),Parameters!$D$11:$W$20,8,FALSE) -> 1.421428571 | L99: =VLOOKUP(VLOOKUP($D99,Parameters!$D$316:$H$462,L$9,FALSE),Parameters!$D$11:$W$20,9,FALSE) -> 1.421428571 | M99: =VLOOKUP(VLOOKUP($D99,Parameters!$D$316:$H$462,M$9,FALSE),Parameters!$D$11:$W$20,10,FALSE) -> 4.264285714 | N99: =VLOOKUP(VLOOKUP($D99,Parameters!$D$316:$H$462,N$9,FALSE),Parameters!$D$11:$W$20,11,FALSE) -> 1.421428571 | O99: =VLOOKUP(VLOOKUP($D99,Parameters!$D$316:$H$462,O$9,FALSE),Parameters!$D$11:$W$20,12,FALSE) -> 1.755 | P99: =VLOOKUP(VLOOKUP($D99,Parameters!$D$316:$H$462,P$9,FALSE),Parameters!$D$11:$W$20,13,FALSE) -> 1.421428571 | Q99: =VLOOKUP(VLOOKUP($D99,Parameters!$D$316:$H$462,Q$9,FALSE),Parameters!$D$11:$W$20,14,FALSE) -> 1.421428571 | R99: =VLOOKUP(VLOOKUP($D99,Parameters!$D$316:$H$462,R$9,FALSE),Parameters!$D$11:$W$20,15,FALSE) -> 4.88 | S99: =VLOOKUP(VLOOKUP($D99,Parameters!$D$316:$H$462,S$9,FALSE),Parameters!$D$11:$W$20,16,FALSE) -> 1.421428571 | T99: =VLOOKUP(VLOOKUP($D99,Parameters!$D$316:$H$462,T$9,FALSE),Parameters!$D$11:$W$20,17,FALSE) -> 0.4539335603 | U99: =VLOOKUP(VLOOKUP($D99,Parameters!$D$316:$H$462,U$9,FALSE),Parameters!$D$11:$W$20,18,FALSE) -> 0.93 | V99: =VLOOKUP(VLOOKUP($D99,Parameters!$D$316:$H$462,V$9,FALSE),Parameters!$D$11:$W$20,19,FALSE) -> 0.7484 | W99: =VLOOKUP(VLOOKUP($D99,Parameters!$D$316:$H$462,W$9,FALSE),Parameters!$D$11:$W$20,20,FALSE) -> 2.9936 | X99: =VLOOKUP(VLOOKUP($D99,Parameters!$D$316:$H$462,X$9,FALSE),Parameters!$D$11:$X$20,21,FALSE) -> 2.132142857
D100: Latvia | E100: =VLOOKUP(VLOOKUP($D100,Parameters!$D$316:$H$462,E$9,FALSE),Parameters!$D$11:$W$20,2,FALSE) -> 0.3653 | F100: =VLOOKUP(VLOOKUP($D100,Parameters!$D$316:$H$462,F$9,FALSE),Parameters!$D$11:$W$20,3,FALSE) -> 0.3341666667 | G100: =VLOOKUP(VLOOKUP($D100,Parameters!$D$316:$H$462,G$9,FALSE),Parameters!$D$11:$W$20,4,FALSE) -> 0.8714285714 | H100: =VLOOKUP(VLOOKUP($D100,Parameters!$D$316:$H$462,H$9,FALSE),Parameters!$D$11:$W$20,5,FALSE) -> 0.8714285714 | I100: =VLOOKUP(VLOOKUP($D100,Parameters!$D$316:$H$462,I$9,FALSE),Parameters!$D$11:$W$20,6,FALSE) -> 0.8714285714 | J100: =VLOOKUP(VLOOKUP($D100,Parameters!$D$316:$H$462,J$9,FALSE),Parameters!$D$11:$W$20,7,FALSE) -> 0.8714285714 | K100: =VLOOKUP(VLOOKUP($D100,Parameters!$D$316:$H$462,K$9,FALSE),Parameters!$D$11:$W$20,8,FALSE) -> 0.8714285714 | L100: =VLOOKUP(VLOOKUP($D100,Parameters!$D$316:$H$462,L$9,FALSE),Parameters!$D$11:$W$20,9,FALSE) -> 0.8714285714 | M100: =VLOOKUP(VLOOKUP($D100,Parameters!$D$316:$H$462,M$9,FALSE),Parameters!$D$11:$W$20,10,FALSE) -> 2.614285714 | N100: =VLOOKUP(VLOOKUP($D100,Parameters!$D$316:$H$462,N$9,FALSE),Parameters!$D$11:$W$20,11,FALSE) -> 0.8714285714 | O100: =VLOOKUP(VLOOKUP($D100,Parameters!$D$316:$H$462,O$9,FALSE),Parameters!$D$11:$W$20,12,FALSE) -> 1.1775 | P100: =VLOOKUP(VLOOKUP($D100,Parameters!$D$316:$H$462,P$9,FALSE),Parameters!$D$11:$W$20,13,FALSE) -> 0.8714285714 | Q100: =VLOOKUP(VLOOKUP($D100,Parameters!$D$316:$H$462,Q$9,FALSE),Parameters!$D$11:$W$20,14,FALSE) -> 0.8714285714 | R100: =VLOOKUP(VLOOKUP($D100,Parameters!$D$316:$H$462,R$9,FALSE),Parameters!$D$11:$W$20,15,FALSE) -> 2.41 | S100: =VLOOKUP(VLOOKUP($D100,Parameters!$D$316:$H$462,S$9,FALSE),Parameters!$D$11:$W$20,16,FALSE) -> 0.8714285714 | T100: =VLOOKUP(VLOOKUP($D100,Parameters!$D$316:$H$462,T$9,FALSE),Parameters!$D$11:$W$20,17,FALSE) -> 0.2227777778 | U100: =VLOOKUP(VLOOKUP($D100,Parameters!$D$316:$H$462,U$9,FALSE),Parameters!$D$11:$W$20,18,FALSE) -> 0.63 | V100: =VLOOKUP(VLOOKUP($D100,Parameters!$D$316:$H$462,V$9,FALSE),Parameters!$D$11:$W$20,19,FALSE) -> 0.3653 | W100: =VLOOKUP(VLOOKUP($D100,Parameters!$D$316:$H$462,W$9,FALSE),Parameters!$D$11:$W$20,20,FALSE) -> 1.4612 | X100: =VLOOKUP(VLOOKUP($D100,Parameters!$D$316:$H$462,X$9,FALSE),Parameters!$D$11:$X$20,21,FALSE) -> 1.307142857
D101: Lebanon | E101: =VLOOKUP(VLOOKUP($D101,Parameters!$D$316:$H$462,E$9,FALSE),Parameters!$D$11:$W$20,2,FALSE) -> 1.3511 | F101: =VLOOKUP(VLOOKUP($D101,Parameters!$D$316:$H$462,F$9,FALSE),Parameters!$D$11:$W$20,3,FALSE) -> 2.4753 | G101: =VLOOKUP(VLOOKUP($D101,Parameters!$D$316:$H$462,G$9,FALSE),Parameters!$D$11:$W$20,4,FALSE) -> 2.25 | H101: =VLOOKUP(VLOOKUP($D101,Parameters!$D$316:$H$462,H$9,FALSE),Parameters!$D$11:$W$20,5,FALSE) -> 2.25 | I101: =VLOOKUP(VLOOKUP($D101,Parameters!$D$316:$H$462,I$9,FALSE),Parameters!$D$11:$W$20,6,FALSE) -> 2.25 | J101: =VLOOKUP(VLOOKUP($D101,Parameters!$D$316:$H$462,J$9,FALSE),Parameters!$D$11:$W$20,7,FALSE) -> 2.25 | K101: =VLOOKUP(VLOOKUP($D101,Parameters!$D$316:$H$462,K$9,FALSE),Parameters!$D$11:$W$20,8,FALSE) -> 2.25 | L101: =VLOOKUP(VLOOKUP($D101,Parameters!$D$316:$H$462,L$9,FALSE),Parameters!$D$11:$W$20,9,FALSE) -> 2.25 | M101: =VLOOKUP(VLOOKUP($D101,Parameters!$D$316:$H$462,M$9,FALSE),Parameters!$D$11:$W$20,10,FALSE) -> 6.75 | N101: =VLOOKUP(VLOOKUP($D101,Parameters!$D$316:$H$462,N$9,FALSE),Parameters!$D$11:$W$20,11,FALSE) -> 2.25 | O101: =VLOOKUP(VLOOKUP($D101,Parameters!$D$316:$H$462,O$9,FALSE),Parameters!$D$11:$W$20,12,FALSE) -> 2.625 | P101: =VLOOKUP(VLOOKUP($D101,Parameters!$D$316:$H$462,P$9,FALSE),Parameters!$D$11:$W$20,13,FALSE) -> 2.25 | Q101: =VLOOKUP(VLOOKUP($D101,Parameters!$D$316:$H$462,Q$9,FALSE),Parameters!$D$11:$W$20,14,FALSE) -> 2.25 | R101: =VLOOKUP(VLOOKUP($D101,Parameters!$D$316:$H$462,R$9,FALSE),Parameters!$D$11:$W$20,15,FALSE) -> 8.78 | S101: =VLOOKUP(VLOOKUP($D101,Parameters!$D$316:$H$462,S$9,FALSE),Parameters!$D$11:$W$20,16,FALSE) -> 2.25 | T101: =VLOOKUP(VLOOKUP($D101,Parameters!$D$316:$H$462,T$9,FALSE),Parameters!$D$11:$W$20,17,FALSE) -> 1.650200825 | U101: =VLOOKUP(VLOOKUP($D101,Parameters!$D$316:$H$462,U$9,FALSE),Parameters!$D$11:$W$20,18,FALSE) -> 1.39 | V101: =VLOOKUP(VLOOKUP($D101,Parameters!$D$316:$H$462,V$9,FALSE),Parameters!$D$11:$W$20,19,FALSE) -> 1.3511 | W101: =VLOOKUP(VLOOKUP($D101,Parameters!$D$316:$H$462,W$9,FALSE),Parameters!$D$11:$W$20,20,FALSE) -> 5.4044 | X101: =VLOOKUP(VLOOKUP($D101,Parameters!$D$316:$H$462,X$9,FALSE),Parameters!$D$11:$X$20,21,FALSE) -> 3.375
D102: Liberia | E102: =VLOOKUP(VLOOKUP($D102,Parameters!$D$316:$H$462,E$9,FALSE),Parameters!$D$11:$W$20,2,FALSE) -> 1.3511 | F102: =VLOOKUP(VLOOKUP($D102,Parameters!$D$316:$H$462,F$9,FALSE),Parameters!$D$11:$W$20,3,FALSE) -> 2.4753 | G102: =VLOOKUP(VLOOKUP($D102,Parameters!$D$316:$H$462,G$9,FALSE),Parameters!$D$11:$W$20,4,FALSE) -> 2.25 | H102: =VLOOKUP(VLOOKUP($D102,Parameters!$D$316:$H$462,H$9,FALSE),Parameters!$D$11:$W$20,5,FALSE) -> 2.25 | I102: =VLOOKUP(VLOOKUP($D102,Parameters!$D$316:$H$462,I$9,FALSE),Parameters!$D$11:$W$20,6,FALSE) -> 2.25 | J102: =VLOOKUP(VLOOKUP($D102,Parameters!$D$316:$H$462,J$9,FALSE),Parameters!$D$11:$W$20,7,FALSE) -> 2.25 | K102: =VLOOKUP(VLOOKUP($D102,Parameters!$D$316:$H$462,K$9,FALSE),Parameters!$D$11:$W$20,8,FALSE) -> 2.25 | L102: =VLOOKUP(VLOOKUP($D102,Parameters!$D$316:$H$462,L$9,FALSE),Parameters!$D$11:$W$20,9,FALSE) -> 2.25 | M102: =VLOOKUP(VLOOKUP($D102,Parameters!$D$316:$H$462,M$9,FALSE),Parameters!$D$11:$W$20,10,FALSE) -> 6.75 | N102: =VLOOKUP(VLOOKUP($D102,Parameters!$D$316:$H$462,N$9,FALSE),Parameters!$D$11:$W$20,11,FALSE) -> 2.25 | O102: =VLOOKUP(VLOOKUP($D102,Parameters!$D$316:$H$462,O$9,FALSE),Parameters!$D$11:$W$20,12,FALSE) -> 2.625 | P102: =VLOOKUP(VLOOKUP($D102,Parameters!$D$316:$H$462,P$9,FALSE),Parameters!$D$11:$W$20,13,FALSE) -> 2.25 | Q102: =VLOOKUP(VLOOKUP($D102,Parameters!$D$316:$H$462,Q$9,FALSE),Parameters!$D$11:$W$20,14,FALSE) -> 2.25 | R102: =VLOOKUP(VLOOKUP($D102,Parameters!$D$316:$H$462,R$9,FALSE),Parameters!$D$11:$W$20,15,FALSE) -> 8.78 | S102: =VLOOKUP(VLOOKUP($D102,Parameters!$D$316:$H$462,S$9,FALSE),Parameters!$D$11:$W$20,16,FALSE) -> 2.25 | T102: =VLOOKUP(VLOOKUP($D102,Parameters!$D$316:$H$462,T$9,FALSE),Parameters!$D$11:$W$20,17,FALSE) -> 1.650200825 | U102: =VLOOKUP(VLOOKUP($D102,Parameters!$D$316:$H$462,U$9,FALSE),Parameters!$D$11:$W$20,18,FALSE) -> 1.39 | V102: =VLOOKUP(VLOOKUP($D102,Parameters!$D$316:$H$462,V$9,FALSE),Parameters!$D$11:$W$20,19,FALSE) -> 1.3511 | W102: =VLOOKUP(VLOOKUP($D102,Parameters!$D$316:$H$462,W$9,FALSE),Parameters!$D$11:$W$20,20,FALSE) -> 5.4044 | X102: =VLOOKUP(VLOOKUP($D102,Parameters!$D$316:$H$462,X$9,FALSE),Parameters!$D$11:$X$20,21,FALSE) -> 3.375
D103: Liechtenstein | E103: =VLOOKUP(VLOOKUP($D103,Parameters!$D$316:$H$462,E$9,FALSE),Parameters!$D$11:$W$20,2,FALSE) -> 0.2319 | F103: =VLOOKUP(VLOOKUP($D103,Parameters!$D$316:$H$462,F$9,FALSE),Parameters!$D$11:$W$20,3,FALSE) -> 0.1716666667 | G103: =VLOOKUP(VLOOKUP($D103,Parameters!$D$316:$H$462,G$9,FALSE),Parameters!$D$11:$W$20,4,FALSE) -> 0.6595238095 | H103: =VLOOKUP(VLOOKUP($D103,Parameters!$D$316:$H$462,H$9,FALSE),Parameters!$D$11:$W$20,5,FALSE) -> 0.6595238095 | I103: =VLOOKUP(VLOOKUP($D103,Parameters!$D$316:$H$462,I$9,FALSE),Parameters!$D$11:$W$20,6,FALSE) -> 0.6595238095 | J103: =VLOOKUP(VLOOKUP($D103,Parameters!$D$316:$H$462,J$9,FALSE),Parameters!$D$11:$W$20,7,FALSE) -> 0.6595238095 | K103: =VLOOKUP(VLOOKUP($D103,Parameters!$D$316:$H$462,K$9,FALSE),Parameters!$D$11:$W$20,8,FALSE) -> 0.6595238095 | L103: =VLOOKUP(VLOOKUP($D103,Parameters!$D$316:$H$462,L$9,FALSE),Parameters!$D$11:$W$20,9,FALSE) -> 0.6595238095 | M103: =VLOOKUP(VLOOKUP($D103,Parameters!$D$316:$H$462,M$9,FALSE),Parameters!$D$11:$W$20,10,FALSE) -> 1.978571429 | N103: =VLOOKUP(VLOOKUP($D103,Parameters!$D$316:$H$462,N$9,FALSE),Parameters!$D$11:$W$20,11,FALSE) -> 0.6595238095 | O103: =VLOOKUP(VLOOKUP($D103,Parameters!$D$316:$H$462,O$9,FALSE),Parameters!$D$11:$W$20,12,FALSE) -> 0.955 | P103: =VLOOKUP(VLOOKUP($D103,Parameters!$D$316:$H$462,P$9,FALSE),Parameters!$D$11:$W$20,13,FALSE) -> 0.6595238095 | Q103: =VLOOKUP(VLOOKUP($D103,Parameters!$D$316:$H$462,Q$9,FALSE),Parameters!$D$11:$W$20,14,FALSE) -> 0.6595238095 | R103: =VLOOKUP(VLOOKUP($D103,Parameters!$D$316:$H$462,R$9,FALSE),Parameters!$D$11:$W$20,15,FALSE) -> 1.5 | S103: =VLOOKUP(VLOOKUP($D103,Parameters!$D$316:$H$462,S$9,FALSE),Parameters!$D$11:$W$20,16,FALSE) -> 0.6595238095 | T103: =VLOOKUP(VLOOKUP($D103,Parameters!$D$316:$H$462,T$9,FALSE),Parameters!$D$11:$W$20,17,FALSE) -> 0.1144444444 | U103: =VLOOKUP(VLOOKUP($D103,Parameters!$D$316:$H$462,U$9,FALSE),Parameters!$D$11:$W$20,18,FALSE) -> 0.51 | V103: =VLOOKUP(VLOOKUP($D103,Parameters!$D$316:$H$462,V$9,FALSE),Parameters!$D$11:$W$20,19,FALSE) -> 0.2319 | W103: =VLOOKUP(VLOOKUP($D103,Parameters!$D$316:$H$462,W$9,FALSE),Parameters!$D$11:$W$20,20,FALSE) -> 0.9276 | X103: =VLOOKUP(VLOOKUP($D103,Parameters!$D$316:$H$462,X$9,FALSE),Parameters!$D$11:$X$20,21,FALSE) -> 0.9892857143
D104: Lithuania | E104: =VLOOKUP(VLOOKUP($D104,Parameters!$D$316:$H$462,E$9,FALSE),Parameters!$D$11:$W$20,2,FALSE) -> 0.3653 | F104: =VLOOKUP(VLOOKUP($D104,Parameters!$D$316:$H$462,F$9,FALSE),Parameters!$D$11:$W$20,3,FALSE) -> 0.3341666667 | G104: =VLOOKUP(VLOOKUP($D104,Parameters!$D$316:$H$462,G$9,FALSE),Parameters!$D$11:$W$20,4,FALSE) -> 0.8714285714 | H104: =VLOOKUP(VLOOKUP($D104,Parameters!$D$316:$H$462,H$9,FALSE),Parameters!$D$11:$W$20,5,FALSE) -> 0.8714285714 | I104: =VLOOKUP(VLOOKUP($D104,Parameters!$D$316:$H$462,I$9,FALSE),Parameters!$D$11:$W$20,6,FALSE) -> 0.8714285714 | J104: =VLOOKUP(VLOOKUP($D104,Parameters!$D$316:$H$462,J$9,FALSE),Parameters!$D$11:$W$20,7,FALSE) -> 0.8714285714 | K104: =VLOOKUP(VLOOKUP($D104,Parameters!$D$316:$H$462,K$9,FALSE),Parameters!$D$11:$W$20,8,FALSE) -> 0.8714285714 | L104: =VLOOKUP(VLOOKUP($D104,Parameters!$D$316:$H$462,L$9,FALSE),Parameters!$D$11:$W$20,9,FALSE) -> 0.8714285714 | M104: =VLOOKUP(VLOOKUP($D104,Parameters!$D$316:$H$462,M$9,FALSE),Parameters!$D$11:$W$20,10,FALSE) -> 2.614285714 | N104: =VLOOKUP(VLOOKUP($D104,Parameters!$D$316:$H$462,N$9,FALSE),Parameters!$D$11:$W$20,11,FALSE) -> 0.8714285714 | O104: =VLOOKUP(VLOOKUP($D104,Parameters!$D$316:$H$462,O$9,FALSE),Parameters!$D$11:$W$20,12,FALSE) -> 1.1775 | P104: =VLOOKUP(VLOOKUP($D104,Parameters!$D$316:$H$462,P$9,FALSE),Parameters!$D$11:$W$20,13,FALSE) -> 0.8714285714 | Q104: =VLOOKUP(VLOOKUP($D104,Parameters!$D$316:$H$462,Q$9,FALSE),Parameters!$D$11:$W$20,14,FALSE) -> 0.8714285714 | R104: =VLOOKUP(VLOOKUP($D104,Parameters!$D$316:$H$462,R$9,FALSE),Parameters!$D$11:$W$20,15,FALSE) -> 2.41 | S104: =VLOOKUP(VLOOKUP($D104,Parameters!$D$316:$H$462,S$9,FALSE),Parameters!$D$11:$W$20,16,FALSE) -> 0.8714285714 | T104: =VLOOKUP(VLOOKUP($D104,Parameters!$D$316:$H$462,T$9,FALSE),Parameters!$D$11:$W$20,17,FALSE) -> 0.2227777778 | U104: =VLOOKUP(VLOOKUP($D104,Parameters!$D$316:$H$462,U$9,FALSE),Parameters!$D$11:$W$20,18,FALSE) -> 0.63 | V104: =VLOOKUP(VLOOKUP($D104,Parameters!$D$316:$H$462,V$9,FALSE),Parameters!$D$11:$W$20,19,FALSE) -> 0.3653 | W104: =VLOOKUP(VLOOKUP($D104,Parameters!$D$316:$H$462,W$9,FALSE),Parameters!$D$11:$W$20,20,FALSE) -> 1.4612 | X104: =VLOOKUP(VLOOKUP($D104,Parameters!$D$316:$H$462,X$9,FALSE),Parameters!$D$11:$X$20,21,FALSE) -> 1.307142857
D105: Luxembourg | E105: =VLOOKUP(VLOOKUP($D105,Parameters!$D$316:$H$462,E$9,FALSE),Parameters!$D$11:$W$20,2,FALSE) -> 0.2319 | F105: =VLOOKUP(VLOOKUP($D105,Parameters!$D$316:$H$462,F$9,FALSE),Parameters!$D$11:$W$20,3,FALSE) -> 0.1716666667 | G105: =VLOOKUP(VLOOKUP($D105,Parameters!$D$316:$H$462,G$9,FALSE),Parameters!$D$11:$W$20,4,FALSE) -> 0.6595238095 | H105: =VLOOKUP(VLOOKUP($D105,Parameters!$D$316:$H$462,H$9,FALSE),Parameters!$D$11:$W$20,5,FALSE) -> 0.6595238095 | I105: =VLOOKUP(VLOOKUP($D105,Parameters!$D$316:$H$462,I$9,FALSE),Parameters!$D$11:$W$20,6,FALSE) -> 0.6595238095 | J105: =VLOOKUP(VLOOKUP($D105,Parameters!$D$316:$H$462,J$9,FALSE),Parameters!$D$11:$W$20,7,FALSE) -> 0.6595238095 | K105: =VLOOKUP(VLOOKUP($D105,Parameters!$D$316:$H$462,K$9,FALSE),Parameters!$D$11:$W$20,8,FALSE) -> 0.6595238095 | L105: =VLOOKUP(VLOOKUP($D105,Parameters!$D$316:$H$462,L$9,FALSE),Parameters!$D$11:$W$20,9,FALSE) -> 0.6595238095 | M105: =VLOOKUP(VLOOKUP($D105,Parameters!$D$316:$H$462,M$9,FALSE),Parameters!$D$11:$W$20,10,FALSE) -> 1.978571429 | N105: =VLOOKUP(VLOOKUP($D105,Parameters!$D$316:$H$462,N$9,FALSE),Parameters!$D$11:$W$20,11,FALSE) -> 0.6595238095 | O105: =VLOOKUP(VLOOKUP($D105,Parameters!$D$316:$H$462,O$9,FALSE),Parameters!$D$11:$W$20,12,FALSE) -> 0.955 | P105: =VLOOKUP(VLOOKUP($D105,Parameters!$D$316:$H$462,P$9,FALSE),Parameters!$D$11:$W$20,13,FALSE) -> 0.6595238095 | Q105: =VLOOKUP(VLOOKUP($D105,Parameters!$D$316:$H$462,Q$9,FALSE),Parameters!$D$11:$W$20,14,FALSE) -> 0.6595238095 | R105: =VLOOKUP(VLOOKUP($D105,Parameters!$D$316:$H$462,R$9,FALSE),Parameters!$D$11:$W$20,15,FALSE) -> 1.5 | S105: =VLOOKUP(VLOOKUP($D105,Parameters!$D$316:$H$462,S$9,FALSE),Parameters!$D$11:$W$20,16,FALSE) -> 0.6595238095 | T105: =VLOOKUP(VLOOKUP($D105,Parameters!$D$316:$H$462,T$9,FALSE),Parameters!$D$11:$W$20,17,FALSE) -> 0.1144444444 | U105: =VLOOKUP(VLOOKUP($D105,Parameters!$D$316:$H$462,U$9,FALSE),Parameters!$D$11:$W$20,18,FALSE) -> 0.51 | V105: =VLOOKUP(VLOOKUP($D105,Parameters!$D$316:$H$462,V$9,FALSE),Parameters!$D$11:$W$20,19,FALSE) -> 0.2319 | W105: =VLOOKUP(VLOOKUP($D105,Parameters!$D$316:$H$462,W$9,FALSE),Parameters!$D$11:$W$20,20,FALSE) -> 0.9276 | X105: =VLOOKUP(VLOOKUP($D105,Parameters!$D$316:$H$462,X$9,FALSE),Parameters!$D$11:$X$20,21,FALSE) -> 0.9892857143
D106: Macedonia | E106: =VLOOKUP(VLOOKUP($D106,Parameters!$D$316:$H$462,E$9,FALSE),Parameters!$D$11:$W$20,2,FALSE) -> 1.1258 | F106: =VLOOKUP(VLOOKUP($D106,Parameters!$D$316:$H$462,F$9,FALSE),Parameters!$D$11:$W$20,3,FALSE) -> 1.9223 | G106: =VLOOKUP(VLOOKUP($D106,Parameters!$D$316:$H$462,G$9,FALSE),Parameters!$D$11:$W$20,4,FALSE) -> 1.942857143 | H106: =VLOOKUP(VLOOKUP($D106,Parameters!$D$316:$H$462,H$9,FALSE),Parameters!$D$11:$W$20,5,FALSE) -> 1.942857143 | I106: =VLOOKUP(VLOOKUP($D106,Parameters!$D$316:$H$462,I$9,FALSE),Parameters!$D$11:$W$20,6,FALSE) -> 1.942857143 | J106: =VLOOKUP(VLOOKUP($D106,Parameters!$D$316:$H$462,J$9,FALSE),Parameters!$D$11:$W$20,7,FALSE) -> 1.942857143 | K106: =VLOOKUP(VLOOKUP($D106,Parameters!$D$316:$H$462,K$9,FALSE),Parameters!$D$11:$W$20,8,FALSE) -> 1.942857143 | L106: =VLOOKUP(VLOOKUP($D106,Parameters!$D$316:$H$462,L$9,FALSE),Parameters!$D$11:$W$20,9,FALSE) -> 1.942857143 | M106: =VLOOKUP(VLOOKUP($D106,Parameters!$D$316:$H$462,M$9,FALSE),Parameters!$D$11:$W$20,10,FALSE) -> 5.82 | N106: =VLOOKUP(VLOOKUP($D106,Parameters!$D$316:$H$462,N$9,FALSE),Parameters!$D$11:$W$20,11,FALSE) -> 1.942857143 | O106: =VLOOKUP(VLOOKUP($D106,Parameters!$D$316:$H$462,O$9,FALSE),Parameters!$D$11:$W$20,12,FALSE) -> 2.3025 | P106: =VLOOKUP(VLOOKUP($D106,Parameters!$D$316:$H$462,P$9,FALSE),Parameters!$D$11:$W$20,13,FALSE) -> 1.942857143 | Q106: =VLOOKUP(VLOOKUP($D106,Parameters!$D$316:$H$462,Q$9,FALSE),Parameters!$D$11:$W$20,14,FALSE) -> 1.942857143 | R106: =VLOOKUP(VLOOKUP($D106,Parameters!$D$316:$H$462,R$9,FALSE),Parameters!$D$11:$W$20,15,FALSE) -> 7.35 | S106: =VLOOKUP(VLOOKUP($D106,Parameters!$D$316:$H$462,S$9,FALSE),Parameters!$D$11:$W$20,16,FALSE) -> 1.942857143 | T106: =VLOOKUP(VLOOKUP($D106,Parameters!$D$316:$H$462,T$9,FALSE),Parameters!$D$11:$W$20,17,FALSE) -> 1.281533974 | U106: =VLOOKUP(VLOOKUP($D106,Parameters!$D$316:$H$462,U$9,FALSE),Parameters!$D$11:$W$20,18,FALSE) -> 1.22 | V106: =VLOOKUP(VLOOKUP($D106,Parameters!$D$316:$H$462,V$9,FALSE),Parameters!$D$11:$W$20,19,FALSE) -> 1.1258 | W106: =VLOOKUP(VLOOKUP($D106,Parameters!$D$316:$H$462,W$9,FALSE),Parameters!$D$11:$W$20,20,FALSE) -> 4.5032 | X106: =VLOOKUP(VLOOKUP($D106,Parameters!$D$316:$H$462,X$9,FALSE),Parameters!$D$11:$X$20,21,FALSE) -> 2.914285714
D107: Malaysia | E107: =VLOOKUP(VLOOKUP($D107,Parameters!$D$316:$H$462,E$9,FALSE),Parameters!$D$11:$W$20,2,FALSE) -> 0.4686 | F107: =VLOOKUP(VLOOKUP($D107,Parameters!$D$316:$H$462,F$9,FALSE),Parameters!$D$11:$W$20,3,FALSE) -> 0.3341666667 | G107: =VLOOKUP(VLOOKUP($D107,Parameters!$D$316:$H$462,G$9,FALSE),Parameters!$D$11:$W$20,4,FALSE) -> 1.023809524 | H107: =VLOOKUP(VLOOKUP($D107,Parameters!$D$316:$H$462,H$9,FALSE),Parameters!$D$11:$W$20,5,FALSE) -> 1.023809524 | I107: =VLOOKUP(VLOOKUP($D107,Parameters!$D$316:$H$462,I$9,FALSE),Parameters!$D$11:$W$20,6,FALSE) -> 1.023809524 | J107: =VLOOKUP(VLOOKUP($D107,Parameters!$D$316:$H$462,J$9,FALSE),Parameters!$D$11:$W$20,7,FALSE) -> 1.023809524 | K107: =VLOOKUP(VLOOKUP($D107,Parameters!$D$316:$H$462,K$9,FALSE),Parameters!$D$11:$W$20,8,FALSE) -> 1.023809524 | L107: =VLOOKUP(VLOOKUP($D107,Parameters!$D$316:$H$462,L$9,FALSE),Parameters!$D$11:$W$20,9,FALSE) -> 1.023809524 | M107: =VLOOKUP(VLOOKUP($D107,Parameters!$D$316:$H$462,M$9,FALSE),Parameters!$D$11:$W$20,10,FALSE) -> 3.071428571 | N107: =VLOOKUP(VLOOKUP($D107,Parameters!$D$316:$H$462,N$9,FALSE),Parameters!$D$11:$W$20,11,FALSE) -> 1.023809524 | O107: =VLOOKUP(VLOOKUP($D107,Parameters!$D$316:$H$462,O$9,FALSE),Parameters!$D$11:$W$20,12,FALSE) -> 1.3375 | P107: =VLOOKUP(VLOOKUP($D107,Parameters!$D$316:$H$462,P$9,FALSE),Parameters!$D$11:$W$20,13,FALSE) -> 1.023809524 | Q107: =VLOOKUP(VLOOKUP($D107,Parameters!$D$316:$H$462,Q$9,FALSE),Parameters!$D$11:$W$20,14,FALSE) -> 1.023809524 | R107: =VLOOKUP(VLOOKUP($D107,Parameters!$D$316:$H$462,R$9,FALSE),Parameters!$D$11:$W$20,15,FALSE) -> 3.06 | S107: =VLOOKUP(VLOOKUP($D107,Parameters!$D$316:$H$462,S$9,FALSE),Parameters!$D$11:$W$20,16,FALSE) -> 1.023809524 | T107: =VLOOKUP(VLOOKUP($D107,Parameters!$D$316:$H$462,T$9,FALSE),Parameters!$D$11:$W$20,17,FALSE) -> 0.2227777778 | U107: =VLOOKUP(VLOOKUP($D107,Parameters!$D$316:$H$462,U$9,FALSE),Parameters!$D$11:$W$20,18,FALSE) -> 0.71 | V107: =VLOOKUP(VLOOKUP($D107,Parameters!$D$316:$H$462,V$9,FALSE),Parameters!$D$11:$W$20,19,FALSE) -> 0.4686 | W107: =VLOOKUP(VLOOKUP($D107,Parameters!$D$316:$H$462,W$9,FALSE),Parameters!$D$11:$W$20,20,FALSE) -> 1.8744 | X107: =VLOOKUP(VLOOKUP($D107,Parameters!$D$316:$H$462,X$9,FALSE),Parameters!$D$11:$X$20,21,FALSE) -> 1.535714286
D108: Malta | E108: =VLOOKUP(VLOOKUP($D108,Parameters!$D$316:$H$462,E$9,FALSE),Parameters!$D$11:$W$20,2,FALSE) -> 0.3653 | F108: =VLOOKUP(VLOOKUP($D108,Parameters!$D$316:$H$462,F$9,FALSE),Parameters!$D$11:$W$20,3,FALSE) -> 0.475 | G108: =VLOOKUP(VLOOKUP($D108,Parameters!$D$316:$H$462,G$9,FALSE),Parameters!$D$11:$W$20,4,FALSE) -> 0.8714285714 | H108: =VLOOKUP(VLOOKUP($D108,Parameters!$D$316:$H$462,H$9,FALSE),Parameters!$D$11:$W$20,5,FALSE) -> 0.8714285714 | I108: =VLOOKUP(VLOOKUP($D108,Parameters!$D$316:$H$462,I$9,FALSE),Parameters!$D$11:$W$20,6,FALSE) -> 0.8714285714 | J108: =VLOOKUP(VLOOKUP($D108,Parameters!$D$316:$H$462,J$9,FALSE),Parameters!$D$11:$W$20,7,FALSE) -> 0.8714285714 | K108: =VLOOKUP(VLOOKUP($D108,Parameters!$D$316:$H$462,K$9,FALSE),Parameters!$D$11:$W$20,8,FALSE) -> 0.8714285714 | L108: =VLOOKUP(VLOOKUP($D108,Parameters!$D$316:$H$462,L$9,FALSE),Parameters!$D$11:$W$20,9,FALSE) -> 0.8714285714 | M108: =VLOOKUP(VLOOKUP($D108,Parameters!$D$316:$H$462,M$9,FALSE),Parameters!$D$11:$W$20,10,FALSE) -> 2.614285714 | N108: =VLOOKUP(VLOOKUP($D108,Parameters!$D$316:$H$462,N$9,FALSE),Parameters!$D$11:$W$20,11,FALSE) -> 0.8714285714 | O108: =VLOOKUP(VLOOKUP($D108,Parameters!$D$316:$H$462,O$9,FALSE),Parameters!$D$11:$W$20,12,FALSE) -> 1.1775 | P108: =VLOOKUP(VLOOKUP($D108,Parameters!$D$316:$H$462,P$9,FALSE),Parameters!$D$11:$W$20,13,FALSE) -> 0.8714285714 | Q108: =VLOOKUP(VLOOKUP($D108,Parameters!$D$316:$H$462,Q$9,FALSE),Parameters!$D$11:$W$20,14,FALSE) -> 0.8714285714 | R108: =VLOOKUP(VLOOKUP($D108,Parameters!$D$316:$H$462,R$9,FALSE),Parameters!$D$11:$W$20,15,FALSE) -> 2.41 | S108: =VLOOKUP(VLOOKUP($D108,Parameters!$D$316:$H$462,S$9,FALSE),Parameters!$D$11:$W$20,16,FALSE) -> 0.8714285714 | T108: =VLOOKUP(VLOOKUP($D108,Parameters!$D$316:$H$462,T$9,FALSE),Parameters!$D$11:$W$20,17,FALSE) -> 0.3166666667 | U108: =VLOOKUP(VLOOKUP($D108,Parameters!$D$316:$H$462,U$9,FALSE),Parameters!$D$11:$W$20,18,FALSE) -> 0.63 | V108: =VLOOKUP(VLOOKUP($D108,Parameters!$D$316:$H$462,V$9,FALSE),Parameters!$D$11:$W$20,19,FALSE) -> 0.3653 | W108: =VLOOKUP(VLOOKUP($D108,Parameters!$D$316:$H$462,W$9,FALSE),Parameters!$D$11:$W$20,20,FALSE) -> 1.4612 | X108: =VLOOKUP(VLOOKUP($D108,Parameters!$D$316:$H$462,X$9,FALSE),Parameters!$D$11:$X$20,21,FALSE) -> 1.307142857
D109: Mauritius | E109: =VLOOKUP(VLOOKUP($D109,Parameters!$D$316:$H$462,E$9,FALSE),Parameters!$D$11:$W$20,2,FALSE) -> 0.7484 | F109: =VLOOKUP(VLOOKUP($D109,Parameters!$D$316:$H$462,F$9,FALSE),Parameters!$D$11:$W$20,3,FALSE) -> 1.0251 | G109: =VLOOKUP(VLOOKUP($D109,Parameters!$D$316:$H$462,G$9,FALSE),Parameters!$D$11:$W$20,4,FALSE) -> 1.421428571 | H109: =VLOOKUP(VLOOKUP($D109,Parameters!$D$316:$H$462,H$9,FALSE),Parameters!$D$11:$W$20,5,FALSE) -> 1.421428571 | I109: =VLOOKUP(VLOOKUP($D109,Parameters!$D$316:$H$462,I$9,FALSE),Parameters!$D$11:$W$20,6,FALSE) -> 1.421428571 | J109: =VLOOKUP(VLOOKUP($D109,Parameters!$D$316:$H$462,J$9,FALSE),Parameters!$D$11:$W$20,7,FALSE) -> 1.421428571 | K109: =VLOOKUP(VLOOKUP($D109,Parameters!$D$316:$H$462,K$9,FALSE),Parameters!$D$11:$W$20,8,FALSE) -> 1.421428571 | L109: =VLOOKUP(VLOOKUP($D109,Parameters!$D$316:$H$462,L$9,FALSE),Parameters!$D$11:$W$20,9,FALSE) -> 1.421428571 | M109: =VLOOKUP(VLOOKUP($D109,Parameters!$D$316:$H$462,M$9,FALSE),Parameters!$D$11:$W$20,10,FALSE) -> 4.264285714 | N109: =VLOOKUP(VLOOKUP($D109,Parameters!$D$316:$H$462,N$9,FALSE),Parameters!$D$11:$W$20,11,FALSE) -> 1.421428571 | O109: =VLOOKUP(VLOOKUP($D109,Parameters!$D$316:$H$462,O$9,FALSE),Parameters!$D$11:$W$20,12,FALSE) -> 1.755 | P109: =VLOOKUP(VLOOKUP($D109,Parameters!$D$316:$H$462,P$9,FALSE),Parameters!$D$11:$W$20,13,FALSE) -> 1.421428571 | Q109: =VLOOKUP(VLOOKUP($D109,Parameters!$D$316:$H$462,Q$9,FALSE),Parameters!$D$11:$W$20,14,FALSE) -> 1.421428571 | R109: =VLOOKUP(VLOOKUP($D109,Parameters!$D$316:$H$462,R$9,FALSE),Parameters!$D$11:$W$20,15,FALSE) -> 4.88 | S109: =VLOOKUP(VLOOKUP($D109,Parameters!$D$316:$H$462,S$9,FALSE),Parameters!$D$11:$W$20,16,FALSE) -> 1.421428571 | T109: =VLOOKUP(VLOOKUP($D109,Parameters!$D$316:$H$462,T$9,FALSE),Parameters!$D$11:$W$20,17,FALSE) -> 0.6834003417 | U109: =VLOOKUP(VLOOKUP($D109,Parameters!$D$316:$H$462,U$9,FALSE),Parameters!$D$11:$W$20,18,FALSE) -> 0.93 | V109: =VLOOKUP(VLOOKUP($D109,Parameters!$D$316:$H$462,V$9,FALSE),Parameters!$D$11:$W$20,19,FALSE) -> 0.7484 | W109: =VLOOKUP(VLOOKUP($D109,Parameters!$D$316:$H$462,W$9,FALSE),Parameters!$D$11:$W$20,20,FALSE) -> 2.9936 | X109: =VLOOKUP(VLOOKUP($D109,Parameters!$D$316:$H$462,X$9,FALSE),Parameters!$D$11:$X$20,21,FALSE) -> 2.132142857
D110: Mexico | E110: =VLOOKUP(VLOOKUP($D110,Parameters!$D$316:$H$462,E$9,FALSE),Parameters!$D$11:$W$20,2,FALSE) -> 0.5963 | F110: =VLOOKUP(VLOOKUP($D110,Parameters!$D$316:$H$462,F$9,FALSE),Parameters!$D$11:$W$20,3,FALSE) -> 0.475 | G110: =VLOOKUP(VLOOKUP($D110,Parameters!$D$316:$H$462,G$9,FALSE),Parameters!$D$11:$W$20,4,FALSE) -> 1.207142857 | H110: =VLOOKUP(VLOOKUP($D110,Parameters!$D$316:$H$462,H$9,FALSE),Parameters!$D$11:$W$20,5,FALSE) -> 1.207142857 | I110: =VLOOKUP(VLOOKUP($D110,Parameters!$D$316:$H$462,I$9,FALSE),Parameters!$D$11:$W$20,6,FALSE) -> 1.207142857 | J110: =VLOOKUP(VLOOKUP($D110,Parameters!$D$316:$H$462,J$9,FALSE),Parameters!$D$11:$W$20,7,FALSE) -> 1.207142857 | K110: =VLOOKUP(VLOOKUP($D110,Parameters!$D$316:$H$462,K$9,FALSE),Parameters!$D$11:$W$20,8,FALSE) -> 1.207142857 | L110: =VLOOKUP(VLOOKUP($D110,Parameters!$D$316:$H$462,L$9,FALSE),Parameters!$D$11:$W$20,9,FALSE) -> 1.207142857 | M110: =VLOOKUP(VLOOKUP($D110,Parameters!$D$316:$H$462,M$9,FALSE),Parameters!$D$11:$W$20,10,FALSE) -> 3.63 | N110: =VLOOKUP(VLOOKUP($D110,Parameters!$D$316:$H$462,N$9,FALSE),Parameters!$D$11:$W$20,11,FALSE) -> 1.207142857 | O110: =VLOOKUP(VLOOKUP($D110,Parameters!$D$316:$H$462,O$9,FALSE),Parameters!$D$11:$W$20,12,FALSE) -> 1.53 | P110: =VLOOKUP(VLOOKUP($D110,Parameters!$D$316:$H$462,P$9,FALSE),Parameters!$D$11:$W$20,13,FALSE) -> 1.207142857 | Q110: =VLOOKUP(VLOOKUP($D110,Parameters!$D$316:$H$462,Q$9,FALSE),Parameters!$D$11:$W$20,14,FALSE) -> 1.207142857 | R110: =VLOOKUP(VLOOKUP($D110,Parameters!$D$316:$H$462,R$9,FALSE),Parameters!$D$11:$W$20,15,FALSE) -> 3.9 | S110: =VLOOKUP(VLOOKUP($D110,Parameters!$D$316:$H$462,S$9,FALSE),Parameters!$D$11:$W$20,16,FALSE) -> 1.207142857 | T110: =VLOOKUP(VLOOKUP($D110,Parameters!$D$316:$H$462,T$9,FALSE),Parameters!$D$11:$W$20,17,FALSE) -> 0.3166666667 | U110: =VLOOKUP(VLOOKUP($D110,Parameters!$D$316:$H$462,U$9,FALSE),Parameters!$D$11:$W$20,18,FALSE) -> 0.81 | V110: =VLOOKUP(VLOOKUP($D110,Parameters!$D$316:$H$462,V$9,FALSE),Parameters!$D$11:$W$20,19,FALSE) -> 0.5963 | W110: =VLOOKUP(VLOOKUP($D110,Parameters!$D$316:$H$462,W$9,FALSE),Parameters!$D$11:$W$20,20,FALSE) -> 2.3852 | X110: =VLOOKUP(VLOOKUP($D110,Parameters!$D$316:$H$462,X$9,FALSE),Parameters!$D$11:$X$20,21,FALSE) -> 1.810714286
D111: Mongolia | E111: =VLOOKUP(VLOOKUP($D111,Parameters!$D$316:$H$462,E$9,FALSE),Parameters!$D$11:$W$20,2,FALSE) -> 0.9249 | F111: =VLOOKUP(VLOOKUP($D111,Parameters!$D$316:$H$462,F$9,FALSE),Parameters!$D$11:$W$20,3,FALSE) -> 1.9223 | G111: =VLOOKUP(VLOOKUP($D111,Parameters!$D$316:$H$462,G$9,FALSE),Parameters!$D$11:$W$20,4,FALSE) -> 1.666666667 | H111: =VLOOKUP(VLOOKUP($D111,Parameters!$D$316:$H$462,H$9,FALSE),Parameters!$D$11:$W$20,5,FALSE) -> 1.666666667 | I111: =VLOOKUP(VLOOKUP($D111,Parameters!$D$316:$H$462,I$9,FALSE),Parameters!$D$11:$W$20,6,FALSE) -> 1.666666667 | J111: =VLOOKUP(VLOOKUP($D111,Parameters!$D$316:$H$462,J$9,FALSE),Parameters!$D$11:$W$20,7,FALSE) -> 1.666666667 | K111: =VLOOKUP(VLOOKUP($D111,Parameters!$D$316:$H$462,K$9,FALSE),Parameters!$D$11:$W$20,8,FALSE) -> 1.666666667 | L111: =VLOOKUP(VLOOKUP($D111,Parameters!$D$316:$H$462,L$9,FALSE),Parameters!$D$11:$W$20,9,FALSE) -> 1.666666667 | M111: =VLOOKUP(VLOOKUP($D111,Parameters!$D$316:$H$462,M$9,FALSE),Parameters!$D$11:$W$20,10,FALSE) -> 5.01 | N111: =VLOOKUP(VLOOKUP($D111,Parameters!$D$316:$H$462,N$9,FALSE),Parameters!$D$11:$W$20,11,FALSE) -> 1.666666667 | O111: =VLOOKUP(VLOOKUP($D111,Parameters!$D$316:$H$462,O$9,FALSE),Parameters!$D$11:$W$20,12,FALSE) -> 2.0125 | P111: =VLOOKUP(VLOOKUP($D111,Parameters!$D$316:$H$462,P$9,FALSE),Parameters!$D$11:$W$20,13,FALSE) -> 1.666666667 | Q111: =VLOOKUP(VLOOKUP($D111,Parameters!$D$316:$H$462,Q$9,FALSE),Parameters!$D$11:$W$20,14,FALSE) -> 1.666666667 | R111: =VLOOKUP(VLOOKUP($D111,Parameters!$D$316:$H$462,R$9,FALSE),Parameters!$D$11:$W$20,15,FALSE) -> 5.98 | S111: =VLOOKUP(VLOOKUP($D111,Parameters!$D$316:$H$462,S$9,FALSE),Parameters!$D$11:$W$20,16,FALSE) -> 1.666666667 | T111: =VLOOKUP(VLOOKUP($D111,Parameters!$D$316:$H$462,T$9,FALSE),Parameters!$D$11:$W$20,17,FALSE) -> 1.281533974 | U111: =VLOOKUP(VLOOKUP($D111,Parameters!$D$316:$H$462,U$9,FALSE),Parameters!$D$11:$W$20,18,FALSE) -> 1.07 | V111: =VLOOKUP(VLOOKUP($D111,Parameters!$D$316:$H$462,V$9,FALSE),Parameters!$D$11:$W$20,19,FALSE) -> 0.9249 | W111: =VLOOKUP(VLOOKUP($D111,Parameters!$D$316:$H$462,W$9,FALSE),Parameters!$D$11:$W$20,20,FALSE) -> 3.6996 | X111: =VLOOKUP(VLOOKUP($D111,Parameters!$D$316:$H$462,X$9,FALSE),Parameters!$D$11:$X$20,21,FALSE) -> 2.5
D112: Montenegro | E112: =VLOOKUP(VLOOKUP($D112,Parameters!$D$316:$H$462,E$9,FALSE),Parameters!$D$11:$W$20,2,FALSE) -> 1.3511 | F112: =VLOOKUP(VLOOKUP($D112,Parameters!$D$316:$H$462,F$9,FALSE),Parameters!$D$11:$W$20,3,FALSE) -> 2.4753 | G112: =VLOOKUP(VLOOKUP($D112,Parameters!$D$316:$H$462,G$9,FALSE),Parameters!$D$11:$W$20,4,FALSE) -> 2.25 | H112: =VLOOKUP(VLOOKUP($D112,Parameters!$D$316:$H$462,H$9,FALSE),Parameters!$D$11:$W$20,5,FALSE) -> 2.25 | I112: =VLOOKUP(VLOOKUP($D112,Parameters!$D$316:$H$462,I$9,FALSE),Parameters!$D$11:$W$20,6,FALSE) -> 2.25 | J112: =VLOOKUP(VLOOKUP($D112,Parameters!$D$316:$H$462,J$9,FALSE),Parameters!$D$11:$W$20,7,FALSE) -> 2.25 | K112: =VLOOKUP(VLOOKUP($D112,Parameters!$D$316:$H$462,K$9,FALSE),Parameters!$D$11:$W$20,8,FALSE) -> 2.25 | L112: =VLOOKUP(VLOOKUP($D112,Parameters!$D$316:$H$462,L$9,FALSE),Parameters!$D$11:$W$20,9,FALSE) -> 2.25 | M112: =VLOOKUP(VLOOKUP($D112,Parameters!$D$316:$H$462,M$9,FALSE),Parameters!$D$11:$W$20,10,FALSE) -> 6.75 | N112: =VLOOKUP(VLOOKUP($D112,Parameters!$D$316:$H$462,N$9,FALSE),Parameters!$D$11:$W$20,11,FALSE) -> 2.25 | O112: =VLOOKUP(VLOOKUP($D112,Parameters!$D$316:$H$462,O$9,FALSE),Parameters!$D$11:$W$20,12,FALSE) -> 2.625 | P112: =VLOOKUP(VLOOKUP($D112,Parameters!$D$316:$H$462,P$9,FALSE),Parameters!$D$11:$W$20,13,FALSE) -> 2.25 | Q112: =VLOOKUP(VLOOKUP($D112,Parameters!$D$316:$H$462,Q$9,FALSE),Parameters!$D$11:$W$20,14,FALSE) -> 2.25 | R112: =VLOOKUP(VLOOKUP($D112,Parameters!$D$316:$H$462,R$9,FALSE),Parameters!$D$11:$W$20,15,FALSE) -> 8.78 | S112: =VLOOKUP(VLOOKUP($D112,Parameters!$D$316:$H$462,S$9,FALSE),Parameters!$D$11:$W$20,16,FALSE) -> 2.25 | T112: =VLOOKUP(VLOOKUP($D112,Parameters!$D$316:$H$462,T$9,FALSE),Parameters!$D$11:$W$20,17,FALSE) -> 1.650200825 | U112: =VLOOKUP(VLOOKUP($D112,Parameters!$D$316:$H$462,U$9,FALSE),Parameters!$D$11:$W$20,18,FALSE) -> 1.39 | V112: =VLOOKUP(VLOOKUP($D112,Parameters!$D$316:$H$462,V$9,FALSE),Parameters!$D$11:$W$20,19,FALSE) -> 1.3511 | W112: =VLOOKUP(VLOOKUP($D112,Parameters!$D$316:$H$462,W$9,FALSE),Parameters!$D$11:$W$20,20,FALSE) -> 5.4044 | X112: =VLOOKUP(VLOOKUP($D112,Parameters!$D$316:$H$462,X$9,FALSE),Parameters!$D$11:$X$20,21,FALSE) -> 3.375
D113: Morocco | E113: =VLOOKUP(VLOOKUP($D113,Parameters!$D$316:$H$462,E$9,FALSE),Parameters!$D$11:$W$20,2,FALSE) -> 0.7484 | F113: =VLOOKUP(VLOOKUP($D113,Parameters!$D$316:$H$462,F$9,FALSE),Parameters!$D$11:$W$20,3,FALSE) -> 1.0251 | G113: =VLOOKUP(VLOOKUP($D113,Parameters!$D$316:$H$462,G$9,FALSE),Parameters!$D$11:$W$20,4,FALSE) -> 1.421428571 | H113: =VLOOKUP(VLOOKUP($D113,Parameters!$D$316:$H$462,H$9,FALSE),Parameters!$D$11:$W$20,5,FALSE) -> 1.421428571 | I113: =VLOOKUP(VLOOKUP($D113,Parameters!$D$316:$H$462,I$9,FALSE),Parameters!$D$11:$W$20,6,FALSE) -> 1.421428571 | J113: =VLOOKUP(VLOOKUP($D113,Parameters!$D$316:$H$462,J$9,FALSE),Parameters!$D$11:$W$20,7,FALSE) -> 1.421428571 | K113: =VLOOKUP(VLOOKUP($D113,Parameters!$D$316:$H$462,K$9,FALSE),Parameters!$D$11:$W$20,8,FALSE) -> 1.421428571 | L113: =VLOOKUP(VLOOKUP($D113,Parameters!$D$316:$H$462,L$9,FALSE),Parameters!$D$11:$W$20,9,FALSE) -> 1.421428571 | M113: =VLOOKUP(VLOOKUP($D113,Parameters!$D$316:$H$462,M$9,FALSE),Parameters!$D$11:$W$20,10,FALSE) -> 4.264285714 | N113: =VLOOKUP(VLOOKUP($D113,Parameters!$D$316:$H$462,N$9,FALSE),Parameters!$D$11:$W$20,11,FALSE) -> 1.421428571 | O113: =VLOOKUP(VLOOKUP($D113,Parameters!$D$316:$H$462,O$9,FALSE),Parameters!$D$11:$W$20,12,FALSE) -> 1.755 | P113: =VLOOKUP(VLOOKUP($D113,Parameters!$D$316:$H$462,P$9,FALSE),Parameters!$D$11:$W$20,13,FALSE) -> 1.421428571 | Q113: =VLOOKUP(VLOOKUP($D113,Parameters!$D$316:$H$462,Q$9,FALSE),Parameters!$D$11:$W$20,14,FALSE) -> 1.421428571 | R113: =VLOOKUP(VLOOKUP($D113,Parameters!$D$316:$H$462,R$9,FALSE),Parameters!$D$11:$W$20,15,FALSE) -> 4.88 | S113: =VLOOKUP(VLOOKUP($D113,Parameters!$D$316:$H$462,S$9,FALSE),Parameters!$D$11:$W$20,16,FALSE) -> 1.421428571 | T113: =VLOOKUP(VLOOKUP($D113,Parameters!$D$316:$H$462,T$9,FALSE),Parameters!$D$11:$W$20,17,FALSE) -> 0.6834003417 | U113: =VLOOKUP(VLOOKUP($D113,Parameters!$D$316:$H$462,U$9,FALSE),Parameters!$D$11:$W$20,18,FALSE) -> 0.93 | V113: =VLOOKUP(VLOOKUP($D113,Parameters!$D$316:$H$462,V$9,FALSE),Parameters!$D$11:$W$20,19,FALSE) -> 0.7484 | W113: =VLOOKUP(VLOOKUP($D113,Parameters!$D$316:$H$462,W$9,FALSE),Parameters!$D$11:$W$20,20,FALSE) -> 2.9936 | X113: =VLOOKUP(VLOOKUP($D113,Parameters!$D$316:$H$462,X$9,FALSE),Parameters!$D$11:$X$20,21,FALSE) -> 2.132142857
D114: Mozambique | E114: =VLOOKUP(VLOOKUP($D114,Parameters!$D$316:$H$462,E$9,FALSE),Parameters!$D$11:$W$20,2,FALSE) -> 1.3511 | F114: =VLOOKUP(VLOOKUP($D114,Parameters!$D$316:$H$462,F$9,FALSE),Parameters!$D$11:$W$20,3,FALSE) -> 2.4753 | G114: =VLOOKUP(VLOOKUP($D114,Parameters!$D$316:$H$462,G$9,FALSE),Parameters!$D$11:$W$20,4,FALSE) -> 2.25 | H114: =VLOOKUP(VLOOKUP($D114,Parameters!$D$316:$H$462,H$9,FALSE),Parameters!$D$11:$W$20,5,FALSE) -> 2.25 | I114: =VLOOKUP(VLOOKUP($D114,Parameters!$D$316:$H$462,I$9,FALSE),Parameters!$D$11:$W$20,6,FALSE) -> 2.25 | J114: =VLOOKUP(VLOOKUP($D114,Parameters!$D$316:$H$462,J$9,FALSE),Parameters!$D$11:$W$20,7,FALSE) -> 2.25 | K114: =VLOOKUP(VLOOKUP($D114,Parameters!$D$316:$H$462,K$9,FALSE),Parameters!$D$11:$W$20,8,FALSE) -> 2.25 | L114: =VLOOKUP(VLOOKUP($D114,Parameters!$D$316:$H$462,L$9,FALSE),Parameters!$D$11:$W$20,9,FALSE) -> 2.25 | M114: =VLOOKUP(VLOOKUP($D114,Parameters!$D$316:$H$462,M$9,FALSE),Parameters!$D$11:$W$20,10,FALSE) -> 6.75 | N114: =VLOOKUP(VLOOKUP($D114,Parameters!$D$316:$H$462,N$9,FALSE),Parameters!$D$11:$W$20,11,FALSE) -> 2.25 | O114: =VLOOKUP(VLOOKUP($D114,Parameters!$D$316:$H$462,O$9,FALSE),Parameters!$D$11:$W$20,12,FALSE) -> 2.625 | P114: =VLOOKUP(VLOOKUP($D114,Parameters!$D$316:$H$462,P$9,FALSE),Parameters!$D$11:$W$20,13,FALSE) -> 2.25 | Q114: =VLOOKUP(VLOOKUP($D114,Parameters!$D$316:$H$462,Q$9,FALSE),Parameters!$D$11:$W$20,14,FALSE) -> 2.25 | R114: =VLOOKUP(VLOOKUP($D114,Parameters!$D$316:$H$462,R$9,FALSE),Parameters!$D$11:$W$20,15,FALSE) -> 8.78 | S114: =VLOOKUP(VLOOKUP($D114,Parameters!$D$316:$H$462,S$9,FALSE),Parameters!$D$11:$W$20,16,FALSE) -> 2.25 | T114: =VLOOKUP(VLOOKUP($D114,Parameters!$D$316:$H$462,T$9,FALSE),Parameters!$D$11:$W$20,17,FALSE) -> 1.650200825 | U114: =VLOOKUP(VLOOKUP($D114,Parameters!$D$316:$H$462,U$9,FALSE),Parameters!$D$11:$W$20,18,FALSE) -> 1.39 | V114: =VLOOKUP(VLOOKUP($D114,Parameters!$D$316:$H$462,V$9,FALSE),Parameters!$D$11:$W$20,19,FALSE) -> 1.3511 | W114: =VLOOKUP(VLOOKUP($D114,Parameters!$D$316:$H$462,W$9,FALSE),Parameters!$D$11:$W$20,20,FALSE) -> 5.4044 | X114: =VLOOKUP(VLOOKUP($D114,Parameters!$D$316:$H$462,X$9,FALSE),Parameters!$D$11:$X$20,21,FALSE) -> 3.375
D115: Netherlands | E115: =VLOOKUP(VLOOKUP($D115,Parameters!$D$316:$H$462,E$9,FALSE),Parameters!$D$11:$W$20,2,FALSE) -> 0.2864 | F115: =VLOOKUP(VLOOKUP($D115,Parameters!$D$316:$H$462,F$9,FALSE),Parameters!$D$11:$W$20,3,FALSE) -> 0.2330555556 | G115: =VLOOKUP(VLOOKUP($D115,Parameters!$D$316:$H$462,G$9,FALSE),Parameters!$D$11:$W$20,4,FALSE) -> 0.75 | H115: =VLOOKUP(VLOOKUP($D115,Parameters!$D$316:$H$462,H$9,FALSE),Parameters!$D$11:$W$20,5,FALSE) -> 0.75 | I115: =VLOOKUP(VLOOKUP($D115,Parameters!$D$316:$H$462,I$9,FALSE),Parameters!$D$11:$W$20,6,FALSE) -> 0.75 | J115: =VLOOKUP(VLOOKUP($D115,Parameters!$D$316:$H$462,J$9,FALSE),Parameters!$D$11:$W$20,7,FALSE) -> 0.75 | K115: =VLOOKUP(VLOOKUP($D115,Parameters!$D$316:$H$462,K$9,FALSE),Parameters!$D$11:$W$20,8,FALSE) -> 0.75 | L115: =VLOOKUP(VLOOKUP($D115,Parameters!$D$316:$H$462,L$9,FALSE),Parameters!$D$11:$W$20,9,FALSE) -> 0.75 | M115: =VLOOKUP(VLOOKUP($D115,Parameters!$D$316:$H$462,M$9,FALSE),Parameters!$D$11:$W$20,10,FALSE) -> 2.25 | N115: =VLOOKUP(VLOOKUP($D115,Parameters!$D$316:$H$462,N$9,FALSE),Parameters!$D$11:$W$20,11,FALSE) -> 0.75 | O115: =VLOOKUP(VLOOKUP($D115,Parameters!$D$316:$H$462,O$9,FALSE),Parameters!$D$11:$W$20,12,FALSE) -> 1.05 | P115: =VLOOKUP(VLOOKUP($D115,Parameters!$D$316:$H$462,P$9,FALSE),Parameters!$D$11:$W$20,13,FALSE) -> 0.75 | Q115: =VLOOKUP(VLOOKUP($D115,Parameters!$D$316:$H$462,Q$9,FALSE),Parameters!$D$11:$W$20,14,FALSE) -> 0.75 | R115: =VLOOKUP(VLOOKUP($D115,Parameters!$D$316:$H$462,R$9,FALSE),Parameters!$D$11:$W$20,15,FALSE) -> 1.89 | S115: =VLOOKUP(VLOOKUP($D115,Parameters!$D$316:$H$462,S$9,FALSE),Parameters!$D$11:$W$20,16,FALSE) -> 0.75 | T115: =VLOOKUP(VLOOKUP($D115,Parameters!$D$316:$H$462,T$9,FALSE),Parameters!$D$11:$W$20,17,FALSE) -> 0.1553703704 | U115: =VLOOKUP(VLOOKUP($D115,Parameters!$D$316:$H$462,U$9,FALSE),Parameters!$D$11:$W$20,18,FALSE) -> 0.56 | V115: =VLOOKUP(VLOOKUP($D115,Parameters!$D$316:$H$462,V$9,FALSE),Parameters!$D$11:$W$20,19,FALSE) -> 0.2864 | W115: =VLOOKUP(VLOOKUP($D115,Parameters!$D$316:$H$462,W$9,FALSE),Parameters!$D$11:$W$20,20,FALSE) -> 1.1456 | X115: =VLOOKUP(VLOOKUP($D115,Parameters!$D$316:$H$462,X$9,FALSE),Parameters!$D$11:$X$20,21,FALSE) -> 1.125
D116: New Zealand | E116: =VLOOKUP(VLOOKUP($D116,Parameters!$D$316:$H$462,E$9,FALSE),Parameters!$D$11:$W$20,2,FALSE) -> 0.3653 | F116: =VLOOKUP(VLOOKUP($D116,Parameters!$D$316:$H$462,F$9,FALSE),Parameters!$D$11:$W$20,3,FALSE) -> 0.3341666667 | G116: =VLOOKUP(VLOOKUP($D116,Parameters!$D$316:$H$462,G$9,FALSE),Parameters!$D$11:$W$20,4,FALSE) -> 0.8714285714 | H116: =VLOOKUP(VLOOKUP($D116,Parameters!$D$316:$H$462,H$9,FALSE),Parameters!$D$11:$W$20,5,FALSE) -> 0.8714285714 | I116: =VLOOKUP(VLOOKUP($D116,Parameters!$D$316:$H$462,I$9,FALSE),Parameters!$D$11:$W$20,6,FALSE) -> 0.8714285714 | J116: =VLOOKUP(VLOOKUP($D116,Parameters!$D$316:$H$462,J$9,FALSE),Parameters!$D$11:$W$20,7,FALSE) -> 0.8714285714 | K116: =VLOOKUP(VLOOKUP($D116,Parameters!$D$316:$H$462,K$9,FALSE),Parameters!$D$11:$W$20,8,FALSE) -> 0.8714285714 | L116: =VLOOKUP(VLOOKUP($D116,Parameters!$D$316:$H$462,L$9,FALSE),Parameters!$D$11:$W$20,9,FALSE) -> 0.8714285714 | M116: =VLOOKUP(VLOOKUP($D116,Parameters!$D$316:$H$462,M$9,FALSE),Parameters!$D$11:$W$20,10,FALSE) -> 2.614285714 | N116: =VLOOKUP(VLOOKUP($D116,Parameters!$D$316:$H$462,N$9,FALSE),Parameters!$D$11:$W$20,11,FALSE) -> 0.8714285714 | O116: =VLOOKUP(VLOOKUP($D116,Parameters!$D$316:$H$462,O$9,FALSE),Parameters!$D$11:$W$20,12,FALSE) -> 1.1775 | P116: =VLOOKUP(VLOOKUP($D116,Parameters!$D$316:$H$462,P$9,FALSE),Parameters!$D$11:$W$20,13,FALSE) -> 0.8714285714 | Q116: =VLOOKUP(VLOOKUP($D116,Parameters!$D$316:$H$462,Q$9,FALSE),Parameters!$D$11:$W$20,14,FALSE) -> 0.8714285714 | R116: =VLOOKUP(VLOOKUP($D116,Parameters!$D$316:$H$462,R$9,FALSE),Parameters!$D$11:$W$20,15,FALSE) -> 2.41 | S116: =VLOOKUP(VLOOKUP($D116,Parameters!$D$316:$H$462,S$9,FALSE),Parameters!$D$11:$W$20,16,FALSE) -> 0.8714285714 | T116: =VLOOKUP(VLOOKUP($D116,Parameters!$D$316:$H$462,T$9,FALSE),Parameters!$D$11:$W$20,17,FALSE) -> 0.2227777778 | U116: =VLOOKUP(VLOOKUP($D116,Parameters!$D$316:$H$462,U$9,FALSE),Parameters!$D$11:$W$20,18,FALSE) -> 0.63 | V116: =VLOOKUP(VLOOKUP($D116,Parameters!$D$316:$H$462,V$9,FALSE),Parameters!$D$11:$W$20,19,FALSE) -> 0.3653 | W116: =VLOOKUP(VLOOKUP($D116,Parameters!$D$316:$H$462,W$9,FALSE),Parameters!$D$11:$W$20,20,FALSE) -> 1.4612 | X116: =VLOOKUP(VLOOKUP($D116,Parameters!$D$316:$H$462,X$9,FALSE),Parameters!$D$11:$X$20,21,FALSE) -> 1.307142857
D117: Nicaragua | E117: =VLOOKUP(VLOOKUP($D117,Parameters!$D$316:$H$462,E$9,FALSE),Parameters!$D$11:$W$20,2,FALSE) -> 1.3511 | F117: =VLOOKUP(VLOOKUP($D117,Parameters!$D$316:$H$462,F$9,FALSE),Parameters!$D$11:$W$20,3,FALSE) -> 2.4753 | G117: =VLOOKUP(VLOOKUP($D117,Parameters!$D$316:$H$462,G$9,FALSE),Parameters!$D$11:$W$20,4,FALSE) -> 2.25 | H117: =VLOOKUP(VLOOKUP($D117,Parameters!$D$316:$H$462,H$9,FALSE),Parameters!$D$11:$W$20,5,FALSE) -> 2.25 | I117: =VLOOKUP(VLOOKUP($D117,Parameters!$D$316:$H$462,I$9,FALSE),Parameters!$D$11:$W$20,6,FALSE) -> 2.25 | J117: =VLOOKUP(VLOOKUP($D117,Parameters!$D$316:$H$462,J$9,FALSE),Parameters!$D$11:$W$20,7,FALSE) -> 2.25 | K117: =VLOOKUP(VLOOKUP($D117,Parameters!$D$316:$H$462,K$9,FALSE),Parameters!$D$11:$W$20,8,FALSE) -> 2.25 | L117: =VLOOKUP(VLOOKUP($D117,Parameters!$D$316:$H$462,L$9,FALSE),Parameters!$D$11:$W$20,9,FALSE) -> 2.25 | M117: =VLOOKUP(VLOOKUP($D117,Parameters!$D$316:$H$462,M$9,FALSE),Parameters!$D$11:$W$20,10,FALSE) -> 6.75 | N117: =VLOOKUP(VLOOKUP($D117,Parameters!$D$316:$H$462,N$9,FALSE),Parameters!$D$11:$W$20,11,FALSE) -> 2.25 | O117: =VLOOKUP(VLOOKUP($D117,Parameters!$D$316:$H$462,O$9,FALSE),Parameters!$D$11:$W$20,12,FALSE) -> 2.625 | P117: =VLOOKUP(VLOOKUP($D117,Parameters!$D$316:$H$462,P$9,FALSE),Parameters!$D$11:$W$20,13,FALSE) -> 2.25 | Q117: =VLOOKUP(VLOOKUP($D117,Parameters!$D$316:$H$462,Q$9,FALSE),Parameters!$D$11:$W$20,14,FALSE) -> 2.25 | R117: =VLOOKUP(VLOOKUP($D117,Parameters!$D$316:$H$462,R$9,FALSE),Parameters!$D$11:$W$20,15,FALSE) -> 8.78 | S117: =VLOOKUP(VLOOKUP($D117,Parameters!$D$316:$H$462,S$9,FALSE),Parameters!$D$11:$W$20,16,FALSE) -> 2.25 | T117: =VLOOKUP(VLOOKUP($D117,Parameters!$D$316:$H$462,T$9,FALSE),Parameters!$D$11:$W$20,17,FALSE) -> 1.650200825 | U117: =VLOOKUP(VLOOKUP($D117,Parameters!$D$316:$H$462,U$9,FALSE),Parameters!$D$11:$W$20,18,FALSE) -> 1.39 | V117: =VLOOKUP(VLOOKUP($D117,Parameters!$D$316:$H$462,V$9,FALSE),Parameters!$D$11:$W$20,19,FALSE) -> 1.3511 | W117: =VLOOKUP(VLOOKUP($D117,Parameters!$D$316:$H$462,W$9,FALSE),Parameters!$D$11:$W$20,20,FALSE) -> 5.4044 | X117: =VLOOKUP(VLOOKUP($D117,Parameters!$D$316:$H$462,X$9,FALSE),Parameters!$D$11:$X$20,21,FALSE) -> 3.375
D118: Nigeria | E118: =VLOOKUP(VLOOKUP($D118,Parameters!$D$316:$H$462,E$9,FALSE),Parameters!$D$11:$W$20,2,FALSE) -> 1.3511 | F118: =VLOOKUP(VLOOKUP($D118,Parameters!$D$316:$H$462,F$9,FALSE),Parameters!$D$11:$W$20,3,FALSE) -> 2.4753 | G118: =VLOOKUP(VLOOKUP($D118,Parameters!$D$316:$H$462,G$9,FALSE),Parameters!$D$11:$W$20,4,FALSE) -> 2.25 | H118: =VLOOKUP(VLOOKUP($D118,Parameters!$D$316:$H$462,H$9,FALSE),Parameters!$D$11:$W$20,5,FALSE) -> 2.25 | I118: =VLOOKUP(VLOOKUP($D118,Parameters!$D$316:$H$462,I$9,FALSE),Parameters!$D$11:$W$20,6,FALSE) -> 2.25 | J118: =VLOOKUP(VLOOKUP($D118,Parameters!$D$316:$H$462,J$9,FALSE),Parameters!$D$11:$W$20,7,FALSE) -> 2.25 | K118: =VLOOKUP(VLOOKUP($D118,Parameters!$D$316:$H$462,K$9,FALSE),Parameters!$D$11:$W$20,8,FALSE) -> 2.25 | L118: =VLOOKUP(VLOOKUP($D118,Parameters!$D$316:$H$462,L$9,FALSE),Parameters!$D$11:$W$20,9,FALSE) -> 2.25 | M118: =VLOOKUP(VLOOKUP($D118,Parameters!$D$316:$H$462,M$9,FALSE),Parameters!$D$11:$W$20,10,FALSE) -> 6.75 | N118: =VLOOKUP(VLOOKUP($D118,Parameters!$D$316:$H$462,N$9,FALSE),Parameters!$D$11:$W$20,11,FALSE) -> 2.25 | O118: =VLOOKUP(VLOOKUP($D118,Parameters!$D$316:$H$462,O$9,FALSE),Parameters!$D$11:$W$20,12,FALSE) -> 2.625 | P118: =VLOOKUP(VLOOKUP($D118,Parameters!$D$316:$H$462,P$9,FALSE),Parameters!$D$11:$W$20,13,FALSE) -> 2.25 | Q118: =VLOOKUP(VLOOKUP($D118,Parameters!$D$316:$H$462,Q$9,FALSE),Parameters!$D$11:$W$20,14,FALSE) -> 2.25 | R118: =VLOOKUP(VLOOKUP($D118,Parameters!$D$316:$H$462,R$9,FALSE),Parameters!$D$11:$W$20,15,FALSE) -> 8.78 | S118: =VLOOKUP(VLOOKUP($D118,Parameters!$D$316:$H$462,S$9,FALSE),Parameters!$D$11:$W$20,16,FALSE) -> 2.25 | T118: =VLOOKUP(VLOOKUP($D118,Parameters!$D$316:$H$462,T$9,FALSE),Parameters!$D$11:$W$20,17,FALSE) -> 1.650200825 | U118: =VLOOKUP(VLOOKUP($D118,Parameters!$D$316:$H$462,U$9,FALSE),Parameters!$D$11:$W$20,18,FALSE) -> 1.39 | V118: =VLOOKUP(VLOOKUP($D118,Parameters!$D$316:$H$462,V$9,FALSE),Parameters!$D$11:$W$20,19,FALSE) -> 1.3511 | W118: =VLOOKUP(VLOOKUP($D118,Parameters!$D$316:$H$462,W$9,FALSE),Parameters!$D$11:$W$20,20,FALSE) -> 5.4044 | X118: =VLOOKUP(VLOOKUP($D118,Parameters!$D$316:$H$462,X$9,FALSE),Parameters!$D$11:$X$20,21,FALSE) -> 3.375
D119: Northern America | E119: =VLOOKUP(VLOOKUP($D119,Parameters!$D$316:$H$462,E$9,FALSE),Parameters!$D$11:$W$20,2,FALSE) -> 0.2864 | F119: =VLOOKUP(VLOOKUP($D119,Parameters!$D$316:$H$462,F$9,FALSE),Parameters!$D$11:$W$20,3,FALSE) -> 0.2330555556 | G119: =VLOOKUP(VLOOKUP($D119,Parameters!$D$316:$H$462,G$9,FALSE),Parameters!$D$11:$W$20,4,FALSE) -> 0.75 | H119: =VLOOKUP(VLOOKUP($D119,Parameters!$D$316:$H$462,H$9,FALSE),Parameters!$D$11:$W$20,5,FALSE) -> 0.75 | I119: =VLOOKUP(VLOOKUP($D119,Parameters!$D$316:$H$462,I$9,FALSE),Parameters!$D$11:$W$20,6,FALSE) -> 0.75 | J119: =VLOOKUP(VLOOKUP($D119,Parameters!$D$316:$H$462,J$9,FALSE),Parameters!$D$11:$W$20,7,FALSE) -> 0.75 | K119: =VLOOKUP(VLOOKUP($D119,Parameters!$D$316:$H$462,K$9,FALSE),Parameters!$D$11:$W$20,8,FALSE) -> 0.75 | L119: =VLOOKUP(VLOOKUP($D119,Parameters!$D$316:$H$462,L$9,FALSE),Parameters!$D$11:$W$20,9,FALSE) -> 0.75 | M119: =VLOOKUP(VLOOKUP($D119,Parameters!$D$316:$H$462,M$9,FALSE),Parameters!$D$11:$W$20,10,FALSE) -> 2.25 | N119: =VLOOKUP(VLOOKUP($D119,Parameters!$D$316:$H$462,N$9,FALSE),Parameters!$D$11:$W$20,11,FALSE) -> 0.75 | O119: =VLOOKUP(VLOOKUP($D119,Parameters!$D$316:$H$462,O$9,FALSE),Parameters!$D$11:$W$20,12,FALSE) -> 1.05 | P119: =VLOOKUP(VLOOKUP($D119,Parameters!$D$316:$H$462,P$9,FALSE),Parameters!$D$11:$W$20,13,FALSE) -> 0.75 | Q119: =VLOOKUP(VLOOKUP($D119,Parameters!$D$316:$H$462,Q$9,FALSE),Parameters!$D$11:$W$20,14,FALSE) -> 0.75 | R119: =VLOOKUP(VLOOKUP($D119,Parameters!$D$316:$H$462,R$9,FALSE),Parameters!$D$11:$W$20,15,FALSE) -> 1.89 | S119: =VLOOKUP(VLOOKUP($D119,Parameters!$D$316:$H$462,S$9,FALSE),Parameters!$D$11:$W$20,16,FALSE) -> 0.75 | T119: =VLOOKUP(VLOOKUP($D119,Parameters!$D$316:$H$462,T$9,FALSE),Parameters!$D$11:$W$20,17,FALSE) -> 0.1553703704 | U119: =VLOOKUP(VLOOKUP($D119,Parameters!$D$316:$H$462,U$9,FALSE),Parameters!$D$11:$W$20,18,FALSE) -> 0.56 | V119: =VLOOKUP(VLOOKUP($D119,Parameters!$D$316:$H$462,V$9,FALSE),Parameters!$D$11:$W$20,19,FALSE) -> 0.2864 | W119: =VLOOKUP(VLOOKUP($D119,Parameters!$D$316:$H$462,W$9,FALSE),Parameters!$D$11:$W$20,20,FALSE) -> 1.1456 | X119: =VLOOKUP(VLOOKUP($D119,Parameters!$D$316:$H$462,X$9,FALSE),Parameters!$D$11:$X$20,21,FALSE) -> 1.125
D120: Norway | E120: =VLOOKUP(VLOOKUP($D120,Parameters!$D$316:$H$462,E$9,FALSE),Parameters!$D$11:$W$20,2,FALSE) -> 0.2319 | F120: =VLOOKUP(VLOOKUP($D120,Parameters!$D$316:$H$462,F$9,FALSE),Parameters!$D$11:$W$20,3,FALSE) -> 0.1716666667 | G120: =VLOOKUP(VLOOKUP($D120,Parameters!$D$316:$H$462,G$9,FALSE),Parameters!$D$11:$W$20,4,FALSE) -> 0.6595238095 | H120: =VLOOKUP(VLOOKUP($D120,Parameters!$D$316:$H$462,H$9,FALSE),Parameters!$D$11:$W$20,5,FALSE) -> 0.6595238095 | I120: =VLOOKUP(VLOOKUP($D120,Parameters!$D$316:$H$462,I$9,FALSE),Parameters!$D$11:$W$20,6,FALSE) -> 0.6595238095 | J120: =VLOOKUP(VLOOKUP($D120,Parameters!$D$316:$H$462,J$9,FALSE),Parameters!$D$11:$W$20,7,FALSE) -> 0.6595238095 | K120: =VLOOKUP(VLOOKUP($D120,Parameters!$D$316:$H$462,K$9,FALSE),Parameters!$D$11:$W$20,8,FALSE) -> 0.6595238095 | L120: =VLOOKUP(VLOOKUP($D120,Parameters!$D$316:$H$462,L$9,FALSE),Parameters!$D$11:$W$20,9,FALSE) -> 0.6595238095 | M120: =VLOOKUP(VLOOKUP($D120,Parameters!$D$316:$H$462,M$9,FALSE),Parameters!$D$11:$W$20,10,FALSE) -> 1.978571429 | N120: =VLOOKUP(VLOOKUP($D120,Parameters!$D$316:$H$462,N$9,FALSE),Parameters!$D$11:$W$20,11,FALSE) -> 0.6595238095 | O120: =VLOOKUP(VLOOKUP($D120,Parameters!$D$316:$H$462,O$9,FALSE),Parameters!$D$11:$W$20,12,FALSE) -> 0.955 | P120: =VLOOKUP(VLOOKUP($D120,Parameters!$D$316:$H$462,P$9,FALSE),Parameters!$D$11:$W$20,13,FALSE) -> 0.6595238095 | Q120: =VLOOKUP(VLOOKUP($D120,Parameters!$D$316:$H$462,Q$9,FALSE),Parameters!$D$11:$W$20,14,FALSE) -> 0.6595238095 | R120: =VLOOKUP(VLOOKUP($D120,Parameters!$D$316:$H$462,R$9,FALSE),Parameters!$D$11:$W$20,15,FALSE) -> 1.5 | S120: =VLOOKUP(VLOOKUP($D120,Parameters!$D$316:$H$462,S$9,FALSE),Parameters!$D$11:$W$20,16,FALSE) -> 0.6595238095 | T120: =VLOOKUP(VLOOKUP($D120,Parameters!$D$316:$H$462,T$9,FALSE),Parameters!$D$11:$W$20,17,FALSE) -> 0.1144444444 | U120: =VLOOKUP(VLOOKUP($D120,Parameters!$D$316:$H$462,U$9,FALSE),Parameters!$D$11:$W$20,18,FALSE) -> 0.51 | V120: =VLOOKUP(VLOOKUP($D120,Parameters!$D$316:$H$462,V$9,FALSE),Parameters!$D$11:$W$20,19,FALSE) -> 0.2319 | W120: =VLOOKUP(VLOOKUP($D120,Parameters!$D$316:$H$462,W$9,FALSE),Parameters!$D$11:$W$20,20,FALSE) -> 0.9276 | X120: =VLOOKUP(VLOOKUP($D120,Parameters!$D$316:$H$462,X$9,FALSE),Parameters!$D$11:$X$20,21,FALSE) -> 0.9892857143
D121: Oman | E121: =VLOOKUP(VLOOKUP($D121,Parameters!$D$316:$H$462,E$9,FALSE),Parameters!$D$11:$W$20,2,FALSE) -> 0.5963 | F121: =VLOOKUP(VLOOKUP($D121,Parameters!$D$316:$H$462,F$9,FALSE),Parameters!$D$11:$W$20,3,FALSE) -> 0.6809 | G121: =VLOOKUP(VLOOKUP($D121,Parameters!$D$316:$H$462,G$9,FALSE),Parameters!$D$11:$W$20,4,FALSE) -> 1.207142857 | H121: =VLOOKUP(VLOOKUP($D121,Parameters!$D$316:$H$462,H$9,FALSE),Parameters!$D$11:$W$20,5,FALSE) -> 1.207142857 | I121: =VLOOKUP(VLOOKUP($D121,Parameters!$D$316:$H$462,I$9,FALSE),Parameters!$D$11:$W$20,6,FALSE) -> 1.207142857 | J121: =VLOOKUP(VLOOKUP($D121,Parameters!$D$316:$H$462,J$9,FALSE),Parameters!$D$11:$W$20,7,FALSE) -> 1.207142857 | K121: =VLOOKUP(VLOOKUP($D121,Parameters!$D$316:$H$462,K$9,FALSE),Parameters!$D$11:$W$20,8,FALSE) -> 1.207142857 | L121: =VLOOKUP(VLOOKUP($D121,Parameters!$D$316:$H$462,L$9,FALSE),Parameters!$D$11:$W$20,9,FALSE) -> 1.207142857 | M121: =VLOOKUP(VLOOKUP($D121,Parameters!$D$316:$H$462,M$9,FALSE),Parameters!$D$11:$W$20,10,FALSE) -> 3.63 | N121: =VLOOKUP(VLOOKUP($D121,Parameters!$D$316:$H$462,N$9,FALSE),Parameters!$D$11:$W$20,11,FALSE) -> 1.207142857 | O121: =VLOOKUP(VLOOKUP($D121,Parameters!$D$316:$H$462,O$9,FALSE),Parameters!$D$11:$W$20,12,FALSE) -> 1.53 | P121: =VLOOKUP(VLOOKUP($D121,Parameters!$D$316:$H$462,P$9,FALSE),Parameters!$D$11:$W$20,13,FALSE) -> 1.207142857 | Q121: =VLOOKUP(VLOOKUP($D121,Parameters!$D$316:$H$462,Q$9,FALSE),Parameters!$D$11:$W$20,14,FALSE) -> 1.207142857 | R121: =VLOOKUP(VLOOKUP($D121,Parameters!$D$316:$H$462,R$9,FALSE),Parameters!$D$11:$W$20,15,FALSE) -> 3.9 | S121: =VLOOKUP(VLOOKUP($D121,Parameters!$D$316:$H$462,S$9,FALSE),Parameters!$D$11:$W$20,16,FALSE) -> 1.207142857 | T121: =VLOOKUP(VLOOKUP($D121,Parameters!$D$316:$H$462,T$9,FALSE),Parameters!$D$11:$W$20,17,FALSE) -> 0.4539335603 | U121: =VLOOKUP(VLOOKUP($D121,Parameters!$D$316:$H$462,U$9,FALSE),Parameters!$D$11:$W$20,18,FALSE) -> 0.81 | V121: =VLOOKUP(VLOOKUP($D121,Parameters!$D$316:$H$462,V$9,FALSE),Parameters!$D$11:$W$20,19,FALSE) -> 0.5963 | W121: =VLOOKUP(VLOOKUP($D121,Parameters!$D$316:$H$462,W$9,FALSE),Parameters!$D$11:$W$20,20,FALSE) -> 2.3852 | X121: =VLOOKUP(VLOOKUP($D121,Parameters!$D$316:$H$462,X$9,FALSE),Parameters!$D$11:$X$20,21,FALSE) -> 1.810714286
D122: Pakistan | E122: =VLOOKUP(VLOOKUP($D122,Parameters!$D$316:$H$462,E$9,FALSE),Parameters!$D$11:$W$20,2,FALSE) -> 1.3511 | F122: =VLOOKUP(VLOOKUP($D122,Parameters!$D$316:$H$462,F$9,FALSE),Parameters!$D$11:$W$20,3,FALSE) -> 2.4753 | G122: =VLOOKUP(VLOOKUP($D122,Parameters!$D$316:$H$462,G$9,FALSE),Parameters!$D$11:$W$20,4,FALSE) -> 2.25 | H122: =VLOOKUP(VLOOKUP($D122,Parameters!$D$316:$H$462,H$9,FALSE),Parameters!$D$11:$W$20,5,FALSE) -> 2.25 | I122: =VLOOKUP(VLOOKUP($D122,Parameters!$D$316:$H$462,I$9,FALSE),Parameters!$D$11:$W$20,6,FALSE) -> 2.25 | J122: =VLOOKUP(VLOOKUP($D122,Parameters!$D$316:$H$462,J$9,FALSE),Parameters!$D$11:$W$20,7,FALSE) -> 2.25 | K122: =VLOOKUP(VLOOKUP($D122,Parameters!$D$316:$H$462,K$9,FALSE),Parameters!$D$11:$W$20,8,FALSE) -> 2.25 | L122: =VLOOKUP(VLOOKUP($D122,Parameters!$D$316:$H$462,L$9,FALSE),Parameters!$D$11:$W$20,9,FALSE) -> 2.25 | M122: =VLOOKUP(VLOOKUP($D122,Parameters!$D$316:$H$462,M$9,FALSE),Parameters!$D$11:$W$20,10,FALSE) -> 6.75 | N122: =VLOOKUP(VLOOKUP($D122,Parameters!$D$316:$H$462,N$9,FALSE),Parameters!$D$11:$W$20,11,FALSE) -> 2.25 | O122: =VLOOKUP(VLOOKUP($D122,Parameters!$D$316:$H$462,O$9,FALSE),Parameters!$D$11:$W$20,12,FALSE) -> 2.625 | P122: =VLOOKUP(VLOOKUP($D122,Parameters!$D$316:$H$462,P$9,FALSE),Parameters!$D$11:$W$20,13,FALSE) -> 2.25 | Q122: =VLOOKUP(VLOOKUP($D122,Parameters!$D$316:$H$462,Q$9,FALSE),Parameters!$D$11:$W$20,14,FALSE) -> 2.25 | R122: =VLOOKUP(VLOOKUP($D122,Parameters!$D$316:$H$462,R$9,FALSE),Parameters!$D$11:$W$20,15,FALSE) -> 8.78 | S122: =VLOOKUP(VLOOKUP($D122,Parameters!$D$316:$H$462,S$9,FALSE),Parameters!$D$11:$W$20,16,FALSE) -> 2.25 | T122: =VLOOKUP(VLOOKUP($D122,Parameters!$D$316:$H$462,T$9,FALSE),Parameters!$D$11:$W$20,17,FALSE) -> 1.650200825 | U122: =VLOOKUP(VLOOKUP($D122,Parameters!$D$316:$H$462,U$9,FALSE),Parameters!$D$11:$W$20,18,FALSE) -> 1.39 | V122: =VLOOKUP(VLOOKUP($D122,Parameters!$D$316:$H$462,V$9,FALSE),Parameters!$D$11:$W$20,19,FALSE) -> 1.3511 | W122: =VLOOKUP(VLOOKUP($D122,Parameters!$D$316:$H$462,W$9,FALSE),Parameters!$D$11:$W$20,20,FALSE) -> 5.4044 | X122: =VLOOKUP(VLOOKUP($D122,Parameters!$D$316:$H$462,X$9,FALSE),Parameters!$D$11:$X$20,21,FALSE) -> 3.375
D123: Panama | E123: =VLOOKUP(VLOOKUP($D123,Parameters!$D$316:$H$462,E$9,FALSE),Parameters!$D$11:$W$20,2,FALSE) -> 0.5963 | F123: =VLOOKUP(VLOOKUP($D123,Parameters!$D$316:$H$462,F$9,FALSE),Parameters!$D$11:$W$20,3,FALSE) -> 0.475 | G123: =VLOOKUP(VLOOKUP($D123,Parameters!$D$316:$H$462,G$9,FALSE),Parameters!$D$11:$W$20,4,FALSE) -> 1.207142857 | H123: =VLOOKUP(VLOOKUP($D123,Parameters!$D$316:$H$462,H$9,FALSE),Parameters!$D$11:$W$20,5,FALSE) -> 1.207142857 | I123: =VLOOKUP(VLOOKUP($D123,Parameters!$D$316:$H$462,I$9,FALSE),Parameters!$D$11:$W$20,6,FALSE) -> 1.207142857 | J123: =VLOOKUP(VLOOKUP($D123,Parameters!$D$316:$H$462,J$9,FALSE),Parameters!$D$11:$W$20,7,FALSE) -> 1.207142857 | K123: =VLOOKUP(VLOOKUP($D123,Parameters!$D$316:$H$462,K$9,FALSE),Parameters!$D$11:$W$20,8,FALSE) -> 1.207142857 | L123: =VLOOKUP(VLOOKUP($D123,Parameters!$D$316:$H$462,L$9,FALSE),Parameters!$D$11:$W$20,9,FALSE) -> 1.207142857 | M123: =VLOOKUP(VLOOKUP($D123,Parameters!$D$316:$H$462,M$9,FALSE),Parameters!$D$11:$W$20,10,FALSE) -> 3.63 | N123: =VLOOKUP(VLOOKUP($D123,Parameters!$D$316:$H$462,N$9,FALSE),Parameters!$D$11:$W$20,11,FALSE) -> 1.207142857 | O123: =VLOOKUP(VLOOKUP($D123,Parameters!$D$316:$H$462,O$9,FALSE),Parameters!$D$11:$W$20,12,FALSE) -> 1.53 | P123: =VLOOKUP(VLOOKUP($D123,Parameters!$D$316:$H$462,P$9,FALSE),Parameters!$D$11:$W$20,13,FALSE) -> 1.207142857 | Q123: =VLOOKUP(VLOOKUP($D123,Parameters!$D$316:$H$462,Q$9,FALSE),Parameters!$D$11:$W$20,14,FALSE) -> 1.207142857 | R123: =VLOOKUP(VLOOKUP($D123,Parameters!$D$316:$H$462,R$9,FALSE),Parameters!$D$11:$W$20,15,FALSE) -> 3.9 | S123: =VLOOKUP(VLOOKUP($D123,Parameters!$D$316:$H$462,S$9,FALSE),Parameters!$D$11:$W$20,16,FALSE) -> 1.207142857 | T123: =VLOOKUP(VLOOKUP($D123,Parameters!$D$316:$H$462,T$9,FALSE),Parameters!$D$11:$W$20,17,FALSE) -> 0.3166666667 | U123: =VLOOKUP(VLOOKUP($D123,Parameters!$D$316:$H$462,U$9,FALSE),Parameters!$D$11:$W$20,18,FALSE) -> 0.81 | V123: =VLOOKUP(VLOOKUP($D123,Parameters!$D$316:$H$462,V$9,FALSE),Parameters!$D$11:$W$20,19,FALSE) -> 0.5963 | W123: =VLOOKUP(VLOOKUP($D123,Parameters!$D$316:$H$462,W$9,FALSE),Parameters!$D$11:$W$20,20,FALSE) -> 2.3852 | X123: =VLOOKUP(VLOOKUP($D123,Parameters!$D$316:$H$462,X$9,FALSE),Parameters!$D$11:$X$20,21,FALSE) -> 1.810714286
D124: Papua New Guinea | E124: =VLOOKUP(VLOOKUP($D124,Parameters!$D$316:$H$462,E$9,FALSE),Parameters!$D$11:$W$20,2,FALSE) -> 1.3511 | F124: =VLOOKUP(VLOOKUP($D124,Parameters!$D$316:$H$462,F$9,FALSE),Parameters!$D$11:$W$20,3,FALSE) -> 2.4753 | G124: =VLOOKUP(VLOOKUP($D124,Parameters!$D$316:$H$462,G$9,FALSE),Parameters!$D$11:$W$20,4,FALSE) -> 2.25 | H124: =VLOOKUP(VLOOKUP($D124,Parameters!$D$316:$H$462,H$9,FALSE),Parameters!$D$11:$W$20,5,FALSE) -> 2.25 | I124: =VLOOKUP(VLOOKUP($D124,Parameters!$D$316:$H$462,I$9,FALSE),Parameters!$D$11:$W$20,6,FALSE) -> 2.25 | J124: =VLOOKUP(VLOOKUP($D124,Parameters!$D$316:$H$462,J$9,FALSE),Parameters!$D$11:$W$20,7,FALSE) -> 2.25 | K124: =VLOOKUP(VLOOKUP($D124,Parameters!$D$316:$H$462,K$9,FALSE),Parameters!$D$11:$W$20,8,FALSE) -> 2.25 | L124: =VLOOKUP(VLOOKUP($D124,Parameters!$D$316:$H$462,L$9,FALSE),Parameters!$D$11:$W$20,9,FALSE) -> 2.25 | M124: =VLOOKUP(VLOOKUP($D124,Parameters!$D$316:$H$462,M$9,FALSE),Parameters!$D$11:$W$20,10,FALSE) -> 6.75 | N124: =VLOOKUP(VLOOKUP($D124,Parameters!$D$316:$H$462,N$9,FALSE),Parameters!$D$11:$W$20,11,FALSE) -> 2.25 | O124: =VLOOKUP(VLOOKUP($D124,Parameters!$D$316:$H$462,O$9,FALSE),Parameters!$D$11:$W$20,12,FALSE) -> 2.625 | P124: =VLOOKUP(VLOOKUP($D124,Parameters!$D$316:$H$462,P$9,FALSE),Parameters!$D$11:$W$20,13,FALSE) -> 2.25 | Q124: =VLOOKUP(VLOOKUP($D124,Parameters!$D$316:$H$462,Q$9,FALSE),Parameters!$D$11:$W$20,14,FALSE) -> 2.25 | R124: =VLOOKUP(VLOOKUP($D124,Parameters!$D$316:$H$462,R$9,FALSE),Parameters!$D$11:$W$20,15,FALSE) -> 8.78 | S124: =VLOOKUP(VLOOKUP($D124,Parameters!$D$316:$H$462,S$9,FALSE),Parameters!$D$11:$W$20,16,FALSE) -> 2.25 | T124: =VLOOKUP(VLOOKUP($D124,Parameters!$D$316:$H$462,T$9,FALSE),Parameters!$D$11:$W$20,17,FALSE) -> 1.650200825 | U124: =VLOOKUP(VLOOKUP($D124,Parameters!$D$316:$H$462,U$9,FALSE),Parameters!$D$11:$W$20,18,FALSE) -> 1.39 | V124: =VLOOKUP(VLOOKUP($D124,Parameters!$D$316:$H$462,V$9,FALSE),Parameters!$D$11:$W$20,19,FALSE) -> 1.3511 | W124: =VLOOKUP(VLOOKUP($D124,Parameters!$D$316:$H$462,W$9,FALSE),Parameters!$D$11:$W$20,20,FALSE) -> 5.4044 | X124: =VLOOKUP(VLOOKUP($D124,Parameters!$D$316:$H$462,X$9,FALSE),Parameters!$D$11:$X$20,21,FALSE) -> 3.375
D125: Paraguay | E125: =VLOOKUP(VLOOKUP($D125,Parameters!$D$316:$H$462,E$9,FALSE),Parameters!$D$11:$W$20,2,FALSE) -> 0.7484 | F125: =VLOOKUP(VLOOKUP($D125,Parameters!$D$316:$H$462,F$9,FALSE),Parameters!$D$11:$W$20,3,FALSE) -> 1.0251 | G125: =VLOOKUP(VLOOKUP($D125,Parameters!$D$316:$H$462,G$9,FALSE),Parameters!$D$11:$W$20,4,FALSE) -> 1.421428571 | H125: =VLOOKUP(VLOOKUP($D125,Parameters!$D$316:$H$462,H$9,FALSE),Parameters!$D$11:$W$20,5,FALSE) -> 1.421428571 | I125: =VLOOKUP(VLOOKUP($D125,Parameters!$D$316:$H$462,I$9,FALSE),Parameters!$D$11:$W$20,6,FALSE) -> 1.421428571 | J125: =VLOOKUP(VLOOKUP($D125,Parameters!$D$316:$H$462,J$9,FALSE),Parameters!$D$11:$W$20,7,FALSE) -> 1.421428571 | K125: =VLOOKUP(VLOOKUP($D125,Parameters!$D$316:$H$462,K$9,FALSE),Parameters!$D$11:$W$20,8,FALSE) -> 1.421428571 | L125: =VLOOKUP(VLOOKUP($D125,Parameters!$D$316:$H$462,L$9,FALSE),Parameters!$D$11:$W$20,9,FALSE) -> 1.421428571 | M125: =VLOOKUP(VLOOKUP($D125,Parameters!$D$316:$H$462,M$9,FALSE),Parameters!$D$11:$W$20,10,FALSE) -> 4.264285714 | N125: =VLOOKUP(VLOOKUP($D125,Parameters!$D$316:$H$462,N$9,FALSE),Parameters!$D$11:$W$20,11,FALSE) -> 1.421428571 | O125: =VLOOKUP(VLOOKUP($D125,Parameters!$D$316:$H$462,O$9,FALSE),Parameters!$D$11:$W$20,12,FALSE) -> 1.755 | P125: =VLOOKUP(VLOOKUP($D125,Parameters!$D$316:$H$462,P$9,FALSE),Parameters!$D$11:$W$20,13,FALSE) -> 1.421428571 | Q125: =VLOOKUP(VLOOKUP($D125,Parameters!$D$316:$H$462,Q$9,FALSE),Parameters!$D$11:$W$20,14,FALSE) -> 1.421428571 | R125: =VLOOKUP(VLOOKUP($D125,Parameters!$D$316:$H$462,R$9,FALSE),Parameters!$D$11:$W$20,15,FALSE) -> 4.88 | S125: =VLOOKUP(VLOOKUP($D125,Parameters!$D$316:$H$462,S$9,FALSE),Parameters!$D$11:$W$20,16,FALSE) -> 1.421428571 | T125: =VLOOKUP(VLOOKUP($D125,Parameters!$D$316:$H$462,T$9,FALSE),Parameters!$D$11:$W$20,17,FALSE) -> 0.6834003417 | U125: =VLOOKUP(VLOOKUP($D125,Parameters!$D$316:$H$462,U$9,FALSE),Parameters!$D$11:$W$20,18,FALSE) -> 0.93 | V125: =VLOOKUP(VLOOKUP($D125,Parameters!$D$316:$H$462,V$9,FALSE),Parameters!$D$11:$W$20,19,FALSE) -> 0.7484 | W125: =VLOOKUP(VLOOKUP($D125,Parameters!$D$316:$H$462,W$9,FALSE),Parameters!$D$11:$W$20,20,FALSE) -> 2.9936 | X125: =VLOOKUP(VLOOKUP($D125,Parameters!$D$316:$H$462,X$9,FALSE),Parameters!$D$11:$X$20,21,FALSE) -> 2.132142857
D126: Peru | E126: =VLOOKUP(VLOOKUP($D126,Parameters!$D$316:$H$462,E$9,FALSE),Parameters!$D$11:$W$20,2,FALSE) -> 0.5963 | F126: =VLOOKUP(VLOOKUP($D126,Parameters!$D$316:$H$462,F$9,FALSE),Parameters!$D$11:$W$20,3,FALSE) -> 0.475 | G126: =VLOOKUP(VLOOKUP($D126,Parameters!$D$316:$H$462,G$9,FALSE),Parameters!$D$11:$W$20,4,FALSE) -> 1.207142857 | H126: =VLOOKUP(VLOOKUP($D126,Parameters!$D$316:$H$462,H$9,FALSE),Parameters!$D$11:$W$20,5,FALSE) -> 1.207142857 | I126: =VLOOKUP(VLOOKUP($D126,Parameters!$D$316:$H$462,I$9,FALSE),Parameters!$D$11:$W$20,6,FALSE) -> 1.207142857 | J126: =VLOOKUP(VLOOKUP($D126,Parameters!$D$316:$H$462,J$9,FALSE),Parameters!$D$11:$W$20,7,FALSE) -> 1.207142857 | K126: =VLOOKUP(VLOOKUP($D126,Parameters!$D$316:$H$462,K$9,FALSE),Parameters!$D$11:$W$20,8,FALSE) -> 1.207142857 | L126: =VLOOKUP(VLOOKUP($D126,Parameters!$D$316:$H$462,L$9,FALSE),Parameters!$D$11:$W$20,9,FALSE) -> 1.207142857 | M126: =VLOOKUP(VLOOKUP($D126,Parameters!$D$316:$H$462,M$9,FALSE),Parameters!$D$11:$W$20,10,FALSE) -> 3.63 | N126: =VLOOKUP(VLOOKUP($D126,Parameters!$D$316:$H$462,N$9,FALSE),Parameters!$D$11:$W$20,11,FALSE) -> 1.207142857 | O126: =VLOOKUP(VLOOKUP($D126,Parameters!$D$316:$H$462,O$9,FALSE),Parameters!$D$11:$W$20,12,FALSE) -> 1.53 | P126: =VLOOKUP(VLOOKUP($D126,Parameters!$D$316:$H$462,P$9,FALSE),Parameters!$D$11:$W$20,13,FALSE) -> 1.207142857 | Q126: =VLOOKUP(VLOOKUP($D126,Parameters!$D$316:$H$462,Q$9,FALSE),Parameters!$D$11:$W$20,14,FALSE) -> 1.207142857 | R126: =VLOOKUP(VLOOKUP($D126,Parameters!$D$316:$H$462,R$9,FALSE),Parameters!$D$11:$W$20,15,FALSE) -> 3.9 | S126: =VLOOKUP(VLOOKUP($D126,Parameters!$D$316:$H$462,S$9,FALSE),Parameters!$D$11:$W$20,16,FALSE) -> 1.207142857 | T126: =VLOOKUP(VLOOKUP($D126,Parameters!$D$316:$H$462,T$9,FALSE),Parameters!$D$11:$W$20,17,FALSE) -> 0.3166666667 | U126: =VLOOKUP(VLOOKUP($D126,Parameters!$D$316:$H$462,U$9,FALSE),Parameters!$D$11:$W$20,18,FALSE) -> 0.81 | V126: =VLOOKUP(VLOOKUP($D126,Parameters!$D$316:$H$462,V$9,FALSE),Parameters!$D$11:$W$20,19,FALSE) -> 0.5963 | W126: =VLOOKUP(VLOOKUP($D126,Parameters!$D$316:$H$462,W$9,FALSE),Parameters!$D$11:$W$20,20,FALSE) -> 2.3852 | X126: =VLOOKUP(VLOOKUP($D126,Parameters!$D$316:$H$462,X$9,FALSE),Parameters!$D$11:$X$20,21,FALSE) -> 1.810714286
D127: Philippines | E127: =VLOOKUP(VLOOKUP($D127,Parameters!$D$316:$H$462,E$9,FALSE),Parameters!$D$11:$W$20,2,FALSE) -> 0.5963 | F127: =VLOOKUP(VLOOKUP($D127,Parameters!$D$316:$H$462,F$9,FALSE),Parameters!$D$11:$W$20,3,FALSE) -> 0.475 | G127: =VLOOKUP(VLOOKUP($D127,Parameters!$D$316:$H$462,G$9,FALSE),Parameters!$D$11:$W$20,4,FALSE) -> 1.207142857 | H127: =VLOOKUP(VLOOKUP($D127,Parameters!$D$316:$H$462,H$9,FALSE),Parameters!$D$11:$W$20,5,FALSE) -> 1.207142857 | I127: =VLOOKUP(VLOOKUP($D127,Parameters!$D$316:$H$462,I$9,FALSE),Parameters!$D$11:$W$20,6,FALSE) -> 1.207142857 | J127: =VLOOKUP(VLOOKUP($D127,Parameters!$D$316:$H$462,J$9,FALSE),Parameters!$D$11:$W$20,7,FALSE) -> 1.207142857 | K127: =VLOOKUP(VLOOKUP($D127,Parameters!$D$316:$H$462,K$9,FALSE),Parameters!$D$11:$W$20,8,FALSE) -> 1.207142857 | L127: =VLOOKUP(VLOOKUP($D127,Parameters!$D$316:$H$462,L$9,FALSE),Parameters!$D$11:$W$20,9,FALSE) -> 1.207142857 | M127: =VLOOKUP(VLOOKUP($D127,Parameters!$D$316:$H$462,M$9,FALSE),Parameters!$D$11:$W$20,10,FALSE) -> 3.63 | N127: =VLOOKUP(VLOOKUP($D127,Parameters!$D$316:$H$462,N$9,FALSE),Parameters!$D$11:$W$20,11,FALSE) -> 1.207142857 | O127: =VLOOKUP(VLOOKUP($D127,Parameters!$D$316:$H$462,O$9,FALSE),Parameters!$D$11:$W$20,12,FALSE) -> 1.53 | P127: =VLOOKUP(VLOOKUP($D127,Parameters!$D$316:$H$462,P$9,FALSE),Parameters!$D$11:$W$20,13,FALSE) -> 1.207142857 | Q127: =VLOOKUP(VLOOKUP($D127,Parameters!$D$316:$H$462,Q$9,FALSE),Parameters!$D$11:$W$20,14,FALSE) -> 1.207142857 | R127: =VLOOKUP(VLOOKUP($D127,Parameters!$D$316:$H$462,R$9,FALSE),Parameters!$D$11:$W$20,15,FALSE) -> 3.9 | S127: =VLOOKUP(VLOOKUP($D127,Parameters!$D$316:$H$462,S$9,FALSE),Parameters!$D$11:$W$20,16,FALSE) -> 1.207142857 | T127: =VLOOKUP(VLOOKUP($D127,Parameters!$D$316:$H$462,T$9,FALSE),Parameters!$D$11:$W$20,17,FALSE) -> 0.3166666667 | U127: =VLOOKUP(VLOOKUP($D127,Parameters!$D$316:$H$462,U$9,FALSE),Parameters!$D$11:$W$20,18,FALSE) -> 0.81 | V127: =VLOOKUP(VLOOKUP($D127,Parameters!$D$316:$H$462,V$9,FALSE),Parameters!$D$11:$W$20,19,FALSE) -> 0.5963 | W127: =VLOOKUP(VLOOKUP($D127,Parameters!$D$316:$H$462,W$9,FALSE),Parameters!$D$11:$W$20,20,FALSE) -> 2.3852 | X127: =VLOOKUP(VLOOKUP($D127,Parameters!$D$316:$H$462,X$9,FALSE),Parameters!$D$11:$X$20,21,FALSE) -> 1.810714286
D128: Poland | E128: =VLOOKUP(VLOOKUP($D128,Parameters!$D$316:$H$462,E$9,FALSE),Parameters!$D$11:$W$20,2,FALSE) -> 0.3653 | F128: =VLOOKUP(VLOOKUP($D128,Parameters!$D$316:$H$462,F$9,FALSE),Parameters!$D$11:$W$20,3,FALSE) -> 0.3341666667 | G128: =VLOOKUP(VLOOKUP($D128,Parameters!$D$316:$H$462,G$9,FALSE),Parameters!$D$11:$W$20,4,FALSE) -> 0.8714285714 | H128: =VLOOKUP(VLOOKUP($D128,Parameters!$D$316:$H$462,H$9,FALSE),Parameters!$D$11:$W$20,5,FALSE) -> 0.8714285714 | I128: =VLOOKUP(VLOOKUP($D128,Parameters!$D$316:$H$462,I$9,FALSE),Parameters!$D$11:$W$20,6,FALSE) -> 0.8714285714 | J128: =VLOOKUP(VLOOKUP($D128,Parameters!$D$316:$H$462,J$9,FALSE),Parameters!$D$11:$W$20,7,FALSE) -> 0.8714285714 | K128: =VLOOKUP(VLOOKUP($D128,Parameters!$D$316:$H$462,K$9,FALSE),Parameters!$D$11:$W$20,8,FALSE) -> 0.8714285714 | L128: =VLOOKUP(VLOOKUP($D128,Parameters!$D$316:$H$462,L$9,FALSE),Parameters!$D$11:$W$20,9,FALSE) -> 0.8714285714 | M128: =VLOOKUP(VLOOKUP($D128,Parameters!$D$316:$H$462,M$9,FALSE),Parameters!$D$11:$W$20,10,FALSE) -> 2.614285714 | N128: =VLOOKUP(VLOOKUP($D128,Parameters!$D$316:$H$462,N$9,FALSE),Parameters!$D$11:$W$20,11,FALSE) -> 0.8714285714 | O128: =VLOOKUP(VLOOKUP($D128,Parameters!$D$316:$H$462,O$9,FALSE),Parameters!$D$11:$W$20,12,FALSE) -> 1.1775 | P128: =VLOOKUP(VLOOKUP($D128,Parameters!$D$316:$H$462,P$9,FALSE),Parameters!$D$11:$W$20,13,FALSE) -> 0.8714285714 | Q128: =VLOOKUP(VLOOKUP($D128,Parameters!$D$316:$H$462,Q$9,FALSE),Parameters!$D$11:$W$20,14,FALSE) -> 0.8714285714 | R128: =VLOOKUP(VLOOKUP($D128,Parameters!$D$316:$H$462,R$9,FALSE),Parameters!$D$11:$W$20,15,FALSE) -> 2.41 | S128: =VLOOKUP(VLOOKUP($D128,Parameters!$D$316:$H$462,S$9,FALSE),Parameters!$D$11:$W$20,16,FALSE) -> 0.8714285714 | T128: =VLOOKUP(VLOOKUP($D128,Parameters!$D$316:$H$462,T$9,FALSE),Parameters!$D$11:$W$20,17,FALSE) -> 0.2227777778 | U128: =VLOOKUP(VLOOKUP($D128,Parameters!$D$316:$H$462,U$9,FALSE),Parameters!$D$11:$W$20,18,FALSE) -> 0.63 | V128: =VLOOKUP(VLOOKUP($D128,Parameters!$D$316:$H$462,V$9,FALSE),Parameters!$D$11:$W$20,19,FALSE) -> 0.3653 | W128: =VLOOKUP(VLOOKUP($D128,Parameters!$D$316:$H$462,W$9,FALSE),Parameters!$D$11:$W$20,20,FALSE) -> 1.4612 | X128: =VLOOKUP(VLOOKUP($D128,Parameters!$D$316:$H$462,X$9,FALSE),Parameters!$D$11:$X$20,21,FALSE) -> 1.307142857
D129: Portugal | E129: =VLOOKUP(VLOOKUP($D129,Parameters!$D$316:$H$462,E$9,FALSE),Parameters!$D$11:$W$20,2,FALSE) -> 0.3653 | F129: =VLOOKUP(VLOOKUP($D129,Parameters!$D$316:$H$462,F$9,FALSE),Parameters!$D$11:$W$20,3,FALSE) -> 0.3341666667 | G129: =VLOOKUP(VLOOKUP($D129,Parameters!$D$316:$H$462,G$9,FALSE),Parameters!$D$11:$W$20,4,FALSE) -> 0.8714285714 | H129: =VLOOKUP(VLOOKUP($D129,Parameters!$D$316:$H$462,H$9,FALSE),Parameters!$D$11:$W$20,5,FALSE) -> 0.8714285714 | I129: =VLOOKUP(VLOOKUP($D129,Parameters!$D$316:$H$462,I$9,FALSE),Parameters!$D$11:$W$20,6,FALSE) -> 0.8714285714 | J129: =VLOOKUP(VLOOKUP($D129,Parameters!$D$316:$H$462,J$9,FALSE),Parameters!$D$11:$W$20,7,FALSE) -> 0.8714285714 | K129: =VLOOKUP(VLOOKUP($D129,Parameters!$D$316:$H$462,K$9,FALSE),Parameters!$D$11:$W$20,8,FALSE) -> 0.8714285714 | L129: =VLOOKUP(VLOOKUP($D129,Parameters!$D$316:$H$462,L$9,FALSE),Parameters!$D$11:$W$20,9,FALSE) -> 0.8714285714 | M129: =VLOOKUP(VLOOKUP($D129,Parameters!$D$316:$H$462,M$9,FALSE),Parameters!$D$11:$W$20,10,FALSE) -> 2.614285714 | N129: =VLOOKUP(VLOOKUP($D129,Parameters!$D$316:$H$462,N$9,FALSE),Parameters!$D$11:$W$20,11,FALSE) -> 0.8714285714 | O129: =VLOOKUP(VLOOKUP($D129,Parameters!$D$316:$H$462,O$9,FALSE),Parameters!$D$11:$W$20,12,FALSE) -> 1.1775 | P129: =VLOOKUP(VLOOKUP($D129,Parameters!$D$316:$H$462,P$9,FALSE),Parameters!$D$11:$W$20,13,FALSE) -> 0.8714285714 | Q129: =VLOOKUP(VLOOKUP($D129,Parameters!$D$316:$H$462,Q$9,FALSE),Parameters!$D$11:$W$20,14,FALSE) -> 0.8714285714 | R129: =VLOOKUP(VLOOKUP($D129,Parameters!$D$316:$H$462,R$9,FALSE),Parameters!$D$11:$W$20,15,FALSE) -> 2.41 | S129: =VLOOKUP(VLOOKUP($D129,Parameters!$D$316:$H$462,S$9,FALSE),Parameters!$D$11:$W$20,16,FALSE) -> 0.8714285714 | T129: =VLOOKUP(VLOOKUP($D129,Parameters!$D$316:$H$462,T$9,FALSE),Parameters!$D$11:$W$20,17,FALSE) -> 0.2227777778 | U129: =VLOOKUP(VLOOKUP($D129,Parameters!$D$316:$H$462,U$9,FALSE),Parameters!$D$11:$W$20,18,FALSE) -> 0.63 | V129: =VLOOKUP(VLOOKUP($D129,Parameters!$D$316:$H$462,V$9,FALSE),Parameters!$D$11:$W$20,19,FALSE) -> 0.3653 | W129: =VLOOKUP(VLOOKUP($D129,Parameters!$D$316:$H$462,W$9,FALSE),Parameters!$D$11:$W$20,20,FALSE) -> 1.4612 | X129: =VLOOKUP(VLOOKUP($D129,Parameters!$D$316:$H$462,X$9,FALSE),Parameters!$D$11:$X$20,21,FALSE) -> 1.307142857
D130: Qatar | E130: =VLOOKUP(VLOOKUP($D130,Parameters!$D$316:$H$462,E$9,FALSE),Parameters!$D$11:$W$20,2,FALSE) -> 0.4686 | F130: =VLOOKUP(VLOOKUP($D130,Parameters!$D$316:$H$462,F$9,FALSE),Parameters!$D$11:$W$20,3,FALSE) -> 0.475 | G130: =VLOOKUP(VLOOKUP($D130,Parameters!$D$316:$H$462,G$9,FALSE),Parameters!$D$11:$W$20,4,FALSE) -> 1.023809524 | H130: =VLOOKUP(VLOOKUP($D130,Parameters!$D$316:$H$462,H$9,FALSE),Parameters!$D$11:$W$20,5,FALSE) -> 1.023809524 | I130: =VLOOKUP(VLOOKUP($D130,Parameters!$D$316:$H$462,I$9,FALSE),Parameters!$D$11:$W$20,6,FALSE) -> 1.023809524 | J130: =VLOOKUP(VLOOKUP($D130,Parameters!$D$316:$H$462,J$9,FALSE),Parameters!$D$11:$W$20,7,FALSE) -> 1.023809524 | K130: =VLOOKUP(VLOOKUP($D130,Parameters!$D$316:$H$462,K$9,FALSE),Parameters!$D$11:$W$20,8,FALSE) -> 1.023809524 | L130: =VLOOKUP(VLOOKUP($D130,Parameters!$D$316:$H$462,L$9,FALSE),Parameters!$D$11:$W$20,9,FALSE) -> 1.023809524 | M130: =VLOOKUP(VLOOKUP($D130,Parameters!$D$316:$H$462,M$9,FALSE),Parameters!$D$11:$W$20,10,FALSE) -> 3.071428571 | N130: =VLOOKUP(VLOOKUP($D130,Parameters!$D$316:$H$462,N$9,FALSE),Parameters!$D$11:$W$20,11,FALSE) -> 1.023809524 | O130: =VLOOKUP(VLOOKUP($D130,Parameters!$D$316:$H$462,O$9,FALSE),Parameters!$D$11:$W$20,12,FALSE) -> 1.3375 | P130: =VLOOKUP(VLOOKUP($D130,Parameters!$D$316:$H$462,P$9,FALSE),Parameters!$D$11:$W$20,13,FALSE) -> 1.023809524 | Q130: =VLOOKUP(VLOOKUP($D130,Parameters!$D$316:$H$462,Q$9,FALSE),Parameters!$D$11:$W$20,14,FALSE) -> 1.023809524 | R130: =VLOOKUP(VLOOKUP($D130,Parameters!$D$316:$H$462,R$9,FALSE),Parameters!$D$11:$W$20,15,FALSE) -> 3.06 | S130: =VLOOKUP(VLOOKUP($D130,Parameters!$D$316:$H$462,S$9,FALSE),Parameters!$D$11:$W$20,16,FALSE) -> 1.023809524 | T130: =VLOOKUP(VLOOKUP($D130,Parameters!$D$316:$H$462,T$9,FALSE),Parameters!$D$11:$W$20,17,FALSE) -> 0.3166666667 | U130: =VLOOKUP(VLOOKUP($D130,Parameters!$D$316:$H$462,U$9,FALSE),Parameters!$D$11:$W$20,18,FALSE) -> 0.71 | V130: =VLOOKUP(VLOOKUP($D130,Parameters!$D$316:$H$462,V$9,FALSE),Parameters!$D$11:$W$20,19,FALSE) -> 0.4686 | W130: =VLOOKUP(VLOOKUP($D130,Parameters!$D$316:$H$462,W$9,FALSE),Parameters!$D$11:$W$20,20,FALSE) -> 1.8744 | X130: =VLOOKUP(VLOOKUP($D130,Parameters!$D$316:$H$462,X$9,FALSE),Parameters!$D$11:$X$20,21,FALSE) -> 1.535714286
D131: Romania | E131: =VLOOKUP(VLOOKUP($D131,Parameters!$D$316:$H$462,E$9,FALSE),Parameters!$D$11:$W$20,2,FALSE) -> 0.7484 | F131: =VLOOKUP(VLOOKUP($D131,Parameters!$D$316:$H$462,F$9,FALSE),Parameters!$D$11:$W$20,3,FALSE) -> 1.0251 | G131: =VLOOKUP(VLOOKUP($D131,Parameters!$D$316:$H$462,G$9,FALSE),Parameters!$D$11:$W$20,4,FALSE) -> 1.421428571 | H131: =VLOOKUP(VLOOKUP($D131,Parameters!$D$316:$H$462,H$9,FALSE),Parameters!$D$11:$W$20,5,FALSE) -> 1.421428571 | I131: =VLOOKUP(VLOOKUP($D131,Parameters!$D$316:$H$462,I$9,FALSE),Parameters!$D$11:$W$20,6,FALSE) -> 1.421428571 | J131: =VLOOKUP(VLOOKUP($D131,Parameters!$D$316:$H$462,J$9,FALSE),Parameters!$D$11:$W$20,7,FALSE) -> 1.421428571 | K131: =VLOOKUP(VLOOKUP($D131,Parameters!$D$316:$H$462,K$9,FALSE),Parameters!$D$11:$W$20,8,FALSE) -> 1.421428571 | L131: =VLOOKUP(VLOOKUP($D131,Parameters!$D$316:$H$462,L$9,FALSE),Parameters!$D$11:$W$20,9,FALSE) -> 1.421428571 | M131: =VLOOKUP(VLOOKUP($D131,Parameters!$D$316:$H$462,M$9,FALSE),Parameters!$D$11:$W$20,10,FALSE) -> 4.264285714 | N131: =VLOOKUP(VLOOKUP($D131,Parameters!$D$316:$H$462,N$9,FALSE),Parameters!$D$11:$W$20,11,FALSE) -> 1.421428571 | O131: =VLOOKUP(VLOOKUP($D131,Parameters!$D$316:$H$462,O$9,FALSE),Parameters!$D$11:$W$20,12,FALSE) -> 1.755 | P131: =VLOOKUP(VLOOKUP($D131,Parameters!$D$316:$H$462,P$9,FALSE),Parameters!$D$11:$W$20,13,FALSE) -> 1.421428571 | Q131: =VLOOKUP(VLOOKUP($D131,Parameters!$D$316:$H$462,Q$9,FALSE),Parameters!$D$11:$W$20,14,FALSE) -> 1.421428571 | R131: =VLOOKUP(VLOOKUP($D131,Parameters!$D$316:$H$462,R$9,FALSE),Parameters!$D$11:$W$20,15,FALSE) -> 4.88 | S131: =VLOOKUP(VLOOKUP($D131,Parameters!$D$316:$H$462,S$9,FALSE),Parameters!$D$11:$W$20,16,FALSE) -> 1.421428571 | T131: =VLOOKUP(VLOOKUP($D131,Parameters!$D$316:$H$462,T$9,FALSE),Parameters!$D$11:$W$20,17,FALSE) -> 0.6834003417 | U131: =VLOOKUP(VLOOKUP($D131,Parameters!$D$316:$H$462,U$9,FALSE),Parameters!$D$11:$W$20,18,FALSE) -> 0.93 | V131: =VLOOKUP(VLOOKUP($D131,Parameters!$D$316:$H$462,V$9,FALSE),Parameters!$D$11:$W$20,19,FALSE) -> 0.7484 | W131: =VLOOKUP(VLOOKUP($D131,Parameters!$D$316:$H$462,W$9,FALSE),Parameters!$D$11:$W$20,20,FALSE) -> 2.9936 | X131: =VLOOKUP(VLOOKUP($D131,Parameters!$D$316:$H$462,X$9,FALSE),Parameters!$D$11:$X$20,21,FALSE) -> 2.132142857
D132: Russia | E132: =VLOOKUP(VLOOKUP($D132,Parameters!$D$316:$H$462,E$9,FALSE),Parameters!$D$11:$W$20,2,FALSE) -> 1.3511 | F132: =VLOOKUP(VLOOKUP($D132,Parameters!$D$316:$H$462,F$9,FALSE),Parameters!$D$11:$W$20,3,FALSE) -> 2.4753 | G132: =VLOOKUP(VLOOKUP($D132,Parameters!$D$316:$H$462,G$9,FALSE),Parameters!$D$11:$W$20,4,FALSE) -> 2.25 | H132: =VLOOKUP(VLOOKUP($D132,Parameters!$D$316:$H$462,H$9,FALSE),Parameters!$D$11:$W$20,5,FALSE) -> 2.25 | I132: =VLOOKUP(VLOOKUP($D132,Parameters!$D$316:$H$462,I$9,FALSE),Parameters!$D$11:$W$20,6,FALSE) -> 2.25 | J132: =VLOOKUP(VLOOKUP($D132,Parameters!$D$316:$H$462,J$9,FALSE),Parameters!$D$11:$W$20,7,FALSE) -> 2.25 | K132: =VLOOKUP(VLOOKUP($D132,Parameters!$D$316:$H$462,K$9,FALSE),Parameters!$D$11:$W$20,8,FALSE) -> 2.25 | L132: =VLOOKUP(VLOOKUP($D132,Parameters!$D$316:$H$462,L$9,FALSE),Parameters!$D$11:$W$20,9,FALSE) -> 2.25 | M132: =VLOOKUP(VLOOKUP($D132,Parameters!$D$316:$H$462,M$9,FALSE),Parameters!$D$11:$W$20,10,FALSE) -> 6.75 | N132: =VLOOKUP(VLOOKUP($D132,Parameters!$D$316:$H$462,N$9,FALSE),Parameters!$D$11:$W$20,11,FALSE) -> 2.25 | O132: =VLOOKUP(VLOOKUP($D132,Parameters!$D$316:$H$462,O$9,FALSE),Parameters!$D$11:$W$20,12,FALSE) -> 2.625 | P132: =VLOOKUP(VLOOKUP($D132,Parameters!$D$316:$H$462,P$9,FALSE),Parameters!$D$11:$W$20,13,FALSE) -> 2.25 | Q132: =VLOOKUP(VLOOKUP($D132,Parameters!$D$316:$H$462,Q$9,FALSE),Parameters!$D$11:$W$20,14,FALSE) -> 2.25 | R132: =VLOOKUP(VLOOKUP($D132,Parameters!$D$316:$H$462,R$9,FALSE),Parameters!$D$11:$W$20,15,FALSE) -> 8.78 | S132: =VLOOKUP(VLOOKUP($D132,Parameters!$D$316:$H$462,S$9,FALSE),Parameters!$D$11:$W$20,16,FALSE) -> 2.25 | T132: =VLOOKUP(VLOOKUP($D132,Parameters!$D$316:$H$462,T$9,FALSE),Parameters!$D$11:$W$20,17,FALSE) -> 1.650200825 | U132: =VLOOKUP(VLOOKUP($D132,Parameters!$D$316:$H$462,U$9,FALSE),Parameters!$D$11:$W$20,18,FALSE) -> 1.39 | V132: =VLOOKUP(VLOOKUP($D132,Parameters!$D$316:$H$462,V$9,FALSE),Parameters!$D$11:$W$20,19,FALSE) -> 1.3511 | W132: =VLOOKUP(VLOOKUP($D132,Parameters!$D$316:$H$462,W$9,FALSE),Parameters!$D$11:$W$20,20,FALSE) -> 5.4044 | X132: =VLOOKUP(VLOOKUP($D132,Parameters!$D$316:$H$462,X$9,FALSE),Parameters!$D$11:$X$20,21,FALSE) -> 3.375
D133: Rwanda | E133: =VLOOKUP(VLOOKUP($D133,Parameters!$D$316:$H$462,E$9,FALSE),Parameters!$D$11:$W$20,2,FALSE) -> 1.3511 | F133: =VLOOKUP(VLOOKUP($D133,Parameters!$D$316:$H$462,F$9,FALSE),Parameters!$D$11:$W$20,3,FALSE) -> 2.4753 | G133: =VLOOKUP(VLOOKUP($D133,Parameters!$D$316:$H$462,G$9,FALSE),Parameters!$D$11:$W$20,4,FALSE) -> 2.25 | H133: =VLOOKUP(VLOOKUP($D133,Parameters!$D$316:$H$462,H$9,FALSE),Parameters!$D$11:$W$20,5,FALSE) -> 2.25 | I133: =VLOOKUP(VLOOKUP($D133,Parameters!$D$316:$H$462,I$9,FALSE),Parameters!$D$11:$W$20,6,FALSE) -> 2.25 | J133: =VLOOKUP(VLOOKUP($D133,Parameters!$D$316:$H$462,J$9,FALSE),Parameters!$D$11:$W$20,7,FALSE) -> 2.25 | K133: =VLOOKUP(VLOOKUP($D133,Parameters!$D$316:$H$462,K$9,FALSE),Parameters!$D$11:$W$20,8,FALSE) -> 2.25 | L133: =VLOOKUP(VLOOKUP($D133,Parameters!$D$316:$H$462,L$9,FALSE),Parameters!$D$11:$W$20,9,FALSE) -> 2.25 | M133: =VLOOKUP(VLOOKUP($D133,Parameters!$D$316:$H$462,M$9,FALSE),Parameters!$D$11:$W$20,10,FALSE) -> 6.75 | N133: =VLOOKUP(VLOOKUP($D133,Parameters!$D$316:$H$462,N$9,FALSE),Parameters!$D$11:$W$20,11,FALSE) -> 2.25 | O133: =VLOOKUP(VLOOKUP($D133,Parameters!$D$316:$H$462,O$9,FALSE),Parameters!$D$11:$W$20,12,FALSE) -> 2.625 | P133: =VLOOKUP(VLOOKUP($D133,Parameters!$D$316:$H$462,P$9,FALSE),Parameters!$D$11:$W$20,13,FALSE) -> 2.25 | Q133: =VLOOKUP(VLOOKUP($D133,Parameters!$D$316:$H$462,Q$9,FALSE),Parameters!$D$11:$W$20,14,FALSE) -> 2.25 | R133: =VLOOKUP(VLOOKUP($D133,Parameters!$D$316:$H$462,R$9,FALSE),Parameters!$D$11:$W$20,15,FALSE) -> 8.78 | S133: =VLOOKUP(VLOOKUP($D133,Parameters!$D$316:$H$462,S$9,FALSE),Parameters!$D$11:$W$20,16,FALSE) -> 2.25 | T133: =VLOOKUP(VLOOKUP($D133,Parameters!$D$316:$H$462,T$9,FALSE),Parameters!$D$11:$W$20,17,FALSE) -> 1.650200825 | U133: =VLOOKUP(VLOOKUP($D133,Parameters!$D$316:$H$462,U$9,FALSE),Parameters!$D$11:$W$20,18,FALSE) -> 1.39 | V133: =VLOOKUP(VLOOKUP($D133,Parameters!$D$316:$H$462,V$9,FALSE),Parameters!$D$11:$W$20,19,FALSE) -> 1.3511 | W133: =VLOOKUP(VLOOKUP($D133,Parameters!$D$316:$H$462,W$9,FALSE),Parameters!$D$11:$W$20,20,FALSE) -> 5.4044 | X133: =VLOOKUP(VLOOKUP($D133,Parameters!$D$316:$H$462,X$9,FALSE),Parameters!$D$11:$X$20,21,FALSE) -> 3.375
D134: Saint Kitts and Nevis | E134: =VLOOKUP(VLOOKUP($D134,Parameters!$D$316:$H$462,E$9,FALSE),Parameters!$D$11:$W$20,2,FALSE) -> 1.1258 | F134: =VLOOKUP(VLOOKUP($D134,Parameters!$D$316:$H$462,F$9,FALSE),Parameters!$D$11:$W$20,3,FALSE) -> 1.9223 | G134: =VLOOKUP(VLOOKUP($D134,Parameters!$D$316:$H$462,G$9,FALSE),Parameters!$D$11:$W$20,4,FALSE) -> 1.942857143 | H134: =VLOOKUP(VLOOKUP($D134,Parameters!$D$316:$H$462,H$9,FALSE),Parameters!$D$11:$W$20,5,FALSE) -> 1.942857143 | I134: =VLOOKUP(VLOOKUP($D134,Parameters!$D$316:$H$462,I$9,FALSE),Parameters!$D$11:$W$20,6,FALSE) -> 1.942857143 | J134: =VLOOKUP(VLOOKUP($D134,Parameters!$D$316:$H$462,J$9,FALSE),Parameters!$D$11:$W$20,7,FALSE) -> 1.942857143 | K134: =VLOOKUP(VLOOKUP($D134,Parameters!$D$316:$H$462,K$9,FALSE),Parameters!$D$11:$W$20,8,FALSE) -> 1.942857143 | L134: =VLOOKUP(VLOOKUP($D134,Parameters!$D$316:$H$462,L$9,FALSE),Parameters!$D$11:$W$20,9,FALSE) -> 1.942857143 | M134: =VLOOKUP(VLOOKUP($D134,Parameters!$D$316:$H$462,M$9,FALSE),Parameters!$D$11:$W$20,10,FALSE) -> 5.82 | N134: =VLOOKUP(VLOOKUP($D134,Parameters!$D$316:$H$462,N$9,FALSE),Parameters!$D$11:$W$20,11,FALSE) -> 1.942857143 | O134: =VLOOKUP(VLOOKUP($D134,Parameters!$D$316:$H$462,O$9,FALSE),Parameters!$D$11:$W$20,12,FALSE) -> 2.3025 | P134: =VLOOKUP(VLOOKUP($D134,Parameters!$D$316:$H$462,P$9,FALSE),Parameters!$D$11:$W$20,13,FALSE) -> 1.942857143 | Q134: =VLOOKUP(VLOOKUP($D134,Parameters!$D$316:$H$462,Q$9,FALSE),Parameters!$D$11:$W$20,14,FALSE) -> 1.942857143 | R134: =VLOOKUP(VLOOKUP($D134,Parameters!$D$316:$H$462,R$9,FALSE),Parameters!$D$11:$W$20,15,FALSE) -> 7.35 | S134: =VLOOKUP(VLOOKUP($D134,Parameters!$D$316:$H$462,S$9,FALSE),Parameters!$D$11:$W$20,16,FALSE) -> 1.942857143 | T134: =VLOOKUP(VLOOKUP($D134,Parameters!$D$316:$H$462,T$9,FALSE),Parameters!$D$11:$W$20,17,FALSE) -> 1.281533974 | U134: =VLOOKUP(VLOOKUP($D134,Parameters!$D$316:$H$462,U$9,FALSE),Parameters!$D$11:$W$20,18,FALSE) -> 1.22 | V134: =VLOOKUP(VLOOKUP($D134,Parameters!$D$316:$H$462,V$9,FALSE),Parameters!$D$11:$W$20,19,FALSE) -> 1.1258 | W134: =VLOOKUP(VLOOKUP($D134,Parameters!$D$316:$H$462,W$9,FALSE),Parameters!$D$11:$W$20,20,FALSE) -> 4.5032 | X134: =VLOOKUP(VLOOKUP($D134,Parameters!$D$316:$H$462,X$9,FALSE),Parameters!$D$11:$X$20,21,FALSE) -> 2.914285714
